Workbook

Sheet Contacts
A1: 2016 ACCOUNTING SPREADSHEET ECCV, ACWWA, and United
B3: Case No. 12CW073, 11CW280, 10CW312, 10CW313, 11CW285, 09CW283. 10CW306, 84CW090, 88CW264(B), 2002CW105-A, 02CW403, 02CW404 and 03CW442 - 2015 SWSP Accounting Spreadsheet
B8: East Cherry Creek Valley Water and Sanitation District
B9: Dave Kaunisto
B10: phone: (303) 693-3800
B12: Arapahoe County Water and Wastewater Authority
B13: Steve Witter
B14: phone: (303) 790-4830
B16: United Water and Sanitation District
B17: Andrew Daminao
B18: phone: (303) 785-3581
B20: DiNatale Water Consultants
B21: Brian Macpherson
B22: phone: (303) 709-7044
B24: Farmer's Reservoir and Irrigation Company
B25: Scott Edgar
B26: phone: (303) 659-7373

Sheet Control Sheet
A1: Accounting Control Variables
A2: Input data in yellow highlighted cells only. If yellow cells contain a formula, at the end of the accounting year, copy and paste the data for the year that just ended as values and remove the yellow shading.
A3: Sheets that require input have purple tabs.
A4: Accounting is administrated from 12 am to 12 am and the most senior call of the day will be used for the entire day.
A5: Year NHF Accounting Started | D5: 1995
A6: Current Accounting Year | D6: 2017
A7: Year Case 02CW404 and 03CW442 Accounting Started | D7: 2011
A8: Capacities | G8: Month | H8: No. of Days
A9: Max Rate of Diversion at United No. 1 | D9: 100 | E9: cfs | G9: Apr | H9: 30
A10: Max Rate of Diversion at United No. 2 | D10: 24 | E10: cfs | G10: Aug | H10: 31
A11: Max Rate of Diversion at United No. 3 | D11: 100 | E11: cfs | G11: Dec | H11: 31
A12: Div Capacity at United No. 4 | D12: 11.58 | E12: cfs | G12: Feb | H12: =IF(MOD(D6+1,4)=0,29,28) -> 28
A13: Milliken Reservoir Intake (Jay Thomas Ditch) | D13: 100 | E13: cfs | G13: Jan | H13: 31
A14: Beebe Pipeline Capacity | D14: 50 | E14: cfs | G14: Jul | H14: 31
A15: Burlington/FRICO HID share of Beebe Pipeline Capacity | D15: =0.5*D14 -> 25 | E15: cfs | G15: Jun | H15: 30
G16: Mar | H16: 31
A17: United Reservoir #3 Capacity (non-jurisdictional) | D17: 3180 | E17: AF | G17: May | H17: 31
A18: United Reservoir #3 Capacity (jurisdictional) | D18: 4611 | E18: AF | G18: Nov | H18: 30
G19: Oct | H19: 31
G20: Sep | H20: 30
A21: Div Capacity at Platte Valley Canal | D21: 350 | E21: cfs
A22: Div Capacity at Burlington Headgate | D22: 900 | E22: cfs
A23: Metro Pumping Plant | D23: 105 | E23: cfs
A25: Barr Lake Canal Characteristics
A27: Canal | B27: Length (ft) | C27: Canal Width (ft) | D27: Surface Area (ac) | E27: Capacity (cfs)
A28: Speer I | B28: 96440 | C28: 20 | D28: =(C28*B28)/43560 -> 44.27915519 | E28: 150
A29: West Burlington | B29: 48050 | C29: 10 | D29: 11.03076217 | E29: 20
A30: East Burlington | B30: 47870 | C30: 10 | D30: 10.98943985 | E30: 45
A31: Neres | B31: 89000 | C31: 20 | D31: 40.86317723 | E31: 120
A32: Bowles Seep | B32: 39310 | C32: 10 | D32: 9.024334252 | E32: 30
A33: East Neres | B33: 104860 | C33: 10 | D33: 24.07254362 | E33: 40
A35: 70 Ranch Canal Characteristics
A37: Canal | B37: Length (ft) | C37: Canal Width (ft) | D37: Surface Area (ac)
A38: Canal 11b to 8c | B38: 4850 | C38: 10 | D38: =(C38*B38)/43560 -> 1.113406795
A39: Canal 8a to 4/5 | B39: 6700 | C39: 10 | D39: =(C39*B39)/43560 -> 1.538108356
A40: Canal 8a to 9a | B40: 10670 | C40: 15 | D40: =(C40*B40)/43560 -> 3.674242424
A42: Barr Lake Evaporation Rates (From Operational Study Developed in Connection with Case No. 02CW105A): These values are used for the Projection Tool.
B43: Gross Evaporation | C43: Precipitation | D43: Net Evap
B44: Inches Per | C44: Inches Per | D44: Inches Per | E44: Percent
A45: Month | B45: Month | C45: Month | D45: Month | E45: Per Month
A46: Jan | B46: 0 | C46: 0.44 | D46: =IF(B46-C46<0,0,B46-C46) -> 0 | E46: =D46/$D$58 -> 0
A47: Feb | B47: 0 | C47: 0.37 | D47: =IF(B47-C47<0,0,B47-C47) -> 0 | E47: =D47/$D$58 -> 0
A48: Mar | B48: 2.48 | C48: 1.15 | D48: 1.33 | E48: 0.04763610315
A49: Apr | B49: 4.05 | C49: 1.76 | D49: 2.29 | E49: 0.08202005731
A50: May | B50: 5.4 | C50: 2.29 | D50: 3.11 | E50: 0.1113896848
A51: Jun | B51: 6.53 | C51: 1.63 | D51: 4.9 | E51: 0.1755014327
A52: Jul | B52: 6.75 | C52: 1.58 | D52: 5.17 | E52: 0.1851719198
A53: Aug | B53: 6.08 | C53: 1.75 | D53: 4.33 | E53: 0.1550859599
A54: Sep | B54: 4.5 | C54: 0.99 | D54: 3.51 | E54: 0.1257163324
A55: Oct | B55: 3.15 | C55: 0.89 | D55: 2.26 | E55: 0.08094555874
A56: Nov | B56: 1.8 | C56: 0.78 | D56: 1.02 | E56: 0.03653295129
A57: Dec | B57: 0 | C57: 0.52 | D57: 0 | E57: 0
A58: Total | B58: =SUM(B46:B57) -> 40.74 | C58: =SUM(C46:C57) -> 14.15 | D58: =SUM(D46:D57) -> 27.92 | E58: =SUM(E46:E57) -> 1
A61: Facility | B61: WDID
A62: Residential Well No. 1 | B62: 0107656
A63: Residential Well No. 2 | B63: 0107657
A64: Peterson Well No. 1 | B64: 0107968
A65: Peterson Well No. 2 | B65: 0107969
A66: NFC-W1 | B66: 0109961
A67: NFC-W2 | B67: 0109962
A68: NFC-W3 | B68: 0109963
A69: NFC-W4 | B69: 0109964
A70: Lower Latham Aug Station | B70: 0102917
A71: Illinois Ditch Aug Station | B71: 0102907
A72: Illinois Ditch Irrigation Pump No. 1 | B72: 0107520
A73: Illinois Ditch Irrigation Pump No. 2 | B73: 0109719
A74: Barr Lake | B74: 0203837
A75: United No. 1 | B75: 0100587
A76: United No. 2, Well #1 | B76: 0110707
A77: United No. 2, Well #3 | B77: 0110708
A78: United No. 2, Well #4 | B78: 0110709
A79: United No. 3 | B79: 0201511
A80: United No. 6 | B80: Not Yet Constructed
A81: Milton Lake | B81: 0203876
A82: Speer Canal | B82: 0200916
A83: Bowles Seep Canal | B83: 0200918
A84: E. Burlington Canal | B84: 0200920
A85: W. Burlington Canal | B85: 0200917
A86: Neres Canal | B86: 0200921
A87: E. Neres Canal | B87: 0200919
A88: Moser | B88: 0202058
A89: Milliken Reservoir | B89: 0203388
A90: Tu Pit | B90: 0202070
A91: Mile High Lakes | B91: Not Yet Constructed
A92: Bromley Lane | B92: Not Yet Constructed
A93: Schupman | B93: Not Yet Constructed
A94: Pettinger East | B94: Not Yet Constructed
A95: Pettinger West | B95: Not Yet Constructed
A96: Artese | B96: Not Yet Constructed
A97: Dechant | B97: Not Yet Constructed
A98: Carlin | B98: Not Yet Constructed
A99: Klug | B99: Not Yet Constructed
A100: Sater | B100: Not Yet Constructed
A101: Riverside Pond No. 1 | B101: 0102048
A102: Riverside Pond No. 2 | B102: 0102069
A103: Recharge Pond 4/5 | B103: Not Yet Constructed
A104: Recharge Pond 8a | B104: Not Yet Constructed
A105: Recharge Pond 8b | B105: Not Yet Constructed
A106: Recharge Pond 8c | B106: Not Yet Constructed
A107: Recharge Pond 9a | B107: Not Yet Constructed
A108: Recharge Pond 11a | B108: Not Yet Constructed
A109: Recharge Pond 11b | B109: Not Yet Constructed
A110: Recharge Canal 8a to 9a | B110: Not Yet Constructed
A111: Recharge Canal 11b to 8c | B111: Not Yet Constructed
A112: Recharge Canal 8a to 4/5 | B112: Not Yet Constructed
A113: ECCV Well No. P-2
A114: ECCV Well No. P-3
A115: ECCV Well No. P-4
A116: ECCV Well No. P-5
A117: ECCV Well No. P-6 | B117: 0210020
A118: ECCV Well No. P-8 | B118: 0209886
A119: ECCV Well No. P-11 | B119: 0209885
A120: ECCV Well No. P-12 | B120: 0209882
A121: ECCV Well No. P-13 | B121: 0209884
A122: ECCV Well No. P-18
A123: ECCV Well No. E-7 | B123: 0210019
A124: ECCV Well No. P-15
A125: ECCV Well No. E-1 | B125: Not Yet Constructed | C125: 0210385
A126: ECCV Well No. P-14 | B126: Not Yet Constructed | C126: 0210386
A127: ECCV Well No. P-19 | B127: Not Yet Constructed | C127: 0210387
A128: ECCV Well No. P-20 | B128: Not Yet Constructed | C128: 0210388
A129: ECCV Well No. P-21 | B129: Not Yet Constructed | C129: 0210389

Sheet ECCV Daily Replacement Summary
A1: 2016 Accounting - Case 02CW404,03CW442, and 10CW306
A2: Year | B2: ='Control Sheet'!D6 -> 2017 | BA2: REPLACEMENT SUMMARY FOR SOUTH PLATTE RIVER REACH 5 (BELOW BIJOU CANAL) | CH2: REPLACEMENT SUMMARY FOR SOUTH PLATTE RIVER REACH 4 (EMPIRE CANAL TO BIJOU CANAL) | DT2: REPLACEMENT SUMMARY FOR CACHE LA POUDRE RIVER (CONNECTED TO REACH 3) | FG2: REPLACEMENT SUMMARY FOR SOUTH PLATTE RIVER REACH 3 (LOWER LATHAM CANAL TO EMPIRE CANAL) | GM2: REPLACEMENT SUMMARY FOR SOUTH PLATTE RIVER REACH 2 (WESTERN MUTUAL DITCH TO LOWER LATHAM CANAL) | IV2: REPLACEMENT SUMMARY FOR SOUTH PLATTE RIVER REACH 1 (ABOVE WESTERN MUTUAL DITCH) | KA2: REPLACEMENT SUMMARY FOR BEEBE DRAW ABOVE MILTON | LM2: REPLACEMENT SUMMARY FOR BEEBE DRAW BELOW MILTON | LX2: REPLACEMENT SUMMARY FOR BOX ELDER CREEK
MZ3: SOUTH PLATTE RIVER EXCHANGES | RS3: Used to Check Releases on Reservoir Sheets
C4: District 2 Call Information | K4: District 1 & 64 Call Information | S4: 70 Ranch Diversions and Well Pumping | AG4: 2003 One Time Diversion Right | AI4: Replacement Summary For Riverside | AN4: Replacement Summary for South Platte River Reach 5 | CH4: Replacement Summary for South Platte River Reach 4 | DT4: Replacement Summary for Cache La Poudre River | FG4: Replacement Summary for South Platte River Reach 3 | GM4: Replacement Summary for South Platte River Reach 2 | IV4: Replacement Summary for South Platte River Reach 1 | KA4: Replacement Summary for Beebe Draw Above Milton | LM4: Replacement Summary for Beebe Draw below Milton | LX4: Replacement Summary for Box Elder Ck | ME4: OVERALL REPLACEMENT SUMMARY | MU4: Minimum Rates of Flow | MZ4: MAXIMUM EXCHANGE RATE FROM BEAVER CREEK=12.2 CFS | ND4: MAXIMUM EXCHANGE RATE FROM FT. MORGAN CANAL=12.2 CFS | NQ4: MAXIMUM EXCHANGE RATE FROM WELDON VALLEY CANAL= 14.2 CFS | OC4: MAXIMUM EXCHANGE RATE FROM 70 RANCH EXCHANGE QUANTIFICATION POINT= 11.0 CFS | OO4: MAXIMUM EXCHANGE RATE FROM SOUTH PLATTE AND CACHE LA POUDRE CONFLUENCE=5.2 CFS | PC4: MAXIMUM EXCHANGE RATE FROM WESTERN MUTUAL DITCH=5.5 CFS | PM4: MAXIMUM EXCHANGE RATE FROM MILLIKEN RESERVOIR OUTLET STRUCTURE=260.0 CFS | PV4: MAXIMUM EXCHANGE RATE FROM SOUTH PLATTE AND ST VRAIN CONFLUENCE=50 CFS | PZ4: MAXIMUM EXCHANGE RATE FROM ST VRAIN PIPELINE OUTLET EXCHANGE QUANTIFICATION POINT= 50 CFS | QE4: MAXIMUM EXCHANGE RATE FROM FARMERS INDEPENDENT DITCH=1.5 CFS | QQ4: AGGREGATE OF EXCHANGES | QU4: Retiming of ECCV's Surplus Beebe Draw Recharge Accretions | RH4: Retiming of FRICO's Surplus Beebe Draw Recharge Accretions | RS4: Reservoir Replacement Release Summary
A5: Month | B5: Day | C5: Primary River Call Name (Structure Calling) | D5: Primary River Call Appropriation Date | E5: Primary River Call Location | F5: Primary River Call Admin Number | G5: Secondary River Call Name (Structure Calling) | H5: Secondary River Call Appropriation Date | I5: Secondary River Call Location | J5: Secondary River Call Admin Number | K5: Primary River Call Name (Structure Calling) | L5: Primary River Call Appropriation Date | M5: Primary River Call Location | N5: Primary River Call Admin Number | O5: Secondary River Call Name (Structure Calling) | P5: Secondary River Call Appropriation Date | Q5: Secondary River Call Location | R5: Secondary River Call Admin Number | S5: Surplus CU Water Available for Diversion by Exchange at United No. 1 | T5: United No. 1 Diversion of C.U. Water by Exchange | U5: United No. 1 Diversion of the 2003 Right | V5: Other Water Diverted at United No. 1 | W5: Source of Other Water | X5: United No. 1 Total Diversion | Y5: NFC-W1, W3 and W4 Pumping | Z5: 88CW264(B) Pumping, Peterson Well Nos. 1 and 2, Residential Well Nos.1 and 2, Illinois Irrigation Pump No.1 and 2 | AA5: Surplus C.U. Water in SPR-Reaches 4 and 5 Available for Diversion at United No. 2 | AB5: United Diversion Facility No. 2 Well Pumping of ECCV C.U. Water | AC5: United Diversion Facility No. 2 Well Pumping of the 2003 Right | AD5: Other Water Pumped at United No. 2 | AE5: Source of Other Water | AF5: Total Pumping | AG5: Total Diversion of the 2003 One Time Diversion Right | AH5: Maximum Total Rate of Diversion | AI5: NFC Well Depletions to Riverside | AJ5: Other Approved Water to Replace NFC Well Depletions to Riverside | AK5: Source of Other Water | AL5: ECCV 70 Ranch Recharge Accretions to Riverside | AM5: Remaining Requirement to Riverside | AN5: OOP NFC Well Depletions | AO5: Leased Credits from Riverside Irrigation District | AP5: Other Approved Water used to Replace NFC Well Depletions in SPR Reach 5 | AQ5: Source of Other Water | AR5: Weldon Valley Surface RF Obligation above Fort Morgan Canal Headgate | AS5: Weldon Valley Unlagged Subsurface RF Obligation above Fort Morgan Canal Headgate | AT5: Weldon Valley Lagged Subsurface RF Obligation above Fort Morgan Canal Headgate | AU5: Weldon Valley RF Obligation above Fort Morgan Canal Headgate | AV5: Weldon Valley Surface RF Obligation below Fort Morgan Canal Headgate | AW5: Weldon Valley Unlagged Subsurface RF Obligation below Fort Morgan Canal Headgate | AX5: Weldon Valley Lagged Subsurface RF Obligation below Fort Morgan Canal Headgate | AY5: Weldon Valley RF Obligation below Fort Morgan Canal Headgate | AZ5: Weldon Valley 50% RF Difference Obligation | BA5: ECCV's Riverside Recharge Accretions in SPR Reach 5 | BB5: Weldon Valley Recharge Accretions in SPR Reach 5 | BC5: ECCV 70 Ranch Recharge Accretions to SPR Reach 5 | BD5: ECCV's Weldon Valley Ditch Augmentation Station Delivery Measured at Weldon Valley Aug Station | BE5: ECCV's Weldon Valley Ditch Augmentation Station Delivery Measured at ACWWA/Central Aug Station | BF5: ECCV's Weldon Valley Augmentation Station Delivery Used to Meet RF and RFD Obls Above Ft. Morgan | BG5: ECCV's Weldon Valley Augmentation Station Delivery Used to Meet RF and RFD Obls Below Ft. Morgan | BH5: Transit Loss from ACWWA/Central Aug Station to RF Obls Below Ft. Morgan | BI5: Weldon Valley Ditch CU Credit | BJ5: ECCV's Riverside Recharge Accrtns used to Replace Obligation in SPR Reach 5 | BK5: Weldon Valley Recharge Accrtns used to Replace Obligation in SPR Reach 5 | BL5: 70 Ranch Recharge Accrtns used to Replace Obligation in SPR Reach 5 | BM5: Transit Loss on Riverside and 70 Ranch Recharge Accretions Used for Replacement | BN5: United Res #3 Release to Satisfy Requirement in SPR Reach 5 | BO5: Transit Loss on United Res Release | BP5: Milliken Release to Satisfy Requirement in SPR Reach 5 | BQ5: Transit Loss on Milliken Release | BR5: Other Approved Water used to Replace Requirement in SPR Reach 5 | BS5: Source of Other Water | BT5: Is Ft. Morgan Canal the Calling Right and Drying up the River (Yes or No) | BU5: Is Jackson Canal the Calling Right and Drying up the River (Yes or No) | BV5: Is Bijou Canal the Calling Right and Drying up the River (Yes or No) | BW5: Available Bypassed at Bijou, Jackson or Ft. Morgan | BX5: Requested Bypassed at Bijou, Jackson or Ft. Morgan | BY5: Actual Amount Bypassed at Bijou, Jackson or Ft. Morgan | BZ5: Source of Water Bypassed at Bijou, Jackson or Ft. Morgan | CA5: Riverside and 70 Ranch Accrtns used to Replace Obligation in SPR Reach 4 | CB5: 70 Ranch Recharge Accrtns in SPR Reach 5 used to Replace Obligation in SPR Reach 4 | CC5: Weldon Valley CU in SPR Reach 5 used to Replace Obligation in SPR Reach 4 | CD5: Riverside Accrtns Used to Augment OOP Storage under 2003 Right in Milton | CE5: Recharge Accrtns in SPR 5 Used to Augment OOP Storage under 2003 Right in Milton | CF5: Obligation in SPR Reach 5 | CG5: Surplus CU in SPR Reach 5 Available for Upstream Replacement and/or Exchange | CH5: OOP NFC Well Depletions | CI5: OOP 88CW264(B) Pumping, Peterson Well Nos. 1 and 2, Residential Well Nos.1 and 2, Illinois Irrigation Pump No.1 and 2 | CJ5: United's Total OOP Stream Depletion due to Pumping | CK5: Leased Credits from Riverside Irrigation District | CL5: Other Approved Water used to Replace NFC & Peterson Well Obligation in SPR Reach 4 | CM5: Source of Other Approved Water | CN5: OOP United Diversion Facility No. 2 Depletions | CO5: ECCV's Total OOP Stream Depletion due to Pumping | CP5: Return Flow Obligation Associated with 70 Ranch Water Rights (Lower Latham and Illinois) | CQ5: ECCV's Total OOP Replacement Requirement to SPR Reach 4 | CR5: ECCV's 70 Ranch Recharge Accretions to SPR Reach 4 | CS5: Lower Latham Delivery Measured at ECCV Aug Station | CT5: Lower Latham CU Credit | CU5: ECCV's Lower Latham Aug Station Delivery Used to Meet RF Obligations | CV5: Illinois Ditch Delivery Measured at ECCV Aug Station | CW5: Illinois Ditch CU Credit | CX5: Hardin Ditch CU Credit | CY5: Other Approved Water used to Replace Obligation in SPR Reach 4 | CZ5: Source of Other Approved Water | DA5: Total Consumptive Use Credit in SPR Reach 4 | DB5: Consumptive Use Credit Used to Satisfy ECCV's Obligation in SPR Reach 4 | DC5: Consumptive Use Credit Used to Replace Longmont obligation | DD5: Transit loss from SPR Reach 4 to Longmont Obligation | DE5: Recharge Accrtns used to Replace ECCV's Obligation in SPR Reach 4 | DF5: Consumptive Use Credit Used to Augment OOP Storage under 2003 Right in Milton | DG5: Recharge Accrtns Used to Augment OOP Storage under 2003 Right in Milton | DH5: Remaining Requirement in SPR Reach 4 | DI5: Riverside Accrtns used to Replace Obligation in SPR Reach 4 | DJ5: Recharge Accrtns in SPR Reach 5 used to Replace Obligation in SPR Reach 4 | DK5: Weldon Valley Accrtns used to Replace Obligation in SPR Reach 4 | DL5: NFC Well Pumping Delivered to the South Platte for Replacement | DM5: United Res #3 Release to Satisfy Remaining Requirement in SPR Reach 4 | DN5: Transit Loss on United Res Release | DO5: ECCV LIRFs to Replace Remaining RF Obligation to SPR Reach 4 | DP5: Transit Loss on ECCV's Toll Gate Creek LIRFs | DQ5: Milliken Release to Satisfy Remaining Requirement in SPR Reach 4 | DR5: Transit Loss on Milliken Release | DS5: Surplus CU in SPR Reach 4 Available for Upstream Replacement and/or Exchange | DT5: New Cache RF Obligation abv Greeley No. 3 | DU5: New Cache Delivery Measured at John Law Aug Station | DV5: Transit Loss on John Law Release to CLP | DW5: Other Approved Water used to Replace Obligation abv Greeley No. 3 | DX5: Source of Other Approved Water | DY5: Is the Greeley No. 3 drying up the river (Yes or No) | DZ5: Is there a live stream for the John Law Seep (Yes or No) | EA5: Net Effect Above Greeley No. 3 | EB5: New Cache Delivery from the John Law Aug Station available above Ogilvy | EC5: Transit Loss on John Law Release to Ogilvy | ED5: New Cache RF Obligation abv Ogilvy Ditch | EE5: GIC RF Obligation abv the Ogilvy Ditch | EF5: Total RF Obligation | EG5: New Cache Delivery from the John Law Aug Station used | EH5: ECCV's GIC Delivery Measured at F Street Release Structure | EI5: Transit Loss on F Street Release to Ogilvy | EJ5: ECCV's GIC Delivery Measured at 23rd Avenue Release Structure | EK5: Transit Loss on 23rd Ave Release to Ogilvy | EL5: SerFer Pit Release | EM5: Transit Loss on SerFer Pit Release to Ogilvy Ditch | EN5: Other Approved Water used to Replace Obligation abv the Ogilvy Ditch | EO5: Source of Other Approved Water | EP5: Is the Ogilvy Ditch drying up the river (Yes or No) | EQ5: Net Effect between GIC and Ogilvy Ditch | ER5: New Cache RF Obligation that can be met by SPR 3 | ES5: GIC RF Obligation below the Ogilvy Ditch | ET5: CU above Ogilvy available to SPR | EU5: Transit Loss on CU above Ogilvy to SPR | EV5: Is there a live stream for Sand Creek (Yes or No) | EW5: New Cache Delivery Measured at Upper Sand Creek Aug Station | EX5: Transit Loss on Upper Sand Creek Releases to SPR | EY5: New Cache Delivery Measured at Lower Sand Creek Aug Station | EZ5: Transit Loss on Lower Sand Creek Releases to SPR | FA5: ECCV's GIC Delivery Measured at 16th Street Release Structure | FB5: Transit Loss on 16th Street Releases to SPR | FC5: Net Effect on CLP | FD5: Total GIC Delivery at all Structures | FE5: Total Greeley No. 3 Portion of GIC Delivery | FF5: Total Fossil Creek Portion of GIC Delivery | FG5: OOP Historic RF Obligation to SPR Reach 3 | FH5: GIC RF Obligation above Highland Ditch | FI5: CLP RF Obligation to SPR Reach 3 | FJ5: Total RF Obligation | FK5: Is there a call between Lower Latham and Bijou that is drying up the river (Yes or No) | FL5: Available Bypassed at the Lower Latham | FM5: Requested Bypassed at Lower Latham | FN5: Actual Amount Bypassed at Lower Latham | FO5: Source of Water Bypassed at Lower Latham | FP5: 70 Ranch CU Water in SPR Reach 4 Substituted to Replace RF Obligation to SPR Reach 3 | FQ5: 70 Ranch CU Water in SPR Reach 5 Substituted to Replace RF Obligation to SPR Reach 3 | FR5: United Res #3 Release to Replace Remaining RF Obligation to SPR Reach 3 | FS5: Transit Loss on United #3 Release | FT5: ECCV LIRFs to Replace Remaining RF Obligation to SPR Reach 3 | FU5: Transit Loss on ECCV's Toll Gate Creek LIRFs | FV5: Milliken Res Release to Replace Remaining RF Obligation to SPR Reach 3 | FW5: Transit Loss on Milliken Release | FX5: Other Approved Water used to Replace Obligation in SPR Reach 3 | FY5: Source of Other Approved Water | FZ5: CLP Excess CU to SPR Reach 3 | GA5: Is there a live stream for Lone Tree Creek (Yes or No) | GB5: New Cache Delivery Measured at Lone Tree Creek Aug Station | GC5: Transit Loss on Lone Tree Creek Releases to SPR | GD5: Is there a live stream for Crow Creek (Yes or No) | GE5: New Cache Delivery Measured at Upper Crow Creek Aug Station | GF5: Transit Loss on Upper Crow Creek Releases to SPR | GG5: New Cache Delivery Measured at Lower Crow Creek Aug Station | GH5: Transit Loss on Lower Crow Creek Releases to SPR | GI5: Obligation in SPR Reach 3 | GJ5: Surplus CU in SPR Reach 3 Available for Replacement and/or Exchange | GK5: ECCV's Surplus Consumable Water in SPR Reach 4 | GL5: ECCV's Surplus Consumable Water in SPR Reach 5 | GM5: OOP Barr Share Historic RF Obligation to SPR Reach 2 | GN5: FIDCO RF Obligation to SPR Reach 2 | GO5: Western RF Obligation to Reach 2 | GP5: Total RF Obligation | GQ5: FIDCO Lower Aug Station deliveries for replacement of RF obligation | GR5: FIDCO Middle Aug Station deliveries for replacement of RF Obiligation | GS5: FIDCO Upper Aug Station deliveries for replacement of RF Obiligation | GT5: Transit Loss on FIDCO Upper Aug Station Delivery for replacement of RF Obligation | GU5: Haren Pond Recharge Accretions in SPR Reach 2 | GV5: Haren Pond Recharge Accrtns used to Replace Obligation in SPR Reach 2 | GW5: Haren Recharge Accretions Used to Augment Well Depletions abv Milton | GX5: Is there a call between the Western and Bijou that is drying up the river (Yes or No) | GY5: Is the Western (Jay Thomas) the Calling Right and Drying up the River (Yes or No) | GZ5: Is the Union or Godfrey the Calling Right (Yes or No) | HA5: Available Bypassed at Western | HB5: Requested Bypassed at Western | HC5: Actual Amount Bypassed at Western | HD5: Source of Water Bypassed at Western | HE5: 70 Ranch CU Water in SPR-Reach 4 Substituted to Replace RF Obligation to SPR Reach 2 | HF5: 70 Ranch CU Water in SPR-Reach 5 Substituted to Replace RF Obligation to SPR Reach 2 | HG5: Remaining Historic RF Obligation to SPR Reach 2 | HH5: United Res #3 Release to Replace Remaining RF Obligation to SPR Reach 2 | HI5: Transit Loss on United #3 Release | HJ5: ECCV LIRFs to Replace Remaining RF Obligation to SPR Reach 2 | HK5: Transit Loss on ECCV's Toll Gate Creek LIRFs | HL5: Milliken Res Release to Replace RF Obligations | HM5: Milliken Res Release to Replace RF Obligation to SPR Reach 2 | HN5: Transit Loss on Milliken Release | HO5: Other Approved Water used to Replace Obligation in SPR Reach 2 | HP5: Source of Other Approved Water | HQ5: Remaining Historic RF Obligation to SPR Reach 2 | HR5: Western Ditch Delivery Measured at Aug Station | HS5: Western CU Credit | HT5: FIDCO Delivery Measured at Lower Aug Station | HU5: FIDCO CU Credit from Lower Aug Station | HV5: FIDCO Delivery Measured at Middle Aug Station | HW5: FIDCO CU Credit from Middle Aug Station | HX5: FIDCO CU from Lower Aug Station used to Replace Obligation to Beebe abv Milton | HY5: Western CU used to Replace Obligation to Beebe abv Milton | HZ5: FIDCO CU from Lower Aug Station used to Replace Longmont Obligation | IA5: Transit loss from FIDCO Lower Aug Station to Longmont Obligation | IB5: Western CU used to Replace Longmont Obligation | IC5: Milliken Release used to Replace Longmont Obligation | ID5: Transit Loss on Milliken Release | IE5: Western CU Available for Exchange to Milliken and United | IF5: Western CU Exchanged to Milliken Res | IG5: Western CU Exchanged to United Res | IH5: FIDCO Lower Aug Station CU Available for Exchange to Milliken and United | II5: FIDCO SPR Reach 2 CU Exchanged to Milliken | IJ5: FIDCO SPR Reach 2 CU Exchanged to United Res | IK5: CU Water from SPR Reach 5 Available for Exchange to Milliken | IL5: CU Water from SPR Reach 5 Exchanged to Milliken Res | IM5: CU Water from SPR Reach 4 Available for Exchange to Milliken | IN5: CU Water from SPR Reach 4 Exchanged to Milliken Res | IO5: FIDCO CU Diverted to Milliken Res | IP5: ECCV Toll Gate Creek LIRFs to Milliken Res | IQ5: Transit Loss on ECCV's Toll Gate Creek LIRFs to Milliken Res | IR5: Total ECCV Diversion to Milliken Res of CU Water | IS5: ECCV's Surplus Consumable Water in SPR Reach 2 | IT5: ECCV's Surplus Consumable Water in SPR Reach 4 | IU5: ECCV's Surplus Consumable Water in SPR Reach 5 | IV5: OOP Barr Share Historic RF Obligation to SPR Reach 1 | IW5: FIDCO Delivery Measured at Upper Aug Station | IX5: FIDCO CU Credit from Upper Aug Station | IY5: FIDCO CU Used for Barr RF | IZ5: Is there a call between the Farmers Independent and Bijou that is drying up the river (Yes or No) | JA5: CU Water in SPR-Reach 4 Substituted to Replace RF Obligation to SPR Reach 1 | JB5: CU Water in SPR-Reach 5 Substituted to Replace RF Obligation to SPR Reach 1 | JC5: CU Water in SPR-Reach 2 Substituted to Replace RF Obligation to SPR Reach 1 | JD5: Remaining Historic RF Obligation to SPR Reach 1 | JE5: ECCV United Res #3 Release to Replace RF Obligations | JF5: United Res #3 Release to Replace Remaining RF Obligation to SPR Reach 1 | JG5: Transit Loss on United Res Release | JH5: Milliken Release to Replace Remaining RF Obligation to SPR Reach 1 | JI5: ECCV's 03CW200 Toll Gate LIRFs | JJ5: Transit Loss on ECCV's Toll Gate Creek LIRFs from Sand Crk Abv Burlington gage to South Platte River | JK5: ECCV LIRFs to Replace Remaining RF Obligation to SPR Reach 1 | JL5: Transit Loss on ECCV's Toll Gate Creek LIRFs | JM5: Other Approved Water used to Replace Obligation in SPR Reach 1 | JN5: Source of Other Approved Water | JO5: Remaining Requirement in SPR Reach 1 | JP5: CU Water from SPR Reach 5 Available for Exchange to United Res | JQ5: CU Water from SPR Reach 5 Exchanged to United Res | JR5: CU Water from SPR Reach 4 Available for Exchange to United Res | JS5: CU Water from SPR Reach 4 Exchanged to United Res | JT5: Western CU Water from SPR Reach 2 Exchanged to United Res | JU5: FIDCO CU Water from SPR Reach 2 Exchanged to United Res | JV5: ECCV Toll Gate Creek LIRFs to United Res | JW5: Transit Loss on ECCV's Toll Gate Creek LIRFs to United Res | JX5: Total ECCV Diversion to United Res of CU Water | JY5: ECCV's Surplus Consumable Water in SPR Reach 4 | JZ5: ECCV's Surplus Consumable Water in SPR Reach 5 | KA5: OOP ECCV Well Depletion to Beebe abv Milton | KB5: OOP Historic RF Obligation to Beebe abv Milton | KC5: Total Ditch Loss Obligation for ECCV's Changed Barr Shares | KD5: ECCV Recharge Accretions to Beebe above Milton Lake | KE5: 84CW090 Recharge Accretions to Beebe above Milton Lake | KF5: Lochbuie 84CW090 Accretions used for Replacement to Beebe above Milton Lake | KG5: ECCV's Share Allocation of 84CW090 Accretions | KH5: ECCV Recharge Accretions Used to Augment Well Depletions abv Milton | KI5: ECCV's 84CW090 Accretions Used to Augment Well Depletions abv Milton | KJ5: Is there a call on Beebe Draw or SPR between Powell Spillway and Bijou Canal that is drying up the river (Yes or No) | KK5: Milton Lake Net Loss Based on Mass Balance | KL5: CU Water in SPR-Reach 4 Substituted to Replace RF Obligation abv Milton | KM5: CU Water in SPR-Reach 4 Used to Augment Well Depletions abv Milton | KN5: CU Water in SPR-Reach 5 Substituted to Replace RF Obligation abv Milton | KO5: CU Water in SPR-Reach 5 Used to Augment Well Depletions abv Milton | KP5: CU Water in SPR-Reach 3 Substituted to Replace RF Obligation abv Milton | KQ5: CU Water in SPR-Reach 3 Used to Augment Well Depletions abv Milton | KR5: Remaining Well Depletion to Beebe abv Milton | KS5: Remaining Historic RF Obligation to Beebe abv Milton | KT5: Barr Release to Replace Well Depletion to Beebe abv Milton | KU5: Transit Loss on Barr Release | KV5: Barr Release to Replace RF Obligation to Beebe abv Milton | KW5: Barr Release to Replace Ditch Loss Obligation to Beebe abv Milton | KX5: Milton Bookover to Replace Well Depletion to Beebe abv Milton | KY5: FIDCO CU from Lower Aug Station Substituted to Replace RF Obligation abv Milton | KZ5: FIDCO CU from Lower Aug Station Used to Augment Well Depletions abv Milton | LA5: Western CU in SPR-Reach 2 Substituted to Replace RF Obligation abv Milton | LB5: Western CU in SPR-Reach 2 Used to Augment Well Depletions abv Milton | LC5: Haren Recharge Accretions in SPR- Reach 2 Used to Augment Well Depletions abv Milton | LD5: ECCV's Milliken Release to Replace Remaining Obligation to abv Milton | LE5: Transit Loss on Milliken Res Release | LF5: ECCV's Other Approved Water used to Replace Obligation above Milton | LG5: Source of ECCV's Other Approved Water | LH5: Remaining Obligation to Beebe abv Milton | LI5: ECCV's Surplus Recharge Accretions to Beebe above Milton Lake | LJ5: ECCV's Surplus 84CW090 Recharge Accretions to Beebe above Milton Lake | LK5: ECCV's Surplus Consumable Water in SPR-Reach 4 | LL5: ECCV's Surplus Consumable Water in SPR-Reach 5 | LM5: OOP Historic RF Obligation to Beebe blw Milton | LN5: Is there a call on Beebe Draw blw Milton or SPR btwn Powell Spillway and Bijou Canal drying up the river (Yes or No) | LO5: 70 Ranch CU Water in SPR Reach 4 Substituted to Replace RF Obligation blw Milton | LP5: 70 Ranch CU Water in SPR Reach 5 Substituted to Replace RF Obligation blw Milton | LQ5: Remaining Historic RF Obligation to Beebe blw Milton | LR5: Milton Release to meet RF Obligation to Beebe blw Milton | LS5: Transit Loss on Milton Release | LT5: Other Approved Water used to Replace Obligation below Milton | LU5: Source of Other Approved Water | LV5: ECCV's Surplus Consumable Water in SPR-Reach 4 | LW5: ECCV's Surplus Consumable Water in SPR-Reach 5 | LX5: OOP Historic RF Obligation to Box Elder Creek | LY5: ECCV Recharge Accretions to Box Elder Creek | LZ5: ECCV Recharge Accretions Used to Augment Box Elder Creek Obligation | MA5: Milton Release to meet RF Obligation to Box Elder Ck | MB5: Transit Loss on Milton Release | MC5: Other Approved Water used to Replace Obligation to Box Elder | MD5: Source of Other Approved Water | ME5: Total Out of Priority Replacement Requirement | MF5: Total Replacement to Beebe abv Milton | MG5: Total Replacement to Beebe blw Milton | MH5: Total Replacement to Box Elder Ck | MI5: Total Replacement to SPR-Reach 1 | MJ5: Total Replacement to SPR-Reach 2 | MK5: Total Replacement to SPR-Reach 3 | ML5: Total Replacement to CLP | MM5: Total Replacement to SPR-Reach 4 | MN5: Total Replacement to SPR-Reach 5 | MO5: Total Replacement | MP5: Total Remaining Replacement Requirement | MQ5: ECCV's Surplus Recharge Accretions in Beebe abv Milton | MR5: ECCV's Surplus Consumable Water in SPR-Reach 4 | MS5: ECCV's Surplus Consumable Water in SPR-Reach 5 | MU5: Minimum Flow within Reach 5 | MV5: Minimum Flow within Reach 4 | MW5: Minimum Flow within Reach 3 | MX5: Minimum Flow within Reach 2 | MY5: Minimum Flow within Reach 1 | MZ5: Measured flow at Beaver Creek | NA5: Exchange from Beaver Creek to Ft. Morgan Headgate | NB5: Total Exchanged from Beaver Creek under 12/29/2011 Appropriation Date | NC5: Source of Substitute Supply Used for Exchanges from Beaver Creek | ND5: Measured flow at all Ft. Morgan Canal Aug Stations | NE5: Exchange from all Ft. Morgan Canal Aug Stations to Ft Morgan Canal Headgate | NF5: Exchange from all Ft. Morgan Canal Aug Stations to United Div Facility No. 1 | NG5: Total exchange from all Ft. Morgan Canal Aug Stations to either Milliken Res Diversion | NH5: Exchange from all Ft. Morgan Canal Aug Stations to St Vrain Pipeline | NI5: Exchange from all Ft. Morgan Canal Aug Stations to Jay Thomas Ditch | NJ5: Exchange from all Ft. Morgan Canal Aug Stations to Platte Valley Canal | NK5: Exchange from all Ft. Morgan Canal Aug Stations to United Div Facility No. 3 | NL5: Exchange from all Ft. Morgan Canal Aug Stations to Burlington Canal | NM5: Total Exchanged from all Ft. Morgan Canal Aug Stations under 12/31/2003 Appropriation Date | NN5: Total Exchanged from all Ft. Morgan Canal Aug Stations under 5/31/2007 Appropriation Date | NO5: Total Exchanged from all Ft. Morgan Canal Aug Stations under 12/29/2011 Appropriation Date | NP5: Source of Substitute Supply Used for Exchanges from all Ft. Morgan Canal Aug Stations | NQ5: Measured flow at all Weldon Valley Canal Aug Stations | NR5: Exchange from all Weldon Valley Canal Aug Stations to United Div Facility No. 1 | NS5: Exchange from all Weldon Valley Canal Aug Stations to either Milliken Res Diversion | NT5: Exchange from all Weldon Valley Canal Aug Stations to St Vrain Pipeline | NU5: Exchange from all Weldon Valley Canal Aug Stations to Jay Thomas Ditch | NV5: Exchange from all Weldon Valley Canal Aug Stations to Platte Valley Canal | NW5: Exchange from all Weldon Valley Canal Aug Stations to United Div Facility No. 3 | NX5: Exchange from all Weldon Valley Canal Aug Stations to Burlington Canal | NY5: Total Exchanged from all Weldon Valley Aug Stations under 12/31/2003 Appropriation Date | NZ5: Total Exchanged from all Weldon Valley Aug Stations under 5/31/2007 Appropriation Date | OA5: Total Exchanged from all Weldon Valley Aug Stations under 12/29/2011 Appropriation Date | OB5: Source of Substitute Supply Used for Exchanges from Weldon Valley Canal | OC5: ECCV's Surplus Consumable Water in SPR-Reaches 4 and 5 Available for Exchanges from 70 Ranch | OD5: Exchange from 70 Ranch Exchange Quantification Point to United Div Facility No. 1 | OE5: Exchange from 70 Ranch Exchange Quantification Point to either Milliken Res Diversion | OF5: Exchange from 70 Ranch Exchange Quantification Point to St Vrain Pipeline | OG5: Exchange from 70 Ranch Exchange Quantification Point to Jay Thomas Ditch | OH5: Exchange from 70 Ranch Exchange Quantification Point to Platte Valley Canal | OI5: Exchange from 70 Ranch Exchange Quantification Point to United Div Facility No. 3 | OJ5: Exchange from 70 Ranch Exchange Quantification Point to Burlington Canal | OK5: Total Exchanged from 70 Ranch under 12/31/2003 Appropriation Date | OL5: Total Exchanged from 70 Ranch under 5/31/2007 Appropriation Date | OM5: Total Exchanged from 70 Ranch under 12/29/2011 Appropriation Date | ON5: Source of Substitute Supply Used for Exchanges from 70 Ranch | OO5: Amount Available at South Platte and Cache la Poudre Confluence for Exchange | OP5: Amount Available at Sand Creek Aug Station for Exchange | OQ5: Amount Available at Lone Tree Creek Aug Station for Exchange | OR5: Amount Available at Crow Creek Aug Station for Exchange | OS5: Total exchange from all Cache la Poudre Rights on the South Platte to either Milliken Res Diversion | OT5: Exchange from all Cache la Poudre Rights on the South Platte to St Vrain Pipeline | OU5: Exchange from all Cache la Poudre Rights on the South Platte to Jay Thomas Ditch | OV5: Exchange from all Cache la Poudre Rights on the South Platte to Platte Valley Canal | OW5: Exchange from all Cache la Poudre Rights on the South Platte to United Div Facility No. 3 | OX5: Exchange from all Cache la Poudre Rights on the South Platte to Burlington Canal | OY5: Total Exchanged from all Cache la Poudre Rights on the South Platte under 12/31/2003 Appropriation Date | OZ5: Total Exchanged from all Cache la Poudre Rights on the South Platte under 5/31/2007 Appropriation Date | PA5: Total Exchanged from all Cache la Poudre Rights on the South Platte under 12/29/2011 Appropriation Date | PB5: Source of Substitute Supply Used for Exchanges from all Cache la Poudre Rights on the South Platte | PC5: Measured flow at Western Mutual Ditch Aug Station | PD5: Total exchange from downstream and mid Western Mutual Ditch Aug Station to either Milliken Res Diversion | PE5: Exchange from downstream and mid Western Mutual Ditch Aug Station to St Vrain Pipeline (United Div Facility No. 5) | PF5: Exchange from all Western Mutual Ditch Aug Station to Platte Valley Canal | PG5: Exchange from all Western Mutual Ditch Aug Station to United Div Facility No. 3 | PH5: Exchange from all Western Mutual Ditch Aug Station to Burlington Canal | PI5: Total Exchanged from Western Mutual under 12/31/2003 Appropriation Date | PJ5: Total Exchanged from Western Mutual under 5/31/2007 Appropriation Date | PK5: Total Exchanged from Western Mutual under 12/29/2011 Appropriation Date | PL5: Source of Substitute Supply Used for Exchanges from Western Mutual Ditch Aug Station | PM5: Total Measured flow at all Milliken Res Outlet Structures | PN5: Exchange from all Milliken Res Outlet Structures to St Vrain Pipeline | PO5: Exchange from all Milliken Res Outlet Structures to Platte Valley Canal | PP5: Exchange from all Milliken Res Outlet Structures to United Div Facility No. 3 | PQ5: Exchange from all Milliken Res Outlet Structures to Burlington Canal | PR5: Total Exchanged from Milliken Res Outlets under 12/31/2003 Appropriation Date | PS5: Total Exchanged from Milliken Res Outlets under 5/31/2007 Appropriation Date | PT5: Total Exchanged from Milliken Res Outlets under 12/29/2011 Appropriation Date | PU5: Source of Substitute Supply Used for Exchanges from all Milliken Res Outlet Structures | PV5: Amount Available at South Platte and St Vrain Confluence for Exchange | PW5: Exchange from Confluence of South Platte and St Vrain Rivers to St Vrain Pipeline | PX5: Total Exchanged from Confluence of South Platte and St Vrain Rivers to St Vrain Pipeline under 12/29/2011 Appropriation Date | PY5: Source of Substitute Supply Used for Exchanges from South Platte and St Vrain Confluence | PZ5: Measured flow at St. Vrain Pipeline Outlet | QA5: Exchange from St. Vrain Pipeline to United Div Facility No. 3 | QB5: Exchange from St. Vrain Pipeline to Burlington Canal | QC5: Total Exchanged from the St Vrain Pipeline under 12/29/2011 Appropriation Date | QD5: Source of Substitute Supply Used for Exchanges from St. Vrain Pipeline | QE5: Measured flow at Farmers Independent Ditch Lower Aug Station | QF5: Exchange from Farmers Independent Lower Aug Station to St Vrain Pipeline | QG5: Exchange from Farmers Independent Ditch Lower Aug Station to Platte Valley Canal | QH5: Exchange from Farmers Independent Ditch Lower Aug Station to United Div Facility No. 3 | QI5: Exchange from Farmers Independent Ditch Lower Aug Station to Burlington Canal | QJ5: Total Exchanged from Farmers Independent Lower Aug Station under 12/31/2003 Appropriation Date | QK5: Total Exchanged from Farmers Independent Lower Aug Station under 5/31/2007 Appropriation Date | QL5: Total Exchanged from Farmers Independent Lower Aug Station under 12/29/2011 Appropriation Date | QM5: Source of Substitute Supply Used for Exchanges from Farmers Independent Ditch Lower Aug Station | QN5: Total Exchanged under 12/31/2003 Appropriation Date, Decree 02CW404 | QO5: Total Exchanged under 5/31/2007 Appropriation Date, Decree 11CW285 | QP5: Total Exchanged under 12/29/2011 Appropriation Date, Decree 11CW285 | QQ5: Total Aggregate Rate of Exchange | QR5: Cumulative Total | QS5: Maximum Allowable Total Aggregate Rate of Exchange | QU5: Surplus ECCV Beebe Recharge Accretions abv Milton | QV5: Surplus Recharge Accretions Delivered to Milton Lake | QW5: Surplus ECCV Beebe Recharge Accretions Diverted to Bowles Seep | QX5: Surplus ECCV Beebe Recharge Accretions Diverted to East Neres | QY5: Surplus ECCV Beebe Recharge Accretions Diverted to Speer | QZ5: Surplus ECCV Beebe Recharge Accretions Diverted to West Burl. | RA5: Surplus ECCV Beebe Recharge Accretions Diverted to East Burl. | RB5: Surplus ECCV Beebe Recharge Accretions Diverted to Neres | RC5: Surplus ECCV Recharge Accretions Diverted to the Tu Site | RD5: Surplus ECCV Recharge Accretions Diverted to the Mile High Lakes Site | RE5: Surplus ECCV Recharge Accretions Diverted to the Bromley Site | RF5: Surplus ECCV Recharge Accretions Diverted to the Schupman Site | RG5: Surplus ECCV Recharge Accretions Diverted to the Moser Site | RH5: Surplus ECCV Recharge Accretions Diverted to the Pettinger East Site | RI5: Surplus ECCV Recharge Accretions Diverted to the Pettinger West Site | RJ5: Surplus ECCV Recharge Accretions Diverted to the Artese Site | RK5: Surplus ECCV Recharge Accretions Diverted to the Dechant Site | RL5: Surplus ECCV Recharge Accretions Diverted to Carlin Site | RM5: Surplus ECCV Recharge Accretions Diverted to the Klug Site | RN5: Surplus ECCV Recharge Accretions Diverted to the Sater Site | RO5: Check on Diversion of Surplus Recharge Accretions (must be >=0) | RP5: Check on ECCV LIRFs use of credits | RQ5: Check on ECCV FIDCO credits | RS5: Release from Barr Lake for Replacement | RT5: Release from Milton Lake for Replacement | RV5: Days in the Month
S6: WDID # 0100587 | T6: WDID # 0100587 | U6: WDID # 0100587 | V6: WDID # 0100587 | X6: WDID # 0100587 | Y6: WDID # 0109961, 0109962, 0109963, 0109964 | Z6: WDID # 0107968, 0107969, 0107656, 0107657, 0107520, 0109719 | AA6: WDID # 0110707, 0110708, 0110709 | AB6: WDID # 0110707, 0110708, 0110709 | AC6: WDID # 0110707, 0110708, 0110709 | AD6: WDID # 0110707, 0110708, 0110709 | BD6: WDID # 0102900 | BE6: WDID # 102909 | BN6: WDID # 0201511 | BP6: WDID # 0203388 | BW6: WDID # 0100507, 0100503, 0100514 | BX6: WDID # 0100507, 0100503, 0100514 | BY6: WDID # 0100507, 0100503, 0100514 | BZ6: WDID # 0100507, 0100503, 0100514 | CS6: WDID # 0102917 | CV6: WDID # 0102907 | DM6: WDID # 0201511 | DQ6: WDID # 0203388 | DU6: WDID # 0300771 | EH6: WDID # 0302320 | EJ6: WDID # 0302318 | EW6: WDID # | EY6: WDID # 0302902 | FA6: WDID # 0302319 | FL6: WDID # 0102917 | FM6: WDID # 0102917 | FN6: WDID # 0102917 | FR6: WDID # 0201511 | FV6: WDID # 0203388 | GB6: WDID # 0102932 | GE6: WDID # | GG6: WDID # 0102911 | GQ6: WDID # 0202909 | GR6: WDID # | GS6: WDID # 0202908 | HA6: WDID # 0200825 | HB6: WDID # 0200825 | HC6: WDID # 0200825 | HH6: WDID # 0201511 | HL6: WDID # 0203388 | HM6: WDID # 0203388 | HR6: WDID # 0201023 | HT6: WDID # 0202909 | HV6: WDID # | IW6: WDID # 0202908 | JE6: WDID # 0201511 | JF6: WDID # 0201511
S7: cfs | T7: cfs | U7: cfs | V7: cfs | W7: cfs | X7: cfs | Y7: cfs | Z7: cfs | AA7: cfs | AB7: cfs | AC7: cfs | AD7: cfs | AE7: cfs | AF7: cfs | AG7: cfs | AH7: cfs | AI7: cfs | AJ7: cfs | AK7: cfs | AL7: cfs | AM7: cfs | AN7: cfs | AO7: cfs | AP7: cfs | AQ7: cfs | AR7: cfs | AS7: cfs | AT7: cfs | AU7: cfs | AV7: cfs | AW7: cfs | AX7: cfs | AY7: cfs | AZ7: cfs | BA7: cfs | BB7: cfs | BC7: cfs | BD7: cfs | BE7: cfs | BF7: cfs | BG7: cfs | BH7: cfs | BI7: cfs | BJ7: cfs | BK7: cfs | BL7: cfs | BM7: cfs | BN7: cfs | BO7: cfs | BP7: cfs | BQ7: cfs | BR7: cfs | BT7: cfs | BU7: cfs | BV7: cfs | BW7: cfs | BX7: cfs | BY7: cfs | BZ7: cfs | CA7: cfs | CB7: cfs | CC7: cfs | CD7: cfs | CE7: cfs | CF7: cfs | CG7: cfs | CH7: cfs | CI7: cfs | CJ7: cfs | CK7: cfs | CL7: cfs | CM7: cfs | CN7: cfs | CO7: cfs | CP7: cfs | CQ7: cfs | CR7: cfs | CS7: cfs | CT7: cfs | CU7: cfs | CV7: cfs | CW7: cfs | CX7: cfs | CY7: cfs | CZ7: cfs | DA7: cfs | DB7: cfs | DC7: cfs | DD7: cfs | DE7: cfs | DF7: cfs | DG7: cfs | DH7: cfs | DI7: cfs | DJ7: cfs | DK7: cfs | DL7: cfs | DM7: cfs | DN7: cfs | DO7: cfs | DP7: cfs | DQ7: cfs | DR7: cfs | DS7: cfs | DT7: cfs | DU7: cfs | DV7: cfs | DW7: cfs | EA7: cfs | EB7: cfs | EC7: cfs | ED7: cfs | EE7: cfs | EF7: cfs | EG7: cfs | EH7: cfs | EI7: cfs | EJ7: cfs | EK7: cfs | EL7: cfs | EM7: cfs | EN7: cfs | EQ7: cfs | ER7: cfs | ES7: cfs | ET7: cfs | EU7: cfs | EW7: cfs | EX7: cfs | EY7: cfs | EZ7: cfs | FA7: cfs | FB7: cfs | FC7: cfs | FD7: cfs | FE7: cfs | FF7: cfs | FG7: cfs | FH7: cfs | FI7: cfs | FJ7: cfs | FL7: cfs | FM7: cfs | FN7: cfs | FP7: cfs | FQ7: cfs | FR7: cfs | FS7: cfs | FT7: cfs | FU7: cfs | FV7: cfs | FW7: cfs | FX7: cfs | FZ7: cfs | GB7: cfs | GC7: cfs | GE7: cfs | GF7: cfs | GG7: cfs | GH7: cfs | GI7: cfs | GJ7: cfs | GK7: cfs | GL7: cfs | GM7: cfs | GN7: cfs | GO7: cfs | GP7: cfs | GQ7: cfs | GR7: cfs | GS7: cfs | GT7: cfs | GU7: cfs | GV7: cfs | GW7: cfs | HA7: cfs | HB7: cfs | HC7: cfs | HE7: cfs | HF7: cfs | HG7: cfs | HH7: cfs | HI7: cfs | HJ7: cfs | HK7: cfs | HL7: cfs | HM7: cfs | HN7: cfs | HO7: cfs | HQ7: cfs | HR7: cfs | HS7: cfs | HT7: cfs | HU7: cfs | HV7: cfs | HW7: cfs | HX7: cfs | HY7: cfs | HZ7: cfs | IA7: cfs | IB7: cfs | IC7: cfs | ID7: cfs | IE7: cfs | IF7: cfs | IG7: cfs | IH7: cfs | II7: cfs | IJ7: cfs | IK7: cfs | IL7: cfs | IM7: cfs | IN7: cfs | IO7: cfs | IP7: cfs | IQ7: cfs | IR7: cfs | IS7: cfs | IT7: cfs | IU7: cfs | IV7: cfs | IW7: cfs | IX7: cfs | IY7: cfs | JA7: cfs | JB7: cfs | JC7: cfs | JD7: cfs | JE7: cfs | JF7: cfs | JG7: cfs | JH7: cfs | JI7: cfs | JJ7: cfs | JK7: cfs | JL7: cfs | JM7: cfs | JN7: cfs | JO7: cfs | JP7: cfs | JQ7: cfs | JR7: cfs | JS7: cfs | JT7: cfs | JU7: cfs | JV7: cfs | JW7: cfs | JX7: cfs | JY7: cfs | JZ7: cfs | KA7: cfs | KB7: cfs | KC7: cfs | KD7: cfs | KE7: cfs | KF7: cfs | KG7: cfs | KH7: cfs | KI7: cfs | KK7: cfs | KL7: cfs | KM7: cfs | KN7: cfs | KO7: cfs | KP7: cfs | KQ7: cfs | KR7: cfs | KS7: cfs | KT7: cfs | KU7: cfs | KV7: cfs | KW7: cfs | KX7: cfs | KY7: cfs | KZ7: cfs | LA7: cfs | LB7: cfs | LC7: cfs | LD7: cfs | LE7: cfs | LF7: cfs | LG7: cfs | LH7: cfs | LI7: cfs | LJ7: cfs | LK7: cfs | LL7: cfs | LM7: cfs | LO7: cfs | LP7: cfs | LQ7: cfs | LR7: cfs | LS7: cfs | LT7: cfs | LU7: cfs | LV7: cfs | LW7: cfs | LX7: cfs | LY7: cfs | LZ7: cfs | MA7: cfs | MB7: cfs | MC7: cfs | ME7: cfs | MF7: cfs | MG7: cfs | MH7: cfs | MI7: cfs | MJ7: cfs | MK7: cfs | ML7: cfs | MM7: cfs | MN7: cfs | MO7: cfs | MP7: cfs | MQ7: cfs | MR7: cfs | MS7: cfs | MZ7: cfs | NA7: cfs | NB7: cfs | ND7: cfs | NE7: cfs | NF7: cfs | NG7: cfs | NH7: cfs | NI7: cfs | NJ7: cfs | NK7: cfs | NL7: cfs | NM7: cfs | NN7: cfs | NO7: cfs | NR7: cfs | NS7: cfs | NT7: cfs | NU7: cfs | NV7: cfs | NW7: cfs | NX7: cfs | NY7: cfs | NZ7: cfs | OA7: cfs | OC7: cfs | OD7: cfs | OE7: cfs | OF7: cfs | OG7: cfs | OH7: cfs | OI7: cfs | OJ7: cfs | OK7: cfs | OL7: cfs | OM7: cfs | OS7: cfs | OT7: cfs | OU7: cfs | OV7: cfs | OW7: cfs | OX7: cfs | OY7: cfs | OZ7: cfs | PA7: cfs | PD7: cfs | PE7: cfs | PF7: cfs | PG7: cfs | PH7: cfs | PI7: cfs | PJ7: cfs | PK7: cfs | PN7: cfs | PO7: cfs | PP7: cfs | PQ7: cfs | PR7: cfs | PS7: cfs | PT7: cfs | PW7: cfs | PX7: cfs | PZ7: cfs | QA7: cfs | QB7: cfs | QF7: cfs | QG7: cfs | QH7: cfs | QI7: cfs | QJ7: cfs | QK7: cfs | QL7: cfs | QN7: cfs | QO7: cfs | QP7: cfs | QQ7: cfs | QS7: cfs | QU7: cfs | QV7: cfs | QW7: cfs | QX7: cfs | QY7: cfs | QZ7: cfs | RA7: cfs | RB7: cfs | RC7: cfs | RD7: cfs | RE7: cfs | RF7: cfs | RG7: cfs | RH7: cfs | RI7: cfs | RJ7: cfs | RK7: cfs | RL7: cfs | RM7: cfs | RN7: cfs | RO7: cfs | RS7: cfs | RT7: cfs
C8: 1 | D8: =C8+1 -> 2 | E8: 3 | F8: 4 | G8: 5 | H8: 6 | I8: 7 | J8: 8 | K8: 9 | L8: 10 | M8: 11 | N8: 12 | O8: 13 | P8: 14 | Q8: 15 | R8: 16 | S8: 17 | T8: 18 | U8: 19 | V8: 20 | W8: 21 | X8: 22 | Y8: =X8+1 -> 23 | Z8: 24 | AA8: 25 | AB8: 26 | AC8: 27 | AD8: 28 | AE8: 29 | AF8: 30 | AG8: 31 | AH8: 32 | AI8: 33 | AJ8: =AI8+1 -> 34 | AK8: 35 | AL8: 36 | AM8: 37 | AN8: 38 | AO8: =AN8+1 -> 39 | AP8: =AO8+1 -> 40 | AQ8: 41 | AR8: 42 | AS8: 43 | AT8: 44 | AU8: 45 | AV8: 46 | AW8: 47 | AX8: 48 | AY8: 49 | AZ8: 50 | BA8: =AZ8+1 -> 51 | BB8: 52 | BC8: 53 | BD8: 54 | BE8: 55 | BF8: =BE8+1 -> 56 | BG8: =BF8+1 -> 57 | BH8: =BG8+1 -> 58 | BI8: =BH8+1 -> 59 | BJ8: =BI8+1 -> 60 | BK8: 61 | BL8: 62 | BM8: 63 | BN8: 64 | BO8: 65 | BP8: 66 | BQ8: 67 | BR8: 68 | BS8: 69 | BT8: =BS8+1 -> 70 | BU8: =BT8+1 -> 71 | BV8: 72 | BW8: =BV8+1 -> 73 | BX8: 74 | BY8: 75 | BZ8: 76 | CA8: 77 | CB8: 78 | CC8: 79 | CD8: 80 | CE8: 81 | CF8: 82 | CG8: =CF8+1 -> 83 | CH8: 84 | CI8: 85 | CJ8: 86 | CK8: 87 | CL8: 88 | CM8: 89 | CN8: 90 | CO8: 91 | CP8: 92 | CQ8: 93 | CR8: =CQ8+1 -> 94 | CS8: 95 | CT8: 96 | CU8: =CT8+1 -> 97 | CV8: =CU8+1 -> 98 | CW8: 99 | CX8: 100 | CY8: 101 | CZ8: 102 | DA8: 103 | DB8: 104 | DC8: =DB8+1 -> 105 | DD8: =DC8+1 -> 106 | DE8: =DD8+1 -> 107 | DF8: 108 | DG8: 109 | DH8: 110 | DI8: 111 | DJ8: 112 | DK8: 113 | DL8: 114 | DM8: 115 | DN8: 116 | DO8: =DN8+1 -> 117 | DP8: =DO8+1 -> 118 | DQ8: =DP8+1 -> 119 | DR8: 120 | DS8: 121 | DT8: =DS8+1 -> 122 | DU8: =DT8+1 -> 123 | DV8: =DU8+1 -> 124 | DW8: 125 | DX8: 126 | DY8: 127 | DZ8: 128 | EA8: 129 | EB8: 130 | EC8: =EB8+1 -> 131 | ED8: 132 | EE8: 133 | EF8: 134 | EG8: 135 | EH8: 136 | EI8: 137 | EJ8: 138 | EK8: 139 | EL8: =EK8+1 -> 140 | EM8: =EL8+1 -> 141 | EN8: =EM8+1 -> 142 | EO8: 143 | EP8: 144 | EQ8: =EP8+1 -> 145 | ER8: =EQ8+1 -> 146 | ES8: 147 | ET8: =ES8+1 -> 148 | EU8: =ET8+1 -> 149 | EV8: =EU8+1 -> 150 | EW8: =EV8+1 -> 151 | EX8: 152 | EY8: 153 | EZ8: 154 | FA8: 155 | FB8: 156 | FC8: =FB8+1 -> 157 | FD8: =FC8+1 -> 158 | FE8: =FD8+1 -> 159 | FF8: =FE8+1 -> 160 | FG8: =FF8+1 -> 161 | FH8: =FG8+1 -> 162 | FI8: 163 | FJ8: =FI8+1 -> 164 | FK8: 165 | FL8: 166 | FM8: 167 | FN8: 168 | FO8: 169 | FP8: 170 | FQ8: 171 | FR8: 172 | FS8: 173 | FT8: =FS8+1 -> 174 | FU8: =FT8+1 -> 175 | FV8: =FU8+1 -> 176 | FW8: 177 | FX8: 178 | FY8: 179 | FZ8: 180 | GA8: 181 | GB8: =GA8+1 -> 182 | GC8: 183 | GD8: 184 | GE8: 185 | GF8: 186 | GG8: 187 | GH8: 188 | GI8: 189 | GJ8: =GI8+1 -> 190 | GK8: 191 | GL8: 192 | GM8: 193 | GN8: 194 | GO8: 195 | GP8: 196 | GQ8: =GP8+1 -> 197 | GR8: =GQ8+1 -> 198 | GS8: =GR8+1 -> 199 | GT8: =GS8+1 -> 200 | GU8: =GT8+1 -> 201 | GV8: =GU8+1 -> 202 | GW8: =GV8+1 -> 203 | GX8: =GW8+1 -> 204 | GY8: 205 | GZ8: =GY8+1 -> 206 | HA8: =GZ8+1 -> 207 | HB8: 208 | HC8: 209 | HD8: 210 | HE8: 211 | HF8: 212 | HG8: 213 | HH8: 214 | HI8: 215 | HJ8: =HI8+1 -> 216 | HK8: =HJ8+1 -> 217 | HL8: =HK8+1 -> 218 | HM8: 219 | HN8: =HM8+1 -> 220 | HO8: 221 | HP8: 222 | HQ8: 223 | HR8: 224 | HS8: 225 | HT8: 226 | HU8: 227 | HV8: =HU8+1 -> 228 | HW8: =HV8+1 -> 229 | HX8: =HW8+1 -> 230 | HY8: 231 | HZ8: 232 | IA8: 233 | IB8: =IA8+1 -> 234 | IC8: =IB8+1 -> 235 | ID8: =IC8+1 -> 236 | IE8: =ID8+1 -> 237 | IF8: 238 | IG8: 239 | IH8: 240 | II8: =IH8+1 -> 241 | IJ8: 242 | IK8: 243 | IL8: 244 | IM8: 245 | IN8: 246 | IO8: 247 | IP8: =IO8+1 -> 248 | IQ8: =IP8+1 -> 249 | IR8: =IQ8+1 -> 250 | IS8: 251 | IT8: 252 | IU8: 253 | IV8: 254 | IW8: =IV8+1 -> 255 | IX8: =IW8+1 -> 256 | IY8: =IX8+1 -> 257 | IZ8: =IY8+1 -> 258 | JA8: 259 | JB8: 260 | JC8: 261 | JD8: =JC8+1 -> 262 | JE8: =JD8+1 -> 263 | JF8: 264 | JG8: =JF8+1 -> 265 | JH8: 266 | JI8: =JH8+1 -> 267 | JJ8: =JI8+1 -> 268 | JK8: 269 | JL8: =JK8+1 -> 270 | JM8: 271 | JN8: 272 | JO8: 273 | JP8: 274 | JQ8: =JP8+1 -> 275 | JR8: 276 | JS8: 277 | JT8: 278 | JU8: 279 | JV8: =JU8+1 -> 280 | JW8: =JV8+1 -> 281 | JX8: =JW8+1 -> 282 | JY8: 283 | JZ8: 284 | KA8: 285 | KB8: 286 | KC8: 287 | KD8: 288 | KE8: 289 | KF8: 290 | KG8: 291 | KH8: 292 | KI8: 293 | KJ8: 294 | KK8: 295 | KL8: 296 | KM8: 297 | KN8: 298 | KO8: 299 | KP8: =KO8+1 -> 300 | KQ8: =KP8+1 -> 301 | KR8: =KQ8+1 -> 302 | KS8: =KR8+1 -> 303 | KT8: 304 | KU8: 305 | KV8: =KU8+1 -> 306 | KW8: =KV8+1 -> 307 | KX8: =KW8+1 -> 308 | KY8: =KX8+1 -> 309 | KZ8: 310 | LA8: 311 | LB8: 312 | LC8: =LB8+1 -> 313 | LD8: 314 | LE8: 315 | LF8: 316 | LG8: 317 | LH8: 318 | LI8: 319 | LJ8: 320 | LK8: 321 | LL8: 322 | LM8: 323 | LN8: 324 | LO8: 325 | LP8: 326 | LQ8: 327 | LR8: 328 | LS8: 329 | LT8: 330 | LU8: 331 | LV8: 332 | LW8: 333 | LX8: 334 | LY8: =LX8+1 -> 335 | LZ8: 336 | MA8: 337 | MB8: 338 | MC8: 339 | MD8: 340 | ME8: 341 | MF8: 342 | MG8: 343 | MH8: 344 | MI8: 345 | MJ8: 346 | MK8: 347 | ML8: 348 | MM8: 349 | MN8: 350 | MO8: 351 | MP8: 352 | MQ8: 353 | MR8: 354 | MS8: 355 | MU8: =MS8+1 -> 356 | MV8: =MU8+1 -> 357 | MW8: 358 | MX8: 359 | MY8: 360 | MZ8: 361 | NA8: 362 | NB8: 363 | NC8: 364 | ND8: =NC8+1 -> 365 | NE8: 366 | NF8: 367 | NG8: 368 | NH8: 369 | NI8: 370 | NJ8: 371 | NK8: 372 | NL8: 373 | NM8: 374 | NN8: 375 | NO8: 376 | NP8: 377 | NQ8: 378 | NR8: 379 | NS8: 380 | NT8: 381 | NU8: 382 | NV8: 383 | NW8: 384 | NX8: 385 | NY8: 386 | NZ8: 387 | OA8: 388 | OB8: 389 | OC8: 390 | OD8: =OC8+1 -> 391 | OE8: 392 | OF8: 393 | OG8: =OF8+1 -> 394 | OH8: 395 | OI8: 396 | OJ8: 397 | OK8: 398 | OL8: 399 | OM8: 400 | ON8: =OM8+1 -> 401 | OO8: =ON8+1 -> 402 | OP8: =OO8+1 -> 403 | OQ8: 404 | OR8: 405 | OS8: 406 | OT8: 407 | OU8: 408 | OV8: 409 | OW8: 410 | OX8: 411 | OY8: 412 | OZ8: =OY8+1 -> 413 | PA8: 414 | PB8: =PA8+1 -> 415 | PC8: 416 | PD8: 417 | PE8: 418 | PF8: 419 | PG8: 420 | PH8: 421 | PI8: 422 | PJ8: 423 | PK8: 424 | PL8: =PK8+1 -> 425 | PM8: 426 | PN8: 427 | PO8: 428 | PP8: 429 | PQ8: 430 | PR8: 431 | PS8: 432 | PT8: 433 | PU8: =PT8+1 -> 434 | PV8: =PU8+1 -> 435 | PW8: =PV8+1 -> 436 | PX8: 437 | PY8: =PX8+1 -> 438 | PZ8: 439 | QA8: 440 | QB8: 441 | QC8: 442 | QD8: =QC8+1 -> 443 | QE8: 444 | QF8: 445 | QG8: 446 | QH8: 447 | QI8: 448 | QJ8: 449 | QK8: 450 | QL8: 451 | QM8: =QL8+1 -> 452 | QN8: 453 | QO8: 454 | QP8: 455 | QQ8: 456 | QR8: 457 | QS8: 458 | QU8: =QS8+1 -> 459 | QV8: =QU8+1 -> 460 | QW8: 461 | QX8: 462 | QY8: 463 | QZ8: 464 | RA8: 465 | RB8: 466 | RC8: 467 | RD8: 468 | RE8: 469 | RF8: 470 | RG8: 471 | RH8: 472 | RI8: 473 | RJ8: 474 | RK8: 475 | RL8: 476 | RM8: 477 | RN8: 478 | RO8: 479 | RP8: 480 | RQ8: 481 | RS8: =RO8+1 -> 480 | RT8: =RS8+1 -> 481
A9: Apr | B9: =DATE($B$2,4,1) -> 2017-04-01 | C9: Riverside | D9: 1988-12-31 | E9: Riverside | F9: 50769.49378 | K9: Riverside | L9: 1988-12-31 | M9: Riverside | N9: 50769.49378 | O9: Prewitt Reservoir | P9: 2002-12-31 | Q9: Prewitt Reservoir | R9: 55882 | S9: =OC9 -> 0 | T9: 0 | U9: =X9-T9-V9 -> 0 | V9: 0 | W9: 0 | X9: 0 | Y9: =('NFC Well Pumping'!$L7+'NFC Well Pumping'!$L44+'NFC Well Pumping'!$L80)/1.9835 -> 0 | Z9: ='88CW264(B) Pumping'!$E7/1.9835+'88CW264(B) Pumping'!$E43/1.9835+'88CW264(B) Pumping'!E83/1.9835+'88CW264(B) Pumping'!E119/1.9835+'88CW264(B) Pumping'!E159/1.9835+'88CW264(B) Pumping'!E195/1.9835 -> 0.00925230458 | AA9: =$MR9+$MS9 -> 0 | AB9: =('United No. 2 Well Pumping'!G8+'United No. 2 Well Pumping'!G44+'United No. 2 Well Pumping'!G80)/1.9835 -> 0 | AC9: =('United No. 2 Well Pumping'!F8+'United No. 2 Well Pumping'!F44+'United No. 2 Well Pumping'!F80)/1.9835 -> 0 | AD9: 0 | AF9: =Y9+Z9+AB9+AC9+AD9 -> 0.00925230458 | AG9: =U9+AC9+'United Res'!AA171+'United Res'!AQ171+'Milliken Res'!I159 -> 0 | AH9: 100 | AI9: =-(IF($N9=99999.99999,0,VLOOKUP($B9,'NFC Well Dplns-URF'!B$7:$AB$306,27))/$RV9/1.9835) -> -0.004064876498 | AJ9: 0 | AL9: =(VLOOKUP($B9,'ECCV 70R Pond Acrtns'!$B$7:$AI$1206,34)+VLOOKUP($B9,'2003 70R Pond Acrtns'!$B$7:$AI$1206,34)+VLOOKUP($B9,'ECCV 70R Canal Acrtns'!$B$7:$AI$1206,27)+VLOOKUP($B9,'2003 70R Canal Acrtns'!$B$7:$AI$1206,27))/$RV9/1.9835 -> 0 | AM9: =IF(AL9<(-AI9)-AJ9,AI9+AJ9+AL9,0) -> -0.004064876498 | AN9: =-(IF($N9=99999.99999,0,VLOOKUP($B9,'NFC Well Dplns-SDF'!$B$7:$Z$306,25)+VLOOKUP($B9,'NFC Well Dplns-URF'!B$7:$AB$306,20))/$RV9/1.9835) -> -0.07514542012 | AO9: =IF(AN9<0,1.6983744722713/$RV9/1.9835,0) -> 0.02854171031 | AP9: =-(AN9+AO9) -> 0.04660370981 | AQ9: ECCV Riverside Credits | AR9: =IF(N9<99999.99999,-((BD9+BE9)*'Weldon Credit'!$BB$36),0) -> 0 | AS9: =-((BD9+BE9)*'Weldon Credit'!$BB$34) -> 0 | AT9: =IF(N9<99999.99999,-INDEX('Weldon Credit'!$AX$249:$BJ$276,MATCH($B$2,'Weldon Credit'!$AX$249:$AX$276,0),MATCH(A9,'Weldon Credit'!$AX$249:$BJ$249,0))/RV9/1.9835,0) -> -0.007144773798 | AU9: =AR9+AT9 -> -0.007144773798 | AV9: =IF(N9<99999.99999,-((BD9+BE9)*'Weldon Credit'!$BB$37),0) -> 0 | AW9: =-((BD9+BE9)*'Weldon Credit'!$BB$35) -> 0 | AX9: =IF(N9<99999.99999,-INDEX('Weldon Credit'!$AX$281:$BJ$308,MATCH($B$2,'Weldon Credit'!$AX$281:$AX$308,0),MATCH(A9,'Weldon Credit'!$AX$281:$BJ$281,0))/RV9/1.9835,0) -> -0.07879357513 | AY9: =AV9+AX9 -> -0.07879357513 | AZ9: =-(BD9+BE9)*'Weldon Credit'!$BB$38 -> 0 | BA9: =0.4*(INDEX('Riverside Pond Accrtns'!$B$6:$M$36,MATCH($B$2,'Riverside Pond Accrtns'!$A$6:$A$36,0),MATCH('ECCV Daily Replacement Summary'!A9,'Riverside Pond Accrtns'!$B$5:$M$5,0))/RV9)/1.9835 -> 1.310814217 | BB9: =(44/640)*(INDEX('Weldon Valley Accrtns (02CW377)'!$B$6:$M$30,MATCH($B$2,'Weldon Valley Accrtns (02CW377)'!$A$6:$A$30,0),MATCH(A9,'Weldon Valley Accrtns (02CW377)'!$B$5:$M$5,0))/RV9)/1.9835 -> 0.2610339467 | BC9: =(VLOOKUP($B9,'ECCV 70R Pond Acrtns'!$B$7:$AI$1206,25)+VLOOKUP($B9,'ECCV 70R Canal Acrtns'!$B$7:$AI$1206,20)+VLOOKUP($B9,'2003 70R Pond Acrtns'!$B$7:$AI$1206,25)+VLOOKUP($B9,'2003 70R Canal Acrtns'!$B$7:$AI$1206,20))/$RV9/1.9835 -> 0 | BD9: ='Joint Aug Station Deliveries'!G9 -> 0 | BE9: ='Joint Aug Station Deliveries'!H9 -> 0 | BF9: =IF(BT9="yes",MIN(-(AU9+AZ9),BE9),0) -> 0 | BG9: =IF(BT9="no",MIN(-(AU9+AY9+AZ9),BD9+BE9),MIN(-AY9,BD9)) -> 0 | BH9: =IF(BT9="no",-MAX(0,MIN(BG9,(BE9-BD9))*(0.5/100*'Distances for Transit Losses'!$C$75)),0) -> 0 | BI9: =IF(BD9+BE9>0,BD9+BE9-BF9-BG9+BH9,0) -> 0 | BJ9: =MIN(-($AU9+AY9+AZ9+BF9+BG9+BH9),BA9-BA9*0.5/100*'Distances for Transit Losses'!$C$77) -> 0.08593834893 | BK9: =MIN(-($AU9+AY9+AZ9+BF9+BG9+BH9+BJ9),BB9) -> 0 | BL9: =MIN(-($AU9+AY9+AZ9+BF9+BG9+BH9+BJ9+BK9),BC9-BC9*0.5/100*'Distances for Transit Losses'!$C$77) -> 0 | BM9: =-((BJ9+BL9)*(0.5/100*'Distances for Transit Losses'!$C$77)) -> -0.009152434161 | BN9: =IF(AND(JE9-JF9-FR9-DM9>0,IZ9="no"),MIN(-(AU9+AY9+AZ9+BF9+BG9+BH9+BJ9+BK9+BL9+BM9)/(1-0.5/100*'Distances for Transit Losses'!$C$99),JE9-JF9-FR9-DM9),0) -> 0 | BO9: =--BN9*0.5/100*'Distances for Transit Losses'!C$99 -> 0 | BP9: =IF(AND(HL9-HM9-JH9-FV9-LD9-DQ9>0,FK9="no"),MIN(-(AU9+AY9+AZ9+BF9+BG9+BH9+BJ9+BK9+BL9+BM9+BN9+BO9)/(1-0.5/100*'Distances for Transit Losses'!$C$101),HL9-HM9-JH9-FV9-LD9-DQ9),0) -> 0 | BQ9: =--BP9*0.5/100*'Distances for Transit Losses'!$C$101 -> 0 | BR9: 0 | BT9: no | BU9: no | BV9: no | BW9: 0 | BX9: 0 | BY9: 0 | CA9: =IF($BV9="No",MIN(-DH9,BA9-BJ9/(1-0.5/100*'Distances for Transit Losses'!$C$77)),0) -> 0 | CB9: =IF($BV9="No",MIN(-DH9+CA9,BC9-BL9/(1-0.5/100*'Distances for Transit Losses'!$C$77)),0) -> 0 | CC9: =IF(AND($BT9="No",$BU9="No",$BV9="No"),MIN(DH9+CA9+CB9,BI9),0) -> 0 | CD9: 0 | CE9: 0 | CF9: =AN9+AO9+AU9+AY9+AZ9+BA9+BB9+BC9+BD9+BE9 -> 1.439306105 | CG9: =AN9+AO9+AU9+AY9+AZ9+(BA9-AP9)+BB9+BC9+BD9+BE9-SUM(CA9:CE9)-CL9 -> 1.315767551 | CH9: =-(IF($N9=99999.99999,0,VLOOKUP($B9,'NFC Well Dplns-SDF'!$B$7:$Z$306,16)+VLOOKUP($B9,'NFC Well Dplns-URF'!$B$7:$AB$306,13))/$RV9/1.9835) -> -0.2127558721 | CI9: =-(IF($N9>=99999,0,'88CW264(B) Pumping'!$E7/1.9835)+IF($N9>=99999,0,'88CW264(B) Pumping'!$E43/1.9835)+IF($N9>=99999,0,'88CW264(B) Pumping'!$E83/1.9835)+IF($N9>=99999,0,'88CW264(B) Pumping'!$E119/1.9835)+IF($N9>=51134.50919,0,'88CW264(B) Pumping'!$E159/1.9835)+IF($N9>=53406,0,'88CW264(B) Pumping'!$E195/1.9835)) -> -0.00925230458 | CJ9: =CI9+CH9 -> -0.2220081766 | CK9: =IF(CH9<0,8.63258865481883/$RV9/1.9835,0) -> 0.1450733326 | CL9: =-CJ9-CK9 -> 0.07693484407 | CM9: ECCV Riverside | CN9: =-(IF($N9=99999.99999,0,VLOOKUP($B9,'United No. 2 Dplns'!$B$7:$X$676,13)/1.9835)) -> 0 | CO9: =CN9+(-(INDEX('Pre 1995 Net Accretions'!$B$6:$M$105,MATCH($B$2,'Pre 1995 Net Accretions'!$A$6:$A$105,0),MATCH($A9,'Pre 1995 Net Accretions'!$B$5:$M$5,0))/$RV9/1.9835)) -> 0.02808563779 | CP9: =-(IF(N9<99999.99999,(INDEX('70 Ranch RF Obligation'!$B$6:$M$36,MATCH($B$2,'70 Ranch RF Obligation'!$A$6:$A$36,0),MATCH('ECCV Daily Replacement Summary'!A9,'70 Ranch RF Obligation'!$B$5:$M$5,0))/RV9)/1.9835,0))-CS9*(1-'L. Latham Credit'!$E$41) -> 0 | CQ9: =MIN(0,CP9+CO9) -> 0 | CR9: =(VLOOKUP($B9,'ECCV 70R Pond Acrtns'!$B$7:$AI$1206,16)+VLOOKUP($B9,'ECCV 70R Canal Acrtns'!$B$7:$AI$1206,13)+VLOOKUP($B9,'2003 70R Pond Acrtns'!$B$7:$AI$1206,16)+VLOOKUP($B9,'2003 70R Canal Acrtns'!$B$7:$AI$1206,13))/$RV9/1.9835 -> 0 | CS9: ='Joint Aug Station Deliveries'!BN9 -> 0 | CT9: =IF(CS9>0,CS9-CU9,0) -> 0 | CU9: =MAX(0,MIN(-CQ9,CS9)) -> 0 | CV9: ='Joint Aug Station Deliveries'!BQ9 -> 0 | CW9: 0 | CX9: 0 | DA9: =MAX(0,CO9)+CT9+CW9+CX9+CY9 -> 0.02808563779 | DB9: =MAX(0,MIN(-(CQ9+CU9),DA9)) -> 0 | DC9: 0 | DD9: =-DC9*0.5/100*'Distances for Transit Losses'!$C$48 -> 0 | DE9: =MAX(0,MIN(CR9,-(CQ9+CU9+DB9))) -> 0 | DF9: 0 | DG9: 0 | DH9: =CJ9+CK9+CL9+CQ9+CU9+DB9+DE9 -> 0 | DI9: =CA9 -> 0 | DJ9: =CB9 -> 0 | DK9: =CC9 -> 0 | DL9: =('NFC Well Pumping'!I7+'NFC Well Pumping'!I44+'NFC Well Pumping'!I80)/1.9835 -> 0 | DM9: =IF(AND(JE9-JF9-FR9>0,IZ9="no"),MIN(-SUM(DH9:DL9)/(1-0.5/100*'Distances for Transit Losses'!$C$103),JE9-JF9-FR9),0) -> 0 | DN9: =-DM9*0.5/100*'Distances for Transit Losses'!C$103 -> 0 | DO9: 0 | DP9: =--DO9*0.5/100*'Distances for Transit Losses'!$C$127 -> 0 | DQ9: =IF(AND(HL9-HM9-JH9-FV9-LD9>0,FK9="no"),MIN(-SUM(DH9:DP9)/(1-0.5/100*'Distances for Transit Losses'!$C$105),HL9-HM9-JH9-FV9-LD9),0) -> 0 | DR9: =--DQ9*0.5/100*'Distances for Transit Losses'!$C$105 -> 0 | DS9: =CR9+DA9-DB9-DC9+DD9-SUM(DE9:DG9) -> 0.02808563779 | DT9: 0 | DU9: ='Joint Aug Station Deliveries'!O9 -> 0 | DV9: =-(DU9*0.5/100*'Distances for Transit Losses'!$C$212) -> 0 | DW9: 0 | DY9: no | EA9: =DT9+IF(DZ9="Yes",DU9,0)+DV9+DW9 -> 0 | EB9: =MAX(IF(AND(DY9="No",DZ9="Yes"),DT9+DU9+DV9,0),0) -> 0 | EC9: =-(EB9*0.5/100*'Distances for Transit Losses'!$C$214) -> 0 | ED9: 0 | EE9: =-0.25*(INDEX('GIC Credit'!$B$85:$M$116,MATCH($B$2,'GIC Credit'!$A$85:$A$116,0),MATCH($A9,'GIC Credit'!$B$85:$M$85,0))/$RV9/1.9835+FE9*'GIC Credit'!$Z$39+FF9*'GIC Credit'!$AO$39) -> -0.0001915 | EF9: =ED9+EE9 -> -0.0001915 | EG9: =MIN(-EF9,EB9+EC9) -> 0 | EH9: ='Joint Aug Station Deliveries'!BF9 -> 0 | EI9: =-(EH9*0.5/100*'Distances for Transit Losses'!$C$240) -> 0 | EJ9: ='Joint Aug Station Deliveries'!BG9 -> 0 | EK9: =-(EJ9*0.5/100*'Distances for Transit Losses'!$C$242) -> 0 | EL9: 0 | EM9: =-(EL9*0.5/100*'Distances for Transit Losses'!$C$234) -> 0 | EN9: 0 | EP9: no | EQ9: =SUM(EF9:EN9) -> -0.0001915 | ER9: =-(IF($N9<99999.99999,(INDEX('New Cache Credit'!$W$82:$AH$113,MATCH($B$2,'New Cache Credit'!$V$82:$V$113,0),MATCH($A9,'New Cache Credit'!$W$82:$AH$82,0))/$RV9)/1.9835,0))-DT9-ED9 -> -0.07163859239 | ES9: =-0.39*(INDEX('GIC Credit'!$B$85:$M$116,MATCH($B$2,'GIC Credit'!$A$85:$A$116,0),MATCH($A9,'GIC Credit'!$B$85:$M$85,0))/$RV9/1.9835+FE9*'GIC Credit'!$Z$39+FF9*'GIC Credit'!$AO$39) -> -0.00029874 | ET9: =MAX(IF(AND(EP9="No",EQ9>0),EQ9,0),0) -> 0 | EU9: =-(ET9*0.5/100*('Distances for Transit Losses'!$C$216+'Distances for Transit Losses'!$C$222)) -> 0 | EW9: =IF(EV9="yes",'Joint Aug Station Deliveries'!V9,0) -> 0 | EX9: =-(EW9*0.5/100*('Distances for Transit Losses'!$C$218+'Distances for Transit Losses'!$C$220+'Distances for Transit Losses'!$C$222)) -> 0 | EY9: =IF(EV9="Yes",'Joint Aug Station Deliveries'!Y9,0) -> 0 | EZ9: =-(EY9*0.5/100*('Distances for Transit Losses'!$C$220+'Distances for Transit Losses'!$C$222)) -> 0 | FA9: ='Joint Aug Station Deliveries'!BH9 -> 0 | FB9: =-(FA9*0.5/100*'Distances for Transit Losses'!$C$226) -> 0 | FC9: =MIN(0,EQ9)+SUM(ER9:EU9)+SUM(EW9:FB9) -> -0.07212883239 | FD9: =EH9+EJ9+FA9 -> 0 | FE9: ='Joint Aug Station Deliveries'!BJ9 -> 0 | FF9: ='Joint Aug Station Deliveries'!BK9 -> 0 | FG9: =-(IF(N9<99999.99999,INDEX('Hist RF to SPR'!$AF$6:$AQ$30,MATCH($B$2,'Hist RF to SPR'!$AE$6:$AE$30,0),MATCH($A9,'Hist RF to SPR'!$AF$5:$AQ$5,0))/RV9/1.9835,0)) -> -0.0002698345146 | FH9: =-0.36*(INDEX('GIC Credit'!$B$85:$M$116,MATCH($B$2,'GIC Credit'!$A$85:$A$116,0),MATCH($A9,'GIC Credit'!$B$85:$M$85,0))/$RV9/1.9835+FE9*'GIC Credit'!$Z$39+FF9*'GIC Credit'!$AO$39) -> -0.00027576 | FI9: =IF(FC9<0,FC9,0) -> -0.07212883239 | FJ9: =SUM(FG9:FI9) -> -0.0726744269 | FK9: no | FL9: 0 | FM9: 0 | FN9: 0 | FP9: 0 | FQ9: 0 | FR9: =IF(AND(JE9-JF9-HH9>0,IZ9="no"),MIN(-(FJ9+FP9+FQ9)/(1-0.5/100*'Distances for Transit Losses'!$C$107),JE9-JF9-HH9),0) -> 0 | FS9: =-FR9*0.5/100*'Distances for Transit Losses'!$C$107 -> 0 | FT9: 0 | FU9: =-FT9*0.5/100*'Distances for Transit Losses'!$C$125 -> 0 | FV9: =IF(AND(HL9-HM9-JH9>0,GX9="no"),MIN(-(FJ9+FP9+FQ9+FR9+FS9+FT9+FU9)/(1-0.5/100*'Distances for Transit Losses'!$C$109),HL9-HM9-JH9),0) -> 0 | FW9: =-FV9*0.5/100*'Distances for Transit Losses'!$C$115 -> 0 | FX9: =-(FJ9+FP9+FQ9+FR9+FS9+FV9+FW9) -> 0.0726744269 | FY9: Haren Recharge | FZ9: =IF(FC9>0,FC9,0) -> 0 | GB9: =IF(AND(GA9="no",('Joint Aug Station Deliveries'!$AF9)*1.9835>'New Cache Credit'!$BY$39,('Joint Aug Station Deliveries'!$AF9)*1.9835>'New Cache Credit'!$CH$39),0,'Joint Aug Station Deliveries'!X9) -> 0 | GC9: =-(GB9*0.5/100*'Distances for Transit Losses'!$C$208) -> 0 | GE9: =IF(AND(GD9="no",('Joint Aug Station Deliveries'!$AF9)*1.9835>'New Cache Credit'!$BY$39,('Joint Aug Station Deliveries'!$AF9)*1.9835>'New Cache Credit'!$CH$39),0,'Joint Aug Station Deliveries'!AA9) -> 0 | GF9: =-(GE9*0.5/100*'Distances for Transit Losses'!$C$200) -> 0 | GG9: =IF(AND(GD9="no",('Joint Aug Station Deliveries'!$AF9)*1.9835>'New Cache Credit'!$BY$39,('Joint Aug Station Deliveries'!$AF9)*1.9835>'New Cache Credit'!$CH$39),0,'Joint Aug Station Deliveries'!AD9) -> 0 | GH9: =-(GG9*0.5/100*'Distances for Transit Losses'!$C$206) -> 0 | GI9: =FJ9+SUM(FP9:FX9)+FZ9+GB9+GC9+SUM(GE9:GH9) -> 0 | GJ9: =IF(GI9>0,GI9,0) -> 0 | GK9: =LV9-FP9 -> 0.02808563779 | GL9: =LW9-FQ9 -> 1.315767551 | GM9: =-(IF(N9<99999.99999,INDEX('Hist RF to SPR'!$Q$6:$AB$30,MATCH($B$2,'Hist RF to SPR'!$P$6:$P$30,0),MATCH($A9,'Hist RF to SPR'!$Q$5:$AB$5,0))/RV9/1.9835,0)) -> -0.002436185049 | GN9: =-(IF(OR($N9<99999.99999,E9="Lower Latham",I9="Lower Latham",E9="Highland",I9="Highland",E9="Plum",I9="Plum"),(INDEX('FIDCO Credit'!$Y$48:$AJ$78,MATCH($B$2,'FIDCO Credit'!$X$48:$X$78,0),MATCH($A9,'FIDCO Credit'!$Y$47:$AJ$47,0))/$RV9)/1.9835,0)) -> -0.0017595 | GO9: =-(IF(OR($N9<99999.99999,E9="Lower Latham",I9="Lower Latham",E9="Highland",I9="Highland",E9="Plum",I9="Plum"),(INDEX('Western Credit'!$W$84:$AH$114,MATCH($B$2,'Western Credit'!$V$84:$V$114,0),MATCH($A9,'Western Credit'!$W$83:$AH$83,0))/$RV9)/1.9835+'Haren Daily Recharge'!K8*'Western Credit'!$Z$40,0)) -> 0 | GP9: =SUM(GM9:GO9) -> -0.004195685049 | GQ9: =MIN(-GN9,HT9) -> 0 | GR9: =IF(GZ9="yes",0,MIN(-GN9-GQ9,HV9)) -> 0 | GS9: =IF(AND(GY9="no",GZ9="no"),MIN(-(GN9-GQ9-GR9)/(1-0.5/100*'Distances for Transit Losses'!$C$95),IW9),0) -> 0 | GT9: =-GS9*0.5/100*'Distances for Transit Losses'!$C$95 -> 0 | GU9: =VLOOKUP($B9,'ECCV Haren Pond S.P. Acrtns'!$B$7:$G$306,6)/$RV9/1.9835-0.1 -> 1.384290832 | GV9: =MIN(-GP9-GQ9-GR9-GS9,GU9) -> 0.004195685049 | GW9: =LC9 -> 0.4900909865 | GX9: yes | GY9: no | GZ9: no | HA9: 0 | HB9: 0 | HC9: 0 | HE9: =IF($GX9="No",MIN(-GP9-GV9,GK9),0) -> 0 | HF9: =IF(AND(GX9="No",$BV9="No"),MIN(-(GP9+GV9+HE9),GL9),0) -> 0 | HG9: =GP9+GV9+HE9+HF9 -> 0 | HH9: =IF(AND(JE9-JF9>0,IZ9="no"),MIN(-HG9/(1-0.5/100*'Distances for Transit Losses'!$C$111),JE9-JF9),0) -> 0 | HI9: =-HH9*0.5/100*'Distances for Transit Losses'!$C$111 -> 0 | HJ9: =IF(AND(JI9+JJ9-JK9-JV9>0,IZ9="no"),MIN((-HG9-(HH9+HI9))/(1-0.5/100*'Distances for Transit Losses'!$C$113),JI9+JJ9-JK9-JV9),0) -> 0 | HK9: =-HJ9*0.5/100*'Distances for Transit Losses'!$C$113 -> 0 | HL9: 0 | HM9: =IF(HL9>0,MIN(-(HG9+HH9+HI9+HJ9+HK9)/(1-0.5/100*'Distances for Transit Losses'!$C$115),HL9),0) -> 0 | HN9: =-HM9*0.5/100*'Distances for Transit Losses'!$C$115 -> 0 | HO9: 0 | HQ9: =MIN(0,SUM(HG9:HK9)+SUM(HM9:HO9)) -> 0 | HR9: ='Joint Aug Station Deliveries'!AS9 -> 0 | HS9: =HR9*'Western Credit'!$Z$42 -> 0 | HT9: ='Joint Aug Station Deliveries'!AJ9 -> 0 | HU9: =IF(AND(HT9>0,SUM($HT$9:HT9,$HV$9:HV9,$IW$9:IW9)*1.9835<OFFSET('FIDCO Credit'!$X$39,0,MATCH($A9,'FIDCO Credit'!$Y$5:$AJ$5,0))),HT9-GQ9,0) -> 0 | HV9: ='Joint Aug Station Deliveries'!AM9 -> 0 | HW9: =IF(AND(HV9>0,SUM($HT$9:HT9,$HV$9:HV9,$IW$9:IW9)*1.9835<OFFSET('FIDCO Credit'!$X$39,0,MATCH($A9,'FIDCO Credit'!$Y$5:$AJ$5,0))),HV9-GR9,0) -> 0 | HX9: =MAX(0,(KY9+KZ9))/(1-0.5/100*'Distances for Transit Losses'!$C$83) -> 0 | HY9: =MAX(0,(LA9+LB9)/(1-0.5/100*'Distances for Transit Losses'!$C$79)) -> 0 | HZ9: 0 | IA9: =-HZ9*0.5/100*'Distances for Transit Losses'!$C$85 -> 0 | IB9: 0 | IC9: 0 | ID9: =-IC9*0.5/100*'Distances for Transit Losses'!$C$34 -> 0 | IE9: =IF($GY9="No",HS9-HY9-IB9,0) -> 0 | IF9: 0 | IG9: 0 | IH9: =IF($GY9="No",HU9-HX9-HZ9,0) -> 0 | II9: 0 | IJ9: 0 | IK9: =IF(AND($GX9="No",$BV9="No"),$JZ9,0) -> 0 | IL9: 0 | IM9: =IF(GX9="No",$JY9,0) -> 0 | IN9: 0 | IO9: 0 | IP9: 0 | IQ9: =-IP9*0.5/100*'Distances for Transit Losses'!$C$123 -> 0 | IR9: =IF9+II9+IL9+SUM(IN9:IQ9) -> 0 | IS9: =GU9-GV9-GW9+HS9+HU9-SUM(HX9:IB9)-IF9-IG9-II9-IJ9 -> 0.8900041608 | IT9: =GK9-HE9 -> 0.02808563779 | IU9: =GL9-HF9 -> 1.315767551 | IV9: =-(IF(F9<99999.99999,INDEX('Hist RF to SPR'!$B$6:$M$30,MATCH($B$2,'Hist RF to SPR'!$A$6:$A$30,0),MATCH($A9,'Hist RF to SPR'!$B$5:$M$5,0))/RV9/1.9835,0)) -> -0.02147266205 | IW9: ='Joint Aug Station Deliveries'!AP9 -> 0 | IX9: =IF(AND(IW9>0,SUM($HT$9:HT9,$HV$9:HV9,$IW$9:IW9)*1.9835<OFFSET('FIDCO Credit'!$X$39,0,MATCH($A9,'FIDCO Credit'!$Y$5:$AJ$5,0))),IW9-GS9,0) -> 0 | IY9: =MIN(-IV9,IX9) -> 0 | IZ9: yes | JA9: =IF($IZ9="No",MIN(-(IV9+IY9),IT9),0) -> 0 | JB9: =IF(AND(IZ9="No",$BV9="No"),MIN(-(IV9+IY9+JA9),IU9),0) -> 0 | JC9: =IF(AND($GY9="No"),MIN(-(IV9+IY9+JA9+JB9),IS9),0) -> 0.02147266205 | JD9: =IV9+JA9+JB9+JC9 -> 0 | JE9: 0 | JF9: =IF(JE9>0,MIN(-JD9/(1-0.5/100*'Distances for Transit Losses'!$C$117),JE9),0) -> 0 | JG9: =-JF9*0.5/100*'Distances for Transit Losses'!$C$117 -> 0 | JH9: =IF(AND(HL9-HM9>0,IZ9="no"),MIN(-(JD9+JF9+JG9),HL9-HM9),0) -> 0 | JI9: 0 | JJ9: =-JI9*0.5/100*'Distances for Transit Losses'!$C$70 -> 0 | JK9: =IF((JI9+JJ9)>0,MIN((-JD9-(JF9-JG9)-JH9)/(1-0.5/100*'Distances for Transit Losses'!$C$119),(JI9+JJ9)),0) -> 0 | JL9: =-JK9*0.5/100*'Distances for Transit Losses'!$C$119 -> 0 | JM9: 0 | JO9: =JD9+JF9+JG9+JH9+JK9+JL9+JM9 -> 0 | JP9: =IF(AND($IZ9="No",$BV9="No"),$JZ9-IL9,0) -> 0 | JQ9: 0 | JR9: =IF(IZ9="No",$JY9-IN9,0) -> 0 | JS9: 0 | JT9: =IG9 -> 0 | JU9: =IJ9 -> 0 | JV9: 0 | JW9: =-JV9*0.5/100*'Distances for Transit Losses'!$C$121 -> 0 | JX9: =JQ9+JS9+JT9+JU9+JV9+JW9 -> 0 | JY9: =IT9-JA9 -> 0.02808563779 | JZ9: =IU9-JB9 -> 1.315767551 | KA9: =-(IF(N9<99999.99999,(VLOOKUP(B9,'ECCV Upper Dpln'!$B$7:$BD$306,55))/RV9/1.9835,0)) -> -3.375455381 | KB9: =-(IF(N9<99999.99999,INDEX('Hist RF abv Milton'!$B$6:$M$30,MATCH($B$2,'Hist RF abv Milton'!$A$6:$A$30,0),MATCH($A9,'Hist RF abv Milton'!$B$5:$M$5,0))/RV9/1.9835,0)) -> -0.02367044831 | KC9: 0 | KD9: =(VLOOKUP($B9,'ECCV Beebe Pond Acrtns'!$B$7:$BI$1206,41)+VLOOKUP($B9,'ECCV Canal Acrtns'!$B$7:$AL$1206,22)+VLOOKUP($B9,'2003 Beebe Pond Acrtns'!$B$7:$BI$1206,41)+VLOOKUP($B9,'2003 Canal Acrtns'!$B$7:$AL$1206,22))/$RV9/1.9835+0.69 -> 1.045084924 | KE9: 0 | KF9: 0 | KG9: 0 | KH9: =MIN(KD9,-KA9) -> 1.045084924 | KI9: =MIN($KG9,-($KA9+$KH9)) -> 0 | KJ9: yes | KK9: 0 | KL9: =IF($KJ9="No",IF($KK9>0,0,MIN(-KB9,DS9)),0) -> 0 | KM9: =IF($KJ9="No",IF($KK9>0,0,MIN(-(KA9+KH9+KI9),DS9-KL9)),0) -> 0 | KN9: =IF(AND(KJ9="No",$BV9="No"),IF($KK9>0,0,MIN(-(KB9+KL9),CG9)),0) -> 0 | KO9: =IF(AND(KJ9="No",$BV9="No"),IF($KK9>0,0,MIN(-(KA9+KH9+KI9+KM9),$CG9-KN9)),0) -> 0 | KP9: =IF($KJ9="No",IF($KK9>0,0,MIN(-(KB9+KL9+KN9),GJ9)),0) -> 0 | KQ9: =IF($KJ9="No",IF($KK9>0,0,MIN(-(KA9+KH9+KI9+KM9+KO9),GJ9-KP9)),0) -> 0 | KR9: =KA9+KH9+KI9+KM9+KO9+KQ9 -> -2.330370457 | KS9: =KB9+KL9+KN9+KP9 -> -0.02367044831 | KT9: 2 | KU9: =-(KT9*0.5/100*'Distances for Transit Losses'!$C$6) -> -0.027 | KV9: 0 | KW9: 0 | KX9: 0 | KY9: =IF(AND(E9<>"Lower Latham",I9<>"Lower Latham"),MIN(-(KS9+KV9),HU9-HU9*0.5/100*'Distances for Transit Losses'!$C$83),0) -> 0 | KZ9: =IF(AND(E9<>"Lower Latham",I9<>"Lower Latham"),MAX(0,MIN(-(KR9+KT9+KU9+KX9),HU9-HU9*0.5/100*'Distances for Transit Losses'!$C$83-KY9/(1-0.5/100*'Distances for Transit Losses'!$C$83))),0) -> 0 | LA9: =MIN(-(KS9+KV9+KY9),HS9-HS9*0.5/100*'Distances for Transit Losses'!$C$79) -> 0 | LB9: =MAX(0,MIN(-(KR9+KT9+KU9+KZ9),HS9-HS9*0.5/100*'Distances for Transit Losses'!$C$79-LA9/(1-0.5/100*'Distances for Transit Losses'!$C$79))) -> 0 | LC9: =IF(FK9="no",MIN(-(MIN(0,KR9+KS9+KT9+KU9+KZ9+LB9))+FX9/(1-0.5/100*'Distances for Transit Losses'!$C$44)+LT9/(1-0.5/100*'Distances for Transit Losses'!$C$36),(GU9-GV9)-(GU9-GV9)*0.5/100*'Distances for Transit Losses'!$C$79),0) -> 0.4900909865 | LD9: =MAX(0,IF(AND(HL9-HM9-JH9-FV9>0,FK9="no"),MIN(-(KR9+KT9+KU9+KX9+KZ9+LB9+LC9)/(1-0.5/100*'Distances for Transit Losses'!$C$89),HL9-HM9-JH9-FV9),0)) -> 0 | LE9: =-LD9*0.5/100*'Distances for Transit Losses'!$C$89 -> 0 | LH9: =SUM(KA9:KC9)+KH9+KI9+SUM(KL9:KQ9)+SUM(KT9:LF9)-(FX9/(1-0.5/100*'Distances for Transit Losses'!$C$44)+LT9/(1-0.5/100*'Distances for Transit Losses'!$C$36)) -> 3.053113318e-16 | LI9: =KD9-KH9 -> 0 | LJ9: =KG9-KI9 -> 0 | LK9: =DS9-KL9-KM9 -> 0.02808563779 | LL9: =CG9-KN9-KO9 -> 1.315767551 | LM9: =-(IF(N9<99999.99999,INDEX('Hist RF blw Milton'!$B$6:$M$30,MATCH($B$2,'Hist RF blw Milton'!$A$6:$A$30,0),MATCH($A9,'Hist RF blw Milton'!$B$5:$M$5,0))/RV9/1.9835,0)) -> -0.02924706861 | LN9: yes | LO9: 0 | LP9: =IF(AND(LN9="No",$BV9="No"),MIN(-(LM9+LO9),$LL9),0) -> 0 | LQ9: =LM9+LO9+LP9 -> -0.02924706861 | LR9: =MAX(0,-(LQ9+LT9)) -> 0 | LS9: 0 | LT9: =-LM9 -> 0.02924706861 | LU9: Haren Recharge | LV9: =IF(LK9-LO9<0,0,LK9-LO9) -> 0.02808563779 | LW9: =LL9-LP9 -> 1.315767551 | LX9: =-(IF(N9<99999.99999,INDEX('Hist RF to Box Elder'!$B$6:$M$30,MATCH($B$2,'Hist RF to Box Elder'!$A$6:$A$30,0),MATCH($A9,'Hist RF to Box Elder'!$B$5:$M$5,0))/RV9/1.9835,0)) -> -0.01307806535 | LY9: =(VLOOKUP($B9,'ECCV Beebe Pond Acrtns'!$B$7:$BI$1206,54)+VLOOKUP($B9,'ECCV Canal Acrtns'!$B$7:$AL$1206,34)+VLOOKUP($B9,'2003 Beebe Pond Acrtns'!$B$7:$BI$1206,54)+VLOOKUP($B9,'2003 Canal Acrtns'!$B$7:$AL$1206,34)+VLOOKUP($B9,'84CW090 Beebe Pond Acrtns'!$B$7:$BI$1206,55)+VLOOKUP($B9,'84CW090 Canal Acrtns'!$B$7:$AL$1206,34))/$RV9/1.9835 -> 0.1102842448 | LZ9: =MIN(-LX9,LY9) -> 0.01307806535 | MA9: =IF(LX9+LZ9+MC9=0,0,-(LX9+LY9+MC9)) -> 0 | MB9: 0 | MC9: 0 | ME9: =AN9+AR9+AT9+AV9+AX9+AZ9+CJ9+CQ9+DT9+ED9+EE9+ES9+FJ9+KA9+KB9+KC9+GP9+IV9+LM9+LX9 -> -3.923375923 | MF9: =KH9+KI9+SUM(KL9:KQ9)+SUM(KT9:LF9) -> 3.508175911 | MG9: =LO9+LP9+LR9+LS9+LT9 -> 0.02924706861 | MH9: =LZ9+MA9+MB9+MC9 -> 0.01307806535 | MI9: =IY9+JA9+JB9+JC9+JF9+JG9+JH9+JK9+JL9+JM9 -> 0.02147266205 | MJ9: =GQ9+GR9+GS9+GT9+GV9+HE9+HF9+HH9+HI9+HJ9+HK9+SUM(HM9:HO9) -> 0.004195685049 | MK9: =SUM(FP9:FX9)+GB9+GC9+SUM(GE9:GH9) -> 0.0726744269 | ML9: =DW9+EG9+SUM(EH9:EN9)+SUM(EW9:FB9) -> 0 | MM9: =CK9+CL9+CU9+DB9+DE9+SUM(DI9:DR9) -> 0.2220081766 | MN9: =AO9+AP9+BF9+BG9+BH9+SUM(BJ9:BR9) -> 0.1519313349 | MO9: =SUM(MF9:MN9) -> 4.02278333 | MP9: =ME9+MO9 -> 0.0994074068 | MQ9: =LI9+LJ9 -> 0 | MR9: =JR9-JS9 -> 0 | MS9: =JP9-JQ9 -> 0 | MU9: 0 | MV9: 0 | MW9: 0 | MX9: 0 | MY9: 0 | MZ9: 0 | NA9: 0 | NB9: 0 | ND9: 0 | NE9: 0 | NF9: 0 | NG9: 0 | NH9: 0 | NI9: 0 | NJ9: 0 | NK9: 0 | NL9: 0 | NM9: 0 | NN9: 0 | NO9: 0 | NQ9: =BD9+BE9 -> 0 | NR9: 0 | NS9: 0 | NT9: 0 | NU9: 0 | NV9: 0 | NW9: 0 | NX9: 0 | NY9: 0 | NZ9: 0 | OA9: 0 | OC9: =MR9+MS9-AB9 -> 0 | OD9: 0 | OE9: 0 | OF9: 0 | OG9: 0 | OH9: 0 | OI9: 0 | OJ9: 0 | OK9: 0 | OL9: 0 | OM9: 0 | OO9: 0 | OP9: 0 | OQ9: 0 | OR9: 0 | OS9: 0 | OT9: 0 | OU9: 0 | OV9: 0 | OW9: 0 | OX9: 0 | OY9: 0 | OZ9: 0 | PA9: 0 | PC9: 0 | PD9: 0 | PE9: 0 | PF9: 0 | PG9: 0 | PH9: 0 | PI9: 0 | PJ9: 0 | PK9: 0 | PM9: 0 | PN9: 0 | PO9: 0 | PP9: 0 | PQ9: 0 | PR9: 0 | PS9: 0 | PT9: 0 | PV9: 0 | PW9: 0 | PX9: 0 | PZ9: 0 | QA9: 0 | QB9: 0 | QC9: 0 | QF9: 0 | QG9: 0 | QH9: 0 | QI9: 0 | QJ9: =SUM(QF9:QI9) -> 0 | QK9: 0 | QL9: 0 | QN9: =OK9+NY9+NM9+OY9+PI9+PR9+QJ9 -> 0 | QO9: =OL9+NZ9+NN9+OZ9+PJ9+PS9+QK9 -> 0 | QP9: =OM9+OA9+NB9+NO9+PA9+PK9+PT9+PX9+QC9+QL9 -> 0 | QQ9: =NA9+SUM(OD9:OJ9)+SUM(NR9:NX9)+SUM(NE9:NL9)+SUM(OS9:OX9)+SUM(PD9:PH9)+SUM(PN9:PQ9)+SUM(QF9:QI9) -> 0 | QR9: =IF(QQ9*1.9835>8706,"Exceeded Annual Maximum",QQ9*1.9835) -> 0 | QS9: 309.6 | QU9: =MQ9 -> 0 | QV9: 0 | QW9: 0 | QX9: 0 | QY9: 0 | QZ9: 0 | RA9: 0 | RB9: 0 | RC9: 0 | RD9: 0 | RE9: 0 | RF9: 0 | RG9: 0 | RH9: 0 | RI9: 0 | RJ9: 0 | RK9: 0 | RL9: 0 | RM9: 0 | RN9: 0 | RO9: =QU9-SUM(QV9:RN9) -> 0 | RP9: =ABS((JI9+JJ9)-JK9-HJ9-FT9-DO9)<0.1 -> TRUE | RQ9: =ABS((HU9+HW9+IX9)-(HX9+HZ9+II9+IJ9+IO9+IY9+JU9))<0.1 -> TRUE | RS9: =KT9+KV9+KW9 -> 2 | RT9: =MA9+LR9 -> 0 | RV9: =VLOOKUP(A9,'Control Sheet'!$G$9:$H$20,2) -> 30
A10: Apr | B10: =B9+1 -> 2017-04-02 | C10: Burlington | D10: 1910-11-21 | E10: Burlington | F10: 22239 | K10: Riverside | L10: 1988-12-31 | M10: Riverside | N10: 50769.49378 | O10: Prewitt Reservoir | P10: 2002-12-31 | Q10: Prewitt Reservoir | R10: 55882 | S10: =OC10 -> 0 | T10: 0 | U10: 0 | V10: 0 | W10: 0 | X10: 0 | Y10: =('NFC Well Pumping'!$L8+'NFC Well Pumping'!$L45+'NFC Well Pumping'!$L81)/1.9835 -> 0 | Z10: ='88CW264(B) Pumping'!$E8/1.9835+'88CW264(B) Pumping'!$E44/1.9835+'88CW264(B) Pumping'!E84/1.9835+'88CW264(B) Pumping'!E120/1.9835+'88CW264(B) Pumping'!E160/1.9835+'88CW264(B) Pumping'!E196/1.9835 -> 0.00925230458 | AA10: =$MR10+$MS10 -> 0 | AB10: =('United No. 2 Well Pumping'!G9+'United No. 2 Well Pumping'!G45+'United No. 2 Well Pumping'!G81)/1.9835 -> 0 | AC10: =('United No. 2 Well Pumping'!F9+'United No. 2 Well Pumping'!F45+'United No. 2 Well Pumping'!F81)/1.9835 -> 0 | AD10: 0 | AF10: =Y10+Z10+AB10+AC10+AD10 -> 0.00925230458 | AG10: =U10+AC10+'United Res'!AA172+'United Res'!AQ172+'Milliken Res'!I160 -> 0 | AH10: 100 | AI10: =-(IF($N10=99999.99999,0,VLOOKUP($B10,'NFC Well Dplns-URF'!B$7:$AB$306,27))/$RV10/1.9835) -> -0.004064876498 | AJ10: 0 | AL10: =(VLOOKUP($B10,'ECCV 70R Pond Acrtns'!$B$7:$AI$1206,34)+VLOOKUP($B10,'2003 70R Pond Acrtns'!$B$7:$AI$1206,34)+VLOOKUP($B10,'ECCV 70R Canal Acrtns'!$B$7:$AI$1206,27)+VLOOKUP($B10,'2003 70R Canal Acrtns'!$B$7:$AI$1206,27))/$RV10/1.9835 -> 0 | AM10: -0.004064876498 | AN10: =-(IF($N10=99999.99999,0,VLOOKUP($B10,'NFC Well Dplns-SDF'!$B$7:$Z$306,25)+VLOOKUP($B10,'NFC Well Dplns-URF'!B$7:$AB$306,20))/$RV10/1.9835) -> -0.07514542012 | AO10: =IF(AN10<0,1.6983744722713/$RV10/1.9835,0) -> 0.02854171031 | AP10: =-(AN10+AO10) -> 0.04660370981 | AQ10: ECCV Riverside Credits | AR10: =IF(N10<99999.99999,-((BD10+BE10)*'Weldon Credit'!$BB$36),0) -> 0 | AS10: =-((BD10+BE10)*'Weldon Credit'!$BB$34) -> 0 | AT10: =IF(N10<99999.99999,-INDEX('Weldon Credit'!$AX$249:$BJ$276,MATCH($B$2,'Weldon Credit'!$AX$249:$AX$276,0),MATCH(A10,'Weldon Credit'!$AX$249:$BJ$249,0))/RV10/1.9835,0) -> -0.007144773798 | AU10: =AR10+AT10 -> -0.007144773798 | AV10: =IF(N10<99999.99999,-((BD10+BE10)*'Weldon Credit'!$BB$37),0) -> 0 | AW10: =-((BD10+BE10)*'Weldon Credit'!$BB$35) -> 0 | AX10: =IF(N10<99999.99999,-INDEX('Weldon Credit'!$AX$281:$BJ$308,MATCH($B$2,'Weldon Credit'!$AX$281:$AX$308,0),MATCH(A10,'Weldon Credit'!$AX$281:$BJ$281,0))/RV10/1.9835,0) -> -0.07879357513 | AY10: =AV10+AX10 -> -0.07879357513 | AZ10: =-(BD10+BE10)*'Weldon Credit'!$BB$38 -> 0 | BA10: =0.4*(INDEX('Riverside Pond Accrtns'!$B$6:$M$36,MATCH($B$2,'Riverside Pond Accrtns'!$A$6:$A$36,0),MATCH('ECCV Daily Replacement Summary'!A10,'Riverside Pond Accrtns'!$B$5:$M$5,0))/RV10)/1.9835 -> 1.310814217 | BB10: =(44/640)*(INDEX('Weldon Valley Accrtns (02CW377)'!$B$6:$M$30,MATCH($B$2,'Weldon Valley Accrtns (02CW377)'!$A$6:$A$30,0),MATCH(A10,'Weldon Valley Accrtns (02CW377)'!$B$5:$M$5,0))/RV10)/1.9835 -> 0.2610339467 | BC10: =(VLOOKUP($B10,'ECCV 70R Pond Acrtns'!$B$7:$AI$1206,25)+VLOOKUP($B10,'ECCV 70R Canal Acrtns'!$B$7:$AI$1206,20)+VLOOKUP($B10,'2003 70R Pond Acrtns'!$B$7:$AI$1206,25)+VLOOKUP($B10,'2003 70R Canal Acrtns'!$B$7:$AI$1206,20))/$RV10/1.9835 -> 0 | BD10: ='Joint Aug Station Deliveries'!G10 -> 0 | BE10: ='Joint Aug Station Deliveries'!H10 -> 0 | BF10: 0 | BG10: 0 | BH10: =IF(BT10="no",-MAX(0,MIN(BG10,(BE10-BD10))*(0.5/100*'Distances for Transit Losses'!$C$75)),0) -> 0 | BI10: =IF(BD10+BE10>0,BD10+BE10-BF10-BG10+BH10,0) -> 0 | BJ10: =MIN(-($AU10+AY10+AZ10+BF10+BG10+BH10),BA10-BA10*0.5/100*'Distances for Transit Losses'!$C$77) -> 0.08593834893 | BK10: =MIN(-($AU10+AY10+AZ10+BF10+BG10+BH10+BJ10),BB10) -> 0 | BL10: =MIN(-($AU10+AY10+AZ10+BF10+BG10+BH10+BJ10+BK10),BC10-BC10*0.5/100*'Distances for Transit Losses'!$C$77) -> 0 | BM10: =-((BJ10+BL10)*(0.5/100*'Distances for Transit Losses'!$C$77)) -> -0.009152434161 | BN10: =IF(AND(JE10-JF10-FR10-DM10>0,IZ10="no"),MIN(-(AU10+AY10+AZ10+BF10+BG10+BH10+BJ10+BK10+BL10+BM10)/(1-0.5/100*'Distances for Transit Losses'!$C$99),JE10-JF10-FR10-DM10),0) -> 0 | BO10: =--BN10*0.5/100*'Distances for Transit Losses'!C$99 -> 0 | BP10: =IF(AND(HL10-HM10-JH10-FV10-LD10-DQ10>0,FK10="no"),MIN(-(AU10+AY10+AZ10+BF10+BG10+BH10+BJ10+BK10+BL10+BM10+BN10+BO10)/(1-0.5/100*'Distances for Transit Losses'!$C$101),HL10-HM10-JH10-FV10-LD10-DQ10),0) -> 0 | BQ10: =--BP10*0.5/100*'Distances for Transit Losses'!$C$101 -> 0 | BR10: 0 | BT10: no | BU10: no | BV10: no | BW10: 0 | BX10: 0 | BY10: 0 | CA10: =IF($BV10="No",MIN(-DH10,BA10-BJ10/(1-0.5/100*'Distances for Transit Losses'!$C$77)),0) -> 0 | CB10: =IF($BV10="No",MIN(-DH10+CA10,BC10-BL10/(1-0.5/100*'Distances for Transit Losses'!$C$77)),0) -> 0 | CC10: 0 | CD10: 0 | CE10: 0 | CF10: =AN10+AO10+AU10+AY10+AZ10+BA10+BB10+BC10+BD10+BE10 -> 1.439306105 | CG10: =AN10+AO10+AU10+AY10+AZ10+(BA10-AP10)+BB10+BC10+BD10+BE10-SUM(CA10:CE10)-CL10 -> 1.315767551 | CH10: =-(IF($N10=99999.99999,0,VLOOKUP($B10,'NFC Well Dplns-SDF'!$B$7:$Z$306,16)+VLOOKUP($B10,'NFC Well Dplns-URF'!$B$7:$AB$306,13))/$RV10/1.9835) -> -0.2127558721 | CI10: =-(IF($N10>=99999,0,'88CW264(B) Pumping'!$E8/1.9835)+IF($N10>=99999,0,'88CW264(B) Pumping'!$E44/1.9835)+IF($N10>=99999,0,'88CW264(B) Pumping'!$E84/1.9835)+IF($N10>=99999,0,'88CW264(B) Pumping'!$E120/1.9835)+IF($N10>=51134.50919,0,'88CW264(B) Pumping'!$E160/1.9835)+IF($N10>=53406,0,'88CW264(B) Pumping'!$E196/1.9835)) -> -0.00925230458 | CJ10: -0.2220081766 | CK10: =IF(CH10<0,8.63258865481883/$RV10/1.9835,0) -> 0.1450733326 | CL10: =-CJ10-CK10 -> 0.07693484407 | CM10: ECCV Riverside | CN10: =-(IF($N10=99999.99999,0,VLOOKUP($B10,'United No. 2 Dplns'!$B$7:$X$676,13)/1.9835)) -> 0 | CO10: =CN10+(-(INDEX('Pre 1995 Net Accretions'!$B$6:$M$105,MATCH($B$2,'Pre 1995 Net Accretions'!$A$6:$A$105,0),MATCH($A10,'Pre 1995 Net Accretions'!$B$5:$M$5,0))/$RV10/1.9835)) -> 0.02808563779 | CP10: =-(IF(N10<99999.99999,(INDEX('70 Ranch RF Obligation'!$B$6:$M$36,MATCH($B$2,'70 Ranch RF Obligation'!$A$6:$A$36,0),MATCH('ECCV Daily Replacement Summary'!A10,'70 Ranch RF Obligation'!$B$5:$M$5,0))/RV10)/1.9835,0))-CS10*(1-'L. Latham Credit'!$E$41) -> 0 | CQ10: =MIN(0,CP10+CO10) -> 0 | CR10: =(VLOOKUP($B10,'ECCV 70R Pond Acrtns'!$B$7:$AI$1206,16)+VLOOKUP($B10,'ECCV 70R Canal Acrtns'!$B$7:$AI$1206,13)+VLOOKUP($B10,'2003 70R Pond Acrtns'!$B$7:$AI$1206,16)+VLOOKUP($B10,'2003 70R Canal Acrtns'!$B$7:$AI$1206,13))/$RV10/1.9835 -> 0 | CS10: ='Joint Aug Station Deliveries'!BN10 -> 0 | CT10: =IF(CS10>0,CS10-CU10,0) -> 0 | CU10: =MAX(0,MIN(-CQ10,CS10)) -> 0 | CV10: ='Joint Aug Station Deliveries'!BQ10 -> 0 | CW10: 0 | CX10: 0 | DA10: =MAX(0,CO10)+CT10+CW10+CX10+CY10 -> 0.02808563779 | DB10: =MAX(0,MIN(-(CQ10+CU10),DA10)) -> 0 | DC10: 0 | DD10: =-DC10*0.5/100*'Distances for Transit Losses'!$C$48 -> 0 | DE10: =MAX(0,MIN(CR10,-(CQ10+CU10+DB10))) -> 0 | DF10: 0 | DG10: 0 | DH10: =CJ10+CK10+CL10+CQ10+CU10+DB10+DE10 -> 0 | DI10: 0 | DJ10: 0 | DK10: 0 | DL10: =('NFC Well Pumping'!I8+'NFC Well Pumping'!I45+'NFC Well Pumping'!I81)/1.9835 -> 0 | DM10: =IF(AND(JE10-JF10-FR10>0,IZ10="no"),MIN(-SUM(DH10:DL10)/(1-0.5/100*'Distances for Transit Losses'!$C$103),JE10-JF10-FR10),0) -> 0 | DN10: =-DM10*0.5/100*'Distances for Transit Losses'!C$103 -> 0 | DO10: 0 | DP10: =--DO10*0.5/100*'Distances for Transit Losses'!$C$127 -> 0 | DQ10: =IF(AND(HL10-HM10-JH10-FV10-LD10>0,FK10="no"),MIN(-SUM(DH10:DP10)/(1-0.5/100*'Distances for Transit Losses'!$C$105),HL10-HM10-JH10-FV10-LD10),0) -> 0 | DR10: =--DQ10*0.5/100*'Distances for Transit Losses'!$C$105 -> 0 | DS10: =CR10+DA10-DB10-DC10+DD10-SUM(DE10:DG10) -> 0.02808563779 | DT10: 0 | DU10: ='Joint Aug Station Deliveries'!O10 -> 0 | DV10: =-(DU10*0.5/100*'Distances for Transit Losses'!$C$212) -> 0 | DW10: 0 | DY10: no | EA10: =DT10+IF(DZ10="Yes",DU10,0)+DV10+DW10 -> 0 | EB10: =MAX(IF(AND(DY10="No",DZ10="Yes"),DT10+DU10+DV10,0),0) -> 0 | EC10: =-(EB10*0.5/100*'Distances for Transit Losses'!$C$214) -> 0 | ED10: 0 | EE10: =-0.25*(INDEX('GIC Credit'!$B$85:$M$116,MATCH($B$2,'GIC Credit'!$A$85:$A$116,0),MATCH($A10,'GIC Credit'!$B$85:$M$85,0))/$RV10/1.9835+FE10*'GIC Credit'!$Z$39+FF10*'GIC Credit'!$AO$39) -> -0.0001915 | EF10: =ED10+EE10 -> -0.0001915 | EG10: =MIN(-EF10,EB10+EC10) -> 0 | EH10: ='Joint Aug Station Deliveries'!BF10 -> 0 | EI10: =-(EH10*0.5/100*'Distances for Transit Losses'!$C$240) -> 0 | EJ10: ='Joint Aug Station Deliveries'!BG10 -> 0 | EK10: =-(EJ10*0.5/100*'Distances for Transit Losses'!$C$242) -> 0 | EL10: 0 | EM10: =-(EL10*0.5/100*'Distances for Transit Losses'!$C$234) -> 0 | EN10: 0 | EP10: no | EQ10: -0.0001915 | ER10: =-(IF($N10<99999.99999,(INDEX('New Cache Credit'!$W$82:$AH$113,MATCH($B$2,'New Cache Credit'!$V$82:$V$113,0),MATCH($A10,'New Cache Credit'!$W$82:$AH$82,0))/$RV10)/1.9835,0))-DT10-ED10 -> -0.07163859239 | ES10: =-0.39*(INDEX('GIC Credit'!$B$85:$M$116,MATCH($B$2,'GIC Credit'!$A$85:$A$116,0),MATCH($A10,'GIC Credit'!$B$85:$M$85,0))/$RV10/1.9835+FE10*'GIC Credit'!$Z$39+FF10*'GIC Credit'!$AO$39) -> -0.00029874 | ET10: =MAX(IF(AND(EP10="No",EQ10>0),EQ10,0),0) -> 0 | EU10: =-(ET10*0.5/100*('Distances for Transit Losses'!$C$216+'Distances for Transit Losses'!$C$222)) -> 0 | EW10: =IF(EV10="yes",'Joint Aug Station Deliveries'!V10,0) -> 0 | EX10: =-(EW10*0.5/100*('Distances for Transit Losses'!$C$218+'Distances for Transit Losses'!$C$220+'Distances for Transit Losses'!$C$222)) -> 0 | EY10: =IF(EV10="Yes",'Joint Aug Station Deliveries'!Y10,0) -> 0 | EZ10: =-(EY10*0.5/100*('Distances for Transit Losses'!$C$220+'Distances for Transit Losses'!$C$222)) -> 0 | FA10: ='Joint Aug Station Deliveries'!BH10 -> 0 | FB10: =-(FA10*0.5/100*'Distances for Transit Losses'!$C$226) -> 0 | FC10: =MIN(0,EQ10)+SUM(ER10:EU10)+SUM(EW10:FB10) -> -0.07212883239 | FD10: 0 | FE10: ='Joint Aug Station Deliveries'!BJ10 -> 0 | FF10: ='Joint Aug Station Deliveries'!BK10 -> 0 | FG10: =-(IF(N10<99999.99999,INDEX('Hist RF to SPR'!$AF$6:$AQ$30,MATCH($B$2,'Hist RF to SPR'!$AE$6:$AE$30,0),MATCH($A10,'Hist RF to SPR'!$AF$5:$AQ$5,0))/RV10/1.9835,0)) -> -0.0002698345146 | FH10: =-0.36*(INDEX('GIC Credit'!$B$85:$M$116,MATCH($B$2,'GIC Credit'!$A$85:$A$116,0),MATCH($A10,'GIC Credit'!$B$85:$M$85,0))/$RV10/1.9835+FE10*'GIC Credit'!$Z$39+FF10*'GIC Credit'!$AO$39) -> -0.00027576 | FI10: =IF(FC10<0,FC10,0) -> -0.07212883239 | FJ10: -0.0726744269 | FK10: no | FL10: 0 | FM10: 0 | FN10: 0 | FP10: 0 | FQ10: 0 | FR10: =IF(AND(JE10-JF10-HH10>0,IZ10="no"),MIN(-(FJ10+FP10+FQ10)/(1-0.5/100*'Distances for Transit Losses'!$C$107),JE10-JF10-HH10),0) -> 0 | FS10: =-FR10*0.5/100*'Distances for Transit Losses'!$C$107 -> 0 | FT10: 0 | FU10: =-FT10*0.5/100*'Distances for Transit Losses'!$C$125 -> 0 | FV10: =IF(AND(HL10-HM10-JH10>0,GX10="no"),MIN(-(FJ10+FP10+FQ10+FR10+FS10+FT10+FU10)/(1-0.5/100*'Distances for Transit Losses'!$C$109),HL10-HM10-JH10),0) -> 0 | FW10: =-FV10*0.5/100*'Distances for Transit Losses'!$C$115 -> 0 | FX10: 0.0726744269 | FY10: Haren Recharge | FZ10: =IF(FC10>0,FC10,0) -> 0 | GB10: =IF(AND(GA9="no",(SUM('Joint Aug Station Deliveries'!$AF$9:'Joint Aug Station Deliveries'!$AF9)+'Joint Aug Station Deliveries'!$AF10)*1.9835>'New Cache Credit'!$BY$39,(SUM('Joint Aug Station Deliveries'!$AF$9:'Joint Aug Station Deliveries'!$AF9)+'Joint Aug Station Deliveries'!$AF10)*1.9835>'New Cache Credit'!$CH$39),0,'Joint Aug Station Deliveries'!X10) -> 0 | GC10: =-(GB10*0.5/100*'Distances for Transit Losses'!$C$208) -> 0 | GE10: =IF(AND(GD9="no",(SUM('Joint Aug Station Deliveries'!$AF$9:'Joint Aug Station Deliveries'!$AF9)+'Joint Aug Station Deliveries'!$AF10)*1.9835>'New Cache Credit'!$BY$39,(SUM('Joint Aug Station Deliveries'!$AF$9:'Joint Aug Station Deliveries'!$AF9)+'Joint Aug Station Deliveries'!$AF10)*1.9835>'New Cache Credit'!$CH$39),0,'Joint Aug Station Deliveries'!AA10) -> 0 | GF10: =-(GE10*0.5/100*'Distances for Transit Losses'!$C$200) -> 0 | GG10: =IF(AND(GD9="no",(SUM('Joint Aug Station Deliveries'!$AF$9:'Joint Aug Station Deliveries'!$AF9)+'Joint Aug Station Deliveries'!$AF10)*1.9835>'New Cache Credit'!$BY$39,(SUM('Joint Aug Station Deliveries'!$AF$9:'Joint Aug Station Deliveries'!$AF9)+'Joint Aug Station Deliveries'!$AF10)*1.9835>'New Cache Credit'!$CH$39),0,'Joint Aug Station Deliveries'!AD10) -> 0 | GH10: =-(GG10*0.5/100*'Distances for Transit Losses'!$C$206) -> 0 | GI10: =FJ10+SUM(FP10:FX10)+FZ10+GB10+GC10+SUM(GE10:GH10) -> 0 | GJ10: 0 | GK10: =IF(LV10>FG10,LV10-FP10,0) -> 0.02808563779 | GL10: =LW10-FQ10 -> 1.315767551 | GM10: =-(IF(N10<99999.99999,INDEX('Hist RF to SPR'!$Q$6:$AB$30,MATCH($B$2,'Hist RF to SPR'!$P$6:$P$30,0),MATCH($A10,'Hist RF to SPR'!$Q$5:$AB$5,0))/RV10/1.9835,0)) -> -0.002436185049 | GN10: =-(IF(OR($N10<99999.99999,E10="Lower Latham",I10="Lower Latham",E10="Highland",I10="Highland",E10="Plum",I10="Plum"),(INDEX('FIDCO Credit'!$Y$48:$AJ$78,MATCH($B$2,'FIDCO Credit'!$X$48:$X$78,0),MATCH($A10,'FIDCO Credit'!$Y$47:$AJ$47,0))/$RV10)/1.9835,0)) -> -0.0017595 | GO10: =-(IF(OR($N10<99999.99999,E10="Lower Latham",I10="Lower Latham",E10="Highland",I10="Highland",E10="Plum",I10="Plum"),(INDEX('Western Credit'!$W$84:$AH$114,MATCH($B$2,'Western Credit'!$V$84:$V$114,0),MATCH($A10,'Western Credit'!$W$83:$AH$83,0))/$RV10)/1.9835+'Haren Daily Recharge'!K9*'Western Credit'!$Z$40,0)) -> 0 | GP10: -0.004195685049 | GQ10: 0 | GR10: =IF(GZ10="yes",0,MIN(-GN10-GQ10,HV10)) -> 0 | GS10: =IF(AND(GY10="no",GZ10="no"),MIN(-(GN10-GQ10-GR10)/(1-0.5/100*'Distances for Transit Losses'!$C$95),IW10),0) -> 0 | GT10: =-GS10*0.5/100*'Distances for Transit Losses'!$C$95 -> 0 | GU10: =VLOOKUP($B10,'ECCV Haren Pond S.P. Acrtns'!$B$7:$G$306,6)/$RV10/1.9835-0.1 -> 1.384290832 | GV10: =MIN(-GP10-GQ10-GR10-GS10,GU10) -> 0.004195685049 | GW10: =LC10 -> 0.4900909865 | GX10: yes | GY10: no | GZ10: no | HA10: 0 | HB10: 0 | HC10: 0 | HE10: =IF($GX10="No",MIN(-GP10-GV10,GK10),0) -> 0 | HF10: =IF(AND(GX10="No",$BV10="No"),MIN(-(GP10+GV10+HE10),GL10),0) -> 0 | HG10: =GP10+GV10+HE10+HF10 -> 0 | HH10: =IF(AND(JE10-JF10>0,IZ10="no"),MIN(-HG10/(1-0.5/100*'Distances for Transit Losses'!$C$111),JE10-JF10),0) -> 0 | HI10: =-HH10*0.5/100*'Distances for Transit Losses'!$C$111 -> 0 | HJ10: =IF(AND(JI10+JJ10-JK10-JV10>0,IZ10="no"),MIN((-HG10-(HH10+HI10))/(1-0.5/100*'Distances for Transit Losses'!$C$113),JI10+JJ10-JK10-JV10),0) -> 0 | HK10: =-HJ10*0.5/100*'Distances for Transit Losses'!$C$113 -> 0 | HL10: 0 | HM10: =IF(HL10>0,MIN(-(HG10+HH10+HI10+HJ10+HK10)/(1-0.5/100*'Distances for Transit Losses'!$C$115),HL10),0) -> 0 | HN10: =-HM10*0.5/100*'Distances for Transit Losses'!$C$115 -> 0 | HO10: 0 | HQ10: =MIN(0,SUM(HG10:HK10)+SUM(HM10:HO10)) -> 0 | HR10: ='Joint Aug Station Deliveries'!AS10 -> 0 | HS10: =HR10*'Western Credit'!$Z$42 -> 0 | HT10: ='Joint Aug Station Deliveries'!AJ10 -> 0 | HU10: =IF(AND(HT10>0,SUM($HT$9:HT10,$HV$9:HV10,$IW$9:IW10)*1.9835<OFFSET('FIDCO Credit'!$X$39,0,MATCH($A10,'FIDCO Credit'!$Y$5:$AJ$5,0))),HT10-GQ10,0) -> 0 | HV10: ='Joint Aug Station Deliveries'!AM10 -> 0 | HW10: =IF(AND(HV10>0,SUM($HT$9:HT10,$HV$9:HV10,$IW$9:IW10)*1.9835<OFFSET('FIDCO Credit'!$X$39,0,MATCH($A10,'FIDCO Credit'!$Y$5:$AJ$5,0))),HV10-GR10,0) -> 0 | HX10: =MAX(0,(KY10+KZ10))/(1-0.5/100*'Distances for Transit Losses'!$C$83) -> 0 | HY10: =MAX(0,(LA10+LB10)/(1-0.5/100*'Distances for Transit Losses'!$C$79)) -> 0 | HZ10: 0 | IA10: =-HZ10*0.5/100*'Distances for Transit Losses'!$C$85 -> 0 | IB10: 0 | IC10: 0 | ID10: =-IC10*0.5/100*'Distances for Transit Losses'!$C$34 -> 0 | IE10: 0 | IF10: 0 | IG10: 0 | IH10: 0 | II10: 0 | IJ10: 0 | IK10: =IF(AND($GX10="No",$BV10="No"),JZ10,0) -> 0 | IL10: 0 | IM10: =IF(GX10="No",JY10,0) -> 0 | IN10: 0 | IO10: 0 | IP10: 0 | IQ10: =-IP10*0.5/100*'Distances for Transit Losses'!$C$123 -> 0 | IR10: =IF10+II10+IL10+SUM(IN10:IQ10) -> 0 | IS10: 0.8900041608 | IT10: 0.02808563779 | IU10: 1.315767551 | IV10: =-(IF(F10<99999.99999,INDEX('Hist RF to SPR'!$B$6:$M$30,MATCH($B$2,'Hist RF to SPR'!$A$6:$A$30,0),MATCH($A10,'Hist RF to SPR'!$B$5:$M$5,0))/RV10/1.9835,0)) -> -0.02147266205 | IW10: ='Joint Aug Station Deliveries'!AP10 -> 0 | IX10: =IF(AND(IW10>0,SUM($HT$9:HT10,$HV$9:HV10,$IW$9:IW10)*1.9835<OFFSET('FIDCO Credit'!$X$39,0,MATCH($A10,'FIDCO Credit'!$Y$5:$AJ$5,0))),IW10-GS10,0) -> 0 | IY10: =MIN(-IV10,IX10) -> 0 | IZ10: yes | JA10: =IF($IZ10="No",MIN(-(IV10+IY10),IT10),0) -> 0 | JB10: =IF(AND(IZ10="No",$BV10="No"),MIN(-(IV10+IY10+JA10),IU10),0) -> 0 | JC10: =IF(AND($GY10="No"),MIN(-(IV10+IY10+JA10+JB10),IS10),0) -> 0.02147266205 | JD10: 0 | JE10: 0 | JF10: =IF(JE10>0,MIN(-JD10/(1-0.5/100*'Distances for Transit Losses'!$C$117),JE10),0) -> 0 | JG10: =-JF10*0.5/100*'Distances for Transit Losses'!$C$117 -> 0 | JH10: 0 | JI10: 0 | JJ10: =-JI10*0.5/100*'Distances for Transit Losses'!$C$70 -> 0 | JK10: =IF((JI10+JJ10)>0,MIN((-JD10-(JF10-JG10)-JH10)/(1-0.5/100*'Distances for Transit Losses'!$C$119),(JI10+JJ10)),0) -> 0 | JL10: =-JK10*0.5/100*'Distances for Transit Losses'!$C$119 -> 0 | JM10: 0 | JO10: =JD10+JF10+JG10+JH10+JK10+JL10+JM10 -> 0 | JP10: 0 | JQ10: 0 | JR10: 0 | JS10: 0 | JT10: 0 | JU10: 0 | JV10: 0 | JW10: =-JV10*0.5/100*'Distances for Transit Losses'!$C$121 -> 0 | JX10: =JQ10+JS10+JT10+JU10+JV10+JW10 -> 0 | JY10: 0.02808563779 | JZ10: 1.315767551 | KA10: =-(IF(N10<99999.99999,(VLOOKUP(B10,'ECCV Upper Dpln'!$B$7:$BD$306,55))/RV10/1.9835,0)) -> -3.375455381 | KB10: =-(IF(N10<99999.99999,INDEX('Hist RF abv Milton'!$B$6:$M$30,MATCH($B$2,'Hist RF abv Milton'!$A$6:$A$30,0),MATCH($A10,'Hist RF abv Milton'!$B$5:$M$5,0))/RV10/1.9835,0)) -> -0.02367044831 | KC10: 0 | KD10: =(VLOOKUP($B10,'ECCV Beebe Pond Acrtns'!$B$7:$BI$1206,41)+VLOOKUP($B10,'ECCV Canal Acrtns'!$B$7:$AL$1206,22)+VLOOKUP($B10,'2003 Beebe Pond Acrtns'!$B$7:$BI$1206,41)+VLOOKUP($B10,'2003 Canal Acrtns'!$B$7:$AL$1206,22))/$RV10/1.9835+0.69 -> 1.045084924 | KE10: 0 | KF10: 0 | KG10: 0 | KH10: 1.045084924 | KI10: =MIN($KG10,-($KA10+$KH10)) -> 0 | KJ10: yes | KK10: 0 | KL10: 0 | KM10: 0 | KN10: 0 | KO10: =IF(AND(KJ10="No",$BV10="No"),IF($KK10>0,0,MIN(-(KA10+KH10+KI10+KM10),$CG10-KN10)),0) -> 0 | KP10: =IF($KJ10="No",IF($KK10>0,0,MIN(-(KB10+KL10+KN10),GJ10)),0) -> 0 | KQ10: =IF($KJ10="No",IF($KK10>0,0,MIN(-(KA10+KH10+KI10+KM10+KO10),GJ10-KP10)),0) -> 0 | KR10: =KA10+KH10+KI10+KM10+KO10+KQ10 -> -2.330370457 | KS10: =KB10+KL10+KN10+KP10 -> -0.02367044831 | KT10: 2 | KU10: =-(KT10*0.5/100*'Distances for Transit Losses'!$C$6) -> -0.027 | KV10: 0 | KW10: 0 | KX10: 0 | KY10: =IF(AND(E10<>"Lower Latham",I10<>"Lower Latham"),MIN(-(KS10+KV10),HU10-HU10*0.5/100*'Distances for Transit Losses'!$C$83),0) -> 0 | KZ10: =IF(AND(E10<>"Lower Latham",I10<>"Lower Latham"),MAX(0,MIN(-(KR10+KT10+KU10+KX10),HU10-HU10*0.5/100*'Distances for Transit Losses'!$C$83-KY10/(1-0.5/100*'Distances for Transit Losses'!$C$83))),0) -> 0 | LA10: =MIN(-(KS10+KY10),HS10-HS10*0.5/100*'Distances for Transit Losses'!$C$79) -> 0 | LB10: =MAX(0,MIN(-(KR10+KT10+KU10+KZ10),HS10-HS10*0.5/100*'Distances for Transit Losses'!$C$79-LA10/(1-0.5/100*'Distances for Transit Losses'!$C$79))) -> 0 | LC10: =IF(FK10="no",MIN(-(MIN(0,KR10+KS10+KT10+KU10+KZ10+LB10))+FX10/(1-0.5/100*'Distances for Transit Losses'!$C$44)+LT10/(1-0.5/100*'Distances for Transit Losses'!$C$36),(GU10-GV10)-(GU10-GV10)*0.5/100*'Distances for Transit Losses'!$C$79),0) -> 0.4900909865 | LD10: =MAX(0,IF(AND(HL10-HM10-JH10-FV10>0,FK10="no"),MIN(-(KR10+KT10+KU10+KX10+KZ10+LB10+LC10)/(1-0.5/100*'Distances for Transit Losses'!$C$89),HL10-HM10-JH10-FV10),0)) -> 0 | LE10: =-LD10*0.5/100*'Distances for Transit Losses'!$C$89 -> 0 | LH10: =SUM(KA10:KC10)+KH10+KI10+SUM(KL10:KQ10)+SUM(KT10:LF10)-(FX10/(1-0.5/100*'Distances for Transit Losses'!$C$44)+LT10/(1-0.5/100*'Distances for Transit Losses'!$C$36)) -> 3.053113318e-16 | LI10: 0 | LJ10: 0 | LK10: 0.02808563779 | LL10: 1.315767551 | LM10: =-(IF(N10<99999.99999,INDEX('Hist RF blw Milton'!$B$6:$M$30,MATCH($B$2,'Hist RF blw Milton'!$A$6:$A$30,0),MATCH($A10,'Hist RF blw Milton'!$B$5:$M$5,0))/RV10/1.9835,0)) -> -0.02924706861 | LN10: yes | LO10: 0 | LP10: 0 | LQ10: -0.02924706861 | LR10: =MAX(0,-(LQ10+LT10)) -> 0 | LS10: 0 | LT10: =-LM10 -> 0.02924706861 | LU10: Haren Recharge | LV10: 0.02808563779 | LW10: 1.315767551 | LX10: =-(IF(N10<99999.99999,INDEX('Hist RF to Box Elder'!$B$6:$M$30,MATCH($B$2,'Hist RF to Box Elder'!$A$6:$A$30,0),MATCH($A10,'Hist RF to Box Elder'!$B$5:$M$5,0))/RV10/1.9835,0)) -> -0.01307806535 | LY10: =(VLOOKUP($B10,'ECCV Beebe Pond Acrtns'!$B$7:$BI$1206,54)+VLOOKUP($B10,'ECCV Canal Acrtns'!$B$7:$AL$1206,34)+VLOOKUP($B10,'2003 Beebe Pond Acrtns'!$B$7:$BI$1206,54)+VLOOKUP($B10,'2003 Canal Acrtns'!$B$7:$AL$1206,34)+VLOOKUP($B10,'84CW090 Beebe Pond Acrtns'!$B$7:$BI$1206,55)+VLOOKUP($B10,'84CW090 Canal Acrtns'!$B$7:$AL$1206,34))/$RV10/1.9835 -> 0.1102842448 | LZ10: 0.01307806535 | MA10: 0 | MB10: 0 | MC10: 0 | ME10: =AN10+AR10+AT10+AV10+AX10+AZ10+CJ10+CQ10+DT10+ED10+EE10+ES10+FJ10+KA10+KB10+KC10+GP10+IV10+LM10+LX10 -> -3.923375923 | MF10: =KH10+KI10+SUM(KL10:KQ10)+SUM(KT10:LF10) -> 3.508175911 | MG10: =LO10+LP10+LR10+LS10+LT10 -> 0.02924706861 | MH10: =LZ10+MA10+MB10+MC10 -> 0.01307806535 | MI10: =IY10+JA10+JB10+JC10+JF10+JG10+JH10+JK10+JL10+JM10 -> 0.02147266205 | MJ10: =GQ10+GR10+GS10+GT10+GV10+HE10+HF10+HH10+HI10+HJ10+HK10+SUM(HM10:HO10) -> 0.004195685049 | MK10: =SUM(FP10:FX10)+GB10+GC10+SUM(GE10:GH10) -> 0.0726744269 | ML10: =DW10+EG10+SUM(EH10:EN10)+SUM(EW10:FB10) -> 0 | MM10: =CK10+CL10+CU10+DB10+DE10+SUM(DI10:DR10) -> 0.2220081766 | MN10: =AO10+AP10+BF10+BG10+BH10+SUM(BJ10:BR10) -> 0.1519313349 | MO10: 4.02278333 | MP10: 0.0994074068 | MQ10: =LI10 -> 0 | MR10: =JR10-JS10 -> 0 | MS10: 0 | MU10: 0 | MV10: 0 | MW10: 0 | MX10: 0 | MY10: 0 | MZ10: 0 | NA10: 0 | NB10: 0 | ND10: 0 | NE10: 0 | NF10: 0 | NG10: 0 | NH10: 0 | NI10: 0 | NJ10: 0 | NK10: 0 | NL10: 0 | NM10: 0 | NN10: 0 | NO10: 0 | NQ10: 0 | NR10: 0 | NS10: 0 | NT10: 0 | NU10: 0 | NV10: 0 | NW10: 0 | NX10: 0 | NY10: 0 | NZ10: 0 | OA10: 0 | OC10: 0 | OD10: 0 | OE10: 0 | OF10: 0 | OG10: 0 | OH10: 0 | OI10: 0 | OJ10: 0 | OK10: 0 | OL10: 0 | OM10: 0 | OO10: 0 | OP10: 0 | OQ10: 0 | OR10: 0 | OS10: 0 | OT10: 0 | OU10: 0 | OV10: 0 | OW10: 0 | OX10: 0 | OY10: 0 | OZ10: 0 | PA10: 0 | PC10: 0 | PD10: 0 | PE10: 0 | PF10: 0 | PG10: 0 | PH10: 0 | PI10: 0 | PJ10: 0 | PK10: 0 | PM10: 0 | PN10: 0 | PO10: 0 | PP10: 0 | PQ10: 0 | PR10: 0 | PS10: 0 | PT10: 0 | PV10: 0 | PW10: 0 | PX10: 0 | PZ10: 0 | QA10: 0 | QB10: 0 | QC10: 0 | QF10: 0 | QG10: 0 | QH10: 0 | QI10: 0 | QJ10: =SUM(QF10:QI10) -> 0 | QK10: 0 | QL10: 0 | QN10: 0 | QO10: 0 | QP10: 0 | QQ10: =NA10+SUM(OD10:OJ10)+SUM(NR10:NX10)+SUM(NE10:NL10)+SUM(OS10:OX10)+SUM(PD10:PH10)+SUM(PN10:PQ10)+SUM(QF10:QI10) -> 0 | QR10: =IF(QQ10*1.9835>8706,"Exceeded Annual Maximum",QQ10*1.9835) -> 0 | QS10: 309.6 | QU10: 0 | QV10: 0 | QW10: 0 | QX10: 0 | QY10: 0 | QZ10: 0 | RA10: 0 | RB10: 0 | RC10: 0 | RD10: 0 | RE10: 0 | RF10: 0 | RG10: 0 | RH10: 0 | RI10: 0 | RJ10: 0 | RK10: 0 | RL10: 0 | RM10: 0 | RN10: 0 | RO10: =QU10-SUM(QV10:RN10) -> 0 | RP10: =ABS((JI10+JJ10)-JK10-HJ10-FT10-DO10)<0.1 -> TRUE | RQ10: =ABS((HU10+HW10+IX10)-(HX10+HZ10+II10+IJ10+IO10+IY10+JU10))<0.1 -> TRUE | RS10: 2 | RT10: 0 | RV10: =VLOOKUP(A10,'Control Sheet'!$G$9:$H$20,2) -> 30
A11: Apr | B11: 2017-04-03 | C11: Burlington | D11: 1910-11-21 | E11: Burlington | F11: 22239 | K11: Riverside | L11: 1988-12-31 | M11: Riverside | N11: 50769.49378 | O11: Prewitt Reservoir | P11: 2002-12-31 | Q11: Prewitt Reservoir | R11: 55882 | S11: 0 | T11: 0 | U11: 0 | V11: 0 | W11: 0 | X11: 0 | Y11: =('NFC Well Pumping'!$L9+'NFC Well Pumping'!$L46+'NFC Well Pumping'!$L82)/1.9835 -> 0 | Z11: ='88CW264(B) Pumping'!$E9/1.9835+'88CW264(B) Pumping'!$E45/1.9835+'88CW264(B) Pumping'!E85/1.9835+'88CW264(B) Pumping'!E121/1.9835+'88CW264(B) Pumping'!E161/1.9835+'88CW264(B) Pumping'!E197/1.9835 -> 0.00925230458 | AA11: =$MR11+$MS11 -> 0 | AB11: =('United No. 2 Well Pumping'!G10+'United No. 2 Well Pumping'!G46+'United No. 2 Well Pumping'!G82)/1.9835 -> 0 | AC11: =('United No. 2 Well Pumping'!F10+'United No. 2 Well Pumping'!F46+'United No. 2 Well Pumping'!F82)/1.9835 -> 0 | AD11: 0 | AF11: 0.00925230458 | AG11: =U11+AC11+'United Res'!AA173+'United Res'!AQ173+'Milliken Res'!I161 -> 0 | AH11: 100 | AI11: =-(IF($N11=99999.99999,0,VLOOKUP($B11,'NFC Well Dplns-URF'!B$7:$AB$306,27))/$RV11/1.9835) -> -0.004064876498 | AJ11: 0 | AL11: =(VLOOKUP($B11,'ECCV 70R Pond Acrtns'!$B$7:$AI$1206,34)+VLOOKUP($B11,'2003 70R Pond Acrtns'!$B$7:$AI$1206,34)+VLOOKUP($B11,'ECCV 70R Canal Acrtns'!$B$7:$AI$1206,27)+VLOOKUP($B11,'2003 70R Canal Acrtns'!$B$7:$AI$1206,27))/$RV11/1.9835 -> 0 | AM11: -0.004064876498 | AN11: =-(IF($N11=99999.99999,0,VLOOKUP($B11,'NFC Well Dplns-SDF'!$B$7:$Z$306,25)+VLOOKUP($B11,'NFC Well Dplns-URF'!B$7:$AB$306,20))/$RV11/1.9835) -> -0.07514542012 | AO11: 0.02854171031 | AP11: 0.04660370981 | AQ11: ECCV Riverside Credits | AR11: =IF(N11<99999.99999,-((BD11+BE11)*'Weldon Credit'!$BB$36),0) -> 0 | AS11: =-((BD11+BE11)*'Weldon Credit'!$BB$34) -> 0 | AT11: =IF(N11<99999.99999,-INDEX('Weldon Credit'!$AX$249:$BJ$276,MATCH($B$2,'Weldon Credit'!$AX$249:$AX$276,0),MATCH(A11,'Weldon Credit'!$AX$249:$BJ$249,0))/RV11/1.9835,0) -> -0.007144773798 | AU11: -0.007144773798 | AV11: =IF(N11<99999.99999,-((BD11+BE11)*'Weldon Credit'!$BB$37),0) -> 0 | AW11: =-((BD11+BE11)*'Weldon Credit'!$BB$35) -> 0 | AX11: =IF(N11<99999.99999,-INDEX('Weldon Credit'!$AX$281:$BJ$308,MATCH($B$2,'Weldon Credit'!$AX$281:$AX$308,0),MATCH(A11,'Weldon Credit'!$AX$281:$BJ$281,0))/RV11/1.9835,0) -> -0.07879357513 | AY11: -0.07879357513 | AZ11: =-(BD11+BE11)*'Weldon Credit'!$BB$38 -> 0 | BA11: =0.4*(INDEX('Riverside Pond Accrtns'!$B$6:$M$36,MATCH($B$2,'Riverside Pond Accrtns'!$A$6:$A$36,0),MATCH('ECCV Daily Replacement Summary'!A11,'Riverside Pond Accrtns'!$B$5:$M$5,0))/RV11)/1.9835 -> 1.310814217 | BB11: =(44/640)*(INDEX('Weldon Valley Accrtns (02CW377)'!$B$6:$M$30,MATCH($B$2,'Weldon Valley Accrtns (02CW377)'!$A$6:$A$30,0),MATCH(A11,'Weldon Valley Accrtns (02CW377)'!$B$5:$M$5,0))/RV11)/1.9835 -> 0.2610339467 | BC11: =(VLOOKUP($B11,'ECCV 70R Pond Acrtns'!$B$7:$AI$1206,25)+VLOOKUP($B11,'ECCV 70R Canal Acrtns'!$B$7:$AI$1206,20)+VLOOKUP($B11,'2003 70R Pond Acrtns'!$B$7:$AI$1206,25)+VLOOKUP($B11,'2003 70R Canal Acrtns'!$B$7:$AI$1206,20))/$RV11/1.9835 -> 0 | BD11: ='Joint Aug Station Deliveries'!G11 -> 0 | BE11: ='Joint Aug Station Deliveries'!H11 -> 0 | BF11: 0 | BG11: 0 | BH11: =IF(BT11="no",-MAX(0,MIN(BG11,(BE11-BD11))*(0.5/100*'Distances for Transit Losses'!$C$75)),0) -> 0 | BI11: 0 | BJ11: =MIN(-($AU11+AY11+AZ11+BF11+BG11+BH11),BA11-BA11*0.5/100*'Distances for Transit Losses'!$C$77) -> 0.08593834893 | BK11: 0 | BL11: =MIN(-($AU11+AY11+AZ11+BF11+BG11+BH11+BJ11+BK11),BC11-BC11*0.5/100*'Distances for Transit Losses'!$C$77) -> 0 | BM11: =-((BJ11+BL11)*(0.5/100*'Distances for Transit Losses'!$C$77)) -> -0.009152434161 | BN11: =IF(AND(JE11-JF11-FR11-DM11>0,IZ11="no"),MIN(-(AU11+AY11+AZ11+BF11+BG11+BH11+BJ11+BK11+BL11+BM11)/(1-0.5/100*'Distances for Transit Losses'!$C$99),JE11-JF11-FR11-DM11),0) -> 0 | BO11: =--BN11*0.5/100*'Distances for Transit Losses'!C$99 -> 0 | BP11: =IF(AND(HL11-HM11-JH11-FV11-LD11-DQ11>0,FK11="no"),MIN(-(AU11+AY11+AZ11+BF11+BG11+BH11+BJ11+BK11+BL11+BM11+BN11+BO11)/(1-0.5/100*'Distances for Transit Losses'!$C$101),HL11-HM11-JH11-FV11-LD11-DQ11),0) -> 0 | BQ11: =--BP11*0.5/100*'Distances for Transit Losses'!$C$101 -> 0 | BR11: 0 | BT11: no | BU11: no | BV11: no | BW11: 0 | BX11: 0 | BY11: 0 | CA11: =IF($BV11="No",MIN(-DH11,BA11-BJ11/(1-0.5/100*'Distances for Transit Losses'!$C$77)),0) -> 0 | CB11: =IF($BV11="No",MIN(-DH11+CA11,BC11-BL11/(1-0.5/100*'Distances for Transit Losses'!$C$77)),0) -> 0 | CC11: 0 | CD11: 0 | CE11: 0 | CF11: 1.439306105 | CG11: 1.315767551 | CH11: =-(IF($N11=99999.99999,0,VLOOKUP($B11,'NFC Well Dplns-SDF'!$B$7:$Z$306,16)+VLOOKUP($B11,'NFC Well Dplns-URF'!$B$7:$AB$306,13))/$RV11/1.9835) -> -0.2127558721 | CI11: =-(IF($N11>=99999,0,'88CW264(B) Pumping'!$E9/1.9835)+IF($N11>=99999,0,'88CW264(B) Pumping'!$E45/1.9835)+IF($N11>=99999,0,'88CW264(B) Pumping'!$E85/1.9835)+IF($N11>=99999,0,'88CW264(B) Pumping'!$E121/1.9835)+IF($N11>=51134.50919,0,'88CW264(B) Pumping'!$E161/1.9835)+IF($N11>=53406,0,'88CW264(B) Pumping'!$E197/1.9835)) -> -0.00925230458 | CJ11: -0.2220081766 | CK11: 0.1450733326 | CL11: 0.07693484407 | CM11: ECCV Riverside | CN11: =-(IF($N11=99999.99999,0,VLOOKUP($B11,'United No. 2 Dplns'!$B$7:$X$676,13)/1.9835)) -> 0 | CO11: =CN11+(-(INDEX('Pre 1995 Net Accretions'!$B$6:$M$105,MATCH($B$2,'Pre 1995 Net Accretions'!$A$6:$A$105,0),MATCH($A11,'Pre 1995 Net Accretions'!$B$5:$M$5,0))/$RV11/1.9835)) -> 0.02808563779 | CP11: =-(IF(N11<99999.99999,(INDEX('70 Ranch RF Obligation'!$B$6:$M$36,MATCH($B$2,'70 Ranch RF Obligation'!$A$6:$A$36,0),MATCH('ECCV Daily Replacement Summary'!A11,'70 Ranch RF Obligation'!$B$5:$M$5,0))/RV11)/1.9835,0))-CS11*(1-'L. Latham Credit'!$E$41) -> 0 | CQ11: 0 | CR11: =(VLOOKUP($B11,'ECCV 70R Pond Acrtns'!$B$7:$AI$1206,16)+VLOOKUP($B11,'ECCV 70R Canal Acrtns'!$B$7:$AI$1206,13)+VLOOKUP($B11,'2003 70R Pond Acrtns'!$B$7:$AI$1206,16)+VLOOKUP($B11,'2003 70R Canal Acrtns'!$B$7:$AI$1206,13))/$RV11/1.9835 -> 0 | CS11: ='Joint Aug Station Deliveries'!BN11 -> 0 | CT11: 0 | CU11: 0 | CV11: ='Joint Aug Station Deliveries'!BQ11 -> 0 | CW11: 0 | CX11: 0 | DA11: 0.02808563779 | DB11: 0 | DC11: 0 | DD11: =-DC11*0.5/100*'Distances for Transit Losses'!$C$48 -> 0 | DE11: 0 | DF11: 0 | DG11: 0 | DH11: =CJ11+CK11+CL11+CQ11+CU11+DB11+DE11 -> 0 | DI11: 0 | DJ11: 0 | DK11: 0 | DL11: =('NFC Well Pumping'!I9+'NFC Well Pumping'!I46+'NFC Well Pumping'!I82)/1.9835 -> 0 | DM11: =IF(AND(JE11-JF11-FR11>0,IZ11="no"),MIN(-SUM(DH11:DL11)/(1-0.5/100*'Distances for Transit Losses'!$C$103),JE11-JF11-FR11),0) -> 0 | DN11: =-DM11*0.5/100*'Distances for Transit Losses'!C$103 -> 0 | DO11: 0 | DP11: =--DO11*0.5/100*'Distances for Transit Losses'!$C$127 -> 0 | DQ11: =IF(AND(HL11-HM11-JH11-FV11-LD11>0,FK11="no"),MIN(-SUM(DH11:DP11)/(1-0.5/100*'Distances for Transit Losses'!$C$105),HL11-HM11-JH11-FV11-LD11),0) -> 0 | DR11: =--DQ11*0.5/100*'Distances for Transit Losses'!$C$105 -> 0 | DS11: 0.02808563779 | DT11: 0 | DU11: ='Joint Aug Station Deliveries'!O11 -> 0 | DV11: =-(DU11*0.5/100*'Distances for Transit Losses'!$C$212) -> 0 | DW11: 0 | DY11: no | EA11: 0 | EB11: 0 | EC11: =-(EB11*0.5/100*'Distances for Transit Losses'!$C$214) -> 0 | ED11: 0 | EE11: =-0.25*(INDEX('GIC Credit'!$B$85:$M$116,MATCH($B$2,'GIC Credit'!$A$85:$A$116,0),MATCH($A11,'GIC Credit'!$B$85:$M$85,0))/$RV11/1.9835+FE11*'GIC Credit'!$Z$39+FF11*'GIC Credit'!$AO$39) -> -0.0001915 | EF11: -0.0001915 | EG11: 0 | EH11: ='Joint Aug Station Deliveries'!BF11 -> 0 | EI11: =-(EH11*0.5/100*'Distances for Transit Losses'!$C$240) -> 0 | EJ11: ='Joint Aug Station Deliveries'!BG11 -> 0 | EK11: =-(EJ11*0.5/100*'Distances for Transit Losses'!$C$242) -> 0 | EL11: 0 | EM11: =-(EL11*0.5/100*'Distances for Transit Losses'!$C$234) -> 0 | EN11: 0 | EP11: no | EQ11: -0.0001915 | ER11: =-(IF($N11<99999.99999,(INDEX('New Cache Credit'!$W$82:$AH$113,MATCH($B$2,'New Cache Credit'!$V$82:$V$113,0),MATCH($A11,'New Cache Credit'!$W$82:$AH$82,0))/$RV11)/1.9835,0))-DT11-ED11 -> -0.07163859239 | ES11: =-0.39*(INDEX('GIC Credit'!$B$85:$M$116,MATCH($B$2,'GIC Credit'!$A$85:$A$116,0),MATCH($A11,'GIC Credit'!$B$85:$M$85,0))/$RV11/1.9835+FE11*'GIC Credit'!$Z$39+FF11*'GIC Credit'!$AO$39) -> -0.00029874 | ET11: 0 | EU11: =-(ET11*0.5/100*('Distances for Transit Losses'!$C$216+'Distances for Transit Losses'!$C$222)) -> 0 | EW11: =IF(EV11="yes",'Joint Aug Station Deliveries'!V11,0) -> 0 | EX11: =-(EW11*0.5/100*('Distances for Transit Losses'!$C$218+'Distances for Transit Losses'!$C$220+'Distances for Transit Losses'!$C$222)) -> 0 | EY11: =IF(EV11="Yes",'Joint Aug Station Deliveries'!Y11,0) -> 0 | EZ11: =-(EY11*0.5/100*('Distances for Transit Losses'!$C$220+'Distances for Transit Losses'!$C$222)) -> 0 | FA11: ='Joint Aug Station Deliveries'!BH11 -> 0 | FB11: =-(FA11*0.5/100*'Distances for Transit Losses'!$C$226) -> 0 | FC11: -0.07212883239 | FD11: 0 | FE11: ='Joint Aug Station Deliveries'!BJ11 -> 0 | FF11: ='Joint Aug Station Deliveries'!BK11 -> 0 | FG11: =-(IF(N11<99999.99999,INDEX('Hist RF to SPR'!$AF$6:$AQ$30,MATCH($B$2,'Hist RF to SPR'!$AE$6:$AE$30,0),MATCH($A11,'Hist RF to SPR'!$AF$5:$AQ$5,0))/RV11/1.9835,0)) -> -0.0002698345146 | FH11: =-0.36*(INDEX('GIC Credit'!$B$85:$M$116,MATCH($B$2,'GIC Credit'!$A$85:$A$116,0),MATCH($A11,'GIC Credit'!$B$85:$M$85,0))/$RV11/1.9835+FE11*'GIC Credit'!$Z$39+FF11*'GIC Credit'!$AO$39) -> -0.00027576 | FI11: -0.07212883239 | FJ11: -0.0726744269 | FK11: no | FL11: 0 | FM11: 0 | FN11: 0 | FP11: 0 | FQ11: 0 | FR11: =IF(AND(JE11-JF11-HH11>0,IZ11="no"),MIN(-(FJ11+FP11+FQ11)/(1-0.5/100*'Distances for Transit Losses'!$C$107),JE11-JF11-HH11),0) -> 0 | FS11: =-FR11*0.5/100*'Distances for Transit Losses'!$C$107 -> 0 | FT11: 0 | FU11: =-FT11*0.5/100*'Distances for Transit Losses'!$C$125 -> 0 | FV11: =IF(AND(HL11-HM11-JH11>0,GX11="no"),MIN(-(FJ11+FP11+FQ11+FR11+FS11+FT11+FU11)/(1-0.5/100*'Distances for Transit Losses'!$C$109),HL11-HM11-JH11),0) -> 0 | FW11: =-FV11*0.5/100*'Distances for Transit Losses'!$C$115 -> 0 | FX11: 0.0726744269 | FY11: Haren Recharge | FZ11: 0 | GB11: =IF(AND(GA10="no",(SUM('Joint Aug Station Deliveries'!$AF$9:'Joint Aug Station Deliveries'!$AF10)+'Joint Aug Station Deliveries'!$AF11)*1.9835>'New Cache Credit'!$BY$39,(SUM('Joint Aug Station Deliveries'!$AF$9:'Joint Aug Station Deliveries'!$AF10)+'Joint Aug Station Deliveries'!$AF11)*1.9835>'New Cache Credit'!$CH$39),0,'Joint Aug Station Deliveries'!X11) -> 0 | GC11: =-(GB11*0.5/100*'Distances for Transit Losses'!$C$208) -> 0 | GE11: =IF(AND(GD10="no",(SUM('Joint Aug Station Deliveries'!$AF$9:'Joint Aug Station Deliveries'!$AF10)+'Joint Aug Station Deliveries'!$AF11)*1.9835>'New Cache Credit'!$BY$39,(SUM('Joint Aug Station Deliveries'!$AF$9:'Joint Aug Station Deliveries'!$AF10)+'Joint Aug Station Deliveries'!$AF11)*1.9835>'New Cache Credit'!$CH$39),0,'Joint Aug Station Deliveries'!AA11) -> 0 | GF11: =-(GE11*0.5/100*'Distances for Transit Losses'!$C$200) -> 0 | GG11: =IF(AND(GD10="no",(SUM('Joint Aug Station Deliveries'!$AF$9:'Joint Aug Station Deliveries'!$AF10)+'Joint Aug Station Deliveries'!$AF11)*1.9835>'New Cache Credit'!$BY$39,(SUM('Joint Aug Station Deliveries'!$AF$9:'Joint Aug Station Deliveries'!$AF10)+'Joint Aug Station Deliveries'!$AF11)*1.9835>'New Cache Credit'!$CH$39),0,'Joint Aug Station Deliveries'!AD11) -> 0 | GH11: =-(GG11*0.5/100*'Distances for Transit Losses'!$C$206) -> 0 | GI11: 0 | GJ11: 0 | GK11: 0.02808563779 | GL11: 1.315767551 | GM11: =-(IF(N11<99999.99999,INDEX('Hist RF to SPR'!$Q$6:$AB$30,MATCH($B$2,'Hist RF to SPR'!$P$6:$P$30,0),MATCH($A11,'Hist RF to SPR'!$Q$5:$AB$5,0))/RV11/1.9835,0)) -> -0.002436185049 | GN11: =-(IF(OR($N11<99999.99999,E11="Lower Latham",I11="Lower Latham",E11="Highland",I11="Highland",E11="Plum",I11="Plum"),(INDEX('FIDCO Credit'!$Y$48:$AJ$78,MATCH($B$2,'FIDCO Credit'!$X$48:$X$78,0),MATCH($A11,'FIDCO Credit'!$Y$47:$AJ$47,0))/$RV11)/1.9835,0)) -> -0.0017595 | GO11: =-(IF(OR($N11<99999.99999,E11="Lower Latham",I11="Lower Latham",E11="Highland",I11="Highland",E11="Plum",I11="Plum"),(INDEX('Western Credit'!$W$84:$AH$114,MATCH($B$2,'Western Credit'!$V$84:$V$114,0),MATCH($A11,'Western Credit'!$W$83:$AH$83,0))/$RV11)/1.9835+'Haren Daily Recharge'!K10*'Western Credit'!$Z$40,0)) -> 0 | GP11: -0.004195685049 | GQ11: 0 | GR11: 0 | GS11: =IF(AND(GY11="no",GZ11="no"),MIN(-(GN11-GQ11-GR11)/(1-0.5/100*'Distances for Transit Losses'!$C$95),IW11),0) -> 0 | GT11: =-GS11*0.5/100*'Distances for Transit Losses'!$C$95 -> 0 | GU11: =VLOOKUP($B11,'ECCV Haren Pond S.P. Acrtns'!$B$7:$G$306,6)/$RV11/1.9835-0.1 -> 1.384290832 | GV11: 0.004195685049 | GW11: 0.4900909865 | GX11: yes | GY11: no | GZ11: no | HA11: 0 | HB11: 0 | HC11: 0 | HE11: 0 | HF11: 0 | HG11: 0 | HH11: =IF(AND(JE11-JF11>0,IZ11="no"),MIN(-HG11/(1-0.5/100*'Distances for Transit Losses'!$C$111),JE11-JF11),0) -> 0 | HI11: =-HH11*0.5/100*'Distances for Transit Losses'!$C$111 -> 0 | HJ11: =IF(AND(JI11+JJ11-JK11-JV11>0,IZ11="no"),MIN((-HG11-(HH11+HI11))/(1-0.5/100*'Distances for Transit Losses'!$C$113),JI11+JJ11-JK11-JV11),0) -> 0 | HK11: =-HJ11*0.5/100*'Distances for Transit Losses'!$C$113 -> 0 | HL11: 0 | HM11: =IF(HL11>0,MIN(-(HG11+HH11+HI11+HJ11+HK11)/(1-0.5/100*'Distances for Transit Losses'!$C$115),HL11),0) -> 0 | HN11: =-HM11*0.5/100*'Distances for Transit Losses'!$C$115 -> 0 | HO11: 0 | HQ11: 0 | HR11: ='Joint Aug Station Deliveries'!AS11 -> 0 | HS11: =HR11*'Western Credit'!$Z$42 -> 0 | HT11: ='Joint Aug Station Deliveries'!AJ11 -> 0 | HU11: =IF(AND(HT11>0,SUM($HT$9:HT11,$HV$9:HV11,$IW$9:IW11)*1.9835<OFFSET('FIDCO Credit'!$X$39,0,MATCH($A11,'FIDCO Credit'!$Y$5:$AJ$5,0))),HT11-GQ11,0) -> 0 | HV11: ='Joint Aug Station Deliveries'!AM11 -> 0 | HW11: =IF(AND(HV11>0,SUM($HT$9:HT11,$HV$9:HV11,$IW$9:IW11)*1.9835<OFFSET('FIDCO Credit'!$X$39,0,MATCH($A11,'FIDCO Credit'!$Y$5:$AJ$5,0))),HV11-GR11,0) -> 0 | HX11: =MAX(0,(KY11+KZ11))/(1-0.5/100*'Distances for Transit Losses'!$C$83) -> 0 | HY11: =MAX(0,(LA11+LB11)/(1-0.5/100*'Distances for Transit Losses'!$C$79)) -> 0 | HZ11: 0 | IA11: =-HZ11*0.5/100*'Distances for Transit Losses'!$C$85 -> 0 | IB11: 0 | IC11: 0 | ID11: =-IC11*0.5/100*'Distances for Transit Losses'!$C$34 -> 0 | IE11: 0 | IF11: 0 | IG11: 0 | IH11: 0 | II11: 0 | IJ11: 0 | IK11: 0 | IL11: 0 | IM11: 0 | IN11: 0 | IO11: 0 | IP11: 0 | IQ11: =-IP11*0.5/100*'Distances for Transit Losses'!$C$123 -> 0 | IR11: 0 | IS11: 0.8900041608 | IT11: 0.02808563779 | IU11: 1.315767551 | IV11: =-(IF(F11<99999.99999,INDEX('Hist RF to SPR'!$B$6:$M$30,MATCH($B$2,'Hist RF to SPR'!$A$6:$A$30,0),MATCH($A11,'Hist RF to SPR'!$B$5:$M$5,0))/RV11/1.9835,0)) -> -0.02147266205 | IW11: ='Joint Aug Station Deliveries'!AP11 -> 0 | IX11: =IF(AND(IW11>0,SUM($HT$9:HT11,$HV$9:HV11,$IW$9:IW11)*1.9835<OFFSET('FIDCO Credit'!$X$39,0,MATCH($A11,'FIDCO Credit'!$Y$5:$AJ$5,0))),IW11-GS11,0) -> 0 | IY11: 0 | IZ11: yes | JA11: 0 | JB11: 0 | JC11: 0.02147266205 | JD11: 0 | JE11: 0 | JF11: =IF(JE11>0,MIN(-JD11/(1-0.5/100*'Distances for Transit Losses'!$C$117),JE11),0) -> 0 | JG11: =-JF11*0.5/100*'Distances for Transit Losses'!$C$117 -> 0 | JH11: 0 | JI11: 0 | JJ11: =-JI11*0.5/100*'Distances for Transit Losses'!$C$70 -> 0 | JK11: =IF((JI11+JJ11)>0,MIN((-JD11-(JF11-JG11)-JH11)/(1-0.5/100*'Distances for Transit Losses'!$C$119),(JI11+JJ11)),0) -> 0 | JL11: =-JK11*0.5/100*'Distances for Transit Losses'!$C$119 -> 0 | JM11: 0 | JO11: 0 | JP11: 0 | JQ11: 0 | JR11: 0 | JS11: 0 | JT11: 0 | JU11: 0 | JV11: 0 | JW11: =-JV11*0.5/100*'Distances for Transit Losses'!$C$121 -> 0 | JX11: =JQ11+JS11+JT11+JU11+JV11+JW11 -> 0 | JY11: 0.02808563779 | JZ11: 1.315767551 | KA11: =-(IF(N11<99999.99999,(VLOOKUP(B11,'ECCV Upper Dpln'!$B$7:$BD$306,55))/RV11/1.9835,0)) -> -3.375455381 | KB11: =-(IF(N11<99999.99999,INDEX('Hist RF abv Milton'!$B$6:$M$30,MATCH($B$2,'Hist RF abv Milton'!$A$6:$A$30,0),MATCH($A11,'Hist RF abv Milton'!$B$5:$M$5,0))/RV11/1.9835,0)) -> -0.02367044831 | KC11: 0 | KD11: =(VLOOKUP($B11,'ECCV Beebe Pond Acrtns'!$B$7:$BI$1206,41)+VLOOKUP($B11,'ECCV Canal Acrtns'!$B$7:$AL$1206,22)+VLOOKUP($B11,'2003 Beebe Pond Acrtns'!$B$7:$BI$1206,41)+VLOOKUP($B11,'2003 Canal Acrtns'!$B$7:$AL$1206,22))/$RV11/1.9835+0.69 -> 1.045084924 | KE11: 0 | KF11: 0 | KG11: 0 | KH11: 1.045084924 | KI11: 0 | KJ11: yes | KK11: 0 | KL11: 0 | KM11: 0 | KN11: 0 | KO11: 0 | KP11: 0 | KQ11: 0 | KR11: -2.330370457 | KS11: -0.02367044831 | KT11: 2 | KU11: =-(KT11*0.5/100*'Distances for Transit Losses'!$C$6) -> -0.027 | KV11: 0 | KW11: 0 | KX11: 0 | KY11: =IF(AND(E11<>"Lower Latham",I11<>"Lower Latham"),MIN(-(KS11+KV11),HU11-HU11*0.5/100*'Distances for Transit Losses'!$C$83),0) -> 0 | KZ11: =IF(AND(E11<>"Lower Latham",I11<>"Lower Latham"),MAX(0,MIN(-(KR11+KT11+KU11+KX11),HU11-HU11*0.5/100*'Distances for Transit Losses'!$C$83-KY11/(1-0.5/100*'Distances for Transit Losses'!$C$83))),0) -> 0 | LA11: =MIN(-(KS11+KY11),HS11-HS11*0.5/100*'Distances for Transit Losses'!$C$79) -> 0 | LB11: =MAX(0,MIN(-(KR11+KT11+KU11+KZ11),HS11-HS11*0.5/100*'Distances for Transit Losses'!$C$79-LA11/(1-0.5/100*'Distances for Transit Losses'!$C$79))) -> 0 | LC11: =IF(FK11="no",MIN(-(MIN(0,KR11+KS11+KT11+KU11+KZ11+LB11))+FX11/(1-0.5/100*'Distances for Transit Losses'!$C$44)+LT11/(1-0.5/100*'Distances for Transit Losses'!$C$36),(GU11-GV11)-(GU11-GV11)*0.5/100*'Distances for Transit Losses'!$C$79),0) -> 0.4900909865 | LD11: =MAX(0,IF(AND(HL11-HM11-JH11-FV11>0,FK11="no"),MIN(-(KR11+KT11+KU11+KX11+KZ11+LB11+LC11)/(1-0.5/100*'Distances for Transit Losses'!$C$89),HL11-HM11-JH11-FV11),0)) -> 0 | LE11: =-LD11*0.5/100*'Distances for Transit Losses'!$C$89 -> 0 | LH11: =SUM(KA11:KC11)+KH11+KI11+SUM(KL11:KQ11)+SUM(KT11:LF11)-(FX11/(1-0.5/100*'Distances for Transit Losses'!$C$44)+LT11/(1-0.5/100*'Distances for Transit Losses'!$C$36)) -> 3.053113318e-16 | LI11: 0 | LJ11: 0 | LK11: 0.02808563779 | LL11: 1.315767551 | LM11: =-(IF(N11<99999.99999,INDEX('Hist RF blw Milton'!$B$6:$M$30,MATCH($B$2,'Hist RF blw Milton'!$A$6:$A$30,0),MATCH($A11,'Hist RF blw Milton'!$B$5:$M$5,0))/RV11/1.9835,0)) -> -0.02924706861 | LN11: yes | LO11: 0 | LP11: 0 | LQ11: -0.02924706861 | LR11: 0 | LS11: 0 | LT11: 0.02924706861 | LU11: Haren Recharge | LV11: 0.02808563779 | LW11: 1.315767551 | LX11: =-(IF(N11<99999.99999,INDEX('Hist RF to Box Elder'!$B$6:$M$30,MATCH($B$2,'Hist RF to Box Elder'!$A$6:$A$30,0),MATCH($A11,'Hist RF to Box Elder'!$B$5:$M$5,0))/RV11/1.9835,0)) -> -0.01307806535 | LY11: =(VLOOKUP($B11,'ECCV Beebe Pond Acrtns'!$B$7:$BI$1206,54)+VLOOKUP($B11,'ECCV Canal Acrtns'!$B$7:$AL$1206,34)+VLOOKUP($B11,'2003 Beebe Pond Acrtns'!$B$7:$BI$1206,54)+VLOOKUP($B11,'2003 Canal Acrtns'!$B$7:$AL$1206,34)+VLOOKUP($B11,'84CW090 Beebe Pond Acrtns'!$B$7:$BI$1206,55)+VLOOKUP($B11,'84CW090 Canal Acrtns'!$B$7:$AL$1206,34))/$RV11/1.9835 -> 0.1102842448 | LZ11: 0.01307806535 | MA11: 0 | MB11: 0 | MC11: 0 | ME11: -3.923375923 | MF11: 3.508175911 | MG11: 0.02924706861 | MH11: 0.01307806535 | MI11: 0.02147266205 | MJ11: 0.004195685049 | MK11: 0.0726744269 | ML11: 0 | MM11: 0.2220081766 | MN11: 0.1519313349 | MO11: 4.02278333 | MP11: 0.0994074068 | MQ11: 0 | MR11: 0 | MS11: 0 | MU11: 0 | MV11: 0 | MW11: 0 | MX11: 0 | MY11: 0 | MZ11: 0 | NA11: 0 | NB11: 0 | ND11: 0 | NE11: 0 | NF11: 0 | NG11: 0 | NH11: 0 | NI11: 0 | NJ11: 0 | NK11: 0 | NL11: 0 | NM11: 0 | NN11: 0 | NO11: 0 | NQ11: 0 | NR11: 0 | NS11: 0 | NT11: 0 | NU11: 0 | NV11: 0 | NW11: 0 | NX11: 0 | NY11: 0 | NZ11: 0 | OA11: 0 | OC11: 0 | OD11: 0 | OE11: 0 | OF11: 0 | OG11: 0 | OH11: 0 | OI11: 0 | OJ11: 0 | OK11: 0 | OL11: 0 | OM11: 0 | OO11: 0 | OP11: 0 | OQ11: 0 | OR11: 0 | OS11: 0 | OT11: 0 | OU11: 0 | OV11: 0 | OW11: 0 | OX11: 0 | OY11: 0 | OZ11: 0 | PA11: 0 | PC11: 0 | PD11: 0 | PE11: 0 | PF11: 0 | PG11: 0 | PH11: 0 | PI11: 0 | PJ11: 0 | PK11: 0 | PM11: 0 | PN11: 0 | PO11: 0 | PP11: 0 | PQ11: 0 | PR11: 0 | PS11: 0 | PT11: 0 | PV11: 0 | PW11: 0 | PX11: 0 | PZ11: 0 | QA11: 0 | QB11: 0 | QC11: 0 | QF11: 0 | QG11: 0 | QH11: 0 | QI11: 0 | QJ11: 0 | QK11: 0 | QL11: 0 | QN11: 0 | QO11: 0 | QP11: 0 | QQ11: =NA11+SUM(OD11:OJ11)+SUM(NR11:NX11)+SUM(NE11:NL11)+SUM(OS11:OX11)+SUM(PD11:PH11)+SUM(PN11:PQ11)+SUM(QF11:QI11) -> 0 | QR11: 0 | QS11: 309.6 | QU11: 0 | QV11: 0 | QW11: 0 | QX11: 0 | QY11: 0 | QZ11: 0 | RA11: 0 | RB11: 0 | RC11: 0 | RD11: 0 | RE11: 0 | RF11: 0 | RG11: 0 | RH11: 0 | RI11: 0 | RJ11: 0 | RK11: 0 | RL11: 0 | RM11: 0 | RN11: 0 | RO11: =QU11-SUM(QV11:RN11) -> 0 | RP11: TRUE | RQ11: TRUE | RS11: 2 | RT11: 0 | RV11: =VLOOKUP(A11,'Control Sheet'!$G$9:$H$20,2) -> 30
A12: Apr | B12: 2017-04-04 | C12: Riverside | D12: 1988-12-31 | E12: Riverside | F12: 50769.49378 | K12: Riverside | L12: 1988-12-31 | M12: Riverside | N12: 50769.49378 | O12: Prewitt Reservoir | P12: 2002-12-31 | Q12: Prewitt Reservoir | R12: 55882 | S12: 0 | T12: 0 | U12: 0 | V12: 0 | W12: 0 | X12: 0 | Y12: =('NFC Well Pumping'!$L10+'NFC Well Pumping'!$L47+'NFC Well Pumping'!$L83)/1.9835 -> 0 | Z12: ='88CW264(B) Pumping'!$E10/1.9835+'88CW264(B) Pumping'!$E46/1.9835+'88CW264(B) Pumping'!E86/1.9835+'88CW264(B) Pumping'!E122/1.9835+'88CW264(B) Pumping'!E162/1.9835+'88CW264(B) Pumping'!E198/1.9835 -> 0.00925230458 | AA12: 0 | AB12: =('United No. 2 Well Pumping'!G11+'United No. 2 Well Pumping'!G47+'United No. 2 Well Pumping'!G83)/1.9835 -> 0 | AC12: =('United No. 2 Well Pumping'!F11+'United No. 2 Well Pumping'!F47+'United No. 2 Well Pumping'!F83)/1.9835 -> 0 | AD12: 0 | AF12: 0.00925230458 | AG12: =U12+AC12+'United Res'!AA174+'United Res'!AQ174+'Milliken Res'!I162 -> 0 | AH12: 100 | AI12: =-(IF($N12=99999.99999,0,VLOOKUP($B12,'NFC Well Dplns-URF'!B$7:$AB$306,27))/$RV12/1.9835) -> -0.004064876498 | AJ12: 0 | AL12: =(VLOOKUP($B12,'ECCV 70R Pond Acrtns'!$B$7:$AI$1206,34)+VLOOKUP($B12,'2003 70R Pond Acrtns'!$B$7:$AI$1206,34)+VLOOKUP($B12,'ECCV 70R Canal Acrtns'!$B$7:$AI$1206,27)+VLOOKUP($B12,'2003 70R Canal Acrtns'!$B$7:$AI$1206,27))/$RV12/1.9835 -> 0 | AM12: -0.004064876498 | AN12: =-(IF($N12=99999.99999,0,VLOOKUP($B12,'NFC Well Dplns-SDF'!$B$7:$Z$306,25)+VLOOKUP($B12,'NFC Well Dplns-URF'!B$7:$AB$306,20))/$RV12/1.9835) -> -0.07514542012 | AO12: 0.02854171031 | AP12: 0.04660370981 | AQ12: ECCV Riverside Credits | AR12: =IF(N12<99999.99999,-((BD12+BE12)*'Weldon Credit'!$BB$36),0) -> 0 | AS12: =-((BD12+BE12)*'Weldon Credit'!$BB$34) -> 0 | AT12: =IF(N12<99999.99999,-INDEX('Weldon Credit'!$AX$249:$BJ$276,MATCH($B$2,'Weldon Credit'!$AX$249:$AX$276,0),MATCH(A12,'Weldon Credit'!$AX$249:$BJ$249,0))/RV12/1.9835,0) -> -0.007144773798 | AU12: -0.007144773798 | AV12: =IF(N12<99999.99999,-((BD12+BE12)*'Weldon Credit'!$BB$37),0) -> 0 | AW12: =-((BD12+BE12)*'Weldon Credit'!$BB$35) -> 0 | AX12: =IF(N12<99999.99999,-INDEX('Weldon Credit'!$AX$281:$BJ$308,MATCH($B$2,'Weldon Credit'!$AX$281:$AX$308,0),MATCH(A12,'Weldon Credit'!$AX$281:$BJ$281,0))/RV12/1.9835,0) -> -0.07879357513 | AY12: -0.07879357513 | AZ12: =-(BD12+BE12)*'Weldon Credit'!$BB$38 -> 0 | BA12: =0.4*(INDEX('Riverside Pond Accrtns'!$B$6:$M$36,MATCH($B$2,'Riverside Pond Accrtns'!$A$6:$A$36,0),MATCH('ECCV Daily Replacement Summary'!A12,'Riverside Pond Accrtns'!$B$5:$M$5,0))/RV12)/1.9835 -> 1.310814217 | BB12: =(44/640)*(INDEX('Weldon Valley Accrtns (02CW377)'!$B$6:$M$30,MATCH($B$2,'Weldon Valley Accrtns (02CW377)'!$A$6:$A$30,0),MATCH(A12,'Weldon Valley Accrtns (02CW377)'!$B$5:$M$5,0))/RV12)/1.9835 -> 0.2610339467 | BC12: =(VLOOKUP($B12,'ECCV 70R Pond Acrtns'!$B$7:$AI$1206,25)+VLOOKUP($B12,'ECCV 70R Canal Acrtns'!$B$7:$AI$1206,20)+VLOOKUP($B12,'2003 70R Pond Acrtns'!$B$7:$AI$1206,25)+VLOOKUP($B12,'2003 70R Canal Acrtns'!$B$7:$AI$1206,20))/$RV12/1.9835 -> 0 | BD12: ='Joint Aug Station Deliveries'!G12 -> 0 | BE12: ='Joint Aug Station Deliveries'!H12 -> 0 | BF12: 0 | BG12: 0 | BH12: =IF(BT12="no",-MAX(0,MIN(BG12,(BE12-BD12))*(0.5/100*'Distances for Transit Losses'!$C$75)),0) -> 0 | BI12: 0 | BJ12: =MIN(-($AU12+AY12+AZ12+BF12+BG12+BH12),BA12-BA12*0.5/100*'Distances for Transit Losses'!$C$77) -> 0.08593834893 | BK12: 0 | BL12: =MIN(-($AU12+AY12+AZ12+BF12+BG12+BH12+BJ12+BK12),BC12-BC12*0.5/100*'Distances for Transit Losses'!$C$77) -> 0 | BM12: =-((BJ12+BL12)*(0.5/100*'Distances for Transit Losses'!$C$77)) -> -0.009152434161 | BN12: =IF(AND(JE12-JF12-FR12-DM12>0,IZ12="no"),MIN(-(AU12+AY12+AZ12+BF12+BG12+BH12+BJ12+BK12+BL12+BM12)/(1-0.5/100*'Distances for Transit Losses'!$C$99),JE12-JF12-FR12-DM12),0) -> 0 | BO12: =--BN12*0.5/100*'Distances for Transit Losses'!C$99 -> 0 | BP12: =IF(AND(HL12-HM12-JH12-FV12-LD12-DQ12>0,FK12="no"),MIN(-(AU12+AY12+AZ12+BF12+BG12+BH12+BJ12+BK12+BL12+BM12+BN12+BO12)/(1-0.5/100*'Distances for Transit Losses'!$C$101),HL12-HM12-JH12-FV12-LD12-DQ12),0) -> 0 | BQ12: =--BP12*0.5/100*'Distances for Transit Losses'!$C$101 -> 0 | BR12: 0 | BT12: no | BU12: no | BV12: no | BW12: 0 | BX12: 0 | BY12: 0 | CA12: =IF($BV12="No",MIN(-DH12,BA12-BJ12/(1-0.5/100*'Distances for Transit Losses'!$C$77)),0) -> 0 | CB12: =IF($BV12="No",MIN(-DH12+CA12,BC12-BL12/(1-0.5/100*'Distances for Transit Losses'!$C$77)),0) -> 0 | CC12: 0 | CD12: 0 | CE12: 0 | CF12: 1.439306105 | CG12: 1.315767551 | CH12: =-(IF($N12=99999.99999,0,VLOOKUP($B12,'NFC Well Dplns-SDF'!$B$7:$Z$306,16)+VLOOKUP($B12,'NFC Well Dplns-URF'!$B$7:$AB$306,13))/$RV12/1.9835) -> -0.2127558721 | CI12: =-(IF($N12>=99999,0,'88CW264(B) Pumping'!$E10/1.9835)+IF($N12>=99999,0,'88CW264(B) Pumping'!$E46/1.9835)+IF($N12>=99999,0,'88CW264(B) Pumping'!$E86/1.9835)+IF($N12>=99999,0,'88CW264(B) Pumping'!$E122/1.9835)+IF($N12>=51134.50919,0,'88CW264(B) Pumping'!$E162/1.9835)+IF($N12>=53406,0,'88CW264(B) Pumping'!$E198/1.9835)) -> -0.00925230458 | CJ12: -0.2220081766 | CK12: 0.1450733326 | CL12: 0.07693484407 | CM12: ECCV Riverside | CN12: =-(IF($N12=99999.99999,0,VLOOKUP($B12,'United No. 2 Dplns'!$B$7:$X$676,13)/1.9835)) -> 0 | CO12: =CN12+(-(INDEX('Pre 1995 Net Accretions'!$B$6:$M$105,MATCH($B$2,'Pre 1995 Net Accretions'!$A$6:$A$105,0),MATCH($A12,'Pre 1995 Net Accretions'!$B$5:$M$5,0))/$RV12/1.9835)) -> 0.02808563779 | CP12: =-(IF(N12<99999.99999,(INDEX('70 Ranch RF Obligation'!$B$6:$M$36,MATCH($B$2,'70 Ranch RF Obligation'!$A$6:$A$36,0),MATCH('ECCV Daily Replacement Summary'!A12,'70 Ranch RF Obligation'!$B$5:$M$5,0))/RV12)/1.9835,0))-CS12*(1-'L. Latham Credit'!$E$41) -> 0 | CQ12: 0 | CR12: =(VLOOKUP($B12,'ECCV 70R Pond Acrtns'!$B$7:$AI$1206,16)+VLOOKUP($B12,'ECCV 70R Canal Acrtns'!$B$7:$AI$1206,13)+VLOOKUP($B12,'2003 70R Pond Acrtns'!$B$7:$AI$1206,16)+VLOOKUP($B12,'2003 70R Canal Acrtns'!$B$7:$AI$1206,13))/$RV12/1.9835 -> 0 | CS12: ='Joint Aug Station Deliveries'!BN12 -> 0 | CT12: 0 | CU12: 0 | CV12: ='Joint Aug Station Deliveries'!BQ12 -> 0 | CW12: 0 | CX12: 0 | DA12: 0.02808563779 | DB12: 0 | DC12: 0 | DD12: =-DC12*0.5/100*'Distances for Transit Losses'!$C$48 -> 0 | DE12: 0 | DF12: 0 | DG12: 0 | DH12: 0 | DI12: 0 | DJ12: 0 | DK12: 0 | DL12: =('NFC Well Pumping'!I10+'NFC Well Pumping'!I47+'NFC Well Pumping'!I83)/1.9835 -> 0 | DM12: =IF(AND(JE12-JF12-FR12>0,IZ12="no"),MIN(-SUM(DH12:DL12)/(1-0.5/100*'Distances for Transit Losses'!$C$103),JE12-JF12-FR12),0) -> 0 | DN12: =-DM12*0.5/100*'Distances for Transit Losses'!C$103 -> 0 | DO12: 0 | DP12: =--DO12*0.5/100*'Distances for Transit Losses'!$C$127 -> 0 | DQ12: =IF(AND(HL12-HM12-JH12-FV12-LD12>0,FK12="no"),MIN(-SUM(DH12:DP12)/(1-0.5/100*'Distances for Transit Losses'!$C$105),HL12-HM12-JH12-FV12-LD12),0) -> 0 | DR12: =--DQ12*0.5/100*'Distances for Transit Losses'!$C$105 -> 0 | DS12: 0.02808563779 | DT12: 0 | DU12: ='Joint Aug Station Deliveries'!O12 -> 0 | DV12: =-(DU12*0.5/100*'Distances for Transit Losses'!$C$212) -> 0 | DW12: 0 | DY12: no | EA12: 0 | EB12: 0 | EC12: =-(EB12*0.5/100*'Distances for Transit Losses'!$C$214) -> 0 | ED12: 0 | EE12: =-0.25*(INDEX('GIC Credit'!$B$85:$M$116,MATCH($B$2,'GIC Credit'!$A$85:$A$116,0),MATCH($A12,'GIC Credit'!$B$85:$M$85,0))/$RV12/1.9835+FE12*'GIC Credit'!$Z$39+FF12*'GIC Credit'!$AO$39) -> -0.0001915 | EF12: -0.0001915 | EG12: 0 | EH12: ='Joint Aug Station Deliveries'!BF12 -> 0 | EI12: =-(EH12*0.5/100*'Distances for Transit Losses'!$C$240) -> 0 | EJ12: ='Joint Aug Station Deliveries'!BG12 -> 0 | EK12: =-(EJ12*0.5/100*'Distances for Transit Losses'!$C$242) -> 0 | EL12: 0 | EM12: =-(EL12*0.5/100*'Distances for Transit Losses'!$C$234) -> 0 | EN12: 0 | EP12: no | EQ12: -0.0001915 | ER12: =-(IF($N12<99999.99999,(INDEX('New Cache Credit'!$W$82:$AH$113,MATCH($B$2,'New Cache Credit'!$V$82:$V$113,0),MATCH($A12,'New Cache Credit'!$W$82:$AH$82,0))/$RV12)/1.9835,0))-DT12-ED12 -> -0.07163859239 | ES12: =-0.39*(INDEX('GIC Credit'!$B$85:$M$116,MATCH($B$2,'GIC Credit'!$A$85:$A$116,0),MATCH($A12,'GIC Credit'!$B$85:$M$85,0))/$RV12/1.9835+FE12*'GIC Credit'!$Z$39+FF12*'GIC Credit'!$AO$39) -> -0.00029874 | ET12: 0 | EU12: =-(ET12*0.5/100*('Distances for Transit Losses'!$C$216+'Distances for Transit Losses'!$C$222)) -> 0 | EW12: =IF(EV12="yes",'Joint Aug Station Deliveries'!V12,0) -> 0 | EX12: =-(EW12*0.5/100*('Distances for Transit Losses'!$C$218+'Distances for Transit Losses'!$C$220+'Distances for Transit Losses'!$C$222)) -> 0 | EY12: =IF(EV12="Yes",'Joint Aug Station Deliveries'!Y12,0) -> 0 | EZ12: =-(EY12*0.5/100*('Distances for Transit Losses'!$C$220+'Distances for Transit Losses'!$C$222)) -> 0 | FA12: ='Joint Aug Station Deliveries'!BH12 -> 0 | FB12: =-(FA12*0.5/100*'Distances for Transit Losses'!$C$226) -> 0 | FC12: -0.07212883239 | FD12: 0 | FE12: ='Joint Aug Station Deliveries'!BJ12 -> 0 | FF12: ='Joint Aug Station Deliveries'!BK12 -> 0 | FG12: =-(IF(N12<99999.99999,INDEX('Hist RF to SPR'!$AF$6:$AQ$30,MATCH($B$2,'Hist RF to SPR'!$AE$6:$AE$30,0),MATCH($A12,'Hist RF to SPR'!$AF$5:$AQ$5,0))/RV12/1.9835,0)) -> -0.0002698345146 | FH12: =-0.36*(INDEX('GIC Credit'!$B$85:$M$116,MATCH($B$2,'GIC Credit'!$A$85:$A$116,0),MATCH($A12,'GIC Credit'!$B$85:$M$85,0))/$RV12/1.9835+FE12*'GIC Credit'!$Z$39+FF12*'GIC Credit'!$AO$39) -> -0.00027576 | FI12: -0.07212883239 | FJ12: -0.0726744269 | FK12: no | FL12: 0 | FM12: 0 | FN12: 0 | FP12: 0 | FQ12: 0 | FR12: =IF(AND(JE12-JF12-HH12>0,IZ12="no"),MIN(-(FJ12+FP12+FQ12)/(1-0.5/100*'Distances for Transit Losses'!$C$107),JE12-JF12-HH12),0) -> 0 | FS12: =-FR12*0.5/100*'Distances for Transit Losses'!$C$107 -> 0 | FT12: 0 | FU12: =-FT12*0.5/100*'Distances for Transit Losses'!$C$125 -> 0 | FV12: =IF(AND(HL12-HM12-JH12>0,GX12="no"),MIN(-(FJ12+FP12+FQ12+FR12+FS12+FT12+FU12)/(1-0.5/100*'Distances for Transit Losses'!$C$109),HL12-HM12-JH12),0) -> 0 | FW12: =-FV12*0.5/100*'Distances for Transit Losses'!$C$115 -> 0 | FX12: 0.0726744269 | FY12: Haren Recharge | FZ12: 0 | GB12: =IF(AND(GA11="no",(SUM('Joint Aug Station Deliveries'!$AF$9:'Joint Aug Station Deliveries'!$AF11)+'Joint Aug Station Deliveries'!$AF12)*1.9835>'New Cache Credit'!$BY$39,(SUM('Joint Aug Station Deliveries'!$AF$9:'Joint Aug Station Deliveries'!$AF11)+'Joint Aug Station Deliveries'!$AF12)*1.9835>'New Cache Credit'!$CH$39),0,'Joint Aug Station Deliveries'!X12) -> 0 | GC12: =-(GB12*0.5/100*'Distances for Transit Losses'!$C$208) -> 0 | GE12: =IF(AND(GD11="no",(SUM('Joint Aug Station Deliveries'!$AF$9:'Joint Aug Station Deliveries'!$AF11)+'Joint Aug Station Deliveries'!$AF12)*1.9835>'New Cache Credit'!$BY$39,(SUM('Joint Aug Station Deliveries'!$AF$9:'Joint Aug Station Deliveries'!$AF11)+'Joint Aug Station Deliveries'!$AF12)*1.9835>'New Cache Credit'!$CH$39),0,'Joint Aug Station Deliveries'!AA12) -> 0 | GF12: =-(GE12*0.5/100*'Distances for Transit Losses'!$C$200) -> 0 | GG12: =IF(AND(GD11="no",(SUM('Joint Aug Station Deliveries'!$AF$9:'Joint Aug Station Deliveries'!$AF11)+'Joint Aug Station Deliveries'!$AF12)*1.9835>'New Cache Credit'!$BY$39,(SUM('Joint Aug Station Deliveries'!$AF$9:'Joint Aug Station Deliveries'!$AF11)+'Joint Aug Station Deliveries'!$AF12)*1.9835>'New Cache Credit'!$CH$39),0,'Joint Aug Station Deliveries'!AD12) -> 0 | GH12: =-(GG12*0.5/100*'Distances for Transit Losses'!$C$206) -> 0 | GI12: 0 | GJ12: 0 | GK12: 0.02808563779 | GL12: 1.315767551 | GM12: =-(IF(N12<99999.99999,INDEX('Hist RF to SPR'!$Q$6:$AB$30,MATCH($B$2,'Hist RF to SPR'!$P$6:$P$30,0),MATCH($A12,'Hist RF to SPR'!$Q$5:$AB$5,0))/RV12/1.9835,0)) -> -0.002436185049 | GN12: =-(IF(OR($N12<99999.99999,E12="Lower Latham",I12="Lower Latham",E12="Highland",I12="Highland",E12="Plum",I12="Plum"),(INDEX('FIDCO Credit'!$Y$48:$AJ$78,MATCH($B$2,'FIDCO Credit'!$X$48:$X$78,0),MATCH($A12,'FIDCO Credit'!$Y$47:$AJ$47,0))/$RV12)/1.9835,0)) -> -0.0017595 | GO12: =-(IF(OR($N12<99999.99999,E12="Lower Latham",I12="Lower Latham",E12="Highland",I12="Highland",E12="Plum",I12="Plum"),(INDEX('Western Credit'!$W$84:$AH$114,MATCH($B$2,'Western Credit'!$V$84:$V$114,0),MATCH($A12,'Western Credit'!$W$83:$AH$83,0))/$RV12)/1.9835+'Haren Daily Recharge'!K11*'Western Credit'!$Z$40,0)) -> 0 | GP12: -0.004195685049 | GQ12: 0 | GR12: 0 | GS12: =IF(AND(GY12="no",GZ12="no"),MIN(-(GN12-GQ12-GR12)/(1-0.5/100*'Distances for Transit Losses'!$C$95),IW12),0) -> 0 | GT12: =-GS12*0.5/100*'Distances for Transit Losses'!$C$95 -> 0 | GU12: =VLOOKUP($B12,'ECCV Haren Pond S.P. Acrtns'!$B$7:$G$306,6)/$RV12/1.9835-0.1 -> 1.384290832 | GV12: 0.004195685049 | GW12: 0.4900909865 | GX12: yes | GY12: no | GZ12: no | HA12: 0 | HB12: 0 | HC12: 0 | HE12: 0 | HF12: 0 | HG12: 0 | HH12: =IF(AND(JE12-JF12>0,IZ12="no"),MIN(-HG12/(1-0.5/100*'Distances for Transit Losses'!$C$111),JE12-JF12),0) -> 0 | HI12: =-HH12*0.5/100*'Distances for Transit Losses'!$C$111 -> 0 | HJ12: =IF(AND(JI12+JJ12-JK12-JV12>0,IZ12="no"),MIN((-HG12-(HH12+HI12))/(1-0.5/100*'Distances for Transit Losses'!$C$113),JI12+JJ12-JK12-JV12),0) -> 0 | HK12: =-HJ12*0.5/100*'Distances for Transit Losses'!$C$113 -> 0 | HL12: 0 | HM12: =IF(HL12>0,MIN(-(HG12+HH12+HI12+HJ12+HK12)/(1-0.5/100*'Distances for Transit Losses'!$C$115),HL12),0) -> 0 | HN12: =-HM12*0.5/100*'Distances for Transit Losses'!$C$115 -> 0 | HO12: 0 | HQ12: 0 | HR12: ='Joint Aug Station Deliveries'!AS12 -> 0 | HS12: =HR12*'Western Credit'!$Z$42 -> 0 | HT12: ='Joint Aug Station Deliveries'!AJ12 -> 0 | HU12: =IF(AND(HT12>0,SUM($HT$9:HT12,$HV$9:HV12,$IW$9:IW12)*1.9835<OFFSET('FIDCO Credit'!$X$39,0,MATCH($A12,'FIDCO Credit'!$Y$5:$AJ$5,0))),HT12-GQ12,0) -> 0 | HV12: ='Joint Aug Station Deliveries'!AM12 -> 0 | HW12: =IF(AND(HV12>0,SUM($HT$9:HT12,$HV$9:HV12,$IW$9:IW12)*1.9835<OFFSET('FIDCO Credit'!$X$39,0,MATCH($A12,'FIDCO Credit'!$Y$5:$AJ$5,0))),HV12-GR12,0) -> 0 | HX12: =MAX(0,(KY12+KZ12))/(1-0.5/100*'Distances for Transit Losses'!$C$83) -> 0 | HY12: =MAX(0,(LA12+LB12)/(1-0.5/100*'Distances for Transit Losses'!$C$79)) -> 0 | HZ12: 0 | IA12: =-HZ12*0.5/100*'Distances for Transit Losses'!$C$85 -> 0 | IB12: 0 | IC12: 0 | ID12: =-IC12*0.5/100*'Distances for Transit Losses'!$C$34 -> 0 | IE12: 0 | IF12: 0 | IG12: 0 | IH12: 0 | II12: 0 | IJ12: 0 | IK12: 0 | IL12: 0 | IM12: 0 | IN12: 0 | IO12: 0 | IP12: 0 | IQ12: =-IP12*0.5/100*'Distances for Transit Losses'!$C$123 -> 0 | IR12: 0 | IS12: 0.8900041608 | IT12: 0.02808563779 | IU12: 1.315767551 | IV12: =-(IF(F12<99999.99999,INDEX('Hist RF to SPR'!$B$6:$M$30,MATCH($B$2,'Hist RF to SPR'!$A$6:$A$30,0),MATCH($A12,'Hist RF to SPR'!$B$5:$M$5,0))/RV12/1.9835,0)) -> -0.02147266205 | IW12: ='Joint Aug Station Deliveries'!AP12 -> 0 | IX12: =IF(AND(IW12>0,SUM($HT$9:HT12,$HV$9:HV12,$IW$9:IW12)*1.9835<OFFSET('FIDCO Credit'!$X$39,0,MATCH($A12,'FIDCO Credit'!$Y$5:$AJ$5,0))),IW12-GS12,0) -> 0 | IY12: 0 | IZ12: yes | JA12: 0 | JB12: 0 | JC12: 0.02147266205 | JD12: 0 | JE12: 0 | JF12: =IF(JE12>0,MIN(-JD12/(1-0.5/100*'Distances for Transit Losses'!$C$117),JE12),0) -> 0 | JG12: =-JF12*0.5/100*'Distances for Transit Losses'!$C$117 -> 0 | JH12: 0 | JI12: 0 | JJ12: =-JI12*0.5/100*'Distances for Transit Losses'!$C$70 -> 0 | JK12: =IF((JI12+JJ12)>0,MIN((-JD12-(JF12-JG12)-JH12)/(1-0.5/100*'Distances for Transit Losses'!$C$119),(JI12+JJ12)),0) -> 0 | JL12: =-JK12*0.5/100*'Distances for Transit Losses'!$C$119 -> 0 | JM12: 0 | JO12: 0 | JP12: 0 | JQ12: 0 | JR12: 0 | JS12: 0 | JT12: 0 | JU12: 0 | JV12: 0 | JW12: =-JV12*0.5/100*'Distances for Transit Losses'!$C$121 -> 0 | JX12: 0 | JY12: 0.02808563779 | JZ12: 1.315767551 | KA12: =-(IF(N12<99999.99999,(VLOOKUP(B12,'ECCV Upper Dpln'!$B$7:$BD$306,55))/RV12/1.9835,0)) -> -3.375455381 | KB12: =-(IF(N12<99999.99999,INDEX('Hist RF abv Milton'!$B$6:$M$30,MATCH($B$2,'Hist RF abv Milton'!$A$6:$A$30,0),MATCH($A12,'Hist RF abv Milton'!$B$5:$M$5,0))/RV12/1.9835,0)) -> -0.02367044831 | KC12: 0 | KD12: =(VLOOKUP($B12,'ECCV Beebe Pond Acrtns'!$B$7:$BI$1206,41)+VLOOKUP($B12,'ECCV Canal Acrtns'!$B$7:$AL$1206,22)+VLOOKUP($B12,'2003 Beebe Pond Acrtns'!$B$7:$BI$1206,41)+VLOOKUP($B12,'2003 Canal Acrtns'!$B$7:$AL$1206,22))/$RV12/1.9835+0.69 -> 1.045084924 | KE12: 0 | KF12: 0 | KG12: 0 | KH12: 1.045084924 | KI12: 0 | KJ12: yes | KK12: 0 | KL12: 0 | KM12: 0 | KN12: 0 | KO12: 0 | KP12: 0 | KQ12: 0 | KR12: -2.330370457 | KS12: -0.02367044831 | KT12: 2 | KU12: =-(KT12*0.5/100*'Distances for Transit Losses'!$C$6) -> -0.027 | KV12: 0 | KW12: 0 | KX12: 0 | KY12: =IF(AND(E12<>"Lower Latham",I12<>"Lower Latham"),MIN(-(KS12+KV12),HU12-HU12*0.5/100*'Distances for Transit Losses'!$C$83),0) -> 0 | KZ12: =IF(AND(E12<>"Lower Latham",I12<>"Lower Latham"),MAX(0,MIN(-(KR12+KT12+KU12+KX12),HU12-HU12*0.5/100*'Distances for Transit Losses'!$C$83-KY12/(1-0.5/100*'Distances for Transit Losses'!$C$83))),0) -> 0 | LA12: =MIN(-(KS12+KY12),HS12-HS12*0.5/100*'Distances for Transit Losses'!$C$79) -> 0 | LB12: =MAX(0,MIN(-(KR12+KT12+KU12+KZ12),HS12-HS12*0.5/100*'Distances for Transit Losses'!$C$79-LA12/(1-0.5/100*'Distances for Transit Losses'!$C$79))) -> 0 | LC12: =IF(FK12="no",MIN(-(MIN(0,KR12+KS12+KT12+KU12+KZ12+LB12))+FX12/(1-0.5/100*'Distances for Transit Losses'!$C$44)+LT12/(1-0.5/100*'Distances for Transit Losses'!$C$36),(GU12-GV12)-(GU12-GV12)*0.5/100*'Distances for Transit Losses'!$C$79),0) -> 0.4900909865 | LD12: =MAX(0,IF(AND(HL12-HM12-JH12-FV12>0,FK12="no"),MIN(-(KR12+KT12+KU12+KX12+KZ12+LB12+LC12)/(1-0.5/100*'Distances for Transit Losses'!$C$89),HL12-HM12-JH12-FV12),0)) -> 0 | LE12: =-LD12*0.5/100*'Distances for Transit Losses'!$C$89 -> 0 | LH12: =SUM(KA12:KC12)+KH12+KI12+SUM(KL12:KQ12)+SUM(KT12:LF12)-(FX12/(1-0.5/100*'Distances for Transit Losses'!$C$44)+LT12/(1-0.5/100*'Distances for Transit Losses'!$C$36)) -> 3.053113318e-16 | LI12: 0 | LJ12: 0 | LK12: 0.02808563779 | LL12: 1.315767551 | LM12: =-(IF(N12<99999.99999,INDEX('Hist RF blw Milton'!$B$6:$M$30,MATCH($B$2,'Hist RF blw Milton'!$A$6:$A$30,0),MATCH($A12,'Hist RF blw Milton'!$B$5:$M$5,0))/RV12/1.9835,0)) -> -0.02924706861 | LN12: yes | LO12: 0 | LP12: 0 | LQ12: -0.02924706861 | LR12: 0 | LS12: 0 | LT12: 0.02924706861 | LU12: Haren Recharge | LV12: 0.02808563779 | LW12: 1.315767551 | LX12: =-(IF(N12<99999.99999,INDEX('Hist RF to Box Elder'!$B$6:$M$30,MATCH($B$2,'Hist RF to Box Elder'!$A$6:$A$30,0),MATCH($A12,'Hist RF to Box Elder'!$B$5:$M$5,0))/RV12/1.9835,0)) -> -0.01307806535 | LY12: =(VLOOKUP($B12,'ECCV Beebe Pond Acrtns'!$B$7:$BI$1206,54)+VLOOKUP($B12,'ECCV Canal Acrtns'!$B$7:$AL$1206,34)+VLOOKUP($B12,'2003 Beebe Pond Acrtns'!$B$7:$BI$1206,54)+VLOOKUP($B12,'2003 Canal Acrtns'!$B$7:$AL$1206,34)+VLOOKUP($B12,'84CW090 Beebe Pond Acrtns'!$B$7:$BI$1206,55)+VLOOKUP($B12,'84CW090 Canal Acrtns'!$B$7:$AL$1206,34))/$RV12/1.9835 -> 0.1102842448 | LZ12: 0.01307806535 | MA12: 0 | MB12: 0 | MC12: 0 | ME12: -3.923375923 | MF12: 3.508175911 | MG12: 0.02924706861 | MH12: 0.01307806535 | MI12: 0.02147266205 | MJ12: 0.004195685049 | MK12: 0.0726744269 | ML12: 0 | MM12: 0.2220081766 | MN12: 0.1519313349 | MO12: 4.02278333 | MP12: 0.0994074068 | MQ12: 0 | MR12: 0 | MS12: 0 | MU12: 0 | MV12: 0 | MW12: 0 | MX12: 0 | MY12: 0 | MZ12: 0 | NA12: 0 | NB12: 0 | ND12: 0 | NE12: 0 | NF12: 0 | NG12: 0 | NH12: 0 | NI12: 0 | NJ12: 0 | NK12: 0 | NL12: 0 | NM12: 0 | NN12: 0 | NO12: 0 | NQ12: 0 | NR12: 0 | NS12: 0 | NT12: 0 | NU12: 0 | NV12: 0 | NW12: 0 | NX12: 0 | NY12: 0 | NZ12: 0 | OA12: 0 | OC12: 0 | OD12: 0 | OE12: 0 | OF12: 0 | OG12: 0 | OH12: 0 | OI12: 0 | OJ12: 0 | OK12: 0 | OL12: 0 | OM12: 0 | OO12: 0 | OP12: 0 | OQ12: 0 | OR12: 0 | OS12: 0 | OT12: 0 | OU12: 0 | OV12: 0 | OW12: 0 | OX12: 0 | OY12: 0 | OZ12: 0 | PA12: 0 | PC12: 0 | PD12: 0 | PE12: 0 | PF12: 0 | PG12: 0 | PH12: 0 | PI12: 0 | PJ12: 0 | PK12: 0 | PM12: 0 | PN12: 0 | PO12: 0 | PP12: 0 | PQ12: 0 | PR12: 0 | PS12: 0 | PT12: 0 | PV12: 0 | PW12: 0 | PX12: 0 | PZ12: 0 | QA12: 0 | QB12: 0 | QC12: 0 | QF12: 0 | QG12: 0 | QH12: 0 | QI12: 0 | QJ12: 0 | QK12: 0 | QL12: 0 | QN12: 0 | QO12: 0 | QP12: 0 | QQ12: 0 | QR12: 0 | QS12: 309.6 | QU12: 0 | QV12: 0 | QW12: 0 | QX12: 0 | QY12: 0 | QZ12: 0 | RA12: 0 | RB12: 0 | RC12: 0 | RD12: 0 | RE12: 0 | RF12: 0 | RG12: 0 | RH12: 0 | RI12: 0 | RJ12: 0 | RK12: 0 | RL12: 0 | RM12: 0 | RN12: 0 | RO12: 0 | RP12: TRUE | RQ12: TRUE | RS12: 2 | RT12: 0 | RV12: =VLOOKUP(A12,'Control Sheet'!$G$9:$H$20,2) -> 30
A13: Apr | B13: 2017-04-05 | C13: Bijou | D13: 2004-12-07 | E13: Prewitt Reservoir | F13: 56589 | K13: Bijou | L13: 2004-12-07 | M13: Prewitt Reservoir | N13: 56589 | S13: 0 | T13: 0 | U13: 0 | V13: 0 | W13: 0 | X13: 0 | Y13: =('NFC Well Pumping'!$L11+'NFC Well Pumping'!$L48+'NFC Well Pumping'!$L84)/1.9835 -> 0 | Z13: ='88CW264(B) Pumping'!$E11/1.9835+'88CW264(B) Pumping'!$E47/1.9835+'88CW264(B) Pumping'!E87/1.9835+'88CW264(B) Pumping'!E123/1.9835+'88CW264(B) Pumping'!E163/1.9835+'88CW264(B) Pumping'!E199/1.9835 -> 0.00925230458 | AA13: 0 | AB13: =('United No. 2 Well Pumping'!G12+'United No. 2 Well Pumping'!G48+'United No. 2 Well Pumping'!G84)/1.9835 -> 0 | AC13: =('United No. 2 Well Pumping'!F12+'United No. 2 Well Pumping'!F48+'United No. 2 Well Pumping'!F84)/1.9835 -> 0 | AD13: 0 | AF13: 0.00925230458 | AG13: =U13+AC13+'United Res'!AA175+'United Res'!AQ175+'Milliken Res'!I163 -> 0 | AH13: 100 | AI13: =-(IF($N13=99999.99999,0,VLOOKUP($B13,'NFC Well Dplns-URF'!B$7:$AB$306,27))/$RV13/1.9835) -> -0.004064876498 | AJ13: 0 | AL13: =(VLOOKUP($B13,'ECCV 70R Pond Acrtns'!$B$7:$AI$1206,34)+VLOOKUP($B13,'2003 70R Pond Acrtns'!$B$7:$AI$1206,34)+VLOOKUP($B13,'ECCV 70R Canal Acrtns'!$B$7:$AI$1206,27)+VLOOKUP($B13,'2003 70R Canal Acrtns'!$B$7:$AI$1206,27))/$RV13/1.9835 -> 0 | AM13: -0.004064876498 | AN13: =-(IF($N13=99999.99999,0,VLOOKUP($B13,'NFC Well Dplns-SDF'!$B$7:$Z$306,25)+VLOOKUP($B13,'NFC Well Dplns-URF'!B$7:$AB$306,20))/$RV13/1.9835) -> -0.07514542012 | AO13: 0.02854171031 | AP13: 0.04660370981 | AQ13: ECCV Riverside Credits | AR13: =IF(N13<99999.99999,-((BD13+BE13)*'Weldon Credit'!$BB$36),0) -> 0 | AS13: =-((BD13+BE13)*'Weldon Credit'!$BB$34) -> 0 | AT13: =IF(N13<99999.99999,-INDEX('Weldon Credit'!$AX$249:$BJ$276,MATCH($B$2,'Weldon Credit'!$AX$249:$AX$276,0),MATCH(A13,'Weldon Credit'!$AX$249:$BJ$249,0))/RV13/1.9835,0) -> -0.007144773798 | AU13: -0.007144773798 | AV13: =IF(N13<99999.99999,-((BD13+BE13)*'Weldon Credit'!$BB$37),0) -> 0 | AW13: =-((BD13+BE13)*'Weldon Credit'!$BB$35) -> 0 | AX13: =IF(N13<99999.99999,-INDEX('Weldon Credit'!$AX$281:$BJ$308,MATCH($B$2,'Weldon Credit'!$AX$281:$AX$308,0),MATCH(A13,'Weldon Credit'!$AX$281:$BJ$281,0))/RV13/1.9835,0) -> -0.07879357513 | AY13: -0.07879357513 | AZ13: =-(BD13+BE13)*'Weldon Credit'!$BB$38 -> 0 | BA13: =0.4*(INDEX('Riverside Pond Accrtns'!$B$6:$M$36,MATCH($B$2,'Riverside Pond Accrtns'!$A$6:$A$36,0),MATCH('ECCV Daily Replacement Summary'!A13,'Riverside Pond Accrtns'!$B$5:$M$5,0))/RV13)/1.9835 -> 1.310814217 | BB13: =(44/640)*(INDEX('Weldon Valley Accrtns (02CW377)'!$B$6:$M$30,MATCH($B$2,'Weldon Valley Accrtns (02CW377)'!$A$6:$A$30,0),MATCH(A13,'Weldon Valley Accrtns (02CW377)'!$B$5:$M$5,0))/RV13)/1.9835 -> 0.2610339467 | BC13: =(VLOOKUP($B13,'ECCV 70R Pond Acrtns'!$B$7:$AI$1206,25)+VLOOKUP($B13,'ECCV 70R Canal Acrtns'!$B$7:$AI$1206,20)+VLOOKUP($B13,'2003 70R Pond Acrtns'!$B$7:$AI$1206,25)+VLOOKUP($B13,'2003 70R Canal Acrtns'!$B$7:$AI$1206,20))/$RV13/1.9835 -> 0 | BD13: ='Joint Aug Station Deliveries'!G13 -> 0 | BE13: ='Joint Aug Station Deliveries'!H13 -> 0 | BF13: 0 | BG13: 0 | BH13: =IF(BT13="no",-MAX(0,MIN(BG13,(BE13-BD13))*(0.5/100*'Distances for Transit Losses'!$C$75)),0) -> 0 | BI13: 0 | BJ13: =MIN(-($AU13+AY13+AZ13+BF13+BG13+BH13),BA13-BA13*0.5/100*'Distances for Transit Losses'!$C$77) -> 0.08593834893 | BK13: 0 | BL13: =MIN(-($AU13+AY13+AZ13+BF13+BG13+BH13+BJ13+BK13),BC13-BC13*0.5/100*'Distances for Transit Losses'!$C$77) -> 0 | BM13: =-((BJ13+BL13)*(0.5/100*'Distances for Transit Losses'!$C$77)) -> -0.009152434161 | BN13: =IF(AND(JE13-JF13-FR13-DM13>0,IZ13="no"),MIN(-(AU13+AY13+AZ13+BF13+BG13+BH13+BJ13+BK13+BL13+BM13)/(1-0.5/100*'Distances for Transit Losses'!$C$99),JE13-JF13-FR13-DM13),0) -> 0 | BO13: =--BN13*0.5/100*'Distances for Transit Losses'!C$99 -> 0 | BP13: =IF(AND(HL13-HM13-JH13-FV13-LD13-DQ13>0,FK13="no"),MIN(-(AU13+AY13+AZ13+BF13+BG13+BH13+BJ13+BK13+BL13+BM13+BN13+BO13)/(1-0.5/100*'Distances for Transit Losses'!$C$101),HL13-HM13-JH13-FV13-LD13-DQ13),0) -> 0 | BQ13: =--BP13*0.5/100*'Distances for Transit Losses'!$C$101 -> 0 | BR13: 0 | BT13: no | BU13: no | BV13: no | BW13: 0 | BX13: 0 | BY13: 0 | CA13: =IF($BV13="No",MIN(-DH13,BA13-BJ13/(1-0.5/100*'Distances for Transit Losses'!$C$77)),0) -> 0 | CB13: =IF($BV13="No",MIN(-DH13+CA13,BC13-BL13/(1-0.5/100*'Distances for Transit Losses'!$C$77)),0) -> 0 | CC13: 0 | CD13: 0 | CE13: 0 | CF13: 1.439306105 | CG13: =AN13+AO13+AU13+AY13+AZ13+(BA13-AP13)+BB13+BC13+BD13+BE13-SUM(CA13:CE13) -> 1.392702395 | CH13: =-(IF($N13=99999.99999,0,VLOOKUP($B13,'NFC Well Dplns-SDF'!$B$7:$Z$306,16)+VLOOKUP($B13,'NFC Well Dplns-URF'!$B$7:$AB$306,13))/$RV13/1.9835) -> -0.2127558721 | CI13: =-(IF($N13>=99999,0,'88CW264(B) Pumping'!$E11/1.9835)+IF($N13>=99999,0,'88CW264(B) Pumping'!$E47/1.9835)+IF($N13>=99999,0,'88CW264(B) Pumping'!$E87/1.9835)+IF($N13>=99999,0,'88CW264(B) Pumping'!$E123/1.9835)+IF($N13>=51134.50919,0,'88CW264(B) Pumping'!$E163/1.9835)+IF($N13>=53406,0,'88CW264(B) Pumping'!$E199/1.9835)) -> -0.00925230458 | CJ13: -0.2220081766 | CK13: 0.1450733326 | CL13: 0.07693484407 | CM13: Haren Recharge | CN13: =-(IF($N13=99999.99999,0,VLOOKUP($B13,'United No. 2 Dplns'!$B$7:$X$676,13)/1.9835)) -> 0 | CO13: =CN13+(-(INDEX('Pre 1995 Net Accretions'!$B$6:$M$105,MATCH($B$2,'Pre 1995 Net Accretions'!$A$6:$A$105,0),MATCH($A13,'Pre 1995 Net Accretions'!$B$5:$M$5,0))/$RV13/1.9835)) -> 0.02808563779 | CP13: =-(IF(N13<99999.99999,(INDEX('70 Ranch RF Obligation'!$B$6:$M$36,MATCH($B$2,'70 Ranch RF Obligation'!$A$6:$A$36,0),MATCH('ECCV Daily Replacement Summary'!A13,'70 Ranch RF Obligation'!$B$5:$M$5,0))/RV13)/1.9835,0))-CS13*(1-'L. Latham Credit'!$E$41) -> -1.086604487 | CQ13: -1.058518849 | CR13: =(VLOOKUP($B13,'ECCV 70R Pond Acrtns'!$B$7:$AI$1206,16)+VLOOKUP($B13,'ECCV 70R Canal Acrtns'!$B$7:$AI$1206,13)+VLOOKUP($B13,'2003 70R Pond Acrtns'!$B$7:$AI$1206,16)+VLOOKUP($B13,'2003 70R Canal Acrtns'!$B$7:$AI$1206,13))/$RV13/1.9835 -> 0 | CS13: ='Joint Aug Station Deliveries'!BN13 -> 1.873456012 | CT13: 0.8149371629 | CU13: 1.058518849 | CV13: ='Joint Aug Station Deliveries'!BQ13 -> 0 | CW13: 0 | CX13: 0 | DA13: 0.8430228007 | DB13: 0 | DC13: 0 | DD13: =-DC13*0.5/100*'Distances for Transit Losses'!$C$48 -> 0 | DE13: 0 | DF13: 0 | DG13: 0 | DH13: 0 | DI13: 0 | DJ13: 0 | DK13: 0 | DL13: =('NFC Well Pumping'!I11+'NFC Well Pumping'!I48+'NFC Well Pumping'!I84)/1.9835 -> 0 | DM13: =IF(AND(JE13-JF13-FR13>0,IZ13="no"),MIN(-SUM(DH13:DL13)/(1-0.5/100*'Distances for Transit Losses'!$C$103),JE13-JF13-FR13),0) -> 0 | DN13: =-DM13*0.5/100*'Distances for Transit Losses'!C$103 -> 0 | DO13: 0 | DP13: =--DO13*0.5/100*'Distances for Transit Losses'!$C$127 -> 0 | DQ13: =IF(AND(HL13-HM13-JH13-FV13-LD13>0,FK13="no"),MIN(-SUM(DH13:DP13)/(1-0.5/100*'Distances for Transit Losses'!$C$105),HL13-HM13-JH13-FV13-LD13),0) -> 0 | DR13: =--DQ13*0.5/100*'Distances for Transit Losses'!$C$105 -> 0 | DS13: 0.8430228007 | DT13: 0 | DU13: ='Joint Aug Station Deliveries'!O13 -> 0 | DV13: =-(DU13*0.5/100*'Distances for Transit Losses'!$C$212) -> 0 | DW13: 0 | DY13: no | EA13: 0 | EB13: 0 | EC13: =-(EB13*0.5/100*'Distances for Transit Losses'!$C$214) -> 0 | ED13: 0 | EE13: =-0.25*(INDEX('GIC Credit'!$B$85:$M$116,MATCH($B$2,'GIC Credit'!$A$85:$A$116,0),MATCH($A13,'GIC Credit'!$B$85:$M$85,0))/$RV13/1.9835+FE13*'GIC Credit'!$Z$39+FF13*'GIC Credit'!$AO$39) -> -0.0001915 | EF13: -0.0001915 | EG13: 0 | EH13: ='Joint Aug Station Deliveries'!BF13 -> 0 | EI13: =-(EH13*0.5/100*'Distances for Transit Losses'!$C$240) -> 0 | EJ13: ='Joint Aug Station Deliveries'!BG13 -> 0 | EK13: =-(EJ13*0.5/100*'Distances for Transit Losses'!$C$242) -> 0 | EL13: 0 | EM13: =-(EL13*0.5/100*'Distances for Transit Losses'!$C$234) -> 0 | EN13: 0 | EP13: no | EQ13: -0.0001915 | ER13: =-(IF($N13<99999.99999,(INDEX('New Cache Credit'!$W$82:$AH$113,MATCH($B$2,'New Cache Credit'!$V$82:$V$113,0),MATCH($A13,'New Cache Credit'!$W$82:$AH$82,0))/$RV13)/1.9835,0))-DT13-ED13 -> -0.07163859239 | ES13: =-0.39*(INDEX('GIC Credit'!$B$85:$M$116,MATCH($B$2,'GIC Credit'!$A$85:$A$116,0),MATCH($A13,'GIC Credit'!$B$85:$M$85,0))/$RV13/1.9835+FE13*'GIC Credit'!$Z$39+FF13*'GIC Credit'!$AO$39) -> -0.00029874 | ET13: 0 | EU13: =-(ET13*0.5/100*('Distances for Transit Losses'!$C$216+'Distances for Transit Losses'!$C$222)) -> 0 | EW13: =IF(EV13="yes",'Joint Aug Station Deliveries'!V13,0) -> 0 | EX13: =-(EW13*0.5/100*('Distances for Transit Losses'!$C$218+'Distances for Transit Losses'!$C$220+'Distances for Transit Losses'!$C$222)) -> 0 | EY13: =IF(EV13="Yes",'Joint Aug Station Deliveries'!Y13,0) -> 0 | EZ13: =-(EY13*0.5/100*('Distances for Transit Losses'!$C$220+'Distances for Transit Losses'!$C$222)) -> 0 | FA13: ='Joint Aug Station Deliveries'!BH13 -> 0 | FB13: =-(FA13*0.5/100*'Distances for Transit Losses'!$C$226) -> 0 | FC13: -0.07212883239 | FD13: 0 | FE13: ='Joint Aug Station Deliveries'!BJ13 -> 0 | FF13: ='Joint Aug Station Deliveries'!BK13 -> 0 | FG13: =-(IF(N13<99999.99999,INDEX('Hist RF to SPR'!$AF$6:$AQ$30,MATCH($B$2,'Hist RF to SPR'!$AE$6:$AE$30,0),MATCH($A13,'Hist RF to SPR'!$AF$5:$AQ$5,0))/RV13/1.9835,0)) -> -0.0002698345146 | FH13: =-0.36*(INDEX('GIC Credit'!$B$85:$M$116,MATCH($B$2,'GIC Credit'!$A$85:$A$116,0),MATCH($A13,'GIC Credit'!$B$85:$M$85,0))/$RV13/1.9835+FE13*'GIC Credit'!$Z$39+FF13*'GIC Credit'!$AO$39) -> -0.00027576 | FI13: -0.07212883239 | FJ13: -0.0726744269 | FK13: no | FL13: 0 | FM13: 0 | FN13: 0 | FP13: =IF(AND(FK13="No",LV13>0),MIN(-FJ13,LV13),0) -> 0.0726744269 | FQ13: =IF(AND(FK13="No",$BV13="No"),MIN(-(FJ13+FP13),LW13),0) -> 0 | FR13: =IF(AND(JE13-JF13-HH13>0,IZ13="no"),MIN(-(FJ13+FP13+FQ13)/(1-0.5/100*'Distances for Transit Losses'!$C$107),JE13-JF13-HH13),0) -> 0 | FS13: =-FR13*0.5/100*'Distances for Transit Losses'!$C$107 -> 0 | FT13: 0 | FU13: =-FT13*0.5/100*'Distances for Transit Losses'!$C$125 -> 0 | FV13: =IF(AND(HL13-HM13-JH13>0,GX13="no"),MIN(-(FJ13+FP13+FQ13+FR13+FS13+FT13+FU13)/(1-0.5/100*'Distances for Transit Losses'!$C$109),HL13-HM13-JH13),0) -> 0 | FW13: =-FV13*0.5/100*'Distances for Transit Losses'!$C$115 -> 0 | FX13: 0 | FZ13: 0 | GB13: =IF(AND(GA12="no",(SUM('Joint Aug Station Deliveries'!$AF$9:'Joint Aug Station Deliveries'!$AF12)+'Joint Aug Station Deliveries'!$AF13)*1.9835>'New Cache Credit'!$BY$39,(SUM('Joint Aug Station Deliveries'!$AF$9:'Joint Aug Station Deliveries'!$AF12)+'Joint Aug Station Deliveries'!$AF13)*1.9835>'New Cache Credit'!$CH$39),0,'Joint Aug Station Deliveries'!X13) -> 0 | GC13: =-(GB13*0.5/100*'Distances for Transit Losses'!$C$208) -> 0 | GE13: =IF(AND(GD12="no",(SUM('Joint Aug Station Deliveries'!$AF$9:'Joint Aug Station Deliveries'!$AF12)+'Joint Aug Station Deliveries'!$AF13)*1.9835>'New Cache Credit'!$BY$39,(SUM('Joint Aug Station Deliveries'!$AF$9:'Joint Aug Station Deliveries'!$AF12)+'Joint Aug Station Deliveries'!$AF13)*1.9835>'New Cache Credit'!$CH$39),0,'Joint Aug Station Deliveries'!AA13) -> 0 | GF13: =-(GE13*0.5/100*'Distances for Transit Losses'!$C$200) -> 0 | GG13: =IF(AND(GD12="no",(SUM('Joint Aug Station Deliveries'!$AF$9:'Joint Aug Station Deliveries'!$AF12)+'Joint Aug Station Deliveries'!$AF13)*1.9835>'New Cache Credit'!$BY$39,(SUM('Joint Aug Station Deliveries'!$AF$9:'Joint Aug Station Deliveries'!$AF12)+'Joint Aug Station Deliveries'!$AF13)*1.9835>'New Cache Credit'!$CH$39),0,'Joint Aug Station Deliveries'!AD13) -> 0 | GH13: =-(GG13*0.5/100*'Distances for Transit Losses'!$C$206) -> 0 | GI13: 0 | GJ13: 0 | GK13: 4.163336342e-17 | GL13: 0 | GM13: =-(IF(N13<99999.99999,INDEX('Hist RF to SPR'!$Q$6:$AB$30,MATCH($B$2,'Hist RF to SPR'!$P$6:$P$30,0),MATCH($A13,'Hist RF to SPR'!$Q$5:$AB$5,0))/RV13/1.9835,0)) -> -0.002436185049 | GN13: =-(IF(OR($N13<99999.99999,E13="Lower Latham",I13="Lower Latham",E13="Highland",I13="Highland",E13="Plum",I13="Plum"),(INDEX('FIDCO Credit'!$Y$48:$AJ$78,MATCH($B$2,'FIDCO Credit'!$X$48:$X$78,0),MATCH($A13,'FIDCO Credit'!$Y$47:$AJ$47,0))/$RV13)/1.9835,0)) -> -0.0017595 | GO13: =-(IF(OR($N13<99999.99999,E13="Lower Latham",I13="Lower Latham",E13="Highland",I13="Highland",E13="Plum",I13="Plum"),(INDEX('Western Credit'!$W$84:$AH$114,MATCH($B$2,'Western Credit'!$V$84:$V$114,0),MATCH($A13,'Western Credit'!$W$83:$AH$83,0))/$RV13)/1.9835+'Haren Daily Recharge'!K12*'Western Credit'!$Z$40,0)) -> 0 | GP13: -0.004195685049 | GQ13: 0 | GR13: 0 | GS13: =IF(AND(GY13="no",GZ13="no"),MIN(-(GN13-GQ13-GR13)/(1-0.5/100*'Distances for Transit Losses'!$C$95),IW13),0) -> 0 | GT13: =-GS13*0.5/100*'Distances for Transit Losses'!$C$95 -> 0 | GU13: =VLOOKUP($B13,'ECCV Haren Pond S.P. Acrtns'!$B$7:$G$306,6)/$RV13/1.9835-0.1 -> 1.384290832 | GV13: 0.004195685049 | GW13: 0.1177185208 | GX13: no | GY13: no | GZ13: no | HA13: 0 | HB13: 0 | HC13: 0 | HE13: 0 | HF13: 0 | HG13: 0 | HH13: =IF(AND(JE13-JF13>0,IZ13="no"),MIN(-HG13/(1-0.5/100*'Distances for Transit Losses'!$C$111),JE13-JF13),0) -> 0 | HI13: =-HH13*0.5/100*'Distances for Transit Losses'!$C$111 -> 0 | HJ13: =IF(AND(JI13+JJ13-JK13-JV13>0,IZ13="no"),MIN((-HG13-(HH13+HI13))/(1-0.5/100*'Distances for Transit Losses'!$C$113),JI13+JJ13-JK13-JV13),0) -> 0 | HK13: =-HJ13*0.5/100*'Distances for Transit Losses'!$C$113 -> 0 | HL13: 0 | HM13: =IF(HL13>0,MIN(-(HG13+HH13+HI13+HJ13+HK13)/(1-0.5/100*'Distances for Transit Losses'!$C$115),HL13),0) -> 0 | HN13: =-HM13*0.5/100*'Distances for Transit Losses'!$C$115 -> 0 | HO13: 0 | HQ13: 0 | HR13: ='Joint Aug Station Deliveries'!AS13 -> 0 | HS13: =HR13*'Western Credit'!$Z$42 -> 0 | HT13: ='Joint Aug Station Deliveries'!AJ13 -> 0 | HU13: =IF(AND(HT13>0,SUM($HT$9:HT13,$HV$9:HV13,$IW$9:IW13)*1.9835<OFFSET('FIDCO Credit'!$X$39,0,MATCH($A13,'FIDCO Credit'!$Y$5:$AJ$5,0))),HT13-GQ13,0) -> 0 | HV13: ='Joint Aug Station Deliveries'!AM13 -> 0 | HW13: =IF(AND(HV13>0,SUM($HT$9:HT13,$HV$9:HV13,$IW$9:IW13)*1.9835<OFFSET('FIDCO Credit'!$X$39,0,MATCH($A13,'FIDCO Credit'!$Y$5:$AJ$5,0))),HV13-GR13,0) -> 0 | HX13: =MAX(0,(KY13+KZ13))/(1-0.5/100*'Distances for Transit Losses'!$C$83) -> 0 | HY13: =MAX(0,(LA13+LB13)/(1-0.5/100*'Distances for Transit Losses'!$C$79)) -> 0 | HZ13: 0 | IA13: =-HZ13*0.5/100*'Distances for Transit Losses'!$C$85 -> 0 | IB13: 0 | IC13: 0 | ID13: =-IC13*0.5/100*'Distances for Transit Losses'!$C$34 -> 0 | IE13: 0 | IF13: 0 | IG13: 0 | IH13: 0 | II13: 0 | IJ13: 0 | IK13: 0 | IL13: 0 | IM13: 0 | IN13: 0 | IO13: 0 | IP13: 0 | IQ13: =-IP13*0.5/100*'Distances for Transit Losses'!$C$123 -> 0 | IR13: 0 | IS13: 1.262376626 | IT13: 4.163336342e-17 | IU13: 0 | IV13: =-(IF(F13<99999.99999,INDEX('Hist RF to SPR'!$B$6:$M$30,MATCH($B$2,'Hist RF to SPR'!$A$6:$A$30,0),MATCH($A13,'Hist RF to SPR'!$B$5:$M$5,0))/RV13/1.9835,0)) -> -0.02147266205 | IW13: ='Joint Aug Station Deliveries'!AP13 -> 0 | IX13: =IF(AND(IW13>0,SUM($HT$9:HT13,$HV$9:HV13,$IW$9:IW13)*1.9835<OFFSET('FIDCO Credit'!$X$39,0,MATCH($A13,'FIDCO Credit'!$Y$5:$AJ$5,0))),IW13-GS13,0) -> 0 | IY13: 0 | IZ13: no | JA13: 4.163336342e-17 | JB13: 0 | JC13: 0.02147266205 | JD13: 0 | JE13: 0 | JF13: =IF(JE13>0,MIN(-JD13/(1-0.5/100*'Distances for Transit Losses'!$C$117),JE13),0) -> 0 | JG13: =-JF13*0.5/100*'Distances for Transit Losses'!$C$117 -> 0 | JH13: 0 | JI13: 0 | JJ13: =-JI13*0.5/100*'Distances for Transit Losses'!$C$70 -> 0 | JK13: =IF((JI13+JJ13)>0,MIN((-JD13-(JF13-JG13)-JH13)/(1-0.5/100*'Distances for Transit Losses'!$C$119),(JI13+JJ13)),0) -> 0 | JL13: =-JK13*0.5/100*'Distances for Transit Losses'!$C$119 -> 0 | JM13: 0 | JO13: 0 | JP13: 0 | JQ13: 0 | JR13: 0 | JS13: 0 | JT13: 0 | JU13: 0 | JV13: 0 | JW13: =-JV13*0.5/100*'Distances for Transit Losses'!$C$121 -> 0 | JX13: 0 | JY13: 0 | JZ13: 0 | KA13: =-(IF(N13<99999.99999,(VLOOKUP(B13,'ECCV Upper Dpln'!$B$7:$BD$306,55))/RV13/1.9835,0)) -> -3.375455381 | KB13: =-(IF(N13<99999.99999,INDEX('Hist RF abv Milton'!$B$6:$M$30,MATCH($B$2,'Hist RF abv Milton'!$A$6:$A$30,0),MATCH($A13,'Hist RF abv Milton'!$B$5:$M$5,0))/RV13/1.9835,0)) -> -0.02367044831 | KC13: 0 | KD13: =(VLOOKUP($B13,'ECCV Beebe Pond Acrtns'!$B$7:$BI$1206,41)+VLOOKUP($B13,'ECCV Canal Acrtns'!$B$7:$AL$1206,22)+VLOOKUP($B13,'2003 Beebe Pond Acrtns'!$B$7:$BI$1206,41)+VLOOKUP($B13,'2003 Canal Acrtns'!$B$7:$AL$1206,22))/$RV13/1.9835+0.69 -> 1.045084924 | KE13: 0 | KF13: 0 | KG13: 0 | KH13: 1.045084924 | KI13: 0 | KJ13: no | KK13: 0 | KL13: 0.02367044831 | KM13: =IF($KJ13="No",IF($KK13>0,0,MIN(-(KA13+KH13+KI13),DS13-KL13)),0)+FJ13 -> 0.7466779255 | KN13: 0 | KO13: 1.392702395 | KP13: 0 | KQ13: 0 | KR13: -0.1909901363 | KS13: 0 | KT13: 1.333333333 | KU13: =-(KT13*0.5/100*'Distances for Transit Losses'!$C$6) -> -0.018 | KV13: 0 | KW13: 0 | KX13: 0 | KY13: =IF(AND(E13<>"Lower Latham",I13<>"Lower Latham"),MIN(-(KS13+KV13),HU13-HU13*0.5/100*'Distances for Transit Losses'!$C$83),0) -> 0 | KZ13: =IF(AND(E13<>"Lower Latham",I13<>"Lower Latham"),MAX(0,MIN(-(KR13+KT13+KU13+KX13),HU13-HU13*0.5/100*'Distances for Transit Losses'!$C$83-KY13/(1-0.5/100*'Distances for Transit Losses'!$C$83))),0) -> 0 | LA13: =MIN(-(KS13+KY13),HS13-HS13*0.5/100*'Distances for Transit Losses'!$C$79) -> 0 | LB13: =MAX(0,MIN(-(KR13+KT13+KU13+KZ13),HS13-HS13*0.5/100*'Distances for Transit Losses'!$C$79-LA13/(1-0.5/100*'Distances for Transit Losses'!$C$79))) -> 0 | LC13: =IF(FK13="no",MIN(-(MIN(0,KR13+KS13+KT13+KU13+KZ13+LB13))+CL13/(1-0.5/100*'Distances for Transit Losses'!$C$40)+LT13/(1-0.5/100*'Distances for Transit Losses'!$C$36),(GU13-GV13)-(GU13-GV13)*0.5/100*'Distances for Transit Losses'!$C$79),0) -> 0.1177185208 | LD13: =MAX(0,IF(AND(HL13-HM13-JH13-FV13>0,FK13="no"),MIN(-(KR13+KT13+KU13+KX13+KZ13+LB13+LC13)/(1-0.5/100*'Distances for Transit Losses'!$C$89),HL13-HM13-JH13-FV13),0)) -> 0 | LE13: =-LD13*0.5/100*'Distances for Transit Losses'!$C$89 -> 0 | LH13: =SUM(KA13:KC13)+KH13+KI13+SUM(KL13:KQ13)+SUM(KT13:LF13)-(CL13/(1-0.5/100*'Distances for Transit Losses'!$C$40)+LT13/(1-0.5/100*'Distances for Transit Losses'!$C$36)) -> 1.124343197 | LI13: 0 | LJ13: 0 | LK13: 0.0726744269 | LL13: 0 | LM13: =-(IF(N13<99999.99999,INDEX('Hist RF blw Milton'!$B$6:$M$30,MATCH($B$2,'Hist RF blw Milton'!$A$6:$A$30,0),MATCH($A13,'Hist RF blw Milton'!$B$5:$M$5,0))/RV13/1.9835,0)) -> -0.02924706861 | LN13: no | LO13: 0 | LP13: 0 | LQ13: -0.02924706861 | LR13: 0 | LS13: 0 | LT13: 0.02924706861 | LU13: Haren Recharge | LV13: 0.0726744269 | LW13: 0 | LX13: =-(IF(N13<99999.99999,INDEX('Hist RF to Box Elder'!$B$6:$M$30,MATCH($B$2,'Hist RF to Box Elder'!$A$6:$A$30,0),MATCH($A13,'Hist RF to Box Elder'!$B$5:$M$5,0))/RV13/1.9835,0)) -> -0.01307806535 | LY13: =(VLOOKUP($B13,'ECCV Beebe Pond Acrtns'!$B$7:$BI$1206,54)+VLOOKUP($B13,'ECCV Canal Acrtns'!$B$7:$AL$1206,34)+VLOOKUP($B13,'2003 Beebe Pond Acrtns'!$B$7:$BI$1206,54)+VLOOKUP($B13,'2003 Canal Acrtns'!$B$7:$AL$1206,34)+VLOOKUP($B13,'84CW090 Beebe Pond Acrtns'!$B$7:$BI$1206,55)+VLOOKUP($B13,'84CW090 Canal Acrtns'!$B$7:$AL$1206,34))/$RV13/1.9835 -> 0.1102842448 | LZ13: 0.01307806535 | MA13: 0 | MB13: 0 | MC13: 0 | ME13: -4.981894773 | MF13: 4.641187547 | MG13: 0.02924706861 | MH13: 0.01307806535 | MI13: 0.02147266205 | MJ13: 0.004195685049 | MK13: 0.0726744269 | ML13: 0 | MM13: 1.280527026 | MN13: 0.1519313349 | MO13: 6.214313816 | MP13: 1.232419044 | MQ13: 0 | MR13: 0 | MS13: 0 | MU13: 0 | MV13: 0 | MW13: 0 | MX13: 0 | MY13: 0 | MZ13: 0 | NA13: 0 | NB13: 0 | ND13: 0 | NE13: 0 | NF13: 0 | NG13: 0 | NH13: 0 | NI13: 0 | NJ13: 0 | NK13: 0 | NL13: 0 | NM13: 0 | NN13: 0 | NO13: 0 | NQ13: 0 | NR13: 0 | NS13: 0 | NT13: 0 | NU13: 0 | NV13: 0 | NW13: 0 | NX13: 0 | NY13: 0 | NZ13: 0 | OA13: 0 | OC13: 0 | OD13: 0 | OE13: 0 | OF13: 0 | OG13: 0 | OH13: 0 | OI13: 0 | OJ13: 0 | OK13: 0 | OL13: 0 | OM13: 0 | OO13: 0 | OP13: 0 | OQ13: 0 | OR13: 0 | OS13: 0 | OT13: 0 | OU13: 0 | OV13: 0 | OW13: 0 | OX13: 0 | OY13: 0 | OZ13: 0 | PA13: 0 | PC13: 0 | PD13: 0 | PE13: 0 | PF13: 0 | PG13: 0 | PH13: 0 | PI13: 0 | PJ13: 0 | PK13: 0 | PM13: 0 | PN13: 0 | PO13: 0 | PP13: 0 | PQ13: 0 | PR13: 0 | PS13: 0 | PT13: 0 | PV13: 0 | PW13: 0 | PX13: 0 | PZ13: 0 | QA13: 0 | QB13: 0 | QC13: 0 | QF13: 0 | QG13: 0 | QH13: 0 | QI13: 0 | QJ13: 0 | QK13: 0 | QL13: 0 | QN13: 0 | QO13: 0 | QP13: 0 | QQ13: 0 | QR13: 0 | QS13: 309.6 | QU13: 0 | QV13: 0 | QW13: 0 | QX13: 0 | QY13: 0 | QZ13: 0 | RA13: 0 | RB13: 0 | RC13: 0 | RD13: 0 | RE13: 0 | RF13: 0 | RG13: 0 | RH13: 0 | RI13: 0 | RJ13: 0 | RK13: 0 | RL13: 0 | RM13: 0 | RN13: 0 | RO13: 0 | RP13: TRUE | RQ13: TRUE | RS13: 1.333333333 | RT13: 0 | RV13: =VLOOKUP(A13,'Control Sheet'!$G$9:$H$20,2) -> 30
A14: Apr | B14: 2017-04-06 | C14: Bijou | D14: 2004-12-07 | E14: Prewitt Reservoir | F14: 56589 | K14: Bijou | L14: 2004-12-07 | M14: Prewitt Reservoir | N14: 56589 | S14: 0.1138131984 | T14: 0 | U14: 0 | V14: 0 | W14: 0 | X14: 0 | Y14: =('NFC Well Pumping'!$L12+'NFC Well Pumping'!$L49+'NFC Well Pumping'!$L85)/1.9835 -> 0 | Z14: ='88CW264(B) Pumping'!$E12/1.9835+'88CW264(B) Pumping'!$E48/1.9835+'88CW264(B) Pumping'!E88/1.9835+'88CW264(B) Pumping'!E124/1.9835+'88CW264(B) Pumping'!E164/1.9835+'88CW264(B) Pumping'!E200/1.9835 -> 0.00925230458 | AA14: 0.1138131984 | AB14: =('United No. 2 Well Pumping'!G13+'United No. 2 Well Pumping'!G49+'United No. 2 Well Pumping'!G85)/1.9835 -> 0 | AC14: =('United No. 2 Well Pumping'!F13+'United No. 2 Well Pumping'!F49+'United No. 2 Well Pumping'!F85)/1.9835 -> 0 | AD14: 0 | AF14: 0.00925230458 | AG14: =U14+AC14+'United Res'!AA176+'United Res'!AQ176+'Milliken Res'!I164 -> 0 | AH14: 100 | AI14: =-(IF($N14=99999.99999,0,VLOOKUP($B14,'NFC Well Dplns-URF'!B$7:$AB$306,27))/$RV14/1.9835) -> -0.004064876498 | AJ14: 0 | AL14: =(VLOOKUP($B14,'ECCV 70R Pond Acrtns'!$B$7:$AI$1206,34)+VLOOKUP($B14,'2003 70R Pond Acrtns'!$B$7:$AI$1206,34)+VLOOKUP($B14,'ECCV 70R Canal Acrtns'!$B$7:$AI$1206,27)+VLOOKUP($B14,'2003 70R Canal Acrtns'!$B$7:$AI$1206,27))/$RV14/1.9835 -> 0 | AM14: -0.004064876498 | AN14: =-(IF($N14=99999.99999,0,VLOOKUP($B14,'NFC Well Dplns-SDF'!$B$7:$Z$306,25)+VLOOKUP($B14,'NFC Well Dplns-URF'!B$7:$AB$306,20))/$RV14/1.9835) -> -0.07514542012 | AO14: 0.02854171031 | AP14: 0.04660370981 | AQ14: ECCV Riverside Credits | AR14: =IF(N14<99999.99999,-((BD14+BE14)*'Weldon Credit'!$BB$36),0) -> 0 | AS14: =-((BD14+BE14)*'Weldon Credit'!$BB$34) -> 0 | AT14: =IF(N14<99999.99999,-INDEX('Weldon Credit'!$AX$249:$BJ$276,MATCH($B$2,'Weldon Credit'!$AX$249:$AX$276,0),MATCH(A14,'Weldon Credit'!$AX$249:$BJ$249,0))/RV14/1.9835,0) -> -0.007144773798 | AU14: -0.007144773798 | AV14: =IF(N14<99999.99999,-((BD14+BE14)*'Weldon Credit'!$BB$37),0) -> 0 | AW14: =-((BD14+BE14)*'Weldon Credit'!$BB$35) -> 0 | AX14: =IF(N14<99999.99999,-INDEX('Weldon Credit'!$AX$281:$BJ$308,MATCH($B$2,'Weldon Credit'!$AX$281:$AX$308,0),MATCH(A14,'Weldon Credit'!$AX$281:$BJ$281,0))/RV14/1.9835,0) -> -0.07879357513 | AY14: -0.07879357513 | AZ14: =-(BD14+BE14)*'Weldon Credit'!$BB$38 -> 0 | BA14: =0.4*(INDEX('Riverside Pond Accrtns'!$B$6:$M$36,MATCH($B$2,'Riverside Pond Accrtns'!$A$6:$A$36,0),MATCH('ECCV Daily Replacement Summary'!A14,'Riverside Pond Accrtns'!$B$5:$M$5,0))/RV14)/1.9835 -> 1.310814217 | BB14: =(44/640)*(INDEX('Weldon Valley Accrtns (02CW377)'!$B$6:$M$30,MATCH($B$2,'Weldon Valley Accrtns (02CW377)'!$A$6:$A$30,0),MATCH(A14,'Weldon Valley Accrtns (02CW377)'!$B$5:$M$5,0))/RV14)/1.9835 -> 0.2610339467 | BC14: =(VLOOKUP($B14,'ECCV 70R Pond Acrtns'!$B$7:$AI$1206,25)+VLOOKUP($B14,'ECCV 70R Canal Acrtns'!$B$7:$AI$1206,20)+VLOOKUP($B14,'2003 70R Pond Acrtns'!$B$7:$AI$1206,25)+VLOOKUP($B14,'2003 70R Canal Acrtns'!$B$7:$AI$1206,20))/$RV14/1.9835 -> 0 | BD14: ='Joint Aug Station Deliveries'!G14 -> 0 | BE14: ='Joint Aug Station Deliveries'!H14 -> 0 | BF14: 0 | BG14: 0 | BH14: =IF(BT14="no",-MAX(0,MIN(BG14,(BE14-BD14))*(0.5/100*'Distances for Transit Losses'!$C$75)),0) -> 0 | BI14: 0 | BJ14: =MIN(-($AU14+AY14+AZ14+BF14+BG14+BH14),BA14-BA14*0.5/100*'Distances for Transit Losses'!$C$77) -> 0.08593834893 | BK14: 0 | BL14: =MIN(-($AU14+AY14+AZ14+BF14+BG14+BH14+BJ14+BK14),BC14-BC14*0.5/100*'Distances for Transit Losses'!$C$77) -> 0 | BM14: =-((BJ14+BL14)*(0.5/100*'Distances for Transit Losses'!$C$77)) -> -0.009152434161 | BN14: =IF(AND(JE14-JF14-FR14-DM14>0,IZ14="no"),MIN(-(AU14+AY14+AZ14+BF14+BG14+BH14+BJ14+BK14+BL14+BM14)/(1-0.5/100*'Distances for Transit Losses'!$C$99),JE14-JF14-FR14-DM14),0) -> 0 | BO14: =--BN14*0.5/100*'Distances for Transit Losses'!C$99 -> 0 | BP14: =IF(AND(HL14-HM14-JH14-FV14-LD14-DQ14>0,FK14="no"),MIN(-(AU14+AY14+AZ14+BF14+BG14+BH14+BJ14+BK14+BL14+BM14+BN14+BO14)/(1-0.5/100*'Distances for Transit Losses'!$C$101),HL14-HM14-JH14-FV14-LD14-DQ14),0) -> 0 | BQ14: =--BP14*0.5/100*'Distances for Transit Losses'!$C$101 -> 0 | BR14: 0 | BT14: no | BU14: no | BV14: no | BW14: 0 | BX14: 0 | BY14: 0 | CA14: =IF($BV14="No",MIN(-DH14,BA14-BJ14/(1-0.5/100*'Distances for Transit Losses'!$C$77)),0) -> 0 | CB14: =IF($BV14="No",MIN(-DH14+CA14,BC14-BL14/(1-0.5/100*'Distances for Transit Losses'!$C$77)),0) -> 0 | CC14: 0 | CD14: 0 | CE14: 0 | CF14: 1.439306105 | CG14: =AN14+AO14+AU14+AY14+AZ14+(BA14-AP14)+BB14+BC14+BD14+BE14-SUM(CA14:CE14) -> 1.392702395 | CH14: =-(IF($N14=99999.99999,0,VLOOKUP($B14,'NFC Well Dplns-SDF'!$B$7:$Z$306,16)+VLOOKUP($B14,'NFC Well Dplns-URF'!$B$7:$AB$306,13))/$RV14/1.9835) -> -0.2127558721 | CI14: =-(IF($N14>=99999,0,'88CW264(B) Pumping'!$E12/1.9835)+IF($N14>=99999,0,'88CW264(B) Pumping'!$E48/1.9835)+IF($N14>=99999,0,'88CW264(B) Pumping'!$E88/1.9835)+IF($N14>=99999,0,'88CW264(B) Pumping'!$E124/1.9835)+IF($N14>=51134.50919,0,'88CW264(B) Pumping'!$E164/1.9835)+IF($N14>=53406,0,'88CW264(B) Pumping'!$E200/1.9835)) -> -0.00925230458 | CJ14: -0.2220081766 | CK14: 0.1450733326 | CL14: 0.07693484407 | CM14: Haren Recharge | CN14: =-(IF($N14=99999.99999,0,VLOOKUP($B14,'United No. 2 Dplns'!$B$7:$X$676,13)/1.9835)) -> 0 | CO14: =CN14+(-(INDEX('Pre 1995 Net Accretions'!$B$6:$M$105,MATCH($B$2,'Pre 1995 Net Accretions'!$A$6:$A$105,0),MATCH($A14,'Pre 1995 Net Accretions'!$B$5:$M$5,0))/$RV14/1.9835)) -> 0.02808563779 | CP14: =-(IF(N14<99999.99999,(INDEX('70 Ranch RF Obligation'!$B$6:$M$36,MATCH($B$2,'70 Ranch RF Obligation'!$A$6:$A$36,0),MATCH('ECCV Daily Replacement Summary'!A14,'70 Ranch RF Obligation'!$B$5:$M$5,0))/RV14)/1.9835,0))-CS14*(1-'L. Latham Credit'!$E$41) -> -1.577564911 | CQ14: -1.549479273 | CR14: =(VLOOKUP($B14,'ECCV 70R Pond Acrtns'!$B$7:$AI$1206,16)+VLOOKUP($B14,'ECCV 70R Canal Acrtns'!$B$7:$AI$1206,13)+VLOOKUP($B14,'2003 70R Pond Acrtns'!$B$7:$AI$1206,16)+VLOOKUP($B14,'2003 70R Canal Acrtns'!$B$7:$AI$1206,13))/$RV14/1.9835 -> 0 | CS14: ='Joint Aug Station Deliveries'!BN14 -> 2.719939501 | CT14: 1.170460228 | CU14: 1.549479273 | CV14: ='Joint Aug Station Deliveries'!BQ14 -> 0 | CW14: 0 | CX14: 0 | DA14: 1.198545866 | DB14: 0 | DC14: 0 | DD14: =-DC14*0.5/100*'Distances for Transit Losses'!$C$48 -> 0 | DE14: 0 | DF14: 0 | DG14: 0 | DH14: 0 | DI14: 0 | DJ14: 0 | DK14: 0 | DL14: =('NFC Well Pumping'!I12+'NFC Well Pumping'!I49+'NFC Well Pumping'!I85)/1.9835 -> 0 | DM14: =IF(AND(JE14-JF14-FR14>0,IZ14="no"),MIN(-SUM(DH14:DL14)/(1-0.5/100*'Distances for Transit Losses'!$C$103),JE14-JF14-FR14),0) -> 0 | DN14: =-DM14*0.5/100*'Distances for Transit Losses'!C$103 -> 0 | DO14: 0 | DP14: =--DO14*0.5/100*'Distances for Transit Losses'!$C$127 -> 0 | DQ14: =IF(AND(HL14-HM14-JH14-FV14-LD14>0,FK14="no"),MIN(-SUM(DH14:DP14)/(1-0.5/100*'Distances for Transit Losses'!$C$105),HL14-HM14-JH14-FV14-LD14),0) -> 0 | DR14: =--DQ14*0.5/100*'Distances for Transit Losses'!$C$105 -> 0 | DS14: 1.198545866 | DT14: 0 | DU14: ='Joint Aug Station Deliveries'!O14 -> 0 | DV14: =-(DU14*0.5/100*'Distances for Transit Losses'!$C$212) -> 0 | DW14: 0 | DY14: no | EA14: 0 | EB14: 0 | EC14: =-(EB14*0.5/100*'Distances for Transit Losses'!$C$214) -> 0 | ED14: 0 | EE14: =-0.25*(INDEX('GIC Credit'!$B$85:$M$116,MATCH($B$2,'GIC Credit'!$A$85:$A$116,0),MATCH($A14,'GIC Credit'!$B$85:$M$85,0))/$RV14/1.9835+FE14*'GIC Credit'!$Z$39+FF14*'GIC Credit'!$AO$39) -> -0.0001915 | EF14: -0.0001915 | EG14: 0 | EH14: ='Joint Aug Station Deliveries'!BF14 -> 0 | EI14: =-(EH14*0.5/100*'Distances for Transit Losses'!$C$240) -> 0 | EJ14: ='Joint Aug Station Deliveries'!BG14 -> 0 | EK14: =-(EJ14*0.5/100*'Distances for Transit Losses'!$C$242) -> 0 | EL14: 0 | EM14: =-(EL14*0.5/100*'Distances for Transit Losses'!$C$234) -> 0 | EN14: 0 | EP14: no | EQ14: -0.0001915 | ER14: =-(IF($N14<99999.99999,(INDEX('New Cache Credit'!$W$82:$AH$113,MATCH($B$2,'New Cache Credit'!$V$82:$V$113,0),MATCH($A14,'New Cache Credit'!$W$82:$AH$82,0))/$RV14)/1.9835,0))-DT14-ED14 -> -0.07163859239 | ES14: =-0.39*(INDEX('GIC Credit'!$B$85:$M$116,MATCH($B$2,'GIC Credit'!$A$85:$A$116,0),MATCH($A14,'GIC Credit'!$B$85:$M$85,0))/$RV14/1.9835+FE14*'GIC Credit'!$Z$39+FF14*'GIC Credit'!$AO$39) -> -0.00029874 | ET14: 0 | EU14: =-(ET14*0.5/100*('Distances for Transit Losses'!$C$216+'Distances for Transit Losses'!$C$222)) -> 0 | EW14: =IF(EV14="yes",'Joint Aug Station Deliveries'!V14,0) -> 0 | EX14: =-(EW14*0.5/100*('Distances for Transit Losses'!$C$218+'Distances for Transit Losses'!$C$220+'Distances for Transit Losses'!$C$222)) -> 0 | EY14: =IF(EV14="Yes",'Joint Aug Station Deliveries'!Y14,0) -> 0 | EZ14: =-(EY14*0.5/100*('Distances for Transit Losses'!$C$220+'Distances for Transit Losses'!$C$222)) -> 0 | FA14: ='Joint Aug Station Deliveries'!BH14 -> 0 | FB14: =-(FA14*0.5/100*'Distances for Transit Losses'!$C$226) -> 0 | FC14: -0.07212883239 | FD14: 0 | FE14: ='Joint Aug Station Deliveries'!BJ14 -> 0 | FF14: ='Joint Aug Station Deliveries'!BK14 -> 0 | FG14: =-(IF(N14<99999.99999,INDEX('Hist RF to SPR'!$AF$6:$AQ$30,MATCH($B$2,'Hist RF to SPR'!$AE$6:$AE$30,0),MATCH($A14,'Hist RF to SPR'!$AF$5:$AQ$5,0))/RV14/1.9835,0)) -> -0.0002698345146 | FH14: =-0.36*(INDEX('GIC Credit'!$B$85:$M$116,MATCH($B$2,'GIC Credit'!$A$85:$A$116,0),MATCH($A14,'GIC Credit'!$B$85:$M$85,0))/$RV14/1.9835+FE14*'GIC Credit'!$Z$39+FF14*'GIC Credit'!$AO$39) -> -0.00027576 | FI14: -0.07212883239 | FJ14: -0.0726744269 | FK14: no | FL14: 0 | FM14: 0 | FN14: 0 | FP14: 0.0726744269 | FQ14: 0 | FR14: =IF(AND(JE14-JF14-HH14>0,IZ14="no"),MIN(-(FJ14+FP14+FQ14)/(1-0.5/100*'Distances for Transit Losses'!$C$107),JE14-JF14-HH14),0) -> 0 | FS14: =-FR14*0.5/100*'Distances for Transit Losses'!$C$107 -> 0 | FT14: 0 | FU14: =-FT14*0.5/100*'Distances for Transit Losses'!$C$125 -> 0 | FV14: =IF(AND(HL14-HM14-JH14>0,GX14="no"),MIN(-(FJ14+FP14+FQ14+FR14+FS14+FT14+FU14)/(1-0.5/100*'Distances for Transit Losses'!$C$109),HL14-HM14-JH14),0) -> 0 | FW14: =-FV14*0.5/100*'Distances for Transit Losses'!$C$115 -> 0 | FX14: 0 | FZ14: 0 | GB14: =IF(AND(GA13="no",(SUM('Joint Aug Station Deliveries'!$AF$9:'Joint Aug Station Deliveries'!$AF13)+'Joint Aug Station Deliveries'!$AF14)*1.9835>'New Cache Credit'!$BY$39,(SUM('Joint Aug Station Deliveries'!$AF$9:'Joint Aug Station Deliveries'!$AF13)+'Joint Aug Station Deliveries'!$AF14)*1.9835>'New Cache Credit'!$CH$39),0,'Joint Aug Station Deliveries'!X14) -> 0 | GC14: =-(GB14*0.5/100*'Distances for Transit Losses'!$C$208) -> 0 | GE14: =IF(AND(GD13="no",(SUM('Joint Aug Station Deliveries'!$AF$9:'Joint Aug Station Deliveries'!$AF13)+'Joint Aug Station Deliveries'!$AF14)*1.9835>'New Cache Credit'!$BY$39,(SUM('Joint Aug Station Deliveries'!$AF$9:'Joint Aug Station Deliveries'!$AF13)+'Joint Aug Station Deliveries'!$AF14)*1.9835>'New Cache Credit'!$CH$39),0,'Joint Aug Station Deliveries'!AA14) -> 0 | GF14: =-(GE14*0.5/100*'Distances for Transit Losses'!$C$200) -> 0 | GG14: =IF(AND(GD13="no",(SUM('Joint Aug Station Deliveries'!$AF$9:'Joint Aug Station Deliveries'!$AF13)+'Joint Aug Station Deliveries'!$AF14)*1.9835>'New Cache Credit'!$BY$39,(SUM('Joint Aug Station Deliveries'!$AF$9:'Joint Aug Station Deliveries'!$AF13)+'Joint Aug Station Deliveries'!$AF14)*1.9835>'New Cache Credit'!$CH$39),0,'Joint Aug Station Deliveries'!AD14) -> 0 | GH14: =-(GG14*0.5/100*'Distances for Transit Losses'!$C$206) -> 0 | GI14: 0 | GJ14: 0 | GK14: 4.163336342e-17 | GL14: 0.1352858604 | GM14: =-(IF(N14<99999.99999,INDEX('Hist RF to SPR'!$Q$6:$AB$30,MATCH($B$2,'Hist RF to SPR'!$P$6:$P$30,0),MATCH($A14,'Hist RF to SPR'!$Q$5:$AB$5,0))/RV14/1.9835,0)) -> -0.002436185049 | GN14: =-(IF(OR($N14<99999.99999,E14="Lower Latham",I14="Lower Latham",E14="Highland",I14="Highland",E14="Plum",I14="Plum"),(INDEX('FIDCO Credit'!$Y$48:$AJ$78,MATCH($B$2,'FIDCO Credit'!$X$48:$X$78,0),MATCH($A14,'FIDCO Credit'!$Y$47:$AJ$47,0))/$RV14)/1.9835,0)) -> -0.0017595 | GO14: =-(IF(OR($N14<99999.99999,E14="Lower Latham",I14="Lower Latham",E14="Highland",I14="Highland",E14="Plum",I14="Plum"),(INDEX('Western Credit'!$W$84:$AH$114,MATCH($B$2,'Western Credit'!$V$84:$V$114,0),MATCH($A14,'Western Credit'!$W$83:$AH$83,0))/$RV14)/1.9835+'Haren Daily Recharge'!K13*'Western Credit'!$Z$40,0)) -> 0 | GP14: -0.004195685049 | GQ14: 0 | GR14: 0 | GS14: =IF(AND(GY14="no",GZ14="no"),MIN(-(GN14-GQ14-GR14)/(1-0.5/100*'Distances for Transit Losses'!$C$95),IW14),0) -> 0 | GT14: =-GS14*0.5/100*'Distances for Transit Losses'!$C$95 -> 0 | GU14: =VLOOKUP($B14,'ECCV Haren Pond S.P. Acrtns'!$B$7:$G$306,6)/$RV14/1.9835-0.1 -> 1.384290832 | GV14: 0.004195685049 | GW14: 0.1177185208 | GX14: no | GY14: no | GZ14: no | HA14: 0 | HB14: 0 | HC14: 0 | HE14: 0 | HF14: 0 | HG14: 0 | HH14: =IF(AND(JE14-JF14>0,IZ14="no"),MIN(-HG14/(1-0.5/100*'Distances for Transit Losses'!$C$111),JE14-JF14),0) -> 0 | HI14: =-HH14*0.5/100*'Distances for Transit Losses'!$C$111 -> 0 | HJ14: =IF(AND(JI14+JJ14-JK14-JV14>0,IZ14="no"),MIN((-HG14-(HH14+HI14))/(1-0.5/100*'Distances for Transit Losses'!$C$113),JI14+JJ14-JK14-JV14),0) -> 0 | HK14: =-HJ14*0.5/100*'Distances for Transit Losses'!$C$113 -> 0 | HL14: 0 | HM14: =IF(HL14>0,MIN(-(HG14+HH14+HI14+HJ14+HK14)/(1-0.5/100*'Distances for Transit Losses'!$C$115),HL14),0) -> 0 | HN14: =-HM14*0.5/100*'Distances for Transit Losses'!$C$115 -> 0 | HO14: 0 | HQ14: 0 | HR14: ='Joint Aug Station Deliveries'!AS14 -> 0 | HS14: =HR14*'Western Credit'!$Z$42 -> 0 | HT14: ='Joint Aug Station Deliveries'!AJ14 -> 0 | HU14: =IF(AND(HT14>0,SUM($HT$9:HT14,$HV$9:HV14,$IW$9:IW14)*1.9835<OFFSET('FIDCO Credit'!$X$39,0,MATCH($A14,'FIDCO Credit'!$Y$5:$AJ$5,0))),HT14-GQ14,0) -> 0 | HV14: ='Joint Aug Station Deliveries'!AM14 -> 0 | HW14: =IF(AND(HV14>0,SUM($HT$9:HT14,$HV$9:HV14,$IW$9:IW14)*1.9835<OFFSET('FIDCO Credit'!$X$39,0,MATCH($A14,'FIDCO Credit'!$Y$5:$AJ$5,0))),HV14-GR14,0) -> 0 | HX14: =MAX(0,(KY14+KZ14))/(1-0.5/100*'Distances for Transit Losses'!$C$83) -> 0 | HY14: =MAX(0,(LA14+LB14)/(1-0.5/100*'Distances for Transit Losses'!$C$79)) -> 0 | HZ14: 0 | IA14: =-HZ14*0.5/100*'Distances for Transit Losses'!$C$85 -> 0 | IB14: 0 | IC14: 0 | ID14: =-IC14*0.5/100*'Distances for Transit Losses'!$C$34 -> 0 | IE14: 0 | IF14: 0 | IG14: 0 | IH14: 0 | II14: 0 | IJ14: 0 | IK14: 0.1138131984 | IL14: 0 | IM14: 0 | IN14: 0 | IO14: 0 | IP14: 0 | IQ14: =-IP14*0.5/100*'Distances for Transit Losses'!$C$123 -> 0 | IR14: 0 | IS14: 1.262376626 | IT14: 4.163336342e-17 | IU14: 0.1352858604 | IV14: =-(IF(F14<99999.99999,INDEX('Hist RF to SPR'!$B$6:$M$30,MATCH($B$2,'Hist RF to SPR'!$A$6:$A$30,0),MATCH($A14,'Hist RF to SPR'!$B$5:$M$5,0))/RV14/1.9835,0)) -> -0.02147266205 | IW14: ='Joint Aug Station Deliveries'!AP14 -> 0 | IX14: =IF(AND(IW14>0,SUM($HT$9:HT14,$HV$9:HV14,$IW$9:IW14)*1.9835<OFFSET('FIDCO Credit'!$X$39,0,MATCH($A14,'FIDCO Credit'!$Y$5:$AJ$5,0))),IW14-GS14,0) -> 0 | IY14: 0 | IZ14: no | JA14: 4.163336342e-17 | JB14: 0.02147266205 | JC14: 0 | JD14: 0 | JE14: 0 | JF14: =IF(JE14>0,MIN(-JD14/(1-0.5/100*'Distances for Transit Losses'!$C$117),JE14),0) -> 0 | JG14: =-JF14*0.5/100*'Distances for Transit Losses'!$C$117 -> 0 | JH14: 0 | JI14: 0 | JJ14: =-JI14*0.5/100*'Distances for Transit Losses'!$C$70 -> 0 | JK14: =IF((JI14+JJ14)>0,MIN((-JD14-(JF14-JG14)-JH14)/(1-0.5/100*'Distances for Transit Losses'!$C$119),(JI14+JJ14)),0) -> 0 | JL14: =-JK14*0.5/100*'Distances for Transit Losses'!$C$119 -> 0 | JM14: 0 | JO14: 0 | JP14: 0.1138131984 | JQ14: 0 | JR14: 0 | JS14: 0 | JT14: 0 | JU14: 0 | JV14: 0 | JW14: =-JV14*0.5/100*'Distances for Transit Losses'!$C$121 -> 0 | JX14: 0 | JY14: 0 | JZ14: 0.1138131984 | KA14: =-(IF(N14<99999.99999,(VLOOKUP(B14,'ECCV Upper Dpln'!$B$7:$BD$306,55))/RV14/1.9835,0)) -> -3.375455381 | KB14: =-(IF(N14<99999.99999,INDEX('Hist RF abv Milton'!$B$6:$M$30,MATCH($B$2,'Hist RF abv Milton'!$A$6:$A$30,0),MATCH($A14,'Hist RF abv Milton'!$B$5:$M$5,0))/RV14/1.9835,0)) -> -0.02367044831 | KC14: 0 | KD14: =(VLOOKUP($B14,'ECCV Beebe Pond Acrtns'!$B$7:$BI$1206,41)+VLOOKUP($B14,'ECCV Canal Acrtns'!$B$7:$AL$1206,22)+VLOOKUP($B14,'2003 Beebe Pond Acrtns'!$B$7:$BI$1206,41)+VLOOKUP($B14,'2003 Canal Acrtns'!$B$7:$AL$1206,22))/$RV14/1.9835+0.69 -> 1.045084924 | KE14: 0 | KF14: 0 | KG14: 0 | KH14: 1.045084924 | KI14: 0 | KJ14: no | KK14: 0 | KL14: 0.02367044831 | KM14: =IF($KJ14="No",IF($KK14>0,0,MIN(-(KA14+KH14+KI14),DS14-KL14)),0)+FJ14 -> 1.102200991 | KN14: 0 | KO14: 1.228169466 | KP14: 0 | KQ14: 0 | KR14: 0 | KS14: 0 | KT14: 0 | KU14: =-(KT14*0.5/100*'Distances for Transit Losses'!$C$6) -> 0 | KV14: 0 | KW14: 0 | KX14: 0 | KY14: =IF(AND(E14<>"Lower Latham",I14<>"Lower Latham"),MIN(-(KS14+KV14),HU14-HU14*0.5/100*'Distances for Transit Losses'!$C$83),0) -> 0 | KZ14: =IF(AND(E14<>"Lower Latham",I14<>"Lower Latham"),MAX(0,MIN(-(KR14+KT14+KU14+KX14),HU14-HU14*0.5/100*'Distances for Transit Losses'!$C$83-KY14/(1-0.5/100*'Distances for Transit Losses'!$C$83))),0) -> 0 | LA14: =MIN(-(KS14+KY14),HS14-HS14*0.5/100*'Distances for Transit Losses'!$C$79) -> 0 | LB14: =MAX(0,MIN(-(KR14+KT14+KU14+KZ14),HS14-HS14*0.5/100*'Distances for Transit Losses'!$C$79-LA14/(1-0.5/100*'Distances for Transit Losses'!$C$79))) -> 0 | LC14: =IF(FK14="no",MIN(-(MIN(0,KR14+KS14+KT14+KU14+KZ14+LB14))+CL14/(1-0.5/100*'Distances for Transit Losses'!$C$40)+LT14/(1-0.5/100*'Distances for Transit Losses'!$C$36),(GU14-GV14)-(GU14-GV14)*0.5/100*'Distances for Transit Losses'!$C$79),0) -> 0.1177185208 | LD14: =MAX(0,IF(AND(HL14-HM14-JH14-FV14>0,FK14="no"),MIN(-(KR14+KT14+KU14+KX14+KZ14+LB14+LC14)/(1-0.5/100*'Distances for Transit Losses'!$C$89),HL14-HM14-JH14-FV14),0)) -> 0 | LE14: =-LD14*0.5/100*'Distances for Transit Losses'!$C$89 -> 0 | LH14: =SUM(KA14:KC14)+KH14+KI14+SUM(KL14:KQ14)+SUM(KT14:LF14)-(CL14/(1-0.5/100*'Distances for Transit Losses'!$C$40)+LT14/(1-0.5/100*'Distances for Transit Losses'!$C$36)) -> 0 | LI14: 0 | LJ14: 0 | LK14: 0.0726744269 | LL14: 0.164532929 | LM14: =-(IF(N14<99999.99999,INDEX('Hist RF blw Milton'!$B$6:$M$30,MATCH($B$2,'Hist RF blw Milton'!$A$6:$A$30,0),MATCH($A14,'Hist RF blw Milton'!$B$5:$M$5,0))/RV14/1.9835,0)) -> -0.02924706861 | LN14: no | LO14: 0 | LP14: 0.02924706861 | LQ14: 0 | LR14: 0 | LS14: 0 | LT14: 0.02924706861 | LU14: Haren Recharge | LV14: 0.0726744269 | LW14: 0.1352858604 | LX14: =-(IF(N14<99999.99999,INDEX('Hist RF to Box Elder'!$B$6:$M$30,MATCH($B$2,'Hist RF to Box Elder'!$A$6:$A$30,0),MATCH($A14,'Hist RF to Box Elder'!$B$5:$M$5,0))/RV14/1.9835,0)) -> -0.01307806535 | LY14: =(VLOOKUP($B14,'ECCV Beebe Pond Acrtns'!$B$7:$BI$1206,54)+VLOOKUP($B14,'ECCV Canal Acrtns'!$B$7:$AL$1206,34)+VLOOKUP($B14,'2003 Beebe Pond Acrtns'!$B$7:$BI$1206,54)+VLOOKUP($B14,'2003 Canal Acrtns'!$B$7:$AL$1206,34)+VLOOKUP($B14,'84CW090 Beebe Pond Acrtns'!$B$7:$BI$1206,55)+VLOOKUP($B14,'84CW090 Canal Acrtns'!$B$7:$AL$1206,34))/$RV14/1.9835 -> 0.1102842448 | LZ14: 0.01307806535 | MA14: 0 | MB14: 0 | MC14: 0 | ME14: -5.472855196 | MF14: 3.51684435 | MG14: 0.05849413722 | MH14: 0.01307806535 | MI14: 0.02147266205 | MJ14: 0.004195685049 | MK14: 0.0726744269 | ML14: 0 | MM14: 1.771487449 | MN14: 0.1519313349 | MO14: 5.610178111 | MP14: 0.1373229152 | MQ14: 0 | MR14: 0 | MS14: 0.1138131984 | MU14: 0 | MV14: 0 | MW14: 0 | MX14: 0 | MY14: 0 | MZ14: 0 | NA14: 0 | NB14: 0 | ND14: 0 | NE14: 0 | NF14: 0 | NG14: 0 | NH14: 0 | NI14: 0 | NJ14: 0 | NK14: 0 | NL14: 0 | NM14: 0 | NN14: 0 | NO14: 0 | NQ14: 0 | NR14: 0 | NS14: 0 | NT14: 0 | NU14: 0 | NV14: 0 | NW14: 0 | NX14: 0 | NY14: 0 | NZ14: 0 | OA14: 0 | OC14: 0.1138131984 | OD14: 0 | OE14: 0 | OF14: 0 | OG14: 0 | OH14: 0 | OI14: 0 | OJ14: 0 | OK14: 0 | OL14: 0 | OM14: 0 | OO14: 0 | OP14: 0 | OQ14: 0 | OR14: 0 | OS14: 0 | OT14: 0 | OU14: 0 | OV14: 0 | OW14: 0 | OX14: 0 | OY14: 0 | OZ14: 0 | PA14: 0 | PC14: 0 | PD14: 0 | PE14: 0 | PF14: 0 | PG14: 0 | PH14: 0 | PI14: 0 | PJ14: 0 | PK14: 0 | PM14: 0 | PN14: 0 | PO14: 0 | PP14: 0 | PQ14: 0 | PR14: 0 | PS14: 0 | PT14: 0 | PV14: 0 | PW14: 0 | PX14: 0 | PZ14: 0 | QA14: 0 | QB14: 0 | QC14: 0 | QF14: 0 | QG14: 0 | QH14: 0 | QI14: 0 | QJ14: 0 | QK14: 0 | QL14: 0 | QN14: 0 | QO14: 0 | QP14: 0 | QQ14: 0 | QR14: 0 | QS14: 309.6 | QU14: 0 | QV14: 0 | QW14: 0 | QX14: 0 | QY14: 0 | QZ14: 0 | RA14: 0 | RB14: 0 | RC14: 0 | RD14: 0 | RE14: 0 | RF14: 0 | RG14: 0 | RH14: 0 | RI14: 0 | RJ14: 0 | RK14: 0 | RL14: 0 | RM14: 0 | RN14: 0 | RO14: 0 | RP14: TRUE | RQ14: TRUE | RS14: 0 | RT14: 0 | RV14: =VLOOKUP(A14,'Control Sheet'!$G$9:$H$20,2) -> 30
A15: Apr | B15: 2017-04-07 | C15: Bijou | D15: 2004-12-07 | E15: Prewitt Reservoir | F15: 56589 | K15: Bijou | L15: 2004-12-07 | M15: Prewitt Reservoir | N15: 56589 | S15: 0.1059785626 | T15: 0 | U15: 0 | V15: 0 | W15: 0 | X15: 0 | Y15: =('NFC Well Pumping'!$L13+'NFC Well Pumping'!$L50+'NFC Well Pumping'!$L86)/1.9835 -> 0 | Z15: ='88CW264(B) Pumping'!$E13/1.9835+'88CW264(B) Pumping'!$E49/1.9835+'88CW264(B) Pumping'!E89/1.9835+'88CW264(B) Pumping'!E125/1.9835+'88CW264(B) Pumping'!E165/1.9835+'88CW264(B) Pumping'!E201/1.9835 -> 0.00925230458 | AA15: 0.1059785626 | AB15: =('United No. 2 Well Pumping'!G14+'United No. 2 Well Pumping'!G50+'United No. 2 Well Pumping'!G86)/1.9835 -> 0 | AC15: =('United No. 2 Well Pumping'!F14+'United No. 2 Well Pumping'!F50+'United No. 2 Well Pumping'!F86)/1.9835 -> 0 | AD15: 0 | AF15: 0.00925230458 | AG15: =U15+AC15+'United Res'!AA177+'United Res'!AQ177+'Milliken Res'!I165 -> 0 | AH15: 100 | AI15: =-(IF($N15=99999.99999,0,VLOOKUP($B15,'NFC Well Dplns-URF'!B$7:$AB$306,27))/$RV15/1.9835) -> -0.004064876498 | AJ15: 0 | AL15: =(VLOOKUP($B15,'ECCV 70R Pond Acrtns'!$B$7:$AI$1206,34)+VLOOKUP($B15,'2003 70R Pond Acrtns'!$B$7:$AI$1206,34)+VLOOKUP($B15,'ECCV 70R Canal Acrtns'!$B$7:$AI$1206,27)+VLOOKUP($B15,'2003 70R Canal Acrtns'!$B$7:$AI$1206,27))/$RV15/1.9835 -> 0 | AM15: -0.004064876498 | AN15: =-(IF($N15=99999.99999,0,VLOOKUP($B15,'NFC Well Dplns-SDF'!$B$7:$Z$306,25)+VLOOKUP($B15,'NFC Well Dplns-URF'!B$7:$AB$306,20))/$RV15/1.9835) -> -0.07514542012 | AO15: 0.02854171031 | AP15: 0.04660370981 | AQ15: ECCV Riverside Credits | AR15: =IF(N15<99999.99999,-((BD15+BE15)*'Weldon Credit'!$BB$36),0) -> 0 | AS15: =-((BD15+BE15)*'Weldon Credit'!$BB$34) -> 0 | AT15: =IF(N15<99999.99999,-INDEX('Weldon Credit'!$AX$249:$BJ$276,MATCH($B$2,'Weldon Credit'!$AX$249:$AX$276,0),MATCH(A15,'Weldon Credit'!$AX$249:$BJ$249,0))/RV15/1.9835,0) -> -0.007144773798 | AU15: -0.007144773798 | AV15: =IF(N15<99999.99999,-((BD15+BE15)*'Weldon Credit'!$BB$37),0) -> 0 | AW15: =-((BD15+BE15)*'Weldon Credit'!$BB$35) -> 0 | AX15: =IF(N15<99999.99999,-INDEX('Weldon Credit'!$AX$281:$BJ$308,MATCH($B$2,'Weldon Credit'!$AX$281:$AX$308,0),MATCH(A15,'Weldon Credit'!$AX$281:$BJ$281,0))/RV15/1.9835,0) -> -0.07879357513 | AY15: -0.07879357513 | AZ15: =-(BD15+BE15)*'Weldon Credit'!$BB$38 -> 0 | BA15: =0.4*(INDEX('Riverside Pond Accrtns'!$B$6:$M$36,MATCH($B$2,'Riverside Pond Accrtns'!$A$6:$A$36,0),MATCH('ECCV Daily Replacement Summary'!A15,'Riverside Pond Accrtns'!$B$5:$M$5,0))/RV15)/1.9835 -> 1.310814217 | BB15: =(44/640)*(INDEX('Weldon Valley Accrtns (02CW377)'!$B$6:$M$30,MATCH($B$2,'Weldon Valley Accrtns (02CW377)'!$A$6:$A$30,0),MATCH(A15,'Weldon Valley Accrtns (02CW377)'!$B$5:$M$5,0))/RV15)/1.9835 -> 0.2610339467 | BC15: =(VLOOKUP($B15,'ECCV 70R Pond Acrtns'!$B$7:$AI$1206,25)+VLOOKUP($B15,'ECCV 70R Canal Acrtns'!$B$7:$AI$1206,20)+VLOOKUP($B15,'2003 70R Pond Acrtns'!$B$7:$AI$1206,25)+VLOOKUP($B15,'2003 70R Canal Acrtns'!$B$7:$AI$1206,20))/$RV15/1.9835 -> 0 | BD15: ='Joint Aug Station Deliveries'!G15 -> 0 | BE15: ='Joint Aug Station Deliveries'!H15 -> 0 | BF15: 0 | BG15: 0 | BH15: =IF(BT15="no",-MAX(0,MIN(BG15,(BE15-BD15))*(0.5/100*'Distances for Transit Losses'!$C$75)),0) -> 0 | BI15: 0 | BJ15: =MIN(-($AU15+AY15+AZ15+BF15+BG15+BH15),BA15-BA15*0.5/100*'Distances for Transit Losses'!$C$77) -> 0.08593834893 | BK15: 0 | BL15: =MIN(-($AU15+AY15+AZ15+BF15+BG15+BH15+BJ15+BK15),BC15-BC15*0.5/100*'Distances for Transit Losses'!$C$77) -> 0 | BM15: =-((BJ15+BL15)*(0.5/100*'Distances for Transit Losses'!$C$77)) -> -0.009152434161 | BN15: =IF(AND(JE15-JF15-FR15-DM15>0,IZ15="no"),MIN(-(AU15+AY15+AZ15+BF15+BG15+BH15+BJ15+BK15+BL15+BM15)/(1-0.5/100*'Distances for Transit Losses'!$C$99),JE15-JF15-FR15-DM15),0) -> 0 | BO15: =--BN15*0.5/100*'Distances for Transit Losses'!C$99 -> 0 | BP15: =IF(AND(HL15-HM15-JH15-FV15-LD15-DQ15>0,FK15="no"),MIN(-(AU15+AY15+AZ15+BF15+BG15+BH15+BJ15+BK15+BL15+BM15+BN15+BO15)/(1-0.5/100*'Distances for Transit Losses'!$C$101),HL15-HM15-JH15-FV15-LD15-DQ15),0) -> 0 | BQ15: =--BP15*0.5/100*'Distances for Transit Losses'!$C$101 -> 0 | BR15: 0 | BT15: no | BU15: no | BV15: no | BW15: 0 | BX15: 0 | BY15: 0 | CA15: =IF($BV15="No",MIN(-DH15,BA15-BJ15/(1-0.5/100*'Distances for Transit Losses'!$C$77)),0) -> 0 | CB15: =IF($BV15="No",MIN(-DH15+CA15,BC15-BL15/(1-0.5/100*'Distances for Transit Losses'!$C$77)),0) -> 0 | CC15: 0 | CD15: 0 | CE15: 0 | CF15: 1.439306105 | CG15: 1.392702395 | CH15: =-(IF($N15=99999.99999,0,VLOOKUP($B15,'NFC Well Dplns-SDF'!$B$7:$Z$306,16)+VLOOKUP($B15,'NFC Well Dplns-URF'!$B$7:$AB$306,13))/$RV15/1.9835) -> -0.2127558721 | CI15: =-(IF($N15>=99999,0,'88CW264(B) Pumping'!$E13/1.9835)+IF($N15>=99999,0,'88CW264(B) Pumping'!$E49/1.9835)+IF($N15>=99999,0,'88CW264(B) Pumping'!$E89/1.9835)+IF($N15>=99999,0,'88CW264(B) Pumping'!$E125/1.9835)+IF($N15>=51134.50919,0,'88CW264(B) Pumping'!$E165/1.9835)+IF($N15>=53406,0,'88CW264(B) Pumping'!$E201/1.9835)) -> -0.00925230458 | CJ15: -0.2220081766 | CK15: 0.1450733326 | CL15: 0.07693484407 | CM15: Haren Recharge | CN15: =-(IF($N15=99999.99999,0,VLOOKUP($B15,'United No. 2 Dplns'!$B$7:$X$676,13)/1.9835)) -> 0 | CO15: =CN15+(-(INDEX('Pre 1995 Net Accretions'!$B$6:$M$105,MATCH($B$2,'Pre 1995 Net Accretions'!$A$6:$A$105,0),MATCH($A15,'Pre 1995 Net Accretions'!$B$5:$M$5,0))/$RV15/1.9835)) -> 0.02808563779 | CP15: =-(IF(N15<99999.99999,(INDEX('70 Ranch RF Obligation'!$B$6:$M$36,MATCH($B$2,'70 Ranch RF Obligation'!$A$6:$A$36,0),MATCH('ECCV Daily Replacement Summary'!A15,'70 Ranch RF Obligation'!$B$5:$M$5,0))/RV15)/1.9835,0))-CS15*(1-'L. Latham Credit'!$E$41) -> -1.566745652 | CQ15: -1.538660014 | CR15: =(VLOOKUP($B15,'ECCV 70R Pond Acrtns'!$B$7:$AI$1206,16)+VLOOKUP($B15,'ECCV 70R Canal Acrtns'!$B$7:$AI$1206,13)+VLOOKUP($B15,'2003 70R Pond Acrtns'!$B$7:$AI$1206,16)+VLOOKUP($B15,'2003 70R Canal Acrtns'!$B$7:$AI$1206,13))/$RV15/1.9835 -> 0 | CS15: ='Joint Aug Station Deliveries'!BN15 -> 2.701285606 | CT15: 1.162625592 | CU15: 1.538660014 | CV15: ='Joint Aug Station Deliveries'!BQ15 -> 0 | CW15: 0 | CX15: 0 | DA15: 1.19071123 | DB15: 0 | DC15: 0 | DD15: =-DC15*0.5/100*'Distances for Transit Losses'!$C$48 -> 0 | DE15: 0 | DF15: 0 | DG15: 0 | DH15: 0 | DI15: 0 | DJ15: 0 | DK15: 0 | DL15: =('NFC Well Pumping'!I13+'NFC Well Pumping'!I50+'NFC Well Pumping'!I86)/1.9835 -> 0 | DM15: =IF(AND(JE15-JF15-FR15>0,IZ15="no"),MIN(-SUM(DH15:DL15)/(1-0.5/100*'Distances for Transit Losses'!$C$103),JE15-JF15-FR15),0) -> 0 | DN15: =-DM15*0.5/100*'Distances for Transit Losses'!C$103 -> 0 | DO15: 0 | DP15: =--DO15*0.5/100*'Distances for Transit Losses'!$C$127 -> 0 | DQ15: =IF(AND(HL15-HM15-JH15-FV15-LD15>0,FK15="no"),MIN(-SUM(DH15:DP15)/(1-0.5/100*'Distances for Transit Losses'!$C$105),HL15-HM15-JH15-FV15-LD15),0) -> 0 | DR15: =--DQ15*0.5/100*'Distances for Transit Losses'!$C$105 -> 0 | DS15: 1.19071123 | DT15: 0 | DU15: ='Joint Aug Station Deliveries'!O15 -> 0 | DV15: =-(DU15*0.5/100*'Distances for Transit Losses'!$C$212) -> 0 | DW15: 0 | DY15: no | EA15: 0 | EB15: 0 | EC15: =-(EB15*0.5/100*'Distances for Transit Losses'!$C$214) -> 0 | ED15: 0 | EE15: =-0.25*(INDEX('GIC Credit'!$B$85:$M$116,MATCH($B$2,'GIC Credit'!$A$85:$A$116,0),MATCH($A15,'GIC Credit'!$B$85:$M$85,0))/$RV15/1.9835+FE15*'GIC Credit'!$Z$39+FF15*'GIC Credit'!$AO$39) -> -0.0001915 | EF15: -0.0001915 | EG15: 0 | EH15: ='Joint Aug Station Deliveries'!BF15 -> 0 | EI15: =-(EH15*0.5/100*'Distances for Transit Losses'!$C$240) -> 0 | EJ15: ='Joint Aug Station Deliveries'!BG15 -> 0 | EK15: =-(EJ15*0.5/100*'Distances for Transit Losses'!$C$242) -> 0 | EL15: 0 | EM15: =-(EL15*0.5/100*'Distances for Transit Losses'!$C$234) -> 0 | EN15: 0 | EP15: no | EQ15: -0.0001915 | ER15: =-(IF($N15<99999.99999,(INDEX('New Cache Credit'!$W$82:$AH$113,MATCH($B$2,'New Cache Credit'!$V$82:$V$113,0),MATCH($A15,'New Cache Credit'!$W$82:$AH$82,0))/$RV15)/1.9835,0))-DT15-ED15 -> -0.07163859239 | ES15: =-0.39*(INDEX('GIC Credit'!$B$85:$M$116,MATCH($B$2,'GIC Credit'!$A$85:$A$116,0),MATCH($A15,'GIC Credit'!$B$85:$M$85,0))/$RV15/1.9835+FE15*'GIC Credit'!$Z$39+FF15*'GIC Credit'!$AO$39) -> -0.00029874 | ET15: 0 | EU15: =-(ET15*0.5/100*('Distances for Transit Losses'!$C$216+'Distances for Transit Losses'!$C$222)) -> 0 | EW15: =IF(EV15="yes",'Joint Aug Station Deliveries'!V15,0) -> 0 | EX15: =-(EW15*0.5/100*('Distances for Transit Losses'!$C$218+'Distances for Transit Losses'!$C$220+'Distances for Transit Losses'!$C$222)) -> 0 | EY15: =IF(EV15="Yes",'Joint Aug Station Deliveries'!Y15,0) -> 0 | EZ15: =-(EY15*0.5/100*('Distances for Transit Losses'!$C$220+'Distances for Transit Losses'!$C$222)) -> 0 | FA15: ='Joint Aug Station Deliveries'!BH15 -> 0 | FB15: =-(FA15*0.5/100*'Distances for Transit Losses'!$C$226) -> 0 | FC15: -0.07212883239 | FD15: 0 | FE15: ='Joint Aug Station Deliveries'!BJ15 -> 0 | FF15: ='Joint Aug Station Deliveries'!BK15 -> 0 | FG15: =-(IF(N15<99999.99999,INDEX('Hist RF to SPR'!$AF$6:$AQ$30,MATCH($B$2,'Hist RF to SPR'!$AE$6:$AE$30,0),MATCH($A15,'Hist RF to SPR'!$AF$5:$AQ$5,0))/RV15/1.9835,0)) -> -0.0002698345146 | FH15: =-0.36*(INDEX('GIC Credit'!$B$85:$M$116,MATCH($B$2,'GIC Credit'!$A$85:$A$116,0),MATCH($A15,'GIC Credit'!$B$85:$M$85,0))/$RV15/1.9835+FE15*'GIC Credit'!$Z$39+FF15*'GIC Credit'!$AO$39) -> -0.00027576 | FI15: -0.07212883239 | FJ15: -0.0726744269 | FK15: no | FL15: 0 | FM15: 0 | FN15: 0 | FP15: 0.0726744269 | FQ15: 0 | FR15: =IF(AND(JE15-JF15-HH15>0,IZ15="no"),MIN(-(FJ15+FP15+FQ15)/(1-0.5/100*'Distances for Transit Losses'!$C$107),JE15-JF15-HH15),0) -> 0 | FS15: =-FR15*0.5/100*'Distances for Transit Losses'!$C$107 -> 0 | FT15: 0 | FU15: =-FT15*0.5/100*'Distances for Transit Losses'!$C$125 -> 0 | FV15: =IF(AND(HL15-HM15-JH15>0,GX15="no"),MIN(-(FJ15+FP15+FQ15+FR15+FS15+FT15+FU15)/(1-0.5/100*'Distances for Transit Losses'!$C$109),HL15-HM15-JH15),0) -> 0 | FW15: =-FV15*0.5/100*'Distances for Transit Losses'!$C$115 -> 0 | FX15: 0 | FZ15: 0 | GB15: =IF(AND(GA14="no",(SUM('Joint Aug Station Deliveries'!$AF$9:'Joint Aug Station Deliveries'!$AF14)+'Joint Aug Station Deliveries'!$AF15)*1.9835>'New Cache Credit'!$BY$39,(SUM('Joint Aug Station Deliveries'!$AF$9:'Joint Aug Station Deliveries'!$AF14)+'Joint Aug Station Deliveries'!$AF15)*1.9835>'New Cache Credit'!$CH$39),0,'Joint Aug Station Deliveries'!X15) -> 0 | GC15: =-(GB15*0.5/100*'Distances for Transit Losses'!$C$208) -> 0 | GE15: =IF(AND(GD14="no",(SUM('Joint Aug Station Deliveries'!$AF$9:'Joint Aug Station Deliveries'!$AF14)+'Joint Aug Station Deliveries'!$AF15)*1.9835>'New Cache Credit'!$BY$39,(SUM('Joint Aug Station Deliveries'!$AF$9:'Joint Aug Station Deliveries'!$AF14)+'Joint Aug Station Deliveries'!$AF15)*1.9835>'New Cache Credit'!$CH$39),0,'Joint Aug Station Deliveries'!AA15) -> 0 | GF15: =-(GE15*0.5/100*'Distances for Transit Losses'!$C$200) -> 0 | GG15: =IF(AND(GD14="no",(SUM('Joint Aug Station Deliveries'!$AF$9:'Joint Aug Station Deliveries'!$AF14)+'Joint Aug Station Deliveries'!$AF15)*1.9835>'New Cache Credit'!$BY$39,(SUM('Joint Aug Station Deliveries'!$AF$9:'Joint Aug Station Deliveries'!$AF14)+'Joint Aug Station Deliveries'!$AF15)*1.9835>'New Cache Credit'!$CH$39),0,'Joint Aug Station Deliveries'!AD15) -> 0 | GH15: =-(GG15*0.5/100*'Distances for Transit Losses'!$C$206) -> 0 | GI15: 0 | GJ15: 0 | GK15: 4.163336342e-17 | GL15: 0.1274512247 | GM15: =-(IF(N15<99999.99999,INDEX('Hist RF to SPR'!$Q$6:$AB$30,MATCH($B$2,'Hist RF to SPR'!$P$6:$P$30,0),MATCH($A15,'Hist RF to SPR'!$Q$5:$AB$5,0))/RV15/1.9835,0)) -> -0.002436185049 | GN15: =-(IF(OR($N15<99999.99999,E15="Lower Latham",I15="Lower Latham",E15="Highland",I15="Highland",E15="Plum",I15="Plum"),(INDEX('FIDCO Credit'!$Y$48:$AJ$78,MATCH($B$2,'FIDCO Credit'!$X$48:$X$78,0),MATCH($A15,'FIDCO Credit'!$Y$47:$AJ$47,0))/$RV15)/1.9835,0)) -> -0.0017595 | GO15: =-(IF(OR($N15<99999.99999,E15="Lower Latham",I15="Lower Latham",E15="Highland",I15="Highland",E15="Plum",I15="Plum"),(INDEX('Western Credit'!$W$84:$AH$114,MATCH($B$2,'Western Credit'!$V$84:$V$114,0),MATCH($A15,'Western Credit'!$W$83:$AH$83,0))/$RV15)/1.9835+'Haren Daily Recharge'!K14*'Western Credit'!$Z$40,0)) -> 0 | GP15: -0.004195685049 | GQ15: 0 | GR15: 0 | GS15: =IF(AND(GY15="no",GZ15="no"),MIN(-(GN15-GQ15-GR15)/(1-0.5/100*'Distances for Transit Losses'!$C$95),IW15),0) -> 0 | GT15: =-GS15*0.5/100*'Distances for Transit Losses'!$C$95 -> 0 | GU15: =VLOOKUP($B15,'ECCV Haren Pond S.P. Acrtns'!$B$7:$G$306,6)/$RV15/1.9835-0.01 -> 1.474290832 | GV15: 0.004195685049 | GW15: 0.1177185208 | GX15: no | GY15: no | GZ15: no | HA15: 0 | HB15: 0 | HC15: 0 | HE15: 0 | HF15: 0 | HG15: 0 | HH15: =IF(AND(JE15-JF15>0,IZ15="no"),MIN(-HG15/(1-0.5/100*'Distances for Transit Losses'!$C$111),JE15-JF15),0) -> 0 | HI15: =-HH15*0.5/100*'Distances for Transit Losses'!$C$111 -> 0 | HJ15: =IF(AND(JI15+JJ15-JK15-JV15>0,IZ15="no"),MIN((-HG15-(HH15+HI15))/(1-0.5/100*'Distances for Transit Losses'!$C$113),JI15+JJ15-JK15-JV15),0) -> 0 | HK15: =-HJ15*0.5/100*'Distances for Transit Losses'!$C$113 -> 0 | HL15: 0 | HM15: =IF(HL15>0,MIN(-(HG15+HH15+HI15+HJ15+HK15)/(1-0.5/100*'Distances for Transit Losses'!$C$115),HL15),0) -> 0 | HN15: =-HM15*0.5/100*'Distances for Transit Losses'!$C$115 -> 0 | HO15: 0 | HQ15: 0 | HR15: ='Joint Aug Station Deliveries'!AS15 -> 0 | HS15: =HR15*'Western Credit'!$Z$42 -> 0 | HT15: ='Joint Aug Station Deliveries'!AJ15 -> 0 | HU15: =IF(AND(HT15>0,SUM($HT$9:HT15,$HV$9:HV15,$IW$9:IW15)*1.9835<OFFSET('FIDCO Credit'!$X$39,0,MATCH($A15,'FIDCO Credit'!$Y$5:$AJ$5,0))),HT15-GQ15,0) -> 0 | HV15: ='Joint Aug Station Deliveries'!AM15 -> 0 | HW15: =IF(AND(HV15>0,SUM($HT$9:HT15,$HV$9:HV15,$IW$9:IW15)*1.9835<OFFSET('FIDCO Credit'!$X$39,0,MATCH($A15,'FIDCO Credit'!$Y$5:$AJ$5,0))),HV15-GR15,0) -> 0 | HX15: =MAX(0,(KY15+KZ15))/(1-0.5/100*'Distances for Transit Losses'!$C$83) -> 0 | HY15: =MAX(0,(LA15+LB15)/(1-0.5/100*'Distances for Transit Losses'!$C$79)) -> 0 | HZ15: 0 | IA15: =-HZ15*0.5/100*'Distances for Transit Losses'!$C$85 -> 0 | IB15: 0 | IC15: 0 | ID15: =-IC15*0.5/100*'Distances for Transit Losses'!$C$34 -> 0 | IE15: 0 | IF15: 0 | IG15: 0 | IH15: 0 | II15: 0 | IJ15: 0 | IK15: 0.1059785626 | IL15: 0 | IM15: 0 | IN15: 0 | IO15: 0 | IP15: 0 | IQ15: =-IP15*0.5/100*'Distances for Transit Losses'!$C$123 -> 0 | IR15: 0 | IS15: 1.352376626 | IT15: 4.163336342e-17 | IU15: 0.1274512247 | IV15: =-(IF(F15<99999.99999,INDEX('Hist RF to SPR'!$B$6:$M$30,MATCH($B$2,'Hist RF to SPR'!$A$6:$A$30,0),MATCH($A15,'Hist RF to SPR'!$B$5:$M$5,0))/RV15/1.9835,0)) -> -0.02147266205 | IW15: ='Joint Aug Station Deliveries'!AP15 -> 0 | IX15: =IF(AND(IW15>0,SUM($HT$9:HT15,$HV$9:HV15,$IW$9:IW15)*1.9835<OFFSET('FIDCO Credit'!$X$39,0,MATCH($A15,'FIDCO Credit'!$Y$5:$AJ$5,0))),IW15-GS15,0) -> 0 | IY15: 0 | IZ15: no | JA15: 4.163336342e-17 | JB15: 0.02147266205 | JC15: 0 | JD15: 0 | JE15: 0 | JF15: =IF(JE15>0,MIN(-JD15/(1-0.5/100*'Distances for Transit Losses'!$C$117),JE15),0) -> 0 | JG15: =-JF15*0.5/100*'Distances for Transit Losses'!$C$117 -> 0 | JH15: 0 | JI15: 0 | JJ15: =-JI15*0.5/100*'Distances for Transit Losses'!$C$70 -> 0 | JK15: =IF((JI15+JJ15)>0,MIN((-JD15-(JF15-JG15)-JH15)/(1-0.5/100*'Distances for Transit Losses'!$C$119),(JI15+JJ15)),0) -> 0 | JL15: =-JK15*0.5/100*'Distances for Transit Losses'!$C$119 -> 0 | JM15: 0 | JO15: 0 | JP15: 0.1059785626 | JQ15: 0 | JR15: 0 | JS15: 0 | JT15: 0 | JU15: 0 | JV15: 0 | JW15: =-JV15*0.5/100*'Distances for Transit Losses'!$C$121 -> 0 | JX15: 0 | JY15: 0 | JZ15: 0.1059785626 | KA15: =-(IF(N15<99999.99999,(VLOOKUP(B15,'ECCV Upper Dpln'!$B$7:$BD$306,55))/RV15/1.9835,0)) -> -3.375455381 | KB15: =-(IF(N15<99999.99999,INDEX('Hist RF abv Milton'!$B$6:$M$30,MATCH($B$2,'Hist RF abv Milton'!$A$6:$A$30,0),MATCH($A15,'Hist RF abv Milton'!$B$5:$M$5,0))/RV15/1.9835,0)) -> -0.02367044831 | KC15: 0 | KD15: =(VLOOKUP($B15,'ECCV Beebe Pond Acrtns'!$B$7:$BI$1206,41)+VLOOKUP($B15,'ECCV Canal Acrtns'!$B$7:$AL$1206,22)+VLOOKUP($B15,'2003 Beebe Pond Acrtns'!$B$7:$BI$1206,41)+VLOOKUP($B15,'2003 Canal Acrtns'!$B$7:$AL$1206,22))/$RV15/1.9835+0.69 -> 1.045084924 | KE15: 0 | KF15: 0 | KG15: 0 | KH15: 1.045084924 | KI15: 0 | KJ15: no | KK15: 0 | KL15: 0.02367044831 | KM15: 1.094366355 | KN15: 0 | KO15: 1.236004102 | KP15: 0 | KQ15: 0 | KR15: 0 | KS15: 0 | KT15: 0 | KU15: =-(KT15*0.5/100*'Distances for Transit Losses'!$C$6) -> 0 | KV15: 0 | KW15: 0 | KX15: 0 | KY15: =IF(AND(E15<>"Lower Latham",I15<>"Lower Latham"),MIN(-(KS15+KV15),HU15-HU15*0.5/100*'Distances for Transit Losses'!$C$83),0) -> 0 | KZ15: =IF(AND(E15<>"Lower Latham",I15<>"Lower Latham"),MAX(0,MIN(-(KR15+KT15+KU15+KX15),HU15-HU15*0.5/100*'Distances for Transit Losses'!$C$83-KY15/(1-0.5/100*'Distances for Transit Losses'!$C$83))),0) -> 0 | LA15: =MIN(-(KS15+KY15),HS15-HS15*0.5/100*'Distances for Transit Losses'!$C$79) -> 0 | LB15: =MAX(0,MIN(-(KR15+KT15+KU15+KZ15),HS15-HS15*0.5/100*'Distances for Transit Losses'!$C$79-LA15/(1-0.5/100*'Distances for Transit Losses'!$C$79))) -> 0 | LC15: =IF(FK15="no",MIN(-(MIN(0,KR15+KS15+KT15+KU15+KZ15+LB15))+CL15/(1-0.5/100*'Distances for Transit Losses'!$C$40)+LT15/(1-0.5/100*'Distances for Transit Losses'!$C$36),(GU15-GV15)-(GU15-GV15)*0.5/100*'Distances for Transit Losses'!$C$79),0) -> 0.1177185208 | LD15: =MAX(0,IF(AND(HL15-HM15-JH15-FV15>0,FK15="no"),MIN(-(KR15+KT15+KU15+KX15+KZ15+LB15+LC15)/(1-0.5/100*'Distances for Transit Losses'!$C$89),HL15-HM15-JH15-FV15),0)) -> 0 | LE15: =-LD15*0.5/100*'Distances for Transit Losses'!$C$89 -> 0 | LH15: =SUM(KA15:KC15)+KH15+KI15+SUM(KL15:KQ15)+SUM(KT15:LF15)-(CL15/(1-0.5/100*'Distances for Transit Losses'!$C$40)+LT15/(1-0.5/100*'Distances for Transit Losses'!$C$36)) -> 0 | LI15: 0 | LJ15: 0 | LK15: 0.0726744269 | LL15: 0.1566982933 | LM15: =-(IF(N15<99999.99999,INDEX('Hist RF blw Milton'!$B$6:$M$30,MATCH($B$2,'Hist RF blw Milton'!$A$6:$A$30,0),MATCH($A15,'Hist RF blw Milton'!$B$5:$M$5,0))/RV15/1.9835,0)) -> -0.02924706861 | LN15: no | LO15: 0 | LP15: 0.02924706861 | LQ15: 0 | LR15: 0 | LS15: 0 | LT15: 0.02924706861 | LU15: Haren Recharge | LV15: 0.0726744269 | LW15: 0.1274512247 | LX15: =-(IF(N15<99999.99999,INDEX('Hist RF to Box Elder'!$B$6:$M$30,MATCH($B$2,'Hist RF to Box Elder'!$A$6:$A$30,0),MATCH($A15,'Hist RF to Box Elder'!$B$5:$M$5,0))/RV15/1.9835,0)) -> -0.01307806535 | LY15: =(VLOOKUP($B15,'ECCV Beebe Pond Acrtns'!$B$7:$BI$1206,54)+VLOOKUP($B15,'ECCV Canal Acrtns'!$B$7:$AL$1206,34)+VLOOKUP($B15,'2003 Beebe Pond Acrtns'!$B$7:$BI$1206,54)+VLOOKUP($B15,'2003 Canal Acrtns'!$B$7:$AL$1206,34)+VLOOKUP($B15,'84CW090 Beebe Pond Acrtns'!$B$7:$BI$1206,55)+VLOOKUP($B15,'84CW090 Canal Acrtns'!$B$7:$AL$1206,34))/$RV15/1.9835 -> 0.1102842448 | LZ15: 0.01307806535 | MA15: 0 | MB15: 0 | MC15: 0 | ME15: -5.462035937 | MF15: 3.51684435 | MG15: 0.05849413722 | MH15: 0.01307806535 | MI15: 0.02147266205 | MJ15: 0.004195685049 | MK15: 0.0726744269 | ML15: 0 | MM15: 1.76066819 | MN15: 0.1519313349 | MO15: 5.599358852 | MP15: 0.1373229152 | MQ15: 0 | MR15: 0 | MS15: 0.1059785626 | MU15: 0 | MV15: 0 | MW15: 0 | MX15: 0 | MY15: 0 | MZ15: 0 | NA15: 0 | NB15: 0 | ND15: 0 | NE15: 0 | NF15: 0 | NG15: 0 | NH15: 0 | NI15: 0 | NJ15: 0 | NK15: 0 | NL15: 0 | NM15: 0 | NN15: 0 | NO15: 0 | NQ15: 0 | NR15: 0 | NS15: 0 | NT15: 0 | NU15: 0 | NV15: 0 | NW15: 0 | NX15: 0 | NY15: 0 | NZ15: 0 | OA15: 0 | OC15: 0.1059785626 | OD15: 0 | OE15: 0 | OF15: 0 | OG15: 0 | OH15: 0 | OI15: 0 | OJ15: 0 | OK15: 0 | OL15: 0 | OM15: 0 | OO15: 0 | OP15: 0 | OQ15: 0 | OR15: 0 | OS15: 0 | OT15: 0 | OU15: 0 | OV15: 0 | OW15: 0 | OX15: 0 | OY15: 0 | OZ15: 0 | PA15: 0 | PC15: 0 | PD15: 0 | PE15: 0 | PF15: 0 | PG15: 0 | PH15: 0 | PI15: 0 | PJ15: 0 | PK15: 0 | PM15: 0 | PN15: 0 | PO15: 0 | PP15: 0 | PQ15: 0 | PR15: 0 | PS15: 0 | PT15: 0 | PV15: 0 | PW15: 0 | PX15: 0 | PZ15: 0 | QA15: 0 | QB15: 0 | QC15: 0 | QF15: 0 | QG15: 0 | QH15: 0 | QI15: 0 | QJ15: 0 | QK15: 0 | QL15: 0 | QN15: 0 | QO15: 0 | QP15: 0 | QQ15: 0 | QR15: 0 | QS15: 309.6 | QU15: 0 | QV15: 0 | QW15: 0 | QX15: 0 | QY15: 0 | QZ15: 0 | RA15: 0 | RB15: 0 | RC15: 0 | RD15: 0 | RE15: 0 | RF15: 0 | RG15: 0 | RH15: 0 | RI15: 0 | RJ15: 0 | RK15: 0 | RL15: 0 | RM15: 0 | RN15: 0 | RO15: 0 | RP15: TRUE | RQ15: TRUE | RS15: 0 | RT15: 0 | RV15: =VLOOKUP(A15,'Control Sheet'!$G$9:$H$20,2) -> 30
A16: Apr | B16: 2017-04-08 | C16: Bijou | D16: 2004-12-07 | E16: Prewitt Reservoir | F16: 56589 | K16: Bijou | L16: 2004-12-07 | M16: Prewitt Reservoir | N16: 56589 | S16: 0.09560296392 | T16: 0 | U16: 0 | V16: 0 | W16: 0 | X16: 0 | Y16: =('NFC Well Pumping'!$L14+'NFC Well Pumping'!$L51+'NFC Well Pumping'!$L87)/1.9835 -> 0 | Z16: ='88CW264(B) Pumping'!$E14/1.9835+'88CW264(B) Pumping'!$E50/1.9835+'88CW264(B) Pumping'!E90/1.9835+'88CW264(B) Pumping'!E126/1.9835+'88CW264(B) Pumping'!E166/1.9835+'88CW264(B) Pumping'!E202/1.9835 -> 0.00925230458 | AA16: 0.09560296392 | AB16: =('United No. 2 Well Pumping'!G15+'United No. 2 Well Pumping'!G51+'United No. 2 Well Pumping'!G87)/1.9835 -> 0 | AC16: =('United No. 2 Well Pumping'!F15+'United No. 2 Well Pumping'!F51+'United No. 2 Well Pumping'!F87)/1.9835 -> 0 | AD16: 0 | AF16: 0.00925230458 | AG16: =U16+AC16+'United Res'!AA178+'United Res'!AQ178+'Milliken Res'!I166 -> 0 | AH16: 100 | AI16: =-(IF($N16=99999.99999,0,VLOOKUP($B16,'NFC Well Dplns-URF'!B$7:$AB$306,27))/$RV16/1.9835) -> -0.004064876498 | AJ16: 0 | AL16: =(VLOOKUP($B16,'ECCV 70R Pond Acrtns'!$B$7:$AI$1206,34)+VLOOKUP($B16,'2003 70R Pond Acrtns'!$B$7:$AI$1206,34)+VLOOKUP($B16,'ECCV 70R Canal Acrtns'!$B$7:$AI$1206,27)+VLOOKUP($B16,'2003 70R Canal Acrtns'!$B$7:$AI$1206,27))/$RV16/1.9835 -> 0 | AM16: -0.004064876498 | AN16: =-(IF($N16=99999.99999,0,VLOOKUP($B16,'NFC Well Dplns-SDF'!$B$7:$Z$306,25)+VLOOKUP($B16,'NFC Well Dplns-URF'!B$7:$AB$306,20))/$RV16/1.9835) -> -0.07514542012 | AO16: 0.02854171031 | AP16: 0.04660370981 | AQ16: ECCV Riverside Credits | AR16: =IF(N16<99999.99999,-((BD16+BE16)*'Weldon Credit'!$BB$36),0) -> 0 | AS16: =-((BD16+BE16)*'Weldon Credit'!$BB$34) -> 0 | AT16: =IF(N16<99999.99999,-INDEX('Weldon Credit'!$AX$249:$BJ$276,MATCH($B$2,'Weldon Credit'!$AX$249:$AX$276,0),MATCH(A16,'Weldon Credit'!$AX$249:$BJ$249,0))/RV16/1.9835,0) -> -0.007144773798 | AU16: -0.007144773798 | AV16: =IF(N16<99999.99999,-((BD16+BE16)*'Weldon Credit'!$BB$37),0) -> 0 | AW16: =-((BD16+BE16)*'Weldon Credit'!$BB$35) -> 0 | AX16: =IF(N16<99999.99999,-INDEX('Weldon Credit'!$AX$281:$BJ$308,MATCH($B$2,'Weldon Credit'!$AX$281:$AX$308,0),MATCH(A16,'Weldon Credit'!$AX$281:$BJ$281,0))/RV16/1.9835,0) -> -0.07879357513 | AY16: -0.07879357513 | AZ16: =-(BD16+BE16)*'Weldon Credit'!$BB$38 -> 0 | BA16: =0.4*(INDEX('Riverside Pond Accrtns'!$B$6:$M$36,MATCH($B$2,'Riverside Pond Accrtns'!$A$6:$A$36,0),MATCH('ECCV Daily Replacement Summary'!A16,'Riverside Pond Accrtns'!$B$5:$M$5,0))/RV16)/1.9835 -> 1.310814217 | BB16: =(44/640)*(INDEX('Weldon Valley Accrtns (02CW377)'!$B$6:$M$30,MATCH($B$2,'Weldon Valley Accrtns (02CW377)'!$A$6:$A$30,0),MATCH(A16,'Weldon Valley Accrtns (02CW377)'!$B$5:$M$5,0))/RV16)/1.9835 -> 0.2610339467 | BC16: =(VLOOKUP($B16,'ECCV 70R Pond Acrtns'!$B$7:$AI$1206,25)+VLOOKUP($B16,'ECCV 70R Canal Acrtns'!$B$7:$AI$1206,20)+VLOOKUP($B16,'2003 70R Pond Acrtns'!$B$7:$AI$1206,25)+VLOOKUP($B16,'2003 70R Canal Acrtns'!$B$7:$AI$1206,20))/$RV16/1.9835 -> 0 | BD16: ='Joint Aug Station Deliveries'!G16 -> 0 | BE16: ='Joint Aug Station Deliveries'!H16 -> 0 | BF16: 0 | BG16: 0 | BH16: =IF(BT16="no",-MAX(0,MIN(BG16,(BE16-BD16))*(0.5/100*'Distances for Transit Losses'!$C$75)),0) -> 0 | BI16: 0 | BJ16: =MIN(-($AU16+AY16+AZ16+BF16+BG16+BH16),BA16-BA16*0.5/100*'Distances for Transit Losses'!$C$77) -> 0.08593834893 | BK16: 0 | BL16: =MIN(-($AU16+AY16+AZ16+BF16+BG16+BH16+BJ16+BK16),BC16-BC16*0.5/100*'Distances for Transit Losses'!$C$77) -> 0 | BM16: =-((BJ16+BL16)*(0.5/100*'Distances for Transit Losses'!$C$77)) -> -0.009152434161 | BN16: =IF(AND(JE16-JF16-FR16-DM16>0,IZ16="no"),MIN(-(AU16+AY16+AZ16+BF16+BG16+BH16+BJ16+BK16+BL16+BM16)/(1-0.5/100*'Distances for Transit Losses'!$C$99),JE16-JF16-FR16-DM16),0) -> 0 | BO16: =--BN16*0.5/100*'Distances for Transit Losses'!C$99 -> 0 | BP16: =IF(AND(HL16-HM16-JH16-FV16-LD16-DQ16>0,FK16="no"),MIN(-(AU16+AY16+AZ16+BF16+BG16+BH16+BJ16+BK16+BL16+BM16+BN16+BO16)/(1-0.5/100*'Distances for Transit Losses'!$C$101),HL16-HM16-JH16-FV16-LD16-DQ16),0) -> 0 | BQ16: =--BP16*0.5/100*'Distances for Transit Losses'!$C$101 -> 0 | BR16: 0 | BT16: no | BU16: no | BV16: no | BW16: 0 | BX16: 0 | BY16: 0 | CA16: =IF($BV16="No",MIN(-DH16,BA16-BJ16/(1-0.5/100*'Distances for Transit Losses'!$C$77)),0) -> 0 | CB16: =IF($BV16="No",MIN(-DH16+CA16,BC16-BL16/(1-0.5/100*'Distances for Transit Losses'!$C$77)),0) -> 0 | CC16: 0 | CD16: 0 | CE16: 0 | CF16: 1.439306105 | CG16: 1.392702395 | CH16: =-(IF($N16=99999.99999,0,VLOOKUP($B16,'NFC Well Dplns-SDF'!$B$7:$Z$306,16)+VLOOKUP($B16,'NFC Well Dplns-URF'!$B$7:$AB$306,13))/$RV16/1.9835) -> -0.2127558721 | CI16: =-(IF($N16>=99999,0,'88CW264(B) Pumping'!$E14/1.9835)+IF($N16>=99999,0,'88CW264(B) Pumping'!$E50/1.9835)+IF($N16>=99999,0,'88CW264(B) Pumping'!$E90/1.9835)+IF($N16>=99999,0,'88CW264(B) Pumping'!$E126/1.9835)+IF($N16>=51134.50919,0,'88CW264(B) Pumping'!$E166/1.9835)+IF($N16>=53406,0,'88CW264(B) Pumping'!$E202/1.9835)) -> -0.00925230458 | CJ16: -0.2220081766 | CK16: 0.1450733326 | CL16: 0.07693484407 | CM16: Haren Recharge | CN16: =-(IF($N16=99999.99999,0,VLOOKUP($B16,'United No. 2 Dplns'!$B$7:$X$676,13)/1.9835)) -> 0 | CO16: =CN16+(-(INDEX('Pre 1995 Net Accretions'!$B$6:$M$105,MATCH($B$2,'Pre 1995 Net Accretions'!$A$6:$A$105,0),MATCH($A16,'Pre 1995 Net Accretions'!$B$5:$M$5,0))/$RV16/1.9835)) -> 0.02808563779 | CP16: =-(IF(N16<99999.99999,(INDEX('70 Ranch RF Obligation'!$B$6:$M$36,MATCH($B$2,'70 Ranch RF Obligation'!$A$6:$A$36,0),MATCH('ECCV Daily Replacement Summary'!A16,'70 Ranch RF Obligation'!$B$5:$M$5,0))/RV16)/1.9835,0))-CS16*(1-'L. Latham Credit'!$E$41) -> -1.552417444 | CQ16: -1.524331806 | CR16: =(VLOOKUP($B16,'ECCV 70R Pond Acrtns'!$B$7:$AI$1206,16)+VLOOKUP($B16,'ECCV 70R Canal Acrtns'!$B$7:$AI$1206,13)+VLOOKUP($B16,'2003 70R Pond Acrtns'!$B$7:$AI$1206,16)+VLOOKUP($B16,'2003 70R Canal Acrtns'!$B$7:$AI$1206,13))/$RV16/1.9835 -> 0 | CS16: ='Joint Aug Station Deliveries'!BN16 -> 2.6765818 | CT16: 1.152249994 | CU16: 1.524331806 | CV16: ='Joint Aug Station Deliveries'!BQ16 -> 0 | CW16: 0 | CX16: 0 | DA16: 1.180335632 | DB16: 0 | DC16: 0 | DD16: =-DC16*0.5/100*'Distances for Transit Losses'!$C$48 -> 0 | DE16: 0 | DF16: 0 | DG16: 0 | DH16: 0 | DI16: 0 | DJ16: 0 | DK16: 0 | DL16: =('NFC Well Pumping'!I14+'NFC Well Pumping'!I51+'NFC Well Pumping'!I87)/1.9835 -> 0 | DM16: =IF(AND(JE16-JF16-FR16>0,IZ16="no"),MIN(-SUM(DH16:DL16)/(1-0.5/100*'Distances for Transit Losses'!$C$103),JE16-JF16-FR16),0) -> 0 | DN16: =-DM16*0.5/100*'Distances for Transit Losses'!C$103 -> 0 | DO16: 0 | DP16: =--DO16*0.5/100*'Distances for Transit Losses'!$C$127 -> 0 | DQ16: =IF(AND(HL16-HM16-JH16-FV16-LD16>0,FK16="no"),MIN(-SUM(DH16:DP16)/(1-0.5/100*'Distances for Transit Losses'!$C$105),HL16-HM16-JH16-FV16-LD16),0) -> 0 | DR16: =--DQ16*0.5/100*'Distances for Transit Losses'!$C$105 -> 0 | DS16: 1.180335632 | DT16: 0 | DU16: ='Joint Aug Station Deliveries'!O16 -> 0 | DV16: =-(DU16*0.5/100*'Distances for Transit Losses'!$C$212) -> 0 | DW16: 0 | DY16: no | EA16: 0 | EB16: 0 | EC16: =-(EB16*0.5/100*'Distances for Transit Losses'!$C$214) -> 0 | ED16: 0 | EE16: =-0.25*(INDEX('GIC Credit'!$B$85:$M$116,MATCH($B$2,'GIC Credit'!$A$85:$A$116,0),MATCH($A16,'GIC Credit'!$B$85:$M$85,0))/$RV16/1.9835+FE16*'GIC Credit'!$Z$39+FF16*'GIC Credit'!$AO$39) -> -0.0001915 | EF16: -0.0001915 | EG16: 0 | EH16: ='Joint Aug Station Deliveries'!BF16 -> 0 | EI16: =-(EH16*0.5/100*'Distances for Transit Losses'!$C$240) -> 0 | EJ16: ='Joint Aug Station Deliveries'!BG16 -> 0 | EK16: =-(EJ16*0.5/100*'Distances for Transit Losses'!$C$242) -> 0 | EL16: 0 | EM16: =-(EL16*0.5/100*'Distances for Transit Losses'!$C$234) -> 0 | EN16: 0 | EP16: no | EQ16: -0.0001915 | ER16: =-(IF($N16<99999.99999,(INDEX('New Cache Credit'!$W$82:$AH$113,MATCH($B$2,'New Cache Credit'!$V$82:$V$113,0),MATCH($A16,'New Cache Credit'!$W$82:$AH$82,0))/$RV16)/1.9835,0))-DT16-ED16 -> -0.07163859239 | ES16: =-0.39*(INDEX('GIC Credit'!$B$85:$M$116,MATCH($B$2,'GIC Credit'!$A$85:$A$116,0),MATCH($A16,'GIC Credit'!$B$85:$M$85,0))/$RV16/1.9835+FE16*'GIC Credit'!$Z$39+FF16*'GIC Credit'!$AO$39) -> -0.00029874 | ET16: 0 | EU16: =-(ET16*0.5/100*('Distances for Transit Losses'!$C$216+'Distances for Transit Losses'!$C$222)) -> 0 | EW16: =IF(EV16="yes",'Joint Aug Station Deliveries'!V16,0) -> 0 | EX16: =-(EW16*0.5/100*('Distances for Transit Losses'!$C$218+'Distances for Transit Losses'!$C$220+'Distances for Transit Losses'!$C$222)) -> 0 | EY16: =IF(EV16="Yes",'Joint Aug Station Deliveries'!Y16,0) -> 0 | EZ16: =-(EY16*0.5/100*('Distances for Transit Losses'!$C$220+'Distances for Transit Losses'!$C$222)) -> 0 | FA16: ='Joint Aug Station Deliveries'!BH16 -> 0 | FB16: =-(FA16*0.5/100*'Distances for Transit Losses'!$C$226) -> 0 | FC16: -0.07212883239 | FD16: 0 | FE16: ='Joint Aug Station Deliveries'!BJ16 -> 0 | FF16: ='Joint Aug Station Deliveries'!BK16 -> 0 | FG16: =-(IF(N16<99999.99999,INDEX('Hist RF to SPR'!$AF$6:$AQ$30,MATCH($B$2,'Hist RF to SPR'!$AE$6:$AE$30,0),MATCH($A16,'Hist RF to SPR'!$AF$5:$AQ$5,0))/RV16/1.9835,0)) -> -0.0002698345146 | FH16: =-0.36*(INDEX('GIC Credit'!$B$85:$M$116,MATCH($B$2,'GIC Credit'!$A$85:$A$116,0),MATCH($A16,'GIC Credit'!$B$85:$M$85,0))/$RV16/1.9835+FE16*'GIC Credit'!$Z$39+FF16*'GIC Credit'!$AO$39) -> -0.00027576 | FI16: -0.07212883239 | FJ16: -0.0726744269 | FK16: no | FL16: 0 | FM16: 0 | FN16: 0 | FP16: 0.0726744269 | FQ16: 0 | FR16: =IF(AND(JE16-JF16-HH16>0,IZ16="no"),MIN(-(FJ16+FP16+FQ16)/(1-0.5/100*'Distances for Transit Losses'!$C$107),JE16-JF16-HH16),0) -> 0 | FS16: =-FR16*0.5/100*'Distances for Transit Losses'!$C$107 -> 0 | FT16: 0 | FU16: =-FT16*0.5/100*'Distances for Transit Losses'!$C$125 -> 0 | FV16: =IF(AND(HL16-HM16-JH16>0,GX16="no"),MIN(-(FJ16+FP16+FQ16+FR16+FS16+FT16+FU16)/(1-0.5/100*'Distances for Transit Losses'!$C$109),HL16-HM16-JH16),0) -> 0 | FW16: =-FV16*0.5/100*'Distances for Transit Losses'!$C$115 -> 0 | FX16: 0 | FZ16: 0 | GB16: =IF(AND(GA15="no",(SUM('Joint Aug Station Deliveries'!$AF$9:'Joint Aug Station Deliveries'!$AF15)+'Joint Aug Station Deliveries'!$AF16)*1.9835>'New Cache Credit'!$BY$39,(SUM('Joint Aug Station Deliveries'!$AF$9:'Joint Aug Station Deliveries'!$AF15)+'Joint Aug Station Deliveries'!$AF16)*1.9835>'New Cache Credit'!$CH$39),0,'Joint Aug Station Deliveries'!X16) -> 0 | GC16: =-(GB16*0.5/100*'Distances for Transit Losses'!$C$208) -> 0 | GE16: =IF(AND(GD15="no",(SUM('Joint Aug Station Deliveries'!$AF$9:'Joint Aug Station Deliveries'!$AF15)+'Joint Aug Station Deliveries'!$AF16)*1.9835>'New Cache Credit'!$BY$39,(SUM('Joint Aug Station Deliveries'!$AF$9:'Joint Aug Station Deliveries'!$AF15)+'Joint Aug Station Deliveries'!$AF16)*1.9835>'New Cache Credit'!$CH$39),0,'Joint Aug Station Deliveries'!AA16) -> 0 | GF16: =-(GE16*0.5/100*'Distances for Transit Losses'!$C$200) -> 0 | GG16: =IF(AND(GD15="no",(SUM('Joint Aug Station Deliveries'!$AF$9:'Joint Aug Station Deliveries'!$AF15)+'Joint Aug Station Deliveries'!$AF16)*1.9835>'New Cache Credit'!$BY$39,(SUM('Joint Aug Station Deliveries'!$AF$9:'Joint Aug Station Deliveries'!$AF15)+'Joint Aug Station Deliveries'!$AF16)*1.9835>'New Cache Credit'!$CH$39),0,'Joint Aug Station Deliveries'!AD16) -> 0 | GH16: =-(GG16*0.5/100*'Distances for Transit Losses'!$C$206) -> 0 | GI16: 0 | GJ16: 0 | GK16: 4.163336342e-17 | GL16: 0.117075626 | GM16: =-(IF(N16<99999.99999,INDEX('Hist RF to SPR'!$Q$6:$AB$30,MATCH($B$2,'Hist RF to SPR'!$P$6:$P$30,0),MATCH($A16,'Hist RF to SPR'!$Q$5:$AB$5,0))/RV16/1.9835,0)) -> -0.002436185049 | GN16: =-(IF(OR($N16<99999.99999,E16="Lower Latham",I16="Lower Latham",E16="Highland",I16="Highland",E16="Plum",I16="Plum"),(INDEX('FIDCO Credit'!$Y$48:$AJ$78,MATCH($B$2,'FIDCO Credit'!$X$48:$X$78,0),MATCH($A16,'FIDCO Credit'!$Y$47:$AJ$47,0))/$RV16)/1.9835,0)) -> -0.0017595 | GO16: =-(IF(OR($N16<99999.99999,E16="Lower Latham",I16="Lower Latham",E16="Highland",I16="Highland",E16="Plum",I16="Plum"),(INDEX('Western Credit'!$W$84:$AH$114,MATCH($B$2,'Western Credit'!$V$84:$V$114,0),MATCH($A16,'Western Credit'!$W$83:$AH$83,0))/$RV16)/1.9835+'Haren Daily Recharge'!K15*'Western Credit'!$Z$40,0)) -> 0 | GP16: -0.004195685049 | GQ16: 0 | GR16: 0 | GS16: =IF(AND(GY16="no",GZ16="no"),MIN(-(GN16-GQ16-GR16)/(1-0.5/100*'Distances for Transit Losses'!$C$95),IW16),0) -> 0 | GT16: =-GS16*0.5/100*'Distances for Transit Losses'!$C$95 -> 0 | GU16: =VLOOKUP($B16,'ECCV Haren Pond S.P. Acrtns'!$B$7:$G$306,6)/$RV16/1.9835 -> 1.484290832 | GV16: 0.004195685049 | GW16: 0.1177185208 | GX16: no | GY16: no | GZ16: no | HA16: 0 | HB16: 0 | HC16: 0 | HE16: 0 | HF16: 0 | HG16: 0 | HH16: =IF(AND(JE16-JF16>0,IZ16="no"),MIN(-HG16/(1-0.5/100*'Distances for Transit Losses'!$C$111),JE16-JF16),0) -> 0 | HI16: =-HH16*0.5/100*'Distances for Transit Losses'!$C$111 -> 0 | HJ16: =IF(AND(JI16+JJ16-JK16-JV16>0,IZ16="no"),MIN((-HG16-(HH16+HI16))/(1-0.5/100*'Distances for Transit Losses'!$C$113),JI16+JJ16-JK16-JV16),0) -> 0 | HK16: =-HJ16*0.5/100*'Distances for Transit Losses'!$C$113 -> 0 | HL16: 0 | HM16: =IF(HL16>0,MIN(-(HG16+HH16+HI16+HJ16+HK16)/(1-0.5/100*'Distances for Transit Losses'!$C$115),HL16),0) -> 0 | HN16: =-HM16*0.5/100*'Distances for Transit Losses'!$C$115 -> 0 | HO16: 0 | HQ16: 0 | HR16: ='Joint Aug Station Deliveries'!AS16 -> 0 | HS16: =HR16*'Western Credit'!$Z$42 -> 0 | HT16: ='Joint Aug Station Deliveries'!AJ16 -> 0 | HU16: =IF(AND(HT16>0,SUM($HT$9:HT16,$HV$9:HV16,$IW$9:IW16)*1.9835<OFFSET('FIDCO Credit'!$X$39,0,MATCH($A16,'FIDCO Credit'!$Y$5:$AJ$5,0))),HT16-GQ16,0) -> 0 | HV16: ='Joint Aug Station Deliveries'!AM16 -> 0 | HW16: =IF(AND(HV16>0,SUM($HT$9:HT16,$HV$9:HV16,$IW$9:IW16)*1.9835<OFFSET('FIDCO Credit'!$X$39,0,MATCH($A16,'FIDCO Credit'!$Y$5:$AJ$5,0))),HV16-GR16,0) -> 0 | HX16: =MAX(0,(KY16+KZ16))/(1-0.5/100*'Distances for Transit Losses'!$C$83) -> 0 | HY16: =MAX(0,(LA16+LB16)/(1-0.5/100*'Distances for Transit Losses'!$C$79)) -> 0 | HZ16: 0 | IA16: =-HZ16*0.5/100*'Distances for Transit Losses'!$C$85 -> 0 | IB16: 0 | IC16: 0 | ID16: =-IC16*0.5/100*'Distances for Transit Losses'!$C$34 -> 0 | IE16: 0 | IF16: 0 | IG16: 0 | IH16: 0 | II16: 0 | IJ16: 0 | IK16: 0.09560296392 | IL16: 0 | IM16: 0 | IN16: 0 | IO16: 0 | IP16: 0 | IQ16: =-IP16*0.5/100*'Distances for Transit Losses'!$C$123 -> 0 | IR16: 0 | IS16: 1.362376626 | IT16: 4.163336342e-17 | IU16: 0.117075626 | IV16: =-(IF(F16<99999.99999,INDEX('Hist RF to SPR'!$B$6:$M$30,MATCH($B$2,'Hist RF to SPR'!$A$6:$A$30,0),MATCH($A16,'Hist RF to SPR'!$B$5:$M$5,0))/RV16/1.9835,0)) -> -0.02147266205 | IW16: ='Joint Aug Station Deliveries'!AP16 -> 0 | IX16: =IF(AND(IW16>0,SUM($HT$9:HT16,$HV$9:HV16,$IW$9:IW16)*1.9835<OFFSET('FIDCO Credit'!$X$39,0,MATCH($A16,'FIDCO Credit'!$Y$5:$AJ$5,0))),IW16-GS16,0) -> 0 | IY16: 0 | IZ16: no | JA16: 4.163336342e-17 | JB16: 0.02147266205 | JC16: 0 | JD16: 0 | JE16: 0 | JF16: =IF(JE16>0,MIN(-JD16/(1-0.5/100*'Distances for Transit Losses'!$C$117),JE16),0) -> 0 | JG16: =-JF16*0.5/100*'Distances for Transit Losses'!$C$117 -> 0 | JH16: 0 | JI16: 0 | JJ16: =-JI16*0.5/100*'Distances for Transit Losses'!$C$70 -> 0 | JK16: =IF((JI16+JJ16)>0,MIN((-JD16-(JF16-JG16)-JH16)/(1-0.5/100*'Distances for Transit Losses'!$C$119),(JI16+JJ16)),0) -> 0 | JL16: =-JK16*0.5/100*'Distances for Transit Losses'!$C$119 -> 0 | JM16: 0 | JO16: 0 | JP16: 0.09560296392 | JQ16: 0 | JR16: 0 | JS16: 0 | JT16: 0 | JU16: 0 | JV16: 0 | JW16: =-JV16*0.5/100*'Distances for Transit Losses'!$C$121 -> 0 | JX16: 0 | JY16: 0 | JZ16: 0.09560296392 | KA16: =-(IF(N16<99999.99999,(VLOOKUP(B16,'ECCV Upper Dpln'!$B$7:$BD$306,55))/RV16/1.9835,0)) -> -3.375455381 | KB16: =-(IF(N16<99999.99999,INDEX('Hist RF abv Milton'!$B$6:$M$30,MATCH($B$2,'Hist RF abv Milton'!$A$6:$A$30,0),MATCH($A16,'Hist RF abv Milton'!$B$5:$M$5,0))/RV16/1.9835,0)) -> -0.02367044831 | KC16: 0 | KD16: =(VLOOKUP($B16,'ECCV Beebe Pond Acrtns'!$B$7:$BI$1206,41)+VLOOKUP($B16,'ECCV Canal Acrtns'!$B$7:$AL$1206,22)+VLOOKUP($B16,'2003 Beebe Pond Acrtns'!$B$7:$BI$1206,41)+VLOOKUP($B16,'2003 Canal Acrtns'!$B$7:$AL$1206,22))/$RV16/1.9835+0.69 -> 1.045084924 | KE16: 0 | KF16: 0 | KG16: 0 | KH16: 1.045084924 | KI16: 0 | KJ16: no | KK16: 0 | KL16: 0.02367044831 | KM16: 1.083990756 | KN16: 0 | KO16: 1.246379701 | KP16: 0 | KQ16: 0 | KR16: 0 | KS16: 0 | KT16: 0 | KU16: =-(KT16*0.5/100*'Distances for Transit Losses'!$C$6) -> 0 | KV16: 0 | KW16: 0 | KX16: 0 | KY16: =IF(AND(E16<>"Lower Latham",I16<>"Lower Latham"),MIN(-(KS16+KV16),HU16-HU16*0.5/100*'Distances for Transit Losses'!$C$83),0) -> 0 | KZ16: =IF(AND(E16<>"Lower Latham",I16<>"Lower Latham"),MAX(0,MIN(-(KR16+KT16+KU16+KX16),HU16-HU16*0.5/100*'Distances for Transit Losses'!$C$83-KY16/(1-0.5/100*'Distances for Transit Losses'!$C$83))),0) -> 0 | LA16: =MIN(-(KS16+KY16),HS16-HS16*0.5/100*'Distances for Transit Losses'!$C$79) -> 0 | LB16: =MAX(0,MIN(-(KR16+KT16+KU16+KZ16),HS16-HS16*0.5/100*'Distances for Transit Losses'!$C$79-LA16/(1-0.5/100*'Distances for Transit Losses'!$C$79))) -> 0 | LC16: =IF(FK16="no",MIN(-(MIN(0,KR16+KS16+KT16+KU16+KZ16+LB16))+CL16/(1-0.5/100*'Distances for Transit Losses'!$C$40)+LT16/(1-0.5/100*'Distances for Transit Losses'!$C$36),(GU16-GV16)-(GU16-GV16)*0.5/100*'Distances for Transit Losses'!$C$79),0) -> 0.1177185208 | LD16: =MAX(0,IF(AND(HL16-HM16-JH16-FV16>0,FK16="no"),MIN(-(KR16+KT16+KU16+KX16+KZ16+LB16+LC16)/(1-0.5/100*'Distances for Transit Losses'!$C$89),HL16-HM16-JH16-FV16),0)) -> 0 | LE16: =-LD16*0.5/100*'Distances for Transit Losses'!$C$89 -> 0 | LH16: =SUM(KA16:KC16)+KH16+KI16+SUM(KL16:KQ16)+SUM(KT16:LF16)-(CL16/(1-0.5/100*'Distances for Transit Losses'!$C$40)+LT16/(1-0.5/100*'Distances for Transit Losses'!$C$36)) -> 0 | LI16: 0 | LJ16: 0 | LK16: 0.0726744269 | LL16: 0.1463226946 | LM16: =-(IF(N16<99999.99999,INDEX('Hist RF blw Milton'!$B$6:$M$30,MATCH($B$2,'Hist RF blw Milton'!$A$6:$A$30,0),MATCH($A16,'Hist RF blw Milton'!$B$5:$M$5,0))/RV16/1.9835,0)) -> -0.02924706861 | LN16: no | LO16: 0 | LP16: 0.02924706861 | LQ16: 0 | LR16: 0 | LS16: 0 | LT16: 0.02924706861 | LU16: Haren Recharge | LV16: 0.0726744269 | LW16: 0.117075626 | LX16: =-(IF(N16<99999.99999,INDEX('Hist RF to Box Elder'!$B$6:$M$30,MATCH($B$2,'Hist RF to Box Elder'!$A$6:$A$30,0),MATCH($A16,'Hist RF to Box Elder'!$B$5:$M$5,0))/RV16/1.9835,0)) -> -0.01307806535 | LY16: =(VLOOKUP($B16,'ECCV Beebe Pond Acrtns'!$B$7:$BI$1206,54)+VLOOKUP($B16,'ECCV Canal Acrtns'!$B$7:$AL$1206,34)+VLOOKUP($B16,'2003 Beebe Pond Acrtns'!$B$7:$BI$1206,54)+VLOOKUP($B16,'2003 Canal Acrtns'!$B$7:$AL$1206,34)+VLOOKUP($B16,'84CW090 Beebe Pond Acrtns'!$B$7:$BI$1206,55)+VLOOKUP($B16,'84CW090 Canal Acrtns'!$B$7:$AL$1206,34))/$RV16/1.9835 -> 0.1102842448 | LZ16: 0.01307806535 | MA16: 0 | MB16: 0 | MC16: 0 | ME16: -5.447707729 | MF16: 3.51684435 | MG16: 0.05849413722 | MH16: 0.01307806535 | MI16: 0.02147266205 | MJ16: 0.004195685049 | MK16: 0.0726744269 | ML16: 0 | MM16: 1.746339983 | MN16: 0.1519313349 | MO16: 5.585030645 | MP16: 0.1373229152 | MQ16: 0 | MR16: 0 | MS16: 0.09560296392 | MU16: 0 | MV16: 0 | MW16: 0 | MX16: 0 | MY16: 0 | MZ16: 0 | NA16: 0 | NB16: 0 | ND16: 0 | NE16: 0 | NF16: 0 | NG16: 0 | NH16: 0 | NI16: 0 | NJ16: 0 | NK16: 0 | NL16: 0 | NM16: 0 | NN16: 0 | NO16: 0 | NQ16: 0 | NR16: 0 | NS16: 0 | NT16: 0 | NU16: 0 | NV16: 0 | NW16: 0 | NX16: 0 | NY16: 0 | NZ16: 0 | OA16: 0 | OC16: 0.09560296392 | OD16: 0 | OE16: 0 | OF16: 0 | OG16: 0 | OH16: 0 | OI16: 0 | OJ16: 0 | OK16: 0 | OL16: 0 | OM16: 0 | OO16: 0 | OP16: 0 | OQ16: 0 | OR16: 0 | OS16: 0 | OT16: 0 | OU16: 0 | OV16: 0 | OW16: 0 | OX16: 0 | OY16: 0 | OZ16: 0 | PA16: 0 | PC16: 0 | PD16: 0 | PE16: 0 | PF16: 0 | PG16: 0 | PH16: 0 | PI16: 0 | PJ16: 0 | PK16: 0 | PM16: 0 | PN16: 0 | PO16: 0 | PP16: 0 | PQ16: 0 | PR16: 0 | PS16: 0 | PT16: 0 | PV16: 0 | PW16: 0 | PX16: 0 | PZ16: 0 | QA16: 0 | QB16: 0 | QC16: 0 | QF16: 0 | QG16: 0 | QH16: 0 | QI16: 0 | QJ16: 0 | QK16: 0 | QL16: 0 | QN16: 0 | QO16: 0 | QP16: 0 | QQ16: 0 | QR16: 0 | QS16: 309.6 | QU16: 0 | QV16: 0 | QW16: 0 | QX16: 0 | QY16: 0 | QZ16: 0 | RA16: 0 | RB16: 0 | RC16: 0 | RD16: 0 | RE16: 0 | RF16: 0 | RG16: 0 | RH16: 0 | RI16: 0 | RJ16: 0 | RK16: 0 | RL16: 0 | RM16: 0 | RN16: 0 | RO16: 0 | RP16: TRUE | RQ16: TRUE | RS16: 0 | RT16: 0 | RV16: =VLOOKUP(A16,'Control Sheet'!$G$9:$H$20,2) -> 30
A17: Apr | B17: 2017-04-09 | C17: Milton | D17: 1909-06-09 | E17: Western | F17: 21709 | K17: Bijou | L17: 2000-02-02 | M17: Bijou | N17: 54819 | O17: Prewitt Reservoir | P17: 2003-04-23 | Q17: Prewitt Reservoir | R17: 55995 | S17: 0 | T17: 0 | U17: 0 | V17: 0 | W17: 0 | X17: 0 | Y17: =('NFC Well Pumping'!$L15+'NFC Well Pumping'!$L52+'NFC Well Pumping'!$L88)/1.9835 -> 0 | Z17: ='88CW264(B) Pumping'!$E15/1.9835+'88CW264(B) Pumping'!$E51/1.9835+'88CW264(B) Pumping'!E91/1.9835+'88CW264(B) Pumping'!E127/1.9835+'88CW264(B) Pumping'!E167/1.9835+'88CW264(B) Pumping'!E203/1.9835 -> 0.00925230458 | AA17: 0 | AB17: =('United No. 2 Well Pumping'!G16+'United No. 2 Well Pumping'!G52+'United No. 2 Well Pumping'!G88)/1.9835 -> 0 | AC17: =('United No. 2 Well Pumping'!F16+'United No. 2 Well Pumping'!F52+'United No. 2 Well Pumping'!F88)/1.9835 -> 0 | AD17: 0 | AF17: 0.00925230458 | AG17: =U17+AC17+'United Res'!AA179+'United Res'!AQ179+'Milliken Res'!I167 -> 0 | AH17: 100 | AI17: =-(IF($N17=99999.99999,0,VLOOKUP($B17,'NFC Well Dplns-URF'!B$7:$AB$306,27))/$RV17/1.9835) -> -0.004064876498 | AJ17: 0 | AL17: =(VLOOKUP($B17,'ECCV 70R Pond Acrtns'!$B$7:$AI$1206,34)+VLOOKUP($B17,'2003 70R Pond Acrtns'!$B$7:$AI$1206,34)+VLOOKUP($B17,'ECCV 70R Canal Acrtns'!$B$7:$AI$1206,27)+VLOOKUP($B17,'2003 70R Canal Acrtns'!$B$7:$AI$1206,27))/$RV17/1.9835 -> 0 | AM17: -0.004064876498 | AN17: =-(IF($N17=99999.99999,0,VLOOKUP($B17,'NFC Well Dplns-SDF'!$B$7:$Z$306,25)+VLOOKUP($B17,'NFC Well Dplns-URF'!B$7:$AB$306,20))/$RV17/1.9835) -> -0.07514542012 | AO17: 0.02854171031 | AP17: 0.04660370981 | AQ17: ECCV Riverside Credits | AR17: =IF(N17<99999.99999,-((BD17+BE17)*'Weldon Credit'!$BB$36),0) -> 0 | AS17: =-((BD17+BE17)*'Weldon Credit'!$BB$34) -> 0 | AT17: =IF(N17<99999.99999,-INDEX('Weldon Credit'!$AX$249:$BJ$276,MATCH($B$2,'Weldon Credit'!$AX$249:$AX$276,0),MATCH(A17,'Weldon Credit'!$AX$249:$BJ$249,0))/RV17/1.9835,0) -> -0.007144773798 | AU17: -0.007144773798 | AV17: =IF(N17<99999.99999,-((BD17+BE17)*'Weldon Credit'!$BB$37),0) -> 0 | AW17: =-((BD17+BE17)*'Weldon Credit'!$BB$35) -> 0 | AX17: =IF(N17<99999.99999,-INDEX('Weldon Credit'!$AX$281:$BJ$308,MATCH($B$2,'Weldon Credit'!$AX$281:$AX$308,0),MATCH(A17,'Weldon Credit'!$AX$281:$BJ$281,0))/RV17/1.9835,0) -> -0.07879357513 | AY17: -0.07879357513 | AZ17: =-(BD17+BE17)*'Weldon Credit'!$BB$38 -> 0 | BA17: =0.4*(INDEX('Riverside Pond Accrtns'!$B$6:$M$36,MATCH($B$2,'Riverside Pond Accrtns'!$A$6:$A$36,0),MATCH('ECCV Daily Replacement Summary'!A17,'Riverside Pond Accrtns'!$B$5:$M$5,0))/RV17)/1.9835 -> 1.310814217 | BB17: =(44/640)*(INDEX('Weldon Valley Accrtns (02CW377)'!$B$6:$M$30,MATCH($B$2,'Weldon Valley Accrtns (02CW377)'!$A$6:$A$30,0),MATCH(A17,'Weldon Valley Accrtns (02CW377)'!$B$5:$M$5,0))/RV17)/1.9835 -> 0.2610339467 | BC17: =(VLOOKUP($B17,'ECCV 70R Pond Acrtns'!$B$7:$AI$1206,25)+VLOOKUP($B17,'ECCV 70R Canal Acrtns'!$B$7:$AI$1206,20)+VLOOKUP($B17,'2003 70R Pond Acrtns'!$B$7:$AI$1206,25)+VLOOKUP($B17,'2003 70R Canal Acrtns'!$B$7:$AI$1206,20))/$RV17/1.9835 -> 0 | BD17: ='Joint Aug Station Deliveries'!G17 -> 0 | BE17: ='Joint Aug Station Deliveries'!H17 -> 0 | BF17: 0 | BG17: 0 | BH17: =IF(BT17="no",-MAX(0,MIN(BG17,(BE17-BD17))*(0.5/100*'Distances for Transit Losses'!$C$75)),0) -> 0 | BI17: 0 | BJ17: =MIN(-($AU17+AY17+AZ17+BF17+BG17+BH17),BA17-BA17*0.5/100*'Distances for Transit Losses'!$C$77) -> 0.08593834893 | BK17: 0 | BL17: =MIN(-($AU17+AY17+AZ17+BF17+BG17+BH17+BJ17+BK17),BC17-BC17*0.5/100*'Distances for Transit Losses'!$C$77) -> 0 | BM17: =-((BJ17+BL17)*(0.5/100*'Distances for Transit Losses'!$C$77)) -> -0.009152434161 | BN17: =IF(AND(JE17-JF17-FR17-DM17>0,IZ17="no"),MIN(-(AU17+AY17+AZ17+BF17+BG17+BH17+BJ17+BK17+BL17+BM17)/(1-0.5/100*'Distances for Transit Losses'!$C$99),JE17-JF17-FR17-DM17),0) -> 0 | BO17: =--BN17*0.5/100*'Distances for Transit Losses'!C$99 -> 0 | BP17: =IF(AND(HL17-HM17-JH17-FV17-LD17-DQ17>0,FK17="no"),MIN(-(AU17+AY17+AZ17+BF17+BG17+BH17+BJ17+BK17+BL17+BM17+BN17+BO17)/(1-0.5/100*'Distances for Transit Losses'!$C$101),HL17-HM17-JH17-FV17-LD17-DQ17),0) -> 0 | BQ17: =--BP17*0.5/100*'Distances for Transit Losses'!$C$101 -> 0 | BR17: 0 | BT17: no | BU17: no | BV17: yes | BW17: 0 | BX17: 0 | BY17: 0 | CA17: =IF($BV17="No",MIN(-DH17,BA17-BJ17/(1-0.5/100*'Distances for Transit Losses'!$C$77)),0) -> 0 | CB17: =IF($BV17="No",MIN(-DH17+CA17,BC17-BL17/(1-0.5/100*'Distances for Transit Losses'!$C$77)),0) -> 0 | CC17: 0 | CD17: 0 | CE17: 0 | CF17: 1.439306105 | CG17: 1.392702395 | CH17: =-(IF($N17=99999.99999,0,VLOOKUP($B17,'NFC Well Dplns-SDF'!$B$7:$Z$306,16)+VLOOKUP($B17,'NFC Well Dplns-URF'!$B$7:$AB$306,13))/$RV17/1.9835) -> -0.2127558721 | CI17: =-(IF($N17>=99999,0,'88CW264(B) Pumping'!$E15/1.9835)+IF($N17>=99999,0,'88CW264(B) Pumping'!$E51/1.9835)+IF($N17>=99999,0,'88CW264(B) Pumping'!$E91/1.9835)+IF($N17>=99999,0,'88CW264(B) Pumping'!$E127/1.9835)+IF($N17>=51134.50919,0,'88CW264(B) Pumping'!$E167/1.9835)+IF($N17>=53406,0,'88CW264(B) Pumping'!$E203/1.9835)) -> -0.00925230458 | CJ17: -0.2220081766 | CK17: 0.1450733326 | CL17: 0.07693484407 | CM17: Haren Recharge | CN17: =-(IF($N17=99999.99999,0,VLOOKUP($B17,'United No. 2 Dplns'!$B$7:$X$676,13)/1.9835)) -> 0 | CO17: =CN17+(-(INDEX('Pre 1995 Net Accretions'!$B$6:$M$105,MATCH($B$2,'Pre 1995 Net Accretions'!$A$6:$A$105,0),MATCH($A17,'Pre 1995 Net Accretions'!$B$5:$M$5,0))/$RV17/1.9835)) -> 0.02808563779 | CP17: =-(IF(N17<99999.99999,(INDEX('70 Ranch RF Obligation'!$B$6:$M$36,MATCH($B$2,'70 Ranch RF Obligation'!$A$6:$A$36,0),MATCH('ECCV Daily Replacement Summary'!A17,'70 Ranch RF Obligation'!$B$5:$M$5,0))/RV17)/1.9835,0))-CS17*(1-'L. Latham Credit'!$E$41) -> -1.595 | CQ17: -1.566914362 | CR17: =(VLOOKUP($B17,'ECCV 70R Pond Acrtns'!$B$7:$AI$1206,16)+VLOOKUP($B17,'ECCV 70R Canal Acrtns'!$B$7:$AI$1206,13)+VLOOKUP($B17,'2003 70R Pond Acrtns'!$B$7:$AI$1206,16)+VLOOKUP($B17,'2003 70R Canal Acrtns'!$B$7:$AI$1206,13))/$RV17/1.9835 -> 0 | CS17: ='Joint Aug Station Deliveries'!BN17 -> 2.75 | CT17: 1.183085638 | CU17: 1.566914362 | CV17: ='Joint Aug Station Deliveries'!BQ17 -> 0 | CW17: 0 | CX17: 0 | DA17: 1.211171276 | DB17: 0 | DC17: 0 | DD17: =-DC17*0.5/100*'Distances for Transit Losses'!$C$48 -> 0 | DE17: 0 | DF17: 0 | DG17: 0 | DH17: 0 | DI17: 0 | DJ17: 0 | DK17: 0 | DL17: =('NFC Well Pumping'!I15+'NFC Well Pumping'!I52+'NFC Well Pumping'!I88)/1.9835 -> 0 | DM17: =IF(AND(JE17-JF17-FR17>0,IZ17="no"),MIN(-SUM(DH17:DL17)/(1-0.5/100*'Distances for Transit Losses'!$C$103),JE17-JF17-FR17),0) -> 0 | DN17: =-DM17*0.5/100*'Distances for Transit Losses'!C$103 -> 0 | DO17: 0 | DP17: =--DO17*0.5/100*'Distances for Transit Losses'!$C$127 -> 0 | DQ17: =IF(AND(HL17-HM17-JH17-FV17-LD17>0,FK17="no"),MIN(-SUM(DH17:DP17)/(1-0.5/100*'Distances for Transit Losses'!$C$105),HL17-HM17-JH17-FV17-LD17),0) -> 0 | DR17: =--DQ17*0.5/100*'Distances for Transit Losses'!$C$105 -> 0 | DS17: 1.211171276 | DT17: 0 | DU17: ='Joint Aug Station Deliveries'!O17 -> 0 | DV17: =-(DU17*0.5/100*'Distances for Transit Losses'!$C$212) -> 0 | DW17: 0 | DY17: no | EA17: 0 | EB17: 0 | EC17: =-(EB17*0.5/100*'Distances for Transit Losses'!$C$214) -> 0 | ED17: 0 | EE17: =-0.25*(INDEX('GIC Credit'!$B$85:$M$116,MATCH($B$2,'GIC Credit'!$A$85:$A$116,0),MATCH($A17,'GIC Credit'!$B$85:$M$85,0))/$RV17/1.9835+FE17*'GIC Credit'!$Z$39+FF17*'GIC Credit'!$AO$39) -> -0.0001915 | EF17: -0.0001915 | EG17: 0 | EH17: ='Joint Aug Station Deliveries'!BF17 -> 0 | EI17: =-(EH17*0.5/100*'Distances for Transit Losses'!$C$240) -> 0 | EJ17: ='Joint Aug Station Deliveries'!BG17 -> 0 | EK17: =-(EJ17*0.5/100*'Distances for Transit Losses'!$C$242) -> 0 | EL17: 0 | EM17: =-(EL17*0.5/100*'Distances for Transit Losses'!$C$234) -> 0 | EN17: 0 | EP17: no | EQ17: -0.0001915 | ER17: =-(IF($N17<99999.99999,(INDEX('New Cache Credit'!$W$82:$AH$113,MATCH($B$2,'New Cache Credit'!$V$82:$V$113,0),MATCH($A17,'New Cache Credit'!$W$82:$AH$82,0))/$RV17)/1.9835,0))-DT17-ED17 -> -0.07163859239 | ES17: =-0.39*(INDEX('GIC Credit'!$B$85:$M$116,MATCH($B$2,'GIC Credit'!$A$85:$A$116,0),MATCH($A17,'GIC Credit'!$B$85:$M$85,0))/$RV17/1.9835+FE17*'GIC Credit'!$Z$39+FF17*'GIC Credit'!$AO$39) -> -0.00029874 | ET17: 0 | EU17: =-(ET17*0.5/100*('Distances for Transit Losses'!$C$216+'Distances for Transit Losses'!$C$222)) -> 0 | EW17: =IF(EV17="yes",'Joint Aug Station Deliveries'!V17,0) -> 0 | EX17: =-(EW17*0.5/100*('Distances for Transit Losses'!$C$218+'Distances for Transit Losses'!$C$220+'Distances for Transit Losses'!$C$222)) -> 0 | EY17: =IF(EV17="Yes",'Joint Aug Station Deliveries'!Y17,0) -> 0 | EZ17: =-(EY17*0.5/100*('Distances for Transit Losses'!$C$220+'Distances for Transit Losses'!$C$222)) -> 0 | FA17: ='Joint Aug Station Deliveries'!BH17 -> 0 | FB17: =-(FA17*0.5/100*'Distances for Transit Losses'!$C$226) -> 0 | FC17: -0.07212883239 | FD17: 0 | FE17: ='Joint Aug Station Deliveries'!BJ17 -> 0 | FF17: ='Joint Aug Station Deliveries'!BK17 -> 0 | FG17: =-(IF(N17<99999.99999,INDEX('Hist RF to SPR'!$AF$6:$AQ$30,MATCH($B$2,'Hist RF to SPR'!$AE$6:$AE$30,0),MATCH($A17,'Hist RF to SPR'!$AF$5:$AQ$5,0))/RV17/1.9835,0)) -> -0.0002698345146 | FH17: =-0.36*(INDEX('GIC Credit'!$B$85:$M$116,MATCH($B$2,'GIC Credit'!$A$85:$A$116,0),MATCH($A17,'GIC Credit'!$B$85:$M$85,0))/$RV17/1.9835+FE17*'GIC Credit'!$Z$39+FF17*'GIC Credit'!$AO$39) -> -0.00027576 | FI17: -0.07212883239 | FJ17: -0.0726744269 | FK17: no | FL17: 0 | FM17: 0 | FN17: 0 | FP17: 0.0726744269 | FQ17: 0 | FR17: =IF(AND(JE17-JF17-HH17>0,IZ17="no"),MIN(-(FJ17+FP17+FQ17)/(1-0.5/100*'Distances for Transit Losses'!$C$107),JE17-JF17-HH17),0) -> 0 | FS17: =-FR17*0.5/100*'Distances for Transit Losses'!$C$107 -> 0 | FT17: 0 | FU17: =-FT17*0.5/100*'Distances for Transit Losses'!$C$125 -> 0 | FV17: =IF(AND(HL17-HM17-JH17>0,GX17="no"),MIN(-(FJ17+FP17+FQ17+FR17+FS17+FT17+FU17)/(1-0.5/100*'Distances for Transit Losses'!$C$109),HL17-HM17-JH17),0) -> 0 | FW17: =-FV17*0.5/100*'Distances for Transit Losses'!$C$115 -> 0 | FX17: 0 | FZ17: 0 | GB17: =IF(AND(GA16="no",(SUM('Joint Aug Station Deliveries'!$AF$9:'Joint Aug Station Deliveries'!$AF16)+'Joint Aug Station Deliveries'!$AF17)*1.9835>'New Cache Credit'!$BY$39,(SUM('Joint Aug Station Deliveries'!$AF$9:'Joint Aug Station Deliveries'!$AF16)+'Joint Aug Station Deliveries'!$AF17)*1.9835>'New Cache Credit'!$CH$39),0,'Joint Aug Station Deliveries'!X17) -> 0 | GC17: =-(GB17*0.5/100*'Distances for Transit Losses'!$C$208) -> 0 | GE17: =IF(AND(GD16="no",(SUM('Joint Aug Station Deliveries'!$AF$9:'Joint Aug Station Deliveries'!$AF16)+'Joint Aug Station Deliveries'!$AF17)*1.9835>'New Cache Credit'!$BY$39,(SUM('Joint Aug Station Deliveries'!$AF$9:'Joint Aug Station Deliveries'!$AF16)+'Joint Aug Station Deliveries'!$AF17)*1.9835>'New Cache Credit'!$CH$39),0,'Joint Aug Station Deliveries'!AA17) -> 0 | GF17: =-(GE17*0.5/100*'Distances for Transit Losses'!$C$200) -> 0 | GG17: =IF(AND(GD16="no",(SUM('Joint Aug Station Deliveries'!$AF$9:'Joint Aug Station Deliveries'!$AF16)+'Joint Aug Station Deliveries'!$AF17)*1.9835>'New Cache Credit'!$BY$39,(SUM('Joint Aug Station Deliveries'!$AF$9:'Joint Aug Station Deliveries'!$AF16)+'Joint Aug Station Deliveries'!$AF17)*1.9835>'New Cache Credit'!$CH$39),0,'Joint Aug Station Deliveries'!AD17) -> 0 | GH17: =-(GG17*0.5/100*'Distances for Transit Losses'!$C$206) -> 0 | GI17: 0 | GJ17: 0 | GK17: 4.163336342e-17 | GL17: 1.392702395 | GM17: =-(IF(N17<99999.99999,INDEX('Hist RF to SPR'!$Q$6:$AB$30,MATCH($B$2,'Hist RF to SPR'!$P$6:$P$30,0),MATCH($A17,'Hist RF to SPR'!$Q$5:$AB$5,0))/RV17/1.9835,0)) -> -0.002436185049 | GN17: =-(IF(OR($N17<99999.99999,E17="Lower Latham",I17="Lower Latham",E17="Highland",I17="Highland",E17="Plum",I17="Plum"),(INDEX('FIDCO Credit'!$Y$48:$AJ$78,MATCH($B$2,'FIDCO Credit'!$X$48:$X$78,0),MATCH($A17,'FIDCO Credit'!$Y$47:$AJ$47,0))/$RV17)/1.9835,0)) -> -0.0017595 | GO17: =-(IF(OR($N17<99999.99999,E17="Lower Latham",I17="Lower Latham",E17="Highland",I17="Highland",E17="Plum",I17="Plum"),(INDEX('Western Credit'!$W$84:$AH$114,MATCH($B$2,'Western Credit'!$V$84:$V$114,0),MATCH($A17,'Western Credit'!$W$83:$AH$83,0))/$RV17)/1.9835+'Haren Daily Recharge'!K16*'Western Credit'!$Z$40,0)) -> 0 | GP17: -0.004195685049 | GQ17: 0 | GR17: 0 | GS17: =IF(AND(GY17="no",GZ17="no"),MIN(-(GN17-GQ17-GR17)/(1-0.5/100*'Distances for Transit Losses'!$C$95),IW17),0) -> 0 | GT17: =-GS17*0.5/100*'Distances for Transit Losses'!$C$95 -> 0 | GU17: =VLOOKUP($B17,'ECCV Haren Pond S.P. Acrtns'!$B$7:$G$306,6)/$RV17/1.9835 -> 1.484290832 | GV17: 0.004195685049 | GW17: 1.333262578 | GX17: yes | GY17: yes | GZ17: no | HA17: 0 | HB17: 0 | HC17: 0 | HE17: 0 | HF17: 0 | HG17: 0 | HH17: =IF(AND(JE17-JF17>0,IZ17="no"),MIN(-HG17/(1-0.5/100*'Distances for Transit Losses'!$C$111),JE17-JF17),0) -> 0 | HI17: =-HH17*0.5/100*'Distances for Transit Losses'!$C$111 -> 0 | HJ17: =IF(AND(JI17+JJ17-JK17-JV17>0,IZ17="no"),MIN((-HG17-(HH17+HI17))/(1-0.5/100*'Distances for Transit Losses'!$C$113),JI17+JJ17-JK17-JV17),0) -> 0 | HK17: =-HJ17*0.5/100*'Distances for Transit Losses'!$C$113 -> 0 | HL17: 0 | HM17: =IF(HL17>0,MIN(-(HG17+HH17+HI17+HJ17+HK17)/(1-0.5/100*'Distances for Transit Losses'!$C$115),HL17),0) -> 0 | HN17: =-HM17*0.5/100*'Distances for Transit Losses'!$C$115 -> 0 | HO17: 0 | HQ17: 0 | HR17: ='Joint Aug Station Deliveries'!AS17 -> 0 | HS17: =HR17*'Western Credit'!$Z$42 -> 0 | HT17: ='Joint Aug Station Deliveries'!AJ17 -> 0 | HU17: =IF(AND(HT17>0,SUM($HT$9:HT17,$HV$9:HV17,$IW$9:IW17)*1.9835<OFFSET('FIDCO Credit'!$X$39,0,MATCH($A17,'FIDCO Credit'!$Y$5:$AJ$5,0))),HT17-GQ17,0) -> 0 | HV17: ='Joint Aug Station Deliveries'!AM17 -> 0 | HW17: =IF(AND(HV17>0,SUM($HT$9:HT17,$HV$9:HV17,$IW$9:IW17)*1.9835<OFFSET('FIDCO Credit'!$X$39,0,MATCH($A17,'FIDCO Credit'!$Y$5:$AJ$5,0))),HV17-GR17,0) -> 0 | HX17: =MAX(0,(KY17+KZ17))/(1-0.5/100*'Distances for Transit Losses'!$C$83) -> 0 | HY17: =MAX(0,(LA17+LB17)/(1-0.5/100*'Distances for Transit Losses'!$C$79)) -> 0 | HZ17: 0 | IA17: =-HZ17*0.5/100*'Distances for Transit Losses'!$C$85 -> 0 | IB17: 0 | IC17: 0 | ID17: =-IC17*0.5/100*'Distances for Transit Losses'!$C$34 -> 0 | IE17: 0 | IF17: 0 | IG17: 0 | IH17: 0 | II17: 0 | IJ17: 0 | IK17: 0 | IL17: 0 | IM17: 0 | IN17: 0 | IO17: 0 | IP17: 0 | IQ17: =-IP17*0.5/100*'Distances for Transit Losses'!$C$123 -> 0 | IR17: 0 | IS17: =GU17-GV17-GW17+HS17+HU17-SUM(HX17:IB17)-IF17-IG17-II17-IJ17-(CL17/(1-0.5/100*'Distances for Transit Losses'!$C$105)) -> 0.05578541692 | IT17: 4.163336342e-17 | IU17: 1.392702395 | IV17: =-(IF(F17<99999.99999,INDEX('Hist RF to SPR'!$B$6:$M$30,MATCH($B$2,'Hist RF to SPR'!$A$6:$A$30,0),MATCH($A17,'Hist RF to SPR'!$B$5:$M$5,0))/RV17/1.9835,0)) -> -0.02147266205 | IW17: ='Joint Aug Station Deliveries'!AP17 -> 0 | IX17: =IF(AND(IW17>0,SUM($HT$9:HT17,$HV$9:HV17,$IW$9:IW17)*1.9835<OFFSET('FIDCO Credit'!$X$39,0,MATCH($A17,'FIDCO Credit'!$Y$5:$AJ$5,0))),IW17-GS17,0) -> 0 | IY17: 0 | IZ17: yes | JA17: 0 | JB17: 0 | JC17: 0 | JD17: -0.02147266205 | JE17: 0 | JF17: =IF(JE17>0,MIN(-JD17/(1-0.5/100*'Distances for Transit Losses'!$C$117),JE17),0) -> 0 | JG17: =-JF17*0.5/100*'Distances for Transit Losses'!$C$117 -> 0 | JH17: 0 | JI17: 0 | JJ17: =-JI17*0.5/100*'Distances for Transit Losses'!$C$70 -> 0 | JK17: =IF((JI17+JJ17)>0,MIN((-JD17-(JF17-JG17)-JH17)/(1-0.5/100*'Distances for Transit Losses'!$C$119),(JI17+JJ17)),0) -> 0 | JL17: =-JK17*0.5/100*'Distances for Transit Losses'!$C$119 -> 0 | JM17: 0 | JO17: -0.02147266205 | JP17: 0 | JQ17: 0 | JR17: 0 | JS17: 0 | JT17: 0 | JU17: 0 | JV17: 0 | JW17: =-JV17*0.5/100*'Distances for Transit Losses'!$C$121 -> 0 | JX17: 0 | JY17: 4.163336342e-17 | JZ17: 1.392702395 | KA17: =-(IF(N17<99999.99999,(VLOOKUP(B17,'ECCV Upper Dpln'!$B$7:$BD$306,55))/RV17/1.9835,0)) -> -3.375455381 | KB17: =-(IF(N17<99999.99999,INDEX('Hist RF abv Milton'!$B$6:$M$30,MATCH($B$2,'Hist RF abv Milton'!$A$6:$A$30,0),MATCH($A17,'Hist RF abv Milton'!$B$5:$M$5,0))/RV17/1.9835,0)) -> -0.02367044831 | KC17: 0 | KD17: =(VLOOKUP($B17,'ECCV Beebe Pond Acrtns'!$B$7:$BI$1206,41)+VLOOKUP($B17,'ECCV Canal Acrtns'!$B$7:$AL$1206,22)+VLOOKUP($B17,'2003 Beebe Pond Acrtns'!$B$7:$BI$1206,41)+VLOOKUP($B17,'2003 Canal Acrtns'!$B$7:$AL$1206,22))/$RV17/1.9835+0.69 -> 1.045084924 | KE17: 0 | KF17: 0 | KG17: 0 | KH17: 1.045084924 | KI17: 0 | KJ17: no | KK17: 0 | KL17: 0.02367044831 | KM17: 1.1148264 | KN17: 0 | KO17: 0 | KP17: 0 | KQ17: 0 | KR17: -1.215544057 | KS17: 0 | KT17: 0 | KU17: =-(KT17*0.5/100*'Distances for Transit Losses'!$C$6) -> 0 | KV17: 0 | KW17: 0 | KX17: 0 | KY17: =IF(AND(E17<>"Lower Latham",I17<>"Lower Latham"),MIN(-(KS17+KV17),HU17-HU17*0.5/100*'Distances for Transit Losses'!$C$83),0) -> 0 | KZ17: =IF(AND(E17<>"Lower Latham",I17<>"Lower Latham"),MAX(0,MIN(-(KR17+KT17+KU17+KX17),HU17-HU17*0.5/100*'Distances for Transit Losses'!$C$83-KY17/(1-0.5/100*'Distances for Transit Losses'!$C$83))),0) -> 0 | LA17: =MIN(-(KS17+KY17),HS17-HS17*0.5/100*'Distances for Transit Losses'!$C$79) -> 0 | LB17: =MAX(0,MIN(-(KR17+KT17+KU17+KZ17),HS17-HS17*0.5/100*'Distances for Transit Losses'!$C$79-LA17/(1-0.5/100*'Distances for Transit Losses'!$C$79))) -> 0 | LC17: =IF(FK17="no",MIN(-(MIN(0,KR17+KS17+KT17+KU17+KZ17+LB17))+CL17/(1-0.5/100*'Distances for Transit Losses'!$C$40)+LT17/(1-0.5/100*'Distances for Transit Losses'!$C$36),(GU17-GV17)-(GU17-GV17)*0.5/100*'Distances for Transit Losses'!$C$79),0) -> 1.333262578 | LD17: =MAX(0,IF(AND(HL17-HM17-JH17-FV17>0,FK17="no"),MIN(-(KR17+KT17+KU17+KX17+KZ17+LB17+LC17)/(1-0.5/100*'Distances for Transit Losses'!$C$89),HL17-HM17-JH17-FV17),0)) -> 0 | LE17: =-LD17*0.5/100*'Distances for Transit Losses'!$C$89 -> 0 | LH17: =SUM(KA17:KC17)+KH17+KI17+SUM(KL17:KQ17)+SUM(KT17:LF17)-(CL17/(1-0.5/100*'Distances for Transit Losses'!$C$40)+LT17/(1-0.5/100*'Distances for Transit Losses'!$C$36)) -> -1.665334537e-16 | LI17: 0 | LJ17: 0 | LK17: 0.0726744269 | LL17: 1.392702395 | LM17: =-(IF(N17<99999.99999,INDEX('Hist RF blw Milton'!$B$6:$M$30,MATCH($B$2,'Hist RF blw Milton'!$A$6:$A$30,0),MATCH($A17,'Hist RF blw Milton'!$B$5:$M$5,0))/RV17/1.9835,0)) -> -0.02924706861 | LN17: no | LO17: 0 | LP17: 0 | LQ17: -0.02924706861 | LR17: 0 | LS17: 0 | LT17: 0.02924706861 | LU17: Haren Recharge | LV17: 0.0726744269 | LW17: 1.392702395 | LX17: =-(IF(N17<99999.99999,INDEX('Hist RF to Box Elder'!$B$6:$M$30,MATCH($B$2,'Hist RF to Box Elder'!$A$6:$A$30,0),MATCH($A17,'Hist RF to Box Elder'!$B$5:$M$5,0))/RV17/1.9835,0)) -> -0.01307806535 | LY17: =(VLOOKUP($B17,'ECCV Beebe Pond Acrtns'!$B$7:$BI$1206,54)+VLOOKUP($B17,'ECCV Canal Acrtns'!$B$7:$AL$1206,34)+VLOOKUP($B17,'2003 Beebe Pond Acrtns'!$B$7:$BI$1206,54)+VLOOKUP($B17,'2003 Canal Acrtns'!$B$7:$AL$1206,34)+VLOOKUP($B17,'84CW090 Beebe Pond Acrtns'!$B$7:$BI$1206,55)+VLOOKUP($B17,'84CW090 Canal Acrtns'!$B$7:$AL$1206,34))/$RV17/1.9835 -> 0.1102842448 | LZ17: 0.01307806535 | MA17: 0 | MB17: 0 | MC17: 0 | ME17: -5.490290286 | MF17: 3.51684435 | MG17: 0.02924706861 | MH17: 0.01307806535 | MI17: 0 | MJ17: 0.004195685049 | MK17: 0.0726744269 | ML17: 0 | MM17: 1.788922539 | MN17: 0.1519313349 | MO17: 5.57689347 | MP17: 0.08660318457 | MQ17: 0 | MR17: 0 | MS17: 0 | MU17: 0 | MV17: 0 | MW17: 0 | MX17: 0 | MY17: 0 | MZ17: 0 | NA17: 0 | NB17: 0 | ND17: 0 | NE17: 0 | NF17: 0 | NG17: 0 | NH17: 0 | NI17: 0 | NJ17: 0 | NK17: 0 | NL17: 0 | NM17: 0 | NN17: 0 | NO17: 0 | NQ17: 0 | NR17: 0 | NS17: 0 | NT17: 0 | NU17: 0 | NV17: 0 | NW17: 0 | NX17: 0 | NY17: 0 | NZ17: 0 | OA17: 0 | OC17: 0 | OD17: 0 | OE17: 0 | OF17: 0 | OG17: 0 | OH17: 0 | OI17: 0 | OJ17: 0 | OK17: 0 | OL17: 0 | OM17: 0 | OO17: 0 | OP17: 0 | OQ17: 0 | OR17: 0 | OS17: 0 | OT17: 0 | OU17: 0 | OV17: 0 | OW17: 0 | OX17: 0 | OY17: 0 | OZ17: 0 | PA17: 0 | PC17: 0 | PD17: 0 | PE17: 0 | PF17: 0 | PG17: 0 | PH17: 0 | PI17: 0 | PJ17: 0 | PK17: 0 | PM17: 0 | PN17: 0 | PO17: 0 | PP17: 0 | PQ17: 0 | PR17: 0 | PS17: 0 | PT17: 0 | PV17: 0 | PW17: 0 | PX17: 0 | PZ17: 0 | QA17: 0 | QB17: 0 | QC17: 0 | QF17: 0 | QG17: 0 | QH17: 0 | QI17: 0 | QJ17: 0 | QK17: 0 | QL17: 0 | QN17: 0 | QO17: 0 | QP17: 0 | QQ17: 0 | QR17: 0 | QS17: 309.6 | QU17: 0 | QV17: 0 | QW17: 0 | QX17: 0 | QY17: 0 | QZ17: 0 | RA17: 0 | RB17: 0 | RC17: 0 | RD17: 0 | RE17: 0 | RF17: 0 | RG17: 0 | RH17: 0 | RI17: 0 | RJ17: 0 | RK17: 0 | RL17: 0 | RM17: 0 | RN17: 0 | RO17: 0 | RP17: TRUE | RQ17: TRUE | RS17: 0 | RT17: 0 | RV17: =VLOOKUP(A17,'Control Sheet'!$G$9:$H$20,2) -> 30
A18: Apr | B18: 2017-04-10 | C18: Milton | D18: 1909-06-09 | E18: Western | F18: 21709 | K18: Bijou | L18: 2000-02-02 | M18: Bijou | N18: 54819 | O18: Prewitt Reservoir | P18: 2003-04-23 | Q18: Prewitt Reservoir | R18: 55995 | S18: 0 | T18: 0 | U18: 0 | V18: 0 | W18: 0 | X18: 0 | Y18: =('NFC Well Pumping'!$L16+'NFC Well Pumping'!$L53+'NFC Well Pumping'!$L89)/1.9835 -> 0 | Z18: ='88CW264(B) Pumping'!$E16/1.9835+'88CW264(B) Pumping'!$E52/1.9835+'88CW264(B) Pumping'!E92/1.9835+'88CW264(B) Pumping'!E128/1.9835+'88CW264(B) Pumping'!E168/1.9835+'88CW264(B) Pumping'!E204/1.9835 -> 0.00925230458 | AA18: 0 | AB18: =('United No. 2 Well Pumping'!G17+'United No. 2 Well Pumping'!G53+'United No. 2 Well Pumping'!G89)/1.9835 -> 0 | AC18: =('United No. 2 Well Pumping'!F17+'United No. 2 Well Pumping'!F53+'United No. 2 Well Pumping'!F89)/1.9835 -> 0 | AD18: 0 | AF18: 0.00925230458 | AG18: =U18+AC18+'United Res'!AA180+'United Res'!AQ180+'Milliken Res'!I168 -> 0 | AH18: 100 | AI18: =-(IF($N18=99999.99999,0,VLOOKUP($B18,'NFC Well Dplns-URF'!B$7:$AB$306,27))/$RV18/1.9835) -> -0.004064876498 | AJ18: 0 | AL18: =(VLOOKUP($B18,'ECCV 70R Pond Acrtns'!$B$7:$AI$1206,34)+VLOOKUP($B18,'2003 70R Pond Acrtns'!$B$7:$AI$1206,34)+VLOOKUP($B18,'ECCV 70R Canal Acrtns'!$B$7:$AI$1206,27)+VLOOKUP($B18,'2003 70R Canal Acrtns'!$B$7:$AI$1206,27))/$RV18/1.9835 -> 0 | AM18: -0.004064876498 | AN18: =-(IF($N18=99999.99999,0,VLOOKUP($B18,'NFC Well Dplns-SDF'!$B$7:$Z$306,25)+VLOOKUP($B18,'NFC Well Dplns-URF'!B$7:$AB$306,20))/$RV18/1.9835) -> -0.07514542012 | AO18: 0.02854171031 | AP18: 0.04660370981 | AQ18: ECCV Riverside Credits | AR18: =IF(N18<99999.99999,-((BD18+BE18)*'Weldon Credit'!$BB$36),0) -> 0 | AS18: =-((BD18+BE18)*'Weldon Credit'!$BB$34) -> 0 | AT18: =IF(N18<99999.99999,-INDEX('Weldon Credit'!$AX$249:$BJ$276,MATCH($B$2,'Weldon Credit'!$AX$249:$AX$276,0),MATCH(A18,'Weldon Credit'!$AX$249:$BJ$249,0))/RV18/1.9835,0) -> -0.007144773798 | AU18: -0.007144773798 | AV18: =IF(N18<99999.99999,-((BD18+BE18)*'Weldon Credit'!$BB$37),0) -> 0 | AW18: =-((BD18+BE18)*'Weldon Credit'!$BB$35) -> 0 | AX18: =IF(N18<99999.99999,-INDEX('Weldon Credit'!$AX$281:$BJ$308,MATCH($B$2,'Weldon Credit'!$AX$281:$AX$308,0),MATCH(A18,'Weldon Credit'!$AX$281:$BJ$281,0))/RV18/1.9835,0) -> -0.07879357513 | AY18: -0.07879357513 | AZ18: =-(BD18+BE18)*'Weldon Credit'!$BB$38 -> 0 | BA18: =0.4*(INDEX('Riverside Pond Accrtns'!$B$6:$M$36,MATCH($B$2,'Riverside Pond Accrtns'!$A$6:$A$36,0),MATCH('ECCV Daily Replacement Summary'!A18,'Riverside Pond Accrtns'!$B$5:$M$5,0))/RV18)/1.9835 -> 1.310814217 | BB18: =(44/640)*(INDEX('Weldon Valley Accrtns (02CW377)'!$B$6:$M$30,MATCH($B$2,'Weldon Valley Accrtns (02CW377)'!$A$6:$A$30,0),MATCH(A18,'Weldon Valley Accrtns (02CW377)'!$B$5:$M$5,0))/RV18)/1.9835 -> 0.2610339467 | BC18: =(VLOOKUP($B18,'ECCV 70R Pond Acrtns'!$B$7:$AI$1206,25)+VLOOKUP($B18,'ECCV 70R Canal Acrtns'!$B$7:$AI$1206,20)+VLOOKUP($B18,'2003 70R Pond Acrtns'!$B$7:$AI$1206,25)+VLOOKUP($B18,'2003 70R Canal Acrtns'!$B$7:$AI$1206,20))/$RV18/1.9835 -> 0 | BD18: ='Joint Aug Station Deliveries'!G18 -> 0 | BE18: ='Joint Aug Station Deliveries'!H18 -> 0 | BF18: 0 | BG18: 0 | BH18: =IF(BT18="no",-MAX(0,MIN(BG18,(BE18-BD18))*(0.5/100*'Distances for Transit Losses'!$C$75)),0) -> 0 | BI18: 0 | BJ18: =MIN(-($AU18+AY18+AZ18+BF18+BG18+BH18),BA18-BA18*0.5/100*'Distances for Transit Losses'!$C$77) -> 0.08593834893 | BK18: 0 | BL18: =MIN(-($AU18+AY18+AZ18+BF18+BG18+BH18+BJ18+BK18),BC18-BC18*0.5/100*'Distances for Transit Losses'!$C$77) -> 0 | BM18: =-((BJ18+BL18)*(0.5/100*'Distances for Transit Losses'!$C$77)) -> -0.009152434161 | BN18: =IF(AND(JE18-JF18-FR18-DM18>0,IZ18="no"),MIN(-(AU18+AY18+AZ18+BF18+BG18+BH18+BJ18+BK18+BL18+BM18)/(1-0.5/100*'Distances for Transit Losses'!$C$99),JE18-JF18-FR18-DM18),0) -> 0 | BO18: =--BN18*0.5/100*'Distances for Transit Losses'!C$99 -> 0 | BP18: =IF(AND(HL18-HM18-JH18-FV18-LD18-DQ18>0,FK18="no"),MIN(-(AU18+AY18+AZ18+BF18+BG18+BH18+BJ18+BK18+BL18+BM18+BN18+BO18)/(1-0.5/100*'Distances for Transit Losses'!$C$101),HL18-HM18-JH18-FV18-LD18-DQ18),0) -> 0.01312176941 | BQ18: =--BP18*0.5/100*'Distances for Transit Losses'!$C$101 -> 0.003969335246 | BR18: 0 | BT18: no | BU18: no | BV18: yes | BW18: 0 | BX18: 0 | BY18: 0 | CA18: =IF($BV18="No",MIN(-DH18,BA18-BJ18/(1-0.5/100*'Distances for Transit Losses'!$C$77)),0) -> 0 | CB18: =IF($BV18="No",MIN(-DH18+CA18,BC18-BL18/(1-0.5/100*'Distances for Transit Losses'!$C$77)),0) -> 0 | CC18: 0 | CD18: 0 | CE18: 0 | CF18: 1.439306105 | CG18: 1.392702395 | CH18: =-(IF($N18=99999.99999,0,VLOOKUP($B18,'NFC Well Dplns-SDF'!$B$7:$Z$306,16)+VLOOKUP($B18,'NFC Well Dplns-URF'!$B$7:$AB$306,13))/$RV18/1.9835) -> -0.2127558721 | CI18: =-(IF($N18>=99999,0,'88CW264(B) Pumping'!$E16/1.9835)+IF($N18>=99999,0,'88CW264(B) Pumping'!$E52/1.9835)+IF($N18>=99999,0,'88CW264(B) Pumping'!$E92/1.9835)+IF($N18>=99999,0,'88CW264(B) Pumping'!$E128/1.9835)+IF($N18>=51134.50919,0,'88CW264(B) Pumping'!$E168/1.9835)+IF($N18>=53406,0,'88CW264(B) Pumping'!$E204/1.9835)) -> -0.00925230458 | CJ18: -0.2220081766 | CK18: 0.1450733326 | CL18: 0.07693484407 | CM18: Haren Recharge | CN18: =-(IF($N18=99999.99999,0,VLOOKUP($B18,'United No. 2 Dplns'!$B$7:$X$676,13)/1.9835)) -> 0 | CO18: =CN18+(-(INDEX('Pre 1995 Net Accretions'!$B$6:$M$105,MATCH($B$2,'Pre 1995 Net Accretions'!$A$6:$A$105,0),MATCH($A18,'Pre 1995 Net Accretions'!$B$5:$M$5,0))/$RV18/1.9835)) -> 0.02808563779 | CP18: =-(IF(N18<99999.99999,(INDEX('70 Ranch RF Obligation'!$B$6:$M$36,MATCH($B$2,'70 Ranch RF Obligation'!$A$6:$A$36,0),MATCH('ECCV Daily Replacement Summary'!A18,'70 Ranch RF Obligation'!$B$5:$M$5,0))/RV18)/1.9835,0))-CS18*(1-'L. Latham Credit'!$E$41) -> -1.595 | CQ18: -1.566914362 | CR18: =(VLOOKUP($B18,'ECCV 70R Pond Acrtns'!$B$7:$AI$1206,16)+VLOOKUP($B18,'ECCV 70R Canal Acrtns'!$B$7:$AI$1206,13)+VLOOKUP($B18,'2003 70R Pond Acrtns'!$B$7:$AI$1206,16)+VLOOKUP($B18,'2003 70R Canal Acrtns'!$B$7:$AI$1206,13))/$RV18/1.9835 -> 0 | CS18: ='Joint Aug Station Deliveries'!BN18 -> 2.75 | CT18: 1.183085638 | CU18: 1.566914362 | CV18: ='Joint Aug Station Deliveries'!BQ18 -> 0 | CW18: 0 | CX18: 0 | DA18: 1.211171276 | DB18: 0 | DC18: 0 | DD18: =-DC18*0.5/100*'Distances for Transit Losses'!$C$48 -> 0 | DE18: 0 | DF18: 0 | DG18: 0 | DH18: 0 | DI18: 0 | DJ18: 0 | DK18: 0 | DL18: =('NFC Well Pumping'!I16+'NFC Well Pumping'!I53+'NFC Well Pumping'!I89)/1.9835 -> 0 | DM18: =IF(AND(JE18-JF18-FR18>0,IZ18="no"),MIN(-SUM(DH18:DL18)/(1-0.5/100*'Distances for Transit Losses'!$C$103),JE18-JF18-FR18),0) -> 0 | DN18: =-DM18*0.5/100*'Distances for Transit Losses'!C$103 -> 0 | DO18: 0 | DP18: =--DO18*0.5/100*'Distances for Transit Losses'!$C$127 -> 0 | DQ18: =IF(AND(HL18-HM18-JH18-FV18-LD18>0,FK18="no"),MIN(-SUM(DH18:DP18)/(1-0.5/100*'Distances for Transit Losses'!$C$105),HL18-HM18-JH18-FV18-LD18),0) -> 0 | DR18: =--DQ18*0.5/100*'Distances for Transit Losses'!$C$105 -> 0 | DS18: 1.211171276 | DT18: 0 | DU18: ='Joint Aug Station Deliveries'!O18 -> 0 | DV18: =-(DU18*0.5/100*'Distances for Transit Losses'!$C$212) -> 0 | DW18: 0 | DY18: no | EA18: 0 | EB18: 0 | EC18: =-(EB18*0.5/100*'Distances for Transit Losses'!$C$214) -> 0 | ED18: 0 | EE18: =-0.25*(INDEX('GIC Credit'!$B$85:$M$116,MATCH($B$2,'GIC Credit'!$A$85:$A$116,0),MATCH($A18,'GIC Credit'!$B$85:$M$85,0))/$RV18/1.9835+FE18*'GIC Credit'!$Z$39+FF18*'GIC Credit'!$AO$39) -> -0.0001915 | EF18: -0.0001915 | EG18: 0 | EH18: ='Joint Aug Station Deliveries'!BF18 -> 0 | EI18: =-(EH18*0.5/100*'Distances for Transit Losses'!$C$240) -> 0 | EJ18: ='Joint Aug Station Deliveries'!BG18 -> 0 | EK18: =-(EJ18*0.5/100*'Distances for Transit Losses'!$C$242) -> 0 | EL18: 0 | EM18: =-(EL18*0.5/100*'Distances for Transit Losses'!$C$234) -> 0 | EN18: 0 | EP18: no | EQ18: -0.0001915 | ER18: =-(IF($N18<99999.99999,(INDEX('New Cache Credit'!$W$82:$AH$113,MATCH($B$2,'New Cache Credit'!$V$82:$V$113,0),MATCH($A18,'New Cache Credit'!$W$82:$AH$82,0))/$RV18)/1.9835,0))-DT18-ED18 -> -0.07163859239 | ES18: =-0.39*(INDEX('GIC Credit'!$B$85:$M$116,MATCH($B$2,'GIC Credit'!$A$85:$A$116,0),MATCH($A18,'GIC Credit'!$B$85:$M$85,0))/$RV18/1.9835+FE18*'GIC Credit'!$Z$39+FF18*'GIC Credit'!$AO$39) -> -0.00029874 | ET18: 0 | EU18: =-(ET18*0.5/100*('Distances for Transit Losses'!$C$216+'Distances for Transit Losses'!$C$222)) -> 0 | EW18: =IF(EV18="yes",'Joint Aug Station Deliveries'!V18,0) -> 0 | EX18: =-(EW18*0.5/100*('Distances for Transit Losses'!$C$218+'Distances for Transit Losses'!$C$220+'Distances for Transit Losses'!$C$222)) -> 0 | EY18: =IF(EV18="Yes",'Joint Aug Station Deliveries'!Y18,0) -> 0 | EZ18: =-(EY18*0.5/100*('Distances for Transit Losses'!$C$220+'Distances for Transit Losses'!$C$222)) -> 0 | FA18: ='Joint Aug Station Deliveries'!BH18 -> 0 | FB18: =-(FA18*0.5/100*'Distances for Transit Losses'!$C$226) -> 0 | FC18: -0.07212883239 | FD18: 0 | FE18: ='Joint Aug Station Deliveries'!BJ18 -> 0 | FF18: ='Joint Aug Station Deliveries'!BK18 -> 0 | FG18: =-(IF(N18<99999.99999,INDEX('Hist RF to SPR'!$AF$6:$AQ$30,MATCH($B$2,'Hist RF to SPR'!$AE$6:$AE$30,0),MATCH($A18,'Hist RF to SPR'!$AF$5:$AQ$5,0))/RV18/1.9835,0)) -> -0.0002698345146 | FH18: =-0.36*(INDEX('GIC Credit'!$B$85:$M$116,MATCH($B$2,'GIC Credit'!$A$85:$A$116,0),MATCH($A18,'GIC Credit'!$B$85:$M$85,0))/$RV18/1.9835+FE18*'GIC Credit'!$Z$39+FF18*'GIC Credit'!$AO$39) -> -0.00027576 | FI18: -0.07212883239 | FJ18: -0.0726744269 | FK18: no | FL18: 0 | FM18: 0 | FN18: 0 | FP18: 0.0726744269 | FQ18: 0 | FR18: =IF(AND(JE18-JF18-HH18>0,IZ18="no"),MIN(-(FJ18+FP18+FQ18)/(1-0.5/100*'Distances for Transit Losses'!$C$107),JE18-JF18-HH18),0) -> 0 | FS18: =-FR18*0.5/100*'Distances for Transit Losses'!$C$107 -> 0 | FT18: 0 | FU18: =-FT18*0.5/100*'Distances for Transit Losses'!$C$125 -> 0 | FV18: =IF(AND(HL18-HM18-JH18>0,GX18="no"),MIN(-(FJ18+FP18+FQ18+FR18+FS18+FT18+FU18)/(1-0.5/100*'Distances for Transit Losses'!$C$109),HL18-HM18-JH18),0) -> 0 | FW18: =-FV18*0.5/100*'Distances for Transit Losses'!$C$115 -> 0 | FX18: 0 | FZ18: 0 | GB18: =IF(AND(GA17="no",(SUM('Joint Aug Station Deliveries'!$AF$9:'Joint Aug Station Deliveries'!$AF17)+'Joint Aug Station Deliveries'!$AF18)*1.9835>'New Cache Credit'!$BY$39,(SUM('Joint Aug Station Deliveries'!$AF$9:'Joint Aug Station Deliveries'!$AF17)+'Joint Aug Station Deliveries'!$AF18)*1.9835>'New Cache Credit'!$CH$39),0,'Joint Aug Station Deliveries'!X18) -> 0 | GC18: =-(GB18*0.5/100*'Distances for Transit Losses'!$C$208) -> 0 | GE18: =IF(AND(GD17="no",(SUM('Joint Aug Station Deliveries'!$AF$9:'Joint Aug Station Deliveries'!$AF17)+'Joint Aug Station Deliveries'!$AF18)*1.9835>'New Cache Credit'!$BY$39,(SUM('Joint Aug Station Deliveries'!$AF$9:'Joint Aug Station Deliveries'!$AF17)+'Joint Aug Station Deliveries'!$AF18)*1.9835>'New Cache Credit'!$CH$39),0,'Joint Aug Station Deliveries'!AA18) -> 0 | GF18: =-(GE18*0.5/100*'Distances for Transit Losses'!$C$200) -> 0 | GG18: =IF(AND(GD17="no",(SUM('Joint Aug Station Deliveries'!$AF$9:'Joint Aug Station Deliveries'!$AF17)+'Joint Aug Station Deliveries'!$AF18)*1.9835>'New Cache Credit'!$BY$39,(SUM('Joint Aug Station Deliveries'!$AF$9:'Joint Aug Station Deliveries'!$AF17)+'Joint Aug Station Deliveries'!$AF18)*1.9835>'New Cache Credit'!$CH$39),0,'Joint Aug Station Deliveries'!AD18) -> 0 | GH18: =-(GG18*0.5/100*'Distances for Transit Losses'!$C$206) -> 0 | GI18: 0 | GJ18: 0 | GK18: 4.163336342e-17 | GL18: 1.392702395 | GM18: =-(IF(N18<99999.99999,INDEX('Hist RF to SPR'!$Q$6:$AB$30,MATCH($B$2,'Hist RF to SPR'!$P$6:$P$30,0),MATCH($A18,'Hist RF to SPR'!$Q$5:$AB$5,0))/RV18/1.9835,0)) -> -0.002436185049 | GN18: =-(IF(OR($N18<99999.99999,E18="Lower Latham",I18="Lower Latham",E18="Highland",I18="Highland",E18="Plum",I18="Plum"),(INDEX('FIDCO Credit'!$Y$48:$AJ$78,MATCH($B$2,'FIDCO Credit'!$X$48:$X$78,0),MATCH($A18,'FIDCO Credit'!$Y$47:$AJ$47,0))/$RV18)/1.9835,0)) -> -0.0017595 | GO18: =-(IF(OR($N18<99999.99999,E18="Lower Latham",I18="Lower Latham",E18="Highland",I18="Highland",E18="Plum",I18="Plum"),(INDEX('Western Credit'!$W$84:$AH$114,MATCH($B$2,'Western Credit'!$V$84:$V$114,0),MATCH($A18,'Western Credit'!$W$83:$AH$83,0))/$RV18)/1.9835+'Haren Daily Recharge'!K17*'Western Credit'!$Z$40,0)) -> 0 | GP18: -0.004195685049 | GQ18: 0 | GR18: 0 | GS18: =IF(AND(GY18="no",GZ18="no"),MIN(-(GN18-GQ18-GR18)/(1-0.5/100*'Distances for Transit Losses'!$C$95),IW18),0) -> 0 | GT18: =-GS18*0.5/100*'Distances for Transit Losses'!$C$95 -> 0 | GU18: =VLOOKUP($B18,'ECCV Haren Pond S.P. Acrtns'!$B$7:$G$306,6)/$RV18/1.9835 -> 1.484290832 | GV18: 0.004195685049 | GW18: 0.6755959109 | GX18: yes | GY18: yes | GZ18: no | HA18: 0 | HB18: 0 | HC18: 0 | HE18: 0 | HF18: 0 | HG18: 0 | HH18: =IF(AND(JE18-JF18>0,IZ18="no"),MIN(-HG18/(1-0.5/100*'Distances for Transit Losses'!$C$111),JE18-JF18),0) -> 0 | HI18: =-HH18*0.5/100*'Distances for Transit Losses'!$C$111 -> 0 | HJ18: =IF(AND(JI18+JJ18-JK18-JV18>0,IZ18="no"),MIN((-HG18-(HH18+HI18))/(1-0.5/100*'Distances for Transit Losses'!$C$113),JI18+JJ18-JK18-JV18),0) -> 0 | HK18: =-HJ18*0.5/100*'Distances for Transit Losses'!$C$113 -> 0 | HL18: 1.053692967 | HM18: =IF(HL18>0,MIN(-(HG18+HH18+HI18+HJ18+HK18)/(1-0.5/100*'Distances for Transit Losses'!$C$115),HL18),0) -> 0 | HN18: =-HM18*0.5/100*'Distances for Transit Losses'!$C$115 -> 0 | HO18: 0 | HQ18: 0 | HR18: ='Joint Aug Station Deliveries'!AS18 -> 0 | HS18: =HR18*'Western Credit'!$Z$42 -> 0 | HT18: ='Joint Aug Station Deliveries'!AJ18 -> 0 | HU18: =IF(AND(HT18>0,SUM($HT$9:HT18,$HV$9:HV18,$IW$9:IW18)*1.9835<OFFSET('FIDCO Credit'!$X$39,0,MATCH($A18,'FIDCO Credit'!$Y$5:$AJ$5,0))),HT18-GQ18,0) -> 0 | HV18: ='Joint Aug Station Deliveries'!AM18 -> 0 | HW18: =IF(AND(HV18>0,SUM($HT$9:HT18,$HV$9:HV18,$IW$9:IW18)*1.9835<OFFSET('FIDCO Credit'!$X$39,0,MATCH($A18,'FIDCO Credit'!$Y$5:$AJ$5,0))),HV18-GR18,0) -> 0 | HX18: =MAX(0,(KY18+KZ18))/(1-0.5/100*'Distances for Transit Losses'!$C$83) -> 0 | HY18: =MAX(0,(LA18+LB18)/(1-0.5/100*'Distances for Transit Losses'!$C$79)) -> 0 | HZ18: 0 | IA18: =-HZ18*0.5/100*'Distances for Transit Losses'!$C$85 -> 0 | IB18: 0 | IC18: 0 | ID18: =-IC18*0.5/100*'Distances for Transit Losses'!$C$34 -> 0 | IE18: 0 | IF18: 0 | IG18: 0 | IH18: 0 | II18: 0 | IJ18: 0 | IK18: 0 | IL18: 0 | IM18: 0 | IN18: 0 | IO18: 0 | IP18: 0 | IQ18: =-IP18*0.5/100*'Distances for Transit Losses'!$C$123 -> 0 | IR18: 0 | IS18: =GU18-GV18-GW18+HS18+HU18-SUM(HX18:IB18)-IF18-IG18-II18-IJ18-(CL18/(1-0.5/100*'Distances for Transit Losses'!$C$105)) -> 0.7134520836 | IT18: 4.163336342e-17 | IU18: 1.392702395 | IV18: =-(IF(F18<99999.99999,INDEX('Hist RF to SPR'!$B$6:$M$30,MATCH($B$2,'Hist RF to SPR'!$A$6:$A$30,0),MATCH($A18,'Hist RF to SPR'!$B$5:$M$5,0))/RV18/1.9835,0)) -> -0.02147266205 | IW18: ='Joint Aug Station Deliveries'!AP18 -> 0 | IX18: =IF(AND(IW18>0,SUM($HT$9:HT18,$HV$9:HV18,$IW$9:IW18)*1.9835<OFFSET('FIDCO Credit'!$X$39,0,MATCH($A18,'FIDCO Credit'!$Y$5:$AJ$5,0))),IW18-GS18,0) -> 0 | IY18: 0 | IZ18: yes | JA18: 0 | JB18: 0 | JC18: 0 | JD18: -0.02147266205 | JE18: 0 | JF18: =IF(JE18>0,MIN(-JD18/(1-0.5/100*'Distances for Transit Losses'!$C$117),JE18),0) -> 0 | JG18: =-JF18*0.5/100*'Distances for Transit Losses'!$C$117 -> 0 | JH18: 0 | JI18: 0 | JJ18: =-JI18*0.5/100*'Distances for Transit Losses'!$C$70 -> 0 | JK18: =IF((JI18+JJ18)>0,MIN((-JD18-(JF18-JG18)-JH18)/(1-0.5/100*'Distances for Transit Losses'!$C$119),(JI18+JJ18)),0) -> 0 | JL18: =-JK18*0.5/100*'Distances for Transit Losses'!$C$119 -> 0 | JM18: 0 | JO18: -0.02147266205 | JP18: 0 | JQ18: 0 | JR18: 0 | JS18: 0 | JT18: 0 | JU18: 0 | JV18: 0 | JW18: =-JV18*0.5/100*'Distances for Transit Losses'!$C$121 -> 0 | JX18: 0 | JY18: 4.163336342e-17 | JZ18: 1.392702395 | KA18: =-(IF(N18<99999.99999,(VLOOKUP(B18,'ECCV Upper Dpln'!$B$7:$BD$306,55))/RV18/1.9835,0)) -> -3.375455381 | KB18: =-(IF(N18<99999.99999,INDEX('Hist RF abv Milton'!$B$6:$M$30,MATCH($B$2,'Hist RF abv Milton'!$A$6:$A$30,0),MATCH($A18,'Hist RF abv Milton'!$B$5:$M$5,0))/RV18/1.9835,0)) -> -0.02367044831 | KC18: 0 | KD18: =(VLOOKUP($B18,'ECCV Beebe Pond Acrtns'!$B$7:$BI$1206,41)+VLOOKUP($B18,'ECCV Canal Acrtns'!$B$7:$AL$1206,22)+VLOOKUP($B18,'2003 Beebe Pond Acrtns'!$B$7:$BI$1206,41)+VLOOKUP($B18,'2003 Canal Acrtns'!$B$7:$AL$1206,22))/$RV18/1.9835+0.69 -> 1.045084924 | KE18: 0 | KF18: 0 | KG18: 0 | KH18: 1.045084924 | KI18: 0 | KJ18: no | KK18: 0 | KL18: 0.02367044831 | KM18: 1.1148264 | KN18: 0 | KO18: 0 | KP18: 0 | KQ18: 0 | KR18: -1.215544057 | KS18: 0 | KT18: 0.6666666667 | KU18: =-(KT18*0.5/100*'Distances for Transit Losses'!$C$6) -> -0.009 | KV18: 0 | KW18: 0 | KX18: 0 | KY18: =IF(AND(E18<>"Lower Latham",I18<>"Lower Latham"),MIN(-(KS18+KV18),HU18-HU18*0.5/100*'Distances for Transit Losses'!$C$83),0) -> 0 | KZ18: =IF(AND(E18<>"Lower Latham",I18<>"Lower Latham"),MAX(0,MIN(-(KR18+KT18+KU18+KX18),HU18-HU18*0.5/100*'Distances for Transit Losses'!$C$83-KY18/(1-0.5/100*'Distances for Transit Losses'!$C$83))),0) -> 0 | LA18: =MIN(-(KS18+KY18),HS18-HS18*0.5/100*'Distances for Transit Losses'!$C$79) -> 0 | LB18: =MAX(0,MIN(-(KR18+KT18+KU18+KZ18),HS18-HS18*0.5/100*'Distances for Transit Losses'!$C$79-LA18/(1-0.5/100*'Distances for Transit Losses'!$C$79))) -> 0 | LC18: =IF(FK18="no",MIN(-(MIN(0,KR18+KS18+KT18+KU18+KZ18+LB18))+CL18/(1-0.5/100*'Distances for Transit Losses'!$C$40)+LT18/(1-0.5/100*'Distances for Transit Losses'!$C$36),(GU18-GV18)-(GU18-GV18)*0.5/100*'Distances for Transit Losses'!$C$79),0) -> 0.6755959109 | LD18: =MAX(0,IF(AND(HL18-HM18-JH18-FV18>0,FK18="no"),MIN(-(KR18+KT18+KU18+KX18+KZ18+LB18+LC18)/(1-0.5/100*'Distances for Transit Losses'!$C$89),HL18-HM18-JH18-FV18),0)) -> 0 | LE18: =-LD18*0.5/100*'Distances for Transit Losses'!$C$89 -> 0 | LH18: =SUM(KA18:KC18)+KH18+KI18+SUM(KL18:KQ18)+SUM(KT18:LF18)-(CL18/(1-0.5/100*'Distances for Transit Losses'!$C$40)+LT18/(1-0.5/100*'Distances for Transit Losses'!$C$36)) -> 0 | LI18: 0 | LJ18: 0 | LK18: 0.0726744269 | LL18: 1.392702395 | LM18: =-(IF(N18<99999.99999,INDEX('Hist RF blw Milton'!$B$6:$M$30,MATCH($B$2,'Hist RF blw Milton'!$A$6:$A$30,0),MATCH($A18,'Hist RF blw Milton'!$B$5:$M$5,0))/RV18/1.9835,0)) -> -0.02924706861 | LN18: no | LO18: 0 | LP18: 0 | LQ18: -0.02924706861 | LR18: 0 | LS18: 0 | LT18: 0.02924706861 | LU18: Haren Recharge | LV18: 0.0726744269 | LW18: 1.392702395 | LX18: =-(IF(N18<99999.99999,INDEX('Hist RF to Box Elder'!$B$6:$M$30,MATCH($B$2,'Hist RF to Box Elder'!$A$6:$A$30,0),MATCH($A18,'Hist RF to Box Elder'!$B$5:$M$5,0))/RV18/1.9835,0)) -> -0.01307806535 | LY18: =(VLOOKUP($B18,'ECCV Beebe Pond Acrtns'!$B$7:$BI$1206,54)+VLOOKUP($B18,'ECCV Canal Acrtns'!$B$7:$AL$1206,34)+VLOOKUP($B18,'2003 Beebe Pond Acrtns'!$B$7:$BI$1206,54)+VLOOKUP($B18,'2003 Canal Acrtns'!$B$7:$AL$1206,34)+VLOOKUP($B18,'84CW090 Beebe Pond Acrtns'!$B$7:$BI$1206,55)+VLOOKUP($B18,'84CW090 Canal Acrtns'!$B$7:$AL$1206,34))/$RV18/1.9835 -> 0.1102842448 | LZ18: 0.01307806535 | MA18: 0 | MB18: 0 | MC18: 0 | ME18: -5.490290286 | MF18: 3.51684435 | MG18: 0.02924706861 | MH18: 0.01307806535 | MI18: 0 | MJ18: 0.004195685049 | MK18: 0.0726744269 | ML18: 0 | MM18: 1.788922539 | MN18: 0.1690224395 | MO18: =SUM(MF18:MN18) -> 5.593984575 | MP18: 0.1036942892 | MQ18: 0 | MR18: 0 | MS18: 0 | MU18: 0 | MV18: 0 | MW18: 0 | MX18: 0 | MY18: 0 | MZ18: 0 | NA18: 0 | NB18: 0 | ND18: 0 | NE18: 0 | NF18: 0 | NG18: 0 | NH18: 0 | NI18: 0 | NJ18: 0 | NK18: 0 | NL18: 0 | NM18: 0 | NN18: 0 | NO18: 0 | NQ18: 0 | NR18: 0 | NS18: 0 | NT18: 0 | NU18: 0 | NV18: 0 | NW18: 0 | NX18: 0 | NY18: 0 | NZ18: 0 | OA18: 0 | OC18: 0 | OD18: 0 | OE18: 0 | OF18: 0 | OG18: 0 | OH18: 0 | OI18: 0 | OJ18: 0 | OK18: 0 | OL18: 0 | OM18: 0 | OO18: 0 | OP18: 0 | OQ18: 0 | OR18: 0 | OS18: 0 | OT18: 0 | OU18: 0 | OV18: 0 | OW18: 0 | OX18: 0 | OY18: 0 | OZ18: 0 | PA18: 0 | PC18: 0 | PD18: 0 | PE18: 0 | PF18: 0 | PG18: 0 | PH18: 0 | PI18: 0 | PJ18: 0 | PK18: 0 | PM18: 0 | PN18: 0 | PO18: 0 | PP18: 0 | PQ18: 0 | PR18: 0 | PS18: 0 | PT18: 0 | PV18: 0 | PW18: 0 | PX18: 0 | PZ18: 0 | QA18: 0 | QB18: 0 | QC18: 0 | QF18: 0 | QG18: 0 | QH18: 0 | QI18: 0 | QJ18: 0 | QK18: 0 | QL18: 0 | QN18: 0 | QO18: 0 | QP18: 0 | QQ18: 0 | QR18: 0 | QS18: 309.6 | QU18: 0 | QV18: 0 | QW18: 0 | QX18: 0 | QY18: 0 | QZ18: 0 | RA18: 0 | RB18: 0 | RC18: 0 | RD18: 0 | RE18: 0 | RF18: 0 | RG18: 0 | RH18: 0 | RI18: 0 | RJ18: 0 | RK18: 0 | RL18: 0 | RM18: 0 | RN18: 0 | RO18: 0 | RP18: TRUE | RQ18: TRUE | RS18: 0.6666666667 | RT18: 0 | RV18: =VLOOKUP(A18,'Control Sheet'!$G$9:$H$20,2) -> 30
A19: Apr | B19: 2017-04-11 | C19: Milton | D19: 1909-06-09 | E19: Western | F19: 21709 | K19: Bijou | L19: 2000-02-02 | M19: Bijou | N19: 54819 | O19: Lower Platte and Beaver | P19: 2003-01-08 | Q19: South Platte Ditch | R19: 55890 | S19: 0 | T19: 0 | U19: 0 | V19: 0 | W19: 0 | X19: 0 | Y19: =('NFC Well Pumping'!$L17+'NFC Well Pumping'!$L54+'NFC Well Pumping'!$L90)/1.9835 -> 0 | Z19: ='88CW264(B) Pumping'!$E17/1.9835+'88CW264(B) Pumping'!$E53/1.9835+'88CW264(B) Pumping'!E93/1.9835+'88CW264(B) Pumping'!E129/1.9835+'88CW264(B) Pumping'!E169/1.9835+'88CW264(B) Pumping'!E205/1.9835 -> 0.00925230458 | AA19: 0 | AB19: =('United No. 2 Well Pumping'!G18+'United No. 2 Well Pumping'!G54+'United No. 2 Well Pumping'!G90)/1.9835 -> 0 | AC19: =('United No. 2 Well Pumping'!F18+'United No. 2 Well Pumping'!F54+'United No. 2 Well Pumping'!F90)/1.9835 -> 0 | AD19: 0 | AF19: 0.00925230458 | AG19: =U19+AC19+'United Res'!AA181+'United Res'!AQ181+'Milliken Res'!I169 -> 0 | AH19: 100 | AI19: =-(IF($N19=99999.99999,0,VLOOKUP($B19,'NFC Well Dplns-URF'!B$7:$AB$306,27))/$RV19/1.9835) -> -0.004064876498 | AJ19: 0 | AL19: =(VLOOKUP($B19,'ECCV 70R Pond Acrtns'!$B$7:$AI$1206,34)+VLOOKUP($B19,'2003 70R Pond Acrtns'!$B$7:$AI$1206,34)+VLOOKUP($B19,'ECCV 70R Canal Acrtns'!$B$7:$AI$1206,27)+VLOOKUP($B19,'2003 70R Canal Acrtns'!$B$7:$AI$1206,27))/$RV19/1.9835 -> 0 | AM19: -0.004064876498 | AN19: =-(IF($N19=99999.99999,0,VLOOKUP($B19,'NFC Well Dplns-SDF'!$B$7:$Z$306,25)+VLOOKUP($B19,'NFC Well Dplns-URF'!B$7:$AB$306,20))/$RV19/1.9835) -> -0.07514542012 | AO19: 0.02854171031 | AP19: 0.04660370981 | AQ19: ECCV Riverside Credits | AR19: =IF(N19<99999.99999,-((BD19+BE19)*'Weldon Credit'!$BB$36),0) -> 0 | AS19: =-((BD19+BE19)*'Weldon Credit'!$BB$34) -> 0 | AT19: =IF(N19<99999.99999,-INDEX('Weldon Credit'!$AX$249:$BJ$276,MATCH($B$2,'Weldon Credit'!$AX$249:$AX$276,0),MATCH(A19,'Weldon Credit'!$AX$249:$BJ$249,0))/RV19/1.9835,0) -> -0.007144773798 | AU19: -0.007144773798 | AV19: =IF(N19<99999.99999,-((BD19+BE19)*'Weldon Credit'!$BB$37),0) -> 0 | AW19: =-((BD19+BE19)*'Weldon Credit'!$BB$35) -> 0 | AX19: =IF(N19<99999.99999,-INDEX('Weldon Credit'!$AX$281:$BJ$308,MATCH($B$2,'Weldon Credit'!$AX$281:$AX$308,0),MATCH(A19,'Weldon Credit'!$AX$281:$BJ$281,0))/RV19/1.9835,0) -> -0.07879357513 | AY19: -0.07879357513 | AZ19: =-(BD19+BE19)*'Weldon Credit'!$BB$38 -> 0 | BA19: =0.4*(INDEX('Riverside Pond Accrtns'!$B$6:$M$36,MATCH($B$2,'Riverside Pond Accrtns'!$A$6:$A$36,0),MATCH('ECCV Daily Replacement Summary'!A19,'Riverside Pond Accrtns'!$B$5:$M$5,0))/RV19)/1.9835 -> 1.310814217 | BB19: =(44/640)*(INDEX('Weldon Valley Accrtns (02CW377)'!$B$6:$M$30,MATCH($B$2,'Weldon Valley Accrtns (02CW377)'!$A$6:$A$30,0),MATCH(A19,'Weldon Valley Accrtns (02CW377)'!$B$5:$M$5,0))/RV19)/1.9835 -> 0.2610339467 | BC19: =(VLOOKUP($B19,'ECCV 70R Pond Acrtns'!$B$7:$AI$1206,25)+VLOOKUP($B19,'ECCV 70R Canal Acrtns'!$B$7:$AI$1206,20)+VLOOKUP($B19,'2003 70R Pond Acrtns'!$B$7:$AI$1206,25)+VLOOKUP($B19,'2003 70R Canal Acrtns'!$B$7:$AI$1206,20))/$RV19/1.9835 -> 0 | BD19: ='Joint Aug Station Deliveries'!G19 -> 0 | BE19: ='Joint Aug Station Deliveries'!H19 -> 0 | BF19: 0 | BG19: 0 | BH19: =IF(BT19="no",-MAX(0,MIN(BG19,(BE19-BD19))*(0.5/100*'Distances for Transit Losses'!$C$75)),0) -> 0 | BI19: 0 | BJ19: =MIN(-($AU19+AY19+AZ19+BF19+BG19+BH19),BA19-BA19*0.5/100*'Distances for Transit Losses'!$C$77) -> 0.08593834893 | BK19: 0 | BL19: =MIN(-($AU19+AY19+AZ19+BF19+BG19+BH19+BJ19+BK19),BC19-BC19*0.5/100*'Distances for Transit Losses'!$C$77) -> 0 | BM19: =-((BJ19+BL19)*(0.5/100*'Distances for Transit Losses'!$C$77)) -> -0.009152434161 | BN19: =IF(AND(JE19-JF19-FR19-DM19>0,IZ19="no"),MIN(-(AU19+AY19+AZ19+BF19+BG19+BH19+BJ19+BK19+BL19+BM19)/(1-0.5/100*'Distances for Transit Losses'!$C$99),JE19-JF19-FR19-DM19),0) -> 0 | BO19: =--BN19*0.5/100*'Distances for Transit Losses'!C$99 -> 0 | BP19: =IF(AND(HL19-HM19-JH19-FV19-LD19-DQ19>0,FK19="no"),MIN(-(AU19+AY19+AZ19+BF19+BG19+BH19+BJ19+BK19+BL19+BM19+BN19+BO19)/(1-0.5/100*'Distances for Transit Losses'!$C$101),HL19-HM19-JH19-FV19-LD19-DQ19),0) -> 0 | BQ19: =--BP19*0.5/100*'Distances for Transit Losses'!$C$101 -> 0 | BR19: 0 | BT19: no | BU19: no | BV19: yes | BW19: 0 | BX19: 0 | BY19: 0 | CA19: =IF($BV19="No",MIN(-DH19,BA19-BJ19/(1-0.5/100*'Distances for Transit Losses'!$C$77)),0) -> 0 | CB19: =IF($BV19="No",MIN(-DH19+CA19,BC19-BL19/(1-0.5/100*'Distances for Transit Losses'!$C$77)),0) -> 0 | CC19: 0 | CD19: 0 | CE19: 0 | CF19: 1.439306105 | CG19: 1.392702395 | CH19: =-(IF($N19=99999.99999,0,VLOOKUP($B19,'NFC Well Dplns-SDF'!$B$7:$Z$306,16)+VLOOKUP($B19,'NFC Well Dplns-URF'!$B$7:$AB$306,13))/$RV19/1.9835) -> -0.2127558721 | CI19: =-(IF($N19>=99999,0,'88CW264(B) Pumping'!$E17/1.9835)+IF($N19>=99999,0,'88CW264(B) Pumping'!$E53/1.9835)+IF($N19>=99999,0,'88CW264(B) Pumping'!$E93/1.9835)+IF($N19>=99999,0,'88CW264(B) Pumping'!$E129/1.9835)+IF($N19>=51134.50919,0,'88CW264(B) Pumping'!$E169/1.9835)+IF($N19>=53406,0,'88CW264(B) Pumping'!$E205/1.9835)) -> -0.00925230458 | CJ19: -0.2220081766 | CK19: 0.1450733326 | CL19: 0.07693484407 | CM19: Haren Recharge | CN19: =-(IF($N19=99999.99999,0,VLOOKUP($B19,'United No. 2 Dplns'!$B$7:$X$676,13)/1.9835)) -> 0 | CO19: =CN19+(-(INDEX('Pre 1995 Net Accretions'!$B$6:$M$105,MATCH($B$2,'Pre 1995 Net Accretions'!$A$6:$A$105,0),MATCH($A19,'Pre 1995 Net Accretions'!$B$5:$M$5,0))/$RV19/1.9835)) -> 0.02808563779 | CP19: =-(IF(N19<99999.99999,(INDEX('70 Ranch RF Obligation'!$B$6:$M$36,MATCH($B$2,'70 Ranch RF Obligation'!$A$6:$A$36,0),MATCH('ECCV Daily Replacement Summary'!A19,'70 Ranch RF Obligation'!$B$5:$M$5,0))/RV19)/1.9835,0))-CS19*(1-'L. Latham Credit'!$E$41) -> -1.590723469 | CQ19: -1.562637831 | CR19: =(VLOOKUP($B19,'ECCV 70R Pond Acrtns'!$B$7:$AI$1206,16)+VLOOKUP($B19,'ECCV 70R Canal Acrtns'!$B$7:$AI$1206,13)+VLOOKUP($B19,'2003 70R Pond Acrtns'!$B$7:$AI$1206,16)+VLOOKUP($B19,'2003 70R Canal Acrtns'!$B$7:$AI$1206,13))/$RV19/1.9835 -> 0 | CS19: ='Joint Aug Station Deliveries'!BN19 -> 2.74262667 | CT19: 1.179988839 | CU19: 1.562637831 | CV19: ='Joint Aug Station Deliveries'!BQ19 -> 0 | CW19: 0 | CX19: 0 | DA19: 1.208074477 | DB19: 0 | DC19: 0 | DD19: =-DC19*0.5/100*'Distances for Transit Losses'!$C$48 -> 0 | DE19: 0 | DF19: 0 | DG19: 0 | DH19: 0 | DI19: 0 | DJ19: 0 | DK19: 0 | DL19: =('NFC Well Pumping'!I17+'NFC Well Pumping'!I54+'NFC Well Pumping'!I90)/1.9835 -> 0 | DM19: =IF(AND(JE19-JF19-FR19>0,IZ19="no"),MIN(-SUM(DH19:DL19)/(1-0.5/100*'Distances for Transit Losses'!$C$103),JE19-JF19-FR19),0) -> 0 | DN19: =-DM19*0.5/100*'Distances for Transit Losses'!C$103 -> 0 | DO19: 0 | DP19: =--DO19*0.5/100*'Distances for Transit Losses'!$C$127 -> 0 | DQ19: =IF(AND(HL19-HM19-JH19-FV19-LD19>0,FK19="no"),MIN(-SUM(DH19:DP19)/(1-0.5/100*'Distances for Transit Losses'!$C$105),HL19-HM19-JH19-FV19-LD19),0) -> 0 | DR19: =--DQ19*0.5/100*'Distances for Transit Losses'!$C$105 -> 0 | DS19: 1.208074477 | DT19: 0 | DU19: ='Joint Aug Station Deliveries'!O19 -> 0 | DV19: =-(DU19*0.5/100*'Distances for Transit Losses'!$C$212) -> 0 | DW19: 0 | DY19: no | EA19: 0 | EB19: 0 | EC19: =-(EB19*0.5/100*'Distances for Transit Losses'!$C$214) -> 0 | ED19: 0 | EE19: =-0.25*(INDEX('GIC Credit'!$B$85:$M$116,MATCH($B$2,'GIC Credit'!$A$85:$A$116,0),MATCH($A19,'GIC Credit'!$B$85:$M$85,0))/$RV19/1.9835+FE19*'GIC Credit'!$Z$39+FF19*'GIC Credit'!$AO$39) -> -0.0001915 | EF19: -0.0001915 | EG19: 0 | EH19: ='Joint Aug Station Deliveries'!BF19 -> 0 | EI19: =-(EH19*0.5/100*'Distances for Transit Losses'!$C$240) -> 0 | EJ19: ='Joint Aug Station Deliveries'!BG19 -> 0 | EK19: =-(EJ19*0.5/100*'Distances for Transit Losses'!$C$242) -> 0 | EL19: 0 | EM19: =-(EL19*0.5/100*'Distances for Transit Losses'!$C$234) -> 0 | EN19: 0 | EP19: no | EQ19: -0.0001915 | ER19: =-(IF($N19<99999.99999,(INDEX('New Cache Credit'!$W$82:$AH$113,MATCH($B$2,'New Cache Credit'!$V$82:$V$113,0),MATCH($A19,'New Cache Credit'!$W$82:$AH$82,0))/$RV19)/1.9835,0))-DT19-ED19 -> -0.07163859239 | ES19: =-0.39*(INDEX('GIC Credit'!$B$85:$M$116,MATCH($B$2,'GIC Credit'!$A$85:$A$116,0),MATCH($A19,'GIC Credit'!$B$85:$M$85,0))/$RV19/1.9835+FE19*'GIC Credit'!$Z$39+FF19*'GIC Credit'!$AO$39) -> -0.00029874 | ET19: 0 | EU19: =-(ET19*0.5/100*('Distances for Transit Losses'!$C$216+'Distances for Transit Losses'!$C$222)) -> 0 | EW19: =IF(EV19="yes",'Joint Aug Station Deliveries'!V19,0) -> 0 | EX19: =-(EW19*0.5/100*('Distances for Transit Losses'!$C$218+'Distances for Transit Losses'!$C$220+'Distances for Transit Losses'!$C$222)) -> 0 | EY19: =IF(EV19="Yes",'Joint Aug Station Deliveries'!Y19,0) -> 0 | EZ19: =-(EY19*0.5/100*('Distances for Transit Losses'!$C$220+'Distances for Transit Losses'!$C$222)) -> 0 | FA19: ='Joint Aug Station Deliveries'!BH19 -> 0 | FB19: =-(FA19*0.5/100*'Distances for Transit Losses'!$C$226) -> 0 | FC19: -0.07212883239 | FD19: 0 | FE19: ='Joint Aug Station Deliveries'!BJ19 -> 0 | FF19: ='Joint Aug Station Deliveries'!BK19 -> 0 | FG19: =-(IF(N19<99999.99999,INDEX('Hist RF to SPR'!$AF$6:$AQ$30,MATCH($B$2,'Hist RF to SPR'!$AE$6:$AE$30,0),MATCH($A19,'Hist RF to SPR'!$AF$5:$AQ$5,0))/RV19/1.9835,0)) -> -0.0002698345146 | FH19: =-0.36*(INDEX('GIC Credit'!$B$85:$M$116,MATCH($B$2,'GIC Credit'!$A$85:$A$116,0),MATCH($A19,'GIC Credit'!$B$85:$M$85,0))/$RV19/1.9835+FE19*'GIC Credit'!$Z$39+FF19*'GIC Credit'!$AO$39) -> -0.00027576 | FI19: -0.07212883239 | FJ19: -0.0726744269 | FK19: no | FL19: 0 | FM19: 0 | FN19: 0 | FP19: 0.0726744269 | FQ19: 0 | FR19: =IF(AND(JE19-JF19-HH19>0,IZ19="no"),MIN(-(FJ19+FP19+FQ19)/(1-0.5/100*'Distances for Transit Losses'!$C$107),JE19-JF19-HH19),0) -> 0 | FS19: =-FR19*0.5/100*'Distances for Transit Losses'!$C$107 -> 0 | FT19: 0 | FU19: =-FT19*0.5/100*'Distances for Transit Losses'!$C$125 -> 0 | FV19: =IF(AND(HL19-HM19-JH19>0,GX19="no"),MIN(-(FJ19+FP19+FQ19+FR19+FS19+FT19+FU19)/(1-0.5/100*'Distances for Transit Losses'!$C$109),HL19-HM19-JH19),0) -> 0 | FW19: =-FV19*0.5/100*'Distances for Transit Losses'!$C$115 -> 0 | FX19: 0 | FZ19: 0 | GB19: =IF(AND(GA18="no",(SUM('Joint Aug Station Deliveries'!$AF$9:'Joint Aug Station Deliveries'!$AF18)+'Joint Aug Station Deliveries'!$AF19)*1.9835>'New Cache Credit'!$BY$39,(SUM('Joint Aug Station Deliveries'!$AF$9:'Joint Aug Station Deliveries'!$AF18)+'Joint Aug Station Deliveries'!$AF19)*1.9835>'New Cache Credit'!$CH$39),0,'Joint Aug Station Deliveries'!X19) -> 0 | GC19: =-(GB19*0.5/100*'Distances for Transit Losses'!$C$208) -> 0 | GE19: =IF(AND(GD18="no",(SUM('Joint Aug Station Deliveries'!$AF$9:'Joint Aug Station Deliveries'!$AF18)+'Joint Aug Station Deliveries'!$AF19)*1.9835>'New Cache Credit'!$BY$39,(SUM('Joint Aug Station Deliveries'!$AF$9:'Joint Aug Station Deliveries'!$AF18)+'Joint Aug Station Deliveries'!$AF19)*1.9835>'New Cache Credit'!$CH$39),0,'Joint Aug Station Deliveries'!AA19) -> 0 | GF19: =-(GE19*0.5/100*'Distances for Transit Losses'!$C$200) -> 0 | GG19: =IF(AND(GD18="no",(SUM('Joint Aug Station Deliveries'!$AF$9:'Joint Aug Station Deliveries'!$AF18)+'Joint Aug Station Deliveries'!$AF19)*1.9835>'New Cache Credit'!$BY$39,(SUM('Joint Aug Station Deliveries'!$AF$9:'Joint Aug Station Deliveries'!$AF18)+'Joint Aug Station Deliveries'!$AF19)*1.9835>'New Cache Credit'!$CH$39),0,'Joint Aug Station Deliveries'!AD19) -> 0 | GH19: =-(GG19*0.5/100*'Distances for Transit Losses'!$C$206) -> 0 | GI19: 0 | GJ19: 0 | GK19: 4.163336342e-17 | GL19: 1.392702395 | GM19: =-(IF(N19<99999.99999,INDEX('Hist RF to SPR'!$Q$6:$AB$30,MATCH($B$2,'Hist RF to SPR'!$P$6:$P$30,0),MATCH($A19,'Hist RF to SPR'!$Q$5:$AB$5,0))/RV19/1.9835,0)) -> -0.002436185049 | GN19: =-(IF(OR($N19<99999.99999,E19="Lower Latham",I19="Lower Latham",E19="Highland",I19="Highland",E19="Plum",I19="Plum"),(INDEX('FIDCO Credit'!$Y$48:$AJ$78,MATCH($B$2,'FIDCO Credit'!$X$48:$X$78,0),MATCH($A19,'FIDCO Credit'!$Y$47:$AJ$47,0))/$RV19)/1.9835,0)) -> -0.0017595 | GO19: =-(IF(OR($N19<99999.99999,E19="Lower Latham",I19="Lower Latham",E19="Highland",I19="Highland",E19="Plum",I19="Plum"),(INDEX('Western Credit'!$W$84:$AH$114,MATCH($B$2,'Western Credit'!$V$84:$V$114,0),MATCH($A19,'Western Credit'!$W$83:$AH$83,0))/$RV19)/1.9835+'Haren Daily Recharge'!K18*'Western Credit'!$Z$40,0)) -> 0 | GP19: -0.004195685049 | GQ19: 0 | GR19: 0 | GS19: =IF(AND(GY19="no",GZ19="no"),MIN(-(GN19-GQ19-GR19)/(1-0.5/100*'Distances for Transit Losses'!$C$95),IW19),0) -> 0 | GT19: =-GS19*0.5/100*'Distances for Transit Losses'!$C$95 -> 0 | GU19: =VLOOKUP($B19,'ECCV Haren Pond S.P. Acrtns'!$B$7:$G$306,6)/$RV19/1.9835 -> 1.484290832 | GV19: 0.004195685049 | GW19: 0.3498593762 | GX19: yes | GY19: yes | GZ19: no | HA19: 0 | HB19: 0 | HC19: 0 | HE19: 0 | HF19: 0 | HG19: 0 | HH19: =IF(AND(JE19-JF19>0,IZ19="no"),MIN(-HG19/(1-0.5/100*'Distances for Transit Losses'!$C$111),JE19-JF19),0) -> 0 | HI19: =-HH19*0.5/100*'Distances for Transit Losses'!$C$111 -> 0 | HJ19: =IF(AND(JI19+JJ19-JK19-JV19>0,IZ19="no"),MIN((-HG19-(HH19+HI19))/(1-0.5/100*'Distances for Transit Losses'!$C$113),JI19+JJ19-JK19-JV19),0) -> 0 | HK19: =-HJ19*0.5/100*'Distances for Transit Losses'!$C$113 -> 0 | HL19: 0 | HM19: =IF(HL19>0,MIN(-(HG19+HH19+HI19+HJ19+HK19)/(1-0.5/100*'Distances for Transit Losses'!$C$115),HL19),0) -> 0 | HN19: =-HM19*0.5/100*'Distances for Transit Losses'!$C$115 -> 0 | HO19: 0 | HQ19: 0 | HR19: ='Joint Aug Station Deliveries'!AS19 -> 0 | HS19: =HR19*'Western Credit'!$Z$42 -> 0 | HT19: ='Joint Aug Station Deliveries'!AJ19 -> 0 | HU19: =IF(AND(HT19>0,SUM($HT$9:HT19,$HV$9:HV19,$IW$9:IW19)*1.9835<OFFSET('FIDCO Credit'!$X$39,0,MATCH($A19,'FIDCO Credit'!$Y$5:$AJ$5,0))),HT19-GQ19,0) -> 0 | HV19: ='Joint Aug Station Deliveries'!AM19 -> 0 | HW19: =IF(AND(HV19>0,SUM($HT$9:HT19,$HV$9:HV19,$IW$9:IW19)*1.9835<OFFSET('FIDCO Credit'!$X$39,0,MATCH($A19,'FIDCO Credit'!$Y$5:$AJ$5,0))),HV19-GR19,0) -> 0 | HX19: =MAX(0,(KY19+KZ19))/(1-0.5/100*'Distances for Transit Losses'!$C$83) -> 0 | HY19: =MAX(0,(LA19+LB19)/(1-0.5/100*'Distances for Transit Losses'!$C$79)) -> 0 | HZ19: 0 | IA19: =-HZ19*0.5/100*'Distances for Transit Losses'!$C$85 -> 0 | IB19: 0 | IC19: 0 | ID19: =-IC19*0.5/100*'Distances for Transit Losses'!$C$34 -> 0 | IE19: 0 | IF19: 0 | IG19: 0 | IH19: 0 | II19: 0 | IJ19: 0 | IK19: 0 | IL19: 0 | IM19: 0 | IN19: 0 | IO19: 0 | IP19: 0 | IQ19: =-IP19*0.5/100*'Distances for Transit Losses'!$C$123 -> 0 | IR19: 0 | IS19: =GU19-GV19-GW19+HS19+HU19-SUM(HX19:IB19)-IF19-IG19-II19-IJ19-(CL19/(1-0.5/100*'Distances for Transit Losses'!$C$105)) -> 1.039188618 | IT19: 4.163336342e-17 | IU19: 1.392702395 | IV19: =-(IF(F19<99999.99999,INDEX('Hist RF to SPR'!$B$6:$M$30,MATCH($B$2,'Hist RF to SPR'!$A$6:$A$30,0),MATCH($A19,'Hist RF to SPR'!$B$5:$M$5,0))/RV19/1.9835,0)) -> -0.02147266205 | IW19: ='Joint Aug Station Deliveries'!AP19 -> 0 | IX19: =IF(AND(IW19>0,SUM($HT$9:HT19,$HV$9:HV19,$IW$9:IW19)*1.9835<OFFSET('FIDCO Credit'!$X$39,0,MATCH($A19,'FIDCO Credit'!$Y$5:$AJ$5,0))),IW19-GS19,0) -> 0 | IY19: 0 | IZ19: yes | JA19: 0 | JB19: 0 | JC19: 0 | JD19: -0.02147266205 | JE19: 0 | JF19: =IF(JE19>0,MIN(-JD19/(1-0.5/100*'Distances for Transit Losses'!$C$117),JE19),0) -> 0 | JG19: =-JF19*0.5/100*'Distances for Transit Losses'!$C$117 -> 0 | JH19: 0 | JI19: 0 | JJ19: =-JI19*0.5/100*'Distances for Transit Losses'!$C$70 -> 0 | JK19: =IF((JI19+JJ19)>0,MIN((-JD19-(JF19-JG19)-JH19)/(1-0.5/100*'Distances for Transit Losses'!$C$119),(JI19+JJ19)),0) -> 0 | JL19: =-JK19*0.5/100*'Distances for Transit Losses'!$C$119 -> 0 | JM19: 0 | JO19: -0.02147266205 | JP19: 0 | JQ19: 0 | JR19: 0 | JS19: 0 | JT19: 0 | JU19: 0 | JV19: 0 | JW19: =-JV19*0.5/100*'Distances for Transit Losses'!$C$121 -> 0 | JX19: 0 | JY19: 4.163336342e-17 | JZ19: 1.392702395 | KA19: =-(IF(N19<99999.99999,(VLOOKUP(B19,'ECCV Upper Dpln'!$B$7:$BD$306,55))/RV19/1.9835,0)) -> -3.375455381 | KB19: =-(IF(N19<99999.99999,INDEX('Hist RF abv Milton'!$B$6:$M$30,MATCH($B$2,'Hist RF abv Milton'!$A$6:$A$30,0),MATCH($A19,'Hist RF abv Milton'!$B$5:$M$5,0))/RV19/1.9835,0)) -> -0.02367044831 | KC19: 0 | KD19: =(VLOOKUP($B19,'ECCV Beebe Pond Acrtns'!$B$7:$BI$1206,41)+VLOOKUP($B19,'ECCV Canal Acrtns'!$B$7:$AL$1206,22)+VLOOKUP($B19,'2003 Beebe Pond Acrtns'!$B$7:$BI$1206,41)+VLOOKUP($B19,'2003 Canal Acrtns'!$B$7:$AL$1206,22))/$RV19/1.9835+0.69 -> 1.045084924 | KE19: 0 | KF19: 0 | KG19: 0 | KH19: 1.045084924 | KI19: 0 | KJ19: no | KK19: 0 | KL19: 0.02367044831 | KM19: 1.111729602 | KN19: 0 | KO19: 0 | KP19: 0 | KQ19: 0 | KR19: -1.218640855 | KS19: 0 | KT19: 1 | KU19: =-(KT19*0.5/100*'Distances for Transit Losses'!$C$6) -> -0.0135 | KV19: 0 | KW19: 0 | KX19: 0 | KY19: =IF(AND(E19<>"Lower Latham",I19<>"Lower Latham"),MIN(-(KS19+KV19),HU19-HU19*0.5/100*'Distances for Transit Losses'!$C$83),0) -> 0 | KZ19: =IF(AND(E19<>"Lower Latham",I19<>"Lower Latham"),MAX(0,MIN(-(KR19+KT19+KU19+KX19),HU19-HU19*0.5/100*'Distances for Transit Losses'!$C$83-KY19/(1-0.5/100*'Distances for Transit Losses'!$C$83))),0) -> 0 | LA19: =MIN(-(KS19+KY19),HS19-HS19*0.5/100*'Distances for Transit Losses'!$C$79) -> 0 | LB19: =MAX(0,MIN(-(KR19+KT19+KU19+KZ19),HS19-HS19*0.5/100*'Distances for Transit Losses'!$C$79-LA19/(1-0.5/100*'Distances for Transit Losses'!$C$79))) -> 0 | LC19: =IF(FK19="no",MIN(-(MIN(0,KR19+KS19+KT19+KU19+KZ19+LB19))+CL19/(1-0.5/100*'Distances for Transit Losses'!$C$40)+LT19/(1-0.5/100*'Distances for Transit Losses'!$C$36),(GU19-GV19)-(GU19-GV19)*0.5/100*'Distances for Transit Losses'!$C$79),0) -> 0.3498593762 | LD19: =MAX(0,IF(AND(HL19-HM19-JH19-FV19>0,FK19="no"),MIN(-(KR19+KT19+KU19+KX19+KZ19+LB19+LC19)/(1-0.5/100*'Distances for Transit Losses'!$C$89),HL19-HM19-JH19-FV19),0)) -> 0 | LE19: =-LD19*0.5/100*'Distances for Transit Losses'!$C$89 -> 0 | LH19: =SUM(KA19:KC19)+KH19+KI19+SUM(KL19:KQ19)+SUM(KT19:LF19)-(CL19/(1-0.5/100*'Distances for Transit Losses'!$C$40)+LT19/(1-0.5/100*'Distances for Transit Losses'!$C$36)) -> 0 | LI19: 0 | LJ19: 0 | LK19: 0.0726744269 | LL19: 1.392702395 | LM19: =-(IF(N19<99999.99999,INDEX('Hist RF blw Milton'!$B$6:$M$30,MATCH($B$2,'Hist RF blw Milton'!$A$6:$A$30,0),MATCH($A19,'Hist RF blw Milton'!$B$5:$M$5,0))/RV19/1.9835,0)) -> -0.02924706861 | LN19: no | LO19: 0 | LP19: 0 | LQ19: -0.02924706861 | LR19: 0 | LS19: 0 | LT19: 0.02924706861 | LU19: Haren Recharge | LV19: 0.0726744269 | LW19: 1.392702395 | LX19: =-(IF(N19<99999.99999,INDEX('Hist RF to Box Elder'!$B$6:$M$30,MATCH($B$2,'Hist RF to Box Elder'!$A$6:$A$30,0),MATCH($A19,'Hist RF to Box Elder'!$B$5:$M$5,0))/RV19/1.9835,0)) -> -0.01307806535 | LY19: =(VLOOKUP($B19,'ECCV Beebe Pond Acrtns'!$B$7:$BI$1206,54)+VLOOKUP($B19,'ECCV Canal Acrtns'!$B$7:$AL$1206,34)+VLOOKUP($B19,'2003 Beebe Pond Acrtns'!$B$7:$BI$1206,54)+VLOOKUP($B19,'2003 Canal Acrtns'!$B$7:$AL$1206,34)+VLOOKUP($B19,'84CW090 Beebe Pond Acrtns'!$B$7:$BI$1206,55)+VLOOKUP($B19,'84CW090 Canal Acrtns'!$B$7:$AL$1206,34))/$RV19/1.9835 -> 0.1102842448 | LZ19: 0.01307806535 | MA19: 0 | MB19: 0 | MC19: 0 | ME19: -5.486013754 | MF19: 3.51684435 | MG19: 0.02924706861 | MH19: 0.01307806535 | MI19: 0 | MJ19: 0.004195685049 | MK19: 0.0726744269 | ML19: 0 | MM19: 1.784646007 | MN19: 0.1519313349 | MO19: 5.572616939 | MP19: 0.08660318457 | MQ19: 0 | MR19: 0 | MS19: 0 | MU19: 0 | MV19: 0 | MW19: 0 | MX19: 0 | MY19: 0 | MZ19: 0 | NA19: 0 | NB19: 0 | ND19: 0 | NE19: 0 | NF19: 0 | NG19: 0 | NH19: 0 | NI19: 0 | NJ19: 0 | NK19: 0 | NL19: 0 | NM19: 0 | NN19: 0 | NO19: 0 | NQ19: 0 | NR19: 0 | NS19: 0 | NT19: 0 | NU19: 0 | NV19: 0 | NW19: 0 | NX19: 0 | NY19: 0 | NZ19: 0 | OA19: 0 | OC19: 0 | OD19: 0 | OE19: 0 | OF19: 0 | OG19: 0 | OH19: 0 | OI19: 0 | OJ19: 0 | OK19: 0 | OL19: 0 | OM19: 0 | OO19: 0 | OP19: 0 | OQ19: 0 | OR19: 0 | OS19: 0 | OT19: 0 | OU19: 0 | OV19: 0 | OW19: 0 | OX19: 0 | OY19: 0 | OZ19: 0 | PA19: 0 | PC19: 0 | PD19: 0 | PE19: 0 | PF19: 0 | PG19: 0 | PH19: 0 | PI19: 0 | PJ19: 0 | PK19: 0 | PM19: 0 | PN19: 0 | PO19: 0 | PP19: 0 | PQ19: 0 | PR19: 0 | PS19: 0 | PT19: 0 | PV19: 0 | PW19: 0 | PX19: 0 | PZ19: 0 | QA19: 0 | QB19: 0 | QC19: 0 | QF19: 0 | QG19: 0 | QH19: 0 | QI19: 0 | QJ19: 0 | QK19: 0 | QL19: 0 | QN19: 0 | QO19: 0 | QP19: 0 | QQ19: 0 | QR19: 0 | QS19: 309.6 | QU19: 0 | QV19: 0 | QW19: 0 | QX19: 0 | QY19: 0 | QZ19: 0 | RA19: 0 | RB19: 0 | RC19: 0 | RD19: 0 | RE19: 0 | RF19: 0 | RG19: 0 | RH19: 0 | RI19: 0 | RJ19: 0 | RK19: 0 | RL19: 0 | RM19: 0 | RN19: 0 | RO19: 0 | RP19: TRUE | RQ19: TRUE | RS19: 1 | RT19: 0 | RV19: =VLOOKUP(A19,'Control Sheet'!$G$9:$H$20,2) -> 30
